Workbook

Sheet START
A1: Choose name from list

Sheet Instructions
D2: 2020
X4: Yes
X5: No
W7: Type of Entities Range: | X7: Parent Municipality
X8: Consolidated Information
W10: Date linked | X10: 8
W11: Date | X11: =VLOOKUP(X10,W39:X55,2) -> M08 February | Y11: 2013-08-01
W19: MTREF Range: | X19: 2014
X20: 2015
X21: 2016
X22: 2017
X23: 2018
X24: 2019
X25: 2020
X26: 2021
X27: 2022
X28: 2023
X29: 2024
X30: 2025
X31: 2026
X32: 2027
X33: 2028
W34: MTREF Linked:
W35: MTREF: | X35: 10
X36: =INDEX(X19:X32,X35,1) -> 2023
W37: Fin Year:
X38: =MTREF&"/"&RIGHT(MTREF,2)+1 -> 2023/24
V39: Date/type of report | W39: 1 | X39: M01 July
W40: 2 | X40: M02 August
W41: 3 | X41: M03 September
W42: 4 | X42: M04 October
W43: 5 | X43: M05 November
W44: 6 | X44: M06 December
W45: 7 | X45: M07 January
W46: 8 | X46: M08 February
W47: 9 | X47: M09 March
W48: 10 | X48: M10 April
W49: 11 | X49: M11 May
W50: 12 | X50: M12 June
W51: 13 | X51: Q1 First Quarter
W52: 14 | X52: Q2 Second Quarter
W53: 15 | X53: Q3 Third Quarter
W54: 16 | X54: Q4 Fourth Quarter
W55: 17 | X55: Mid-Year Assessment

Sheet Template names (hidden)
A1: Common sheet headings
A2: Head1 | B2: =HLOOKUP(MTREF,Headings,2) -> 2022/23 | C2: Prior year -1
A3: Head2 | B3: =HLOOKUP(MTREF,Headings,5) -> Budget Year 2023/24 | C3: Year of approved budget
A4: Head2A | B4: =HLOOKUP(MTREF,Headings,4) -> 2023/24 | C4: Approved budget year
A5: Head3 | B5: =HLOOKUP(MTREF,Headings,3) -> 2023/24 Medium Term Revenue & Expenditure Framework | C5: MTREF header name
A6: Head5 | B6: Audited Outcome
A7: Head5A | B7: Outcome
A8: Head5B | B8: Pre-audit outcome
A9: Head6 | B9: Original Budget
A10: Head7 | B10: Adjusted Budget
A11: Head8 | B11: Full Year Forecast
A12: Head9 | B12: =HLOOKUP(MTREF,Headings,5) -> Budget Year 2023/24 | C12: 1st year of MTREF | D12: Year1
A13: Head10 | B13: =HLOOKUP(MTREF,Headings,6) -> Budget Year +1 2024/25 | C13: 2nd year of MTREF | D13: Year2
A14: Head11 | B14: =HLOOKUP(MTREF,Headings,7) -> Budget Year +2 2025/26 | C14: 3rd year of MTREF | D14: Year3
A15: Head12 | B15: Forecast 2010/11 | D15: Year4
A16: Head13 | B16: Forecast 2011/12 | D16: Year5
A17: Head14 | B17: Forecast 2012/13 | D17: Year6
A18: Head15 | B18: Forecast 2013/14 | D18: Year7
A19: Head16 | B19: Forecast 2014/15 | D19: Year8
A20: Head17 | B20: Forecast 2015/16 | D20: Year9
A21: Head18 | B21: Forecast 2016/17 | D21: Year10
A22: Head19 | B22: Forecast 2017/18 | D22: Year11
A23: Head20 | B23: Forecast 2018/19 | D23: Year12
A24: Head21 | B24: Forecast 2019/20 | D24: Year13
A25: Head22 | B25: Forecast 2020/21 | D25: Year14
A26: Head23 | B26: Forecast 2021/22 | D26: Year15
A27: Head24 | B27: Description | D27: Desc
A28: Head25 | B28: Schedule of funding diligence | D28: fdil
A29: Head26 | B29: Vote Description | D29: VDesc
A30: Head27 | B30: Ref
A31: Head27a | B31: References
A32: Head28 | B32: Surplus/ (Deficit) for the year | D32: Result
A33: Head29 | B33: Annual target 2007/08
A34: Head30 | B34: Revised target 2007/08
A35: Head31 | B35: Quarter ended 30 September
A36: Head32 | B36: Quarter ended 31 December
A37: Head33 | B37: Quarter ended 31 March
A38: Head34 | B38: Quarter ended 30 June
A39: Head35 | B39: Variance explanation
A40: Head36 | B40: YTD Actual 31 Dec
A41: Head37 | B41: YTD Budget 31 Dec
A42: Head38 | B42: Monthly actual
A43: Head39 | B43: YearTD actual
A44: Head40 | B44: YearTD budget
A45: Head41 | B45: YTD variance
A46: Head42 | B46: Surplus/ (Deficit) for the yr/period
A47: Head43 | B47: =Head3&" Summary" -> 2023/24 Medium Term Revenue & Expenditure Framework Summary
A48: Head44 | B48: 1996 Census
A49: Head45 | B49: 2001 Census
A50: Head46 | B50: - Adjustments Budget - Month YYYY
A51: Head47 | B51: Previous target year to complete
A52: Head48 | B52: Present value
A53: Head49 | B53: Virement
A54: Head50 | B54: Other Adjusts.
A55: Head51 | B55: Accum. Funds
A56: Head52 | B56: Multi-year capital
A57: Head53 | B57: Unfore. Unavoid.
A58: Head54 | B58: Prior Adjusted
A59: Head55 | B59: Nat. or Prov. Govt
A60: Head56 | B60: Total Adjusts.
A61: Head57 | B61: =date -> M08 February
A62: Head58 | B62: Parent muni.
A63: Head59 | B63: Downward adjusts
A64: Head60 | B64: Month | C64: Report header part name | D64: =date -> M08 February
A65: SFPerf1 | B65: Budgeted Financial Performance
A66: SFPerf2 | B66: Forecast Financial Performance
A67: SFPos1 | B67: Budgeted Financial Position
A68: SFPos2 | B68: Forecast Financial Position
A69: Cash1 | B69: Budget Cash Flow
A70: Cash2 | B70: Forecast Cash Flow
A71: RandM | B71: Expenditure includes repairs & maintenance of R'000
A72: Standard nomenclature
A73: Muni | B73: ='Lookup and lists'!B27 -> LIM351 Blouberg
A74: Municipal Entities | B74: 2 | C74: Type of report: | D74: 1
A75: =IF((MuniEntities=1)*(MuniType=2),"YES","NO") -> NO | B75: Does this municipality have entities (consolidated budget and entity budgets required)? YES/NO
A76: s71 (Monthly Mayor report) schedules and charts
A77: S71sum | B77: =IF(Consolques="YES",E77,F77) -> Table C1 Monthly Budget Statement Summary | D77: Table C1 | E77: =D77&"Consolidated Monthly Budget Statement Summary" -> Table C1 Consolidated Monthly Budget Statement Summary | F77: =D77&"Monthly Budget Statement Summary" -> Table C1 Monthly Budget Statement Summary
A78: S71C | B78: Table C3 Monthly Budget Statement - Financial Performance (revenue and expenditure by municipal vote) | D78: Table C3 | E78: =D78&"Consolidated Monthly Budget Statement - Financial Performance (revenue and expenditure by municipal vote) " -> Table C3 Consolidated Monthly Budget Statement - Financial Performance (revenue and expenditure by municipal vote) | F78: =D78&"Monthly Budget Statement - Financial Performance (revenue and expenditure by municipal vote)" -> Table C3 Monthly Budget Statement - Financial Performance (revenue and expenditure by municipal vote)
A79: S71A | B79: =IF(Consolques="YES",E79,F79) -> Table C2 Monthly Budget Statement - Financial Performance (functional classification) | D79: Table C2 | E79: =D79&"Consolidated Monthly Budget Statement - Financial Performance (functional classification) " -> Table C2 Consolidated Monthly Budget Statement - Financial Performance (functional classification) | F79: =D79&"Monthly Budget Statement - Financial Performance (functional classification)" -> Table C2 Monthly Budget Statement - Financial Performance (functional classification)
A80: S71B | B80: =IF(Consolques="YES",E80,F80) -> Table C4 Monthly Budget Statement - Financial Performance (revenue and expenditure) | D80: Table C4 | E80: =D80&"Consolidated Monthly Budget Statement - Financial Performance (revenue and expenditure) " -> Table C4 Consolidated Monthly Budget Statement - Financial Performance (revenue and expenditure) | F80: =D80&"Monthly Budget Statement - Financial Performance (revenue and expenditure)" -> Table C4 Monthly Budget Statement - Financial Performance (revenue and expenditure)
A81: S71D | B81: =IF(Consolques="YES",E81,F81) -> Table C5 Monthly Budget Statement - Capital Expenditure (municipal vote, functional classification and funding) | D81: Table C5 | E81: =D81&"Consolidated Monthly Budget Statement - Capital Expenditure (municipal vote, functional classification and funding " -> Table C5 Consolidated Monthly Budget Statement - Capital Expenditure (municipal vote, functional classification and funding | F81: =D81&"Monthly Budget Statement - Capital Expenditure (municipal vote, functional classification and funding)" -> Table C5 Monthly Budget Statement - Capital Expenditure (municipal vote, functional classification and funding)
A82: S71E | B82: Table C6 Monthly Budget Statement - Financial Position | D82: Table C6 | E82: =D82&"Consolidated Monthly Budget Statement - Financial Position " -> Table C6 Consolidated Monthly Budget Statement - Financial Position | F82: =D82&"Monthly Budget Statement - Financial Position" -> Table C6 Monthly Budget Statement - Financial Position
A83: S71F | B83: Table C7 Monthly Budget Statement - Cash Flow | D83: Table C7 | E83: =D83&"Consolidated Monthly Budget Statement - Cash Flow " -> Table C7 Consolidated Monthly Budget Statement - Cash Flow | F83: =D83&"Monthly Budget Statement - Cash Flow " -> Table C7 Monthly Budget Statement - Cash Flow
A84: S71G | B84: =D84&"Material variance explanations " -> Supporting Table SC1 Material variance explanations | D84: Supporting Table SC1
A85: S71H | B85: =D85&"Monthly Budget Statement - performance indicators " -> Supporting Table SC2 Monthly Budget Statement - performance indicators | D85: Supporting Table SC2
A86: S71I | B86: =D86&"Monthly Budget Statement - aged debtors" -> Supporting Table SC3 Monthly Budget Statement - aged debtors | D86: Supporting Table SC3
A87: S71J | B87: =D87&"Monthly Budget Statement - aged creditors " -> Supporting Table SC4 Monthly Budget Statement - aged creditors | D87: Supporting Table SC4
A88: S71K | B88: =D88&"Monthly Budget Statement - investment portfolio " -> Supporting Table SC5 Monthly Budget Statement - investment portfolio | D88: Supporting Table SC5
A89: S71L | B89: =D89&"Monthly Budget Statement - transfers and grant receipts " -> Supporting Table SC6 Monthly Budget Statement - transfers and grant receipts | D89: Supporting Table SC6
A90: S71M | B90: =D90&" Monthly Budget Statement - transfers and grant expenditure " -> Supporting Table SC7(1) Monthly Budget Statement - transfers and grant expenditure | D90: Supporting Table SC7(1)
A91: S71N | B91: =D91&"Monthly Budget Statement - councillor and staff benefits " -> Supporting Table SC8 Monthly Budget Statement - councillor and staff benefits | D91: Supporting Table SC8
A92: S71O | B92: =D92&"Monthly Budget Statement - actuals and revised targets for cash receipts" -> Supporting Table SC9 Monthly Budget Statement - actuals and revised targets for cash receipts | D92: Supporting Table SC9
A93: S71P | B93: =IF(Consolques="YES",E93,F93) -> NOT REQUIRED - municipality does not have entities or this is the parent municipality's budget | D93: Supporting Table SC10 | E93: =D93&"Monthly Budget Statement - Parent Municipality Financial Performance (revenue and expenditure) " -> Supporting Table SC10 Monthly Budget Statement - Parent Municipality Financial Performance (revenue and expenditure) | F93: NOT REQUIRED - municipality does not have entities or this is the parent municipality's budget
A94: S71Q | B94: NOT REQUIRED - municipality does not have entities or this is the parent municipality's budget | D94: Supporting Table SC11 | E94: =D94&"Monthly Budget Statement - summary of municipal entities" -> Supporting Table SC11 Monthly Budget Statement - summary of municipal entities | F94: NOT REQUIRED - municipality does not have entities or this is the parent municipality's budget
A95: S71R | B95: Supporting Table SC12 Monthly Budget Statement - capital expenditure trend | D95: Supporting Table SC12 | E95: =D95&"Consolidated Monthly Budget Statement - capital expenditure trend " -> Supporting Table SC12 Consolidated Monthly Budget Statement - capital expenditure trend | F95: =D95&"Monthly Budget Statement - capital expenditure trend" -> Supporting Table SC12 Monthly Budget Statement - capital expenditure trend
A96: S71Sa | B96: Supporting Table SC13a Monthly Budget Statement - capital expenditure on new assets by asset class | D96: Supporting Table SC13a | E96: =D96&"Consolidated Monthly Budget Statement - capital expenditure on new assets by asset class" -> Supporting Table SC13a Consolidated Monthly Budget Statement - capital expenditure on new assets by asset class | F96: =D96&"Monthly Budget Statement - capital expenditure on new assets by asset class" -> Supporting Table SC13a Monthly Budget Statement - capital expenditure on new assets by asset class
A97: S71Sb | B97: Supporting Table SC13b Monthly Budget Statement - capital expenditure on renewal of existing assets by asset class | D97: Supporting Table SC13b | E97: =D97&"Consolidated Monthly Budget Statement - capital expenditure on renewal of existing assets by asset class" -> Supporting Table SC13b Consolidated Monthly Budget Statement - capital expenditure on renewal of existing assets by asset class | F97: =D97&"Monthly Budget Statement - capital expenditure on renewal of existing assets by asset class" -> Supporting Table SC13b Monthly Budget Statement - capital expenditure on renewal of existing assets by asset class
A98: S71Sc | B98: Supporting Table SC13c Monthly Budget Statement - expenditure on repairs and maintenance by asset class | D98: Supporting Table SC13c | E98: =D98&"Consolidated Monthly Budget Statement - expenditure on repairs and maintenance by asset class" -> Supporting Table SC13c Consolidated Monthly Budget Statement - expenditure on repairs and maintenance by asset class | F98: =D98&"Monthly Budget Statement - expenditure on repairs and maintenance by asset class" -> Supporting Table SC13c Monthly Budget Statement - expenditure on repairs and maintenance by asset class
A99: S71Sd | B99: Supporting Table SC13d Monthly Budget Statement - depreciation by asset class | D99: Supporting Table SC13d | E99: =D99&"Consolidated Monthly Budget Statement - depreciation by asset class" -> Supporting Table SC13d Consolidated Monthly Budget Statement - depreciation by asset class | F99: =D99&"Monthly Budget Statement - depreciation by asset class" -> Supporting Table SC13d Monthly Budget Statement - depreciation by asset class
A100: S71Se | B100: =IF(Consolques="YES",E100,F100) -> Supporting Table SC13e Monthly Budget Statement - capital expenditure on upgrading of existing assets by asset class | D100: Supporting Table SC13e | E100: =D100&"Consolidated Monthly Budget Statement - capital expenditure on upgrading of existing assets by asset class" -> Supporting Table SC13e Consolidated Monthly Budget Statement - capital expenditure on upgrading of existing assets by asset class | F100: =D100&"Monthly Budget Statement - capital expenditure on upgrading of existing assets by asset class" -> Supporting Table SC13e Monthly Budget Statement - capital expenditure on upgrading of existing assets by asset class
B101: s71 charts listing
B102: =D102&Head2A&" Capital Expenditure Monthly Trend: actual v target" -> Chart C1 2023/24 Capital Expenditure Monthly Trend: actual v target | D102: Chart C1
B103: =D103&Head2A&" Capital Expenditure: YTD actual v YTD target" -> Chart C2 2023/24 Capital Expenditure: YTD actual v YTD target | D103: Chart C2
B104: =D104&"Aged Consumer Debtors Analysis" -> Chart C3 Aged Consumer Debtors Analysis | D104: Chart C3
B105: =D105&"Consumer Debtors (total by Debtor Customer Category)" -> Chart C4 Consumer Debtors (total by Debtor Customer Category) | D105: Chart C4
B106: =D106&"Aged Creditors Analysis" -> Chart C5 Aged Creditors Analysis | D106: Chart C5
A107: S71T | B107: =D107&" Monthly Budget Statement - Expenditure against approved rollovers" -> Supporting Table SC7(2) Monthly Budget Statement - Expenditure against approved rollovers | D107: Supporting Table SC7(2)

Sheet Lookup and lists (hidden)
A1: Description | B1: 2013 | C1: 2014 | D1: 2015 | E1: 2016 | F1: 2017 | G1: 2018 | H1: 2019 | I1: 2020 | J1: 2021 | K1: 2022 | L1: 2023 | M1: 2024 | N1: 2025 | O1: 2026 | Q1: Grants: | R1: National - opex | S1: Provincial - opex | T1: National - capex | U1: Provincial - capex | V1: YESNO
A2: ='Template names'!C2 -> Prior year -1 | B2: =B1-1&"/"&RIGHT(B1,2)-0 -> 2012/13 | C2: =C1-1&"/"&RIGHT(C1,2)-0 -> 2013/14 | D2: =D1-1&"/"&RIGHT(D1,2)-0 -> 2014/15 | E2: =E1-1&"/"&RIGHT(E1,2)-0 -> 2015/16 | F2: =F1-1&"/"&RIGHT(F1,2)-0 -> 2016/17 | G2: 2017/18 | H2: 2018/19 | I2: 2019/20 | J2: 2020/21 | K2: 2021/22 | L2: 2022/23 | M2: 2023/24 | N2: 2024/25 | O2: 2025/26 | R2: Local Government Equitable Share | S2: Health subsidy | T2: Municipal Infrastructure Grant (MIG) | U2: Agriculture | V2: Yes
A3: ='Template names'!C5 -> MTREF header name | B3: =B1&"/"&RIGHT(B1,2)+1&" Medium Term Revenue & Expenditure Framework" -> 2013/14 Medium Term Revenue & Expenditure Framework | C3: =C1&"/"&RIGHT(C1,2)+1&" Medium Term Revenue & Expenditure Framework" -> 2014/15 Medium Term Revenue & Expenditure Framework | D3: =D1&"/"&RIGHT(D1,2)+1&" Medium Term Revenue & Expenditure Framework" -> 2015/16 Medium Term Revenue & Expenditure Framework | E3: =E1&"/"&RIGHT(E1,2)+1&" Medium Term Revenue & Expenditure Framework" -> 2016/17 Medium Term Revenue & Expenditure Framework | F3: =F1&"/"&RIGHT(F1,2)+1&" Medium Term Revenue & Expenditure Framework" -> 2017/18 Medium Term Revenue & Expenditure Framework | G3: 2018/19 Medium Term Revenue & Expenditure Framework | H3: 2019/20 Medium Term Revenue & Expenditure Framework | I3: 2020/21 Medium Term Revenue & Expenditure Framework | J3: 2021/22 Medium Term Revenue & Expenditure Framework | K3: 2022/23 Medium Term Revenue & Expenditure Framework | L3: 2023/24 Medium Term Revenue & Expenditure Framework | M3: 2024/25 Medium Term Revenue & Expenditure Framework | N3: 2025/26 Medium Term Revenue & Expenditure Framework | O3: 2026/27 Medium Term Revenue & Expenditure Framework | R3: RSC Levy Replacement | S3: Ambulance subsidy | T3: Public Transport and Systems | U3: Education | V3: No
A4: ='Template names'!C4 -> Approved budget year | B4: =B1&"/"&RIGHT(B1,2)+1 -> 2013/14 | C4: =C1&"/"&RIGHT(C1,2)+1 -> 2014/15 | D4: =D1&"/"&RIGHT(D1,2)+1 -> 2015/16 | E4: =E1&"/"&RIGHT(E1,2)+1 -> 2016/17 | F4: =F1&"/"&RIGHT(F1,2)+1 -> 2017/18 | G4: 2018/19 | H4: 2019/20 | I4: 2020/21 | J4: 2021/22 | K4: 2022/23 | L4: 2023/24 | M4: 2024/25 | N4: 2025/26 | O4: 2026/27 | R4: Finance Management | S4: Housing | T4: Rural Transport Services and Infrastructure | U4: Health
A5: ='Template names'!C12 -> 1st year of MTREF | B5: ="Budget Year "&B1&"/"&RIGHT(B1,2)+1 -> Budget Year 2013/14 | C5: ="Budget Year "&C1&"/"&RIGHT(C1,2)+1 -> Budget Year 2014/15 | D5: ="Budget Year "&D1&"/"&RIGHT(D1,2)+1 -> Budget Year 2015/16 | E5: ="Budget Year "&E1&"/"&RIGHT(E1,2)+1 -> Budget Year 2016/17 | F5: ="Budget Year "&F1&"/"&RIGHT(F1,2)+1 -> Budget Year 2017/18 | G5: Budget Year 2018/19 | H5: Budget Year 2019/20 | I5: Budget Year 2020/21 | J5: Budget Year 2021/22 | K5: Budget Year 2022/23 | L5: Budget Year 2023/24 | M5: Budget Year 2024/25 | N5: Budget Year 2025/26 | O5: Budget Year 2026/27 | R5: Municipal Systems Improvement | S5: Sport and Recreation | T5: Regional Bulk Infrastructure | U5: Housing and Local Government
A6: ='Template names'!C13 -> 2nd year of MTREF | B6: ="Budget Year +1 "&B1+1&"/"&RIGHT(B1,2)+2 -> Budget Year +1 2014/15 | C6: ="Budget Year +1 "&C1+1&"/"&RIGHT(C1,2)+2 -> Budget Year +1 2015/16 | D6: ="Budget Year +1 "&D1+1&"/"&RIGHT(D1,2)+2 -> Budget Year +1 2016/17 | E6: ="Budget Year +1 "&E1+1&"/"&RIGHT(E1,2)+2 -> Budget Year +1 2017/18 | F6: ="Budget Year +1 "&F1+1&"/"&RIGHT(F1,2)+2 -> Budget Year +1 2018/19 | G6: Budget Year +1 2019/20 | H6: Budget Year +1 2020/21 | I6: Budget Year +1 2021/22 | J6: Budget Year +1 2022/23 | K6: Budget Year +1 2023/24 | L6: Budget Year +1 2024/25 | M6: Budget Year +1 2025/26 | N6: Budget Year +1 2026/27 | O6: Budget Year +1 2027/28 | R6: Water Services Operating Subsidy | T6: Rural Households Infrastructure | U6: Other Departments
A7: ='Template names'!C14 -> 3rd year of MTREF | B7: ="Budget Year +2 "&B1+2&"/"&RIGHT(B1,2)+3 -> Budget Year +2 2015/16 | C7: ="Budget Year +2 "&C1+2&"/"&RIGHT(C1,2)+3 -> Budget Year +2 2016/17 | D7: ="Budget Year +2 "&D1+2&"/"&RIGHT(D1,2)+3 -> Budget Year +2 2017/18 | E7: ="Budget Year +2 "&E1+2&"/"&RIGHT(E1,2)+3 -> Budget Year +2 2018/19 | F7: ="Budget Year +2 "&F1+2&"/"&RIGHT(F1,2)+3 -> Budget Year +2 2019/20 | G7: Budget Year +2 2020/21 | H7: Budget Year +2 2021/22 | I7: Budget Year +2 2022/23 | J7: Budget Year +2 2023/24 | K7: Budget Year +2 2024/25 | L7: Budget Year +2 2025/26 | M7: Budget Year +2 2026/27 | N7: Budget Year +2 2027/28 | O7: Budget Year +2 2028/29 | R7: Energy Efficiency and Demand Management | T7: Neighbourhood Development Partnership | U7: Public Works, Roads, Transport
A8: NOTE: This sheet should not be directly amended - select headings from sheet 'S' | R8: Integrated National Electrification Programme | T8: 2010 FIFA World Cup Stadiums Development | U8: Sport and Recreation
R9: Municipal Drought Relief
R10: 2010 FIFA World Cup Operating
R11: Electricity Demand Side Management
R12: EPWP Incentive
A26: Name link | B26: 140
A27: Name of Muni | B27: =INDEX(B28:B311,B26,1) -> LIM351 Blouberg
B28: Choose name from list | C28: Set name on 'Instructions' sheet
B29: BUF Buffalo City | C29: EC EASTERN CAPE
B30: NMA Nelson Mandela Bay | C30: EC EASTERN CAPE
B31: EC101 Dr Beyers Naude | C31: EC EASTERN CAPE
B32: EC102 Blue Crane Route | C32: EC EASTERN CAPE
B33: EC104 Makana | C33: EC EASTERN CAPE
B34: EC105 Ndlambe | C34: EC EASTERN CAPE
B35: EC106 Sundays River Valley | C35: EC EASTERN CAPE
B36: EC108 Kouga | C36: EC EASTERN CAPE
B37: EC109 Kou-Kamma | C37: EC EASTERN CAPE
B38: DC10 Sarah Baartman | C38: EC EASTERN CAPE
B39: EC121 Mbhashe | C39: EC EASTERN CAPE
B40: EC122 Mnquma | C40: EC EASTERN CAPE
B41: EC123 Great Kei | C41: EC EASTERN CAPE
B42: EC124 Amahlathi | C42: EC EASTERN CAPE
B43: EC126 Ngqushwa | C43: EC EASTERN CAPE
B44: EC129 Raymond Mhlaba | C44: EC EASTERN CAPE
B45: DC12 Amathole | C45: EC EASTERN CAPE
B46: EC131 Inxuba Yethemba | C46: EC EASTERN CAPE
B47: EC135 Intsika Yethu | C47: EC EASTERN CAPE
B48: EC136 Emalahleni (Ec) | C48: EC EASTERN CAPE
B49: EC137 Engcobo | C49: EC EASTERN CAPE
B50: EC138 Sakhisizwe | C50: EC EASTERN CAPE
B51: EC139 Enoch Mgijima | C51: EC EASTERN CAPE
B52: DC13 Chris Hani | C52: EC EASTERN CAPE
B53: EC141 Elundini | C53: EC EASTERN CAPE
B54: EC142 Senqu | C54: EC EASTERN CAPE
B55: EC145 Walter Sisulu | C55: EC EASTERN CAPE
B56: DC14 Joe Gqabi | C56: EC EASTERN CAPE
B57: EC153 Ngquza Hills | C57: EC EASTERN CAPE
B58: EC154 Port St Johns | C58: EC EASTERN CAPE
B59: EC155 Nyandeni | C59: EC EASTERN CAPE
B60: EC156 Mhlontlo | C60: EC EASTERN CAPE
B61: EC157 King Sabata Dalindyebo | C61: EC EASTERN CAPE
B62: DC15 O .R. Tambo | C62: EC EASTERN CAPE
B63: EC441 Matatiele | C63: EC EASTERN CAPE
B64: EC442 Umzimvubu | C64: EC EASTERN CAPE
B65: EC443 Winnie Madikizela Mandela | C65: EC EASTERN CAPE
B66: EC444 Ntabankulu | C66: EC EASTERN CAPE
B67: DC44 Alfred Nzo | C67: EC EASTERN CAPE
B68: MAN Mangaung | C68: FS FREE STATE
B69: FS161 Letsemeng | C69: FS FREE STATE
B70: FS162 Kopanong | C70: FS FREE STATE
B71: FS163 Mohokare | C71: FS FREE STATE
B72: DC16 Xhariep | C72: FS FREE STATE
B73: FS181 Masilonyana | C73: FS FREE STATE
B74: FS182 Tokologo | C74: FS FREE STATE
B75: FS183 Tswelopele | C75: FS FREE STATE
B76: FS184 Matjhabeng | C76: FS FREE STATE
B77: FS185 Nala | C77: FS FREE STATE
B78: DC18 Lejweleputswa | C78: FS FREE STATE
B79: FS191 Setsoto | C79: FS FREE STATE
B80: FS192 Dihlabeng | C80: FS FREE STATE
B81: FS193 Nketoana | C81: FS FREE STATE
B82: FS194 Maluti-a-Phofung | C82: FS FREE STATE
B83: FS195 Phumelela | C83: FS FREE STATE
B84: FS196 Mantsopa | C84: FS FREE STATE
B85: DC19 Thabo Mofutsanyana | C85: FS FREE STATE
B86: FS201 Moqhaka | C86: FS FREE STATE
B87: FS203 Ngwathe | C87: FS FREE STATE
B88: FS204 Metsimaholo | C88: FS FREE STATE
B89: FS205 Mafube | C89: FS FREE STATE
B90: DC20 Fezile Dabi | C90: FS FREE STATE
B91: EKU City of Ekurhuleni | C91: GT GAUTENG
B92: JHB City Of Johannesburg | C92: GT GAUTENG
B93: TSH City Of Tshwane | C93: GT GAUTENG
B94: GT421 Emfuleni | C94: GT GAUTENG
B95: GT422 Midvaal | C95: GT GAUTENG
B96: GT423 Lesedi | C96: GT GAUTENG
B97: DC42 Sedibeng | C97: GT GAUTENG
B98: GT481 Mogale City | C98: GT GAUTENG
B99: GT484 Merafong City | C99: GT GAUTENG
B100: GT485 Rand West City | C100: GT GAUTENG
B101: DC48 West Rand | C101: GT GAUTENG
B102: ETH eThekwini | C102: KZN KWAZULU-NATAL
B103: KZN212 Umdoni | C103: KZN KWAZULU-NATAL
B104: KZN213 Umzumbe | C104: KZN KWAZULU-NATAL
B105: KZN214 uMuziwabantu | C105: KZN KWAZULU-NATAL
B106: KZN216 Ray Nkonyeni | C106: KZN KWAZULU-NATAL
B107: DC21 Ugu | C107: KZN KWAZULU-NATAL
B108: KZN221 uMshwathi | C108: KZN KWAZULU-NATAL
B109: KZN222 uMngeni | C109: KZN KWAZULU-NATAL
B110: KZN223 Mpofana | C110: KZN KWAZULU-NATAL
B111: KZN224 Impendle | C111: KZN KWAZULU-NATAL
B112: KZN225 Msunduzi | C112: KZN KWAZULU-NATAL
B113: KZN226 Mkhambathini | C113: KZN KWAZULU-NATAL
B114: KZN227 Richmond | C114: KZN KWAZULU-NATAL
B115: DC22 uMgungundlovu | C115: KZN KWAZULU-NATAL
B116: KZN235 Okhahlamba | C116: KZN KWAZULU-NATAL
B117: KZN237 Inkosi Langalibalele | C117: KZN KWAZULU-NATAL
B118: KZN238 Alfred Duma | C118: KZN KWAZULU-NATAL
B119: DC23 Uthukela | C119: KZN KWAZULU-NATAL
B120: KZN241 Endumeni | C120: KZN KWAZULU-NATAL
B121: KZN242 Nquthu | C121: KZN KWAZULU-NATAL
B122: KZN244 Msinga | C122: KZN KWAZULU-NATAL
B123: KZN245 Umvoti | C123: KZN KWAZULU-NATAL
B124: DC24 Umzinyathi | C124: KZN KWAZULU-NATAL
B125: KZN252 Newcastle | C125: KZN KWAZULU-NATAL
B126: KZN253 Emadlangeni | C126: KZN KWAZULU-NATAL
B127: KZN254 Dannhauser | C127: KZN KWAZULU-NATAL
B128: DC25 Amajuba | C128: KZN KWAZULU-NATAL
B129: KZN261 eDumbe | C129: KZN KWAZULU-NATAL
B130: KZN262 uPhongolo | C130: KZN KWAZULU-NATAL
B131: KZN263 Abaqulusi | C131: KZN KWAZULU-NATAL
B132: KZN265 Nongoma | C132: KZN KWAZULU-NATAL
B133: KZN266 Ulundi | C133: KZN KWAZULU-NATAL
B134: DC26 Zululand | C134: KZN KWAZULU-NATAL
B135: KZN271 Umhlabuyalingana | C135: KZN KWAZULU-NATAL
B136: KZN272 Jozini | C136: KZN KWAZULU-NATAL
B137: KZN275 Mtubatuba | C137: KZN KWAZULU-NATAL
B138: KZN276 Hlabisa Big Five | C138: KZN KWAZULU-NATAL
B139: DC27 Umkhanyakude | C139: KZN KWAZULU-NATAL
B140: KZN281 Mfolozi | C140: KZN KWAZULU-NATAL
B141: KZN282 uMhlathuze | C141: KZN KWAZULU-NATAL
B142: KZN284 uMlalazi | C142: KZN KWAZULU-NATAL
B143: KZN285 Mthonjaneni | C143: KZN KWAZULU-NATAL
B144: KZN286 Nkandla | C144: KZN KWAZULU-NATAL
B145: DC28 King Cetshwayo | C145: KZN KWAZULU-NATAL
B146: KZN291 Mandeni | C146: KZN KWAZULU-NATAL
B147: KZN292 KwaDukuza | C147: KZN KWAZULU-NATAL
B148: KZN293 Ndwedwe | C148: KZN KWAZULU-NATAL
B149: KZN294 Maphumulo | C149: KZN KWAZULU-NATAL
B150: DC29 iLembe | C150: KZN KWAZULU-NATAL
B151: KZN433 Greater Kokstad | C151: KZN KWAZULU-NATAL
B152: KZN434 Ubuhlebezwe | C152: KZN KWAZULU-NATAL
B153: KZN435 Umzimkhulu | C153: KZN KWAZULU-NATAL
B154: KZN436 Dr Nkosazana Dlamini Zuma | C154: KZN KWAZULU-NATAL
B155: DC43 Harry Gwala | C155: KZN KWAZULU-NATAL
B156: LIM331 Greater Giyani | C156: LIM LIMPOPO
B157: LIM332 Greater Letaba | C157: LIM LIMPOPO
B158: LIM333 Greater Tzaneen | C158: LIM LIMPOPO
B159: LIM334 Ba-Phalaborwa | C159: LIM LIMPOPO
B160: LIM335 Maruleng | C160: LIM LIMPOPO
B161: DC33 Mopani | C161: LIM LIMPOPO
B162: LIM341 Musina | C162: LIM LIMPOPO
B163: LIM343 Thulamela | C163: LIM LIMPOPO
B164: LIM344 Makhado | C164: LIM LIMPOPO
B165: LIM345 Collins Chabane | C165: LIM LIMPOPO
B166: DC34 Vhembe | C166: LIM LIMPOPO
B167: LIM351 Blouberg | C167: LIM LIMPOPO
B168: LIM353 Molemole | C168: LIM LIMPOPO
B169: LIM354 Polokwane | C169: LIM LIMPOPO
B170: LIM355 Lepelle-Nkumpi | C170: LIM LIMPOPO
B171: DC35 Capricorn | C171: LIM LIMPOPO
B172: LIM361 Thabazimbi | C172: LIM LIMPOPO
B173: LIM362 Lephalale | C173: LIM LIMPOPO
B174: LIM366 Bela Bela | C174: LIM LIMPOPO
B175: LIM367 Mogalakwena | C175: LIM LIMPOPO
B176: LIM368 Modimolle-Mookgopong | C176: LIM LIMPOPO
B177: DC36 Waterberg | C177: LIM LIMPOPO
B178: LIM471 Ephraim Mogale | C178: LIM LIMPOPO
B179: LIM472 Elias Motsoaledi | C179: LIM LIMPOPO
B180: LIM473 Makhuduthamaga | C180: LIM LIMPOPO
B181: LIM476 Tubatse Fetakgomo | C181: LIM LIMPOPO
B182: DC47 Sekhukhune | C182: LIM LIMPOPO
B183: MP301 Albert Luthuli | C183: MP MPUMALANGA
B184: MP302 Msukaligwa | C184: MP MPUMALANGA
B185: MP303 Mkhondo | C185: MP MPUMALANGA
B186: MP304 Pixley Ka Seme (MP) | C186: MP MPUMALANGA
B187: MP305 Lekwa | C187: MP MPUMALANGA
B188: MP306 Dipaleseng | C188: MP MPUMALANGA
B189: MP307 Govan Mbeki | C189: MP MPUMALANGA
B190: DC30 Gert Sibande | C190: MP MPUMALANGA
B191: MP311 Victor Khanye | C191: MP MPUMALANGA
B192: MP312 Emalahleni (Mp) | C192: MP MPUMALANGA
B193: MP313 Steve Tshwete | C193: MP MPUMALANGA
B194: MP314 Emakhazeni | C194: MP MPUMALANGA
B195: MP315 Thembisile Hani | C195: MP MPUMALANGA
B196: MP316 Dr J.S. Moroka | C196: MP MPUMALANGA
B197: DC31 Nkangala | C197: MP MPUMALANGA
B198: MP321 Thaba Chweu | C198: MP MPUMALANGA
B199: MP324 Nkomazi | C199: MP MPUMALANGA
B200: MP325 Bushbuckridge | C200: MP MPUMALANGA
B201: MP326 City of Mbombela | C201: MP MPUMALANGA
B202: DC32 Ehlanzeni | C202: MP MPUMALANGA
B203: NC451 Joe Morolong | C203: NC NORTHERN CAPE
B204: NC452 Ga-Segonyana | C204: NC NORTHERN CAPE
B205: NC453 Gamagara | C205: NC NORTHERN CAPE
B206: DC45 John Taolo Gaetsewe | C206: NC NORTHERN CAPE
B207: NC061 Richtersveld | C207: NC NORTHERN CAPE
B208: NC062 Nama Khoi | C208: NC NORTHERN CAPE
B209: NC064 Kamiesberg | C209: NC NORTHERN CAPE
B210: NC065 Hantam | C210: NC NORTHERN CAPE
B211: NC066 Karoo Hoogland | C211: NC NORTHERN CAPE
B212: NC067 Khai-Ma | C212: NC NORTHERN CAPE
B213: DC6 Namakwa | C213: NC NORTHERN CAPE
... 73 more rows

Sheet Org structure
A1: Organisational Structure Votes | C1: Organisational Structure Sub-Votes | E1: Display Sub-Votes
A2: =B2&" - "&C2 -> Vote 01 - Executive & Council | B2: Vote 01 | C2: Executive & Council
A3: =B4&" - "&C4 -> Vote 02 - Finance And Administration | B3: 01.1 | C3: Council General | D3: =CONCATENATE(B3, " - ", C3) -> 01.1 - Council General | E3: 01.1 - Council General
A4: =B6&" - "&C6 -> Vote 03 - Community Service | B4: Vote 02 | C4: Finance And Administration
A5: =B8&" - "&C8 -> Vote 04 - Public And Safety | B5: 02.1 | C5: Municipal Manager | D5: =CONCATENATE(B5, " - ", C5) -> 02.1 - Municipal Manager | E5: 02.1 - Municipal Manager
A6: =B10&" - "&C10 -> Vote 05 - Waste Management | B6: Vote 03 | C6: Community Service
A7: =B18&" - "&C18 -> Vote 06 - Roads Services | B7: 03.1 | C7: Finance Services Administration | D7: =CONCATENATE(B7, " - ", C7) -> 03.1 - Finance Services Administration | E7: 03.1 - Finance Services Administration
A8: =B33&" - "&C33 -> Vote 07 - Econominc Development And Planning | B8: Vote 04 | C8: Public And Safety
A9: =B36&" - "&C36 -> Vote 08 - | B9: 04.1 | C9: Corporate Services Administration | D9: =CONCATENATE(B9, " - ", C9) -> 04.1 - Corporate Services Administration | E9: 04.1 - Corporate Services Administration
A10: =B37&" - "&C37 -> Vote 09 - | B10: Vote 05 | C10: Waste Management
A11: =B38&" - "&C38 -> Vote 10 - | B11: 05.1 | C11: Technical Services Administration | D11: =CONCATENATE(B11, " - ", C11) -> 05.1 - Technical Services Administration | E11: 05.1 - Technical Services Administration
A12: =B39&" - "&C39 -> Vote 11 - | B12: 05.2 | C12: Electrical Services | D12: =CONCATENATE(B12, " - ", C12) -> 05.2 - Electrical Services | E12: 05.2 - Electrical Services
A13: =B40&" - "&C40 -> Vote 12 - | B13: 05.3 | C13: Water Services | D13: =CONCATENATE(B13, " - ", C13) -> 05.3 - Water Services | E13: 05.3 - Water Services
A14: =B41&" - "&C41 -> Vote 13 - | B14: 05.4 | C14: Sanitation Services | D14: =CONCATENATE(B14, " - ", C14) -> 05.4 - Sanitation Services | E14: 05.4 - Sanitation Services
A15: =B42&" - "&C42 -> Vote 14 - | B15: 05.5 | C15: Roads Services | D15: =CONCATENATE(B15, " - ", C15) -> 05.5 - Roads Services | E15: 05.5 - Roads Services
A16: =B43&" - "&C43 -> Vote 15 - Other | B16: 05.6 | C16: Storm Water Services | D16: =CONCATENATE(B16, " - ", C16) -> 05.6 - Storm Water Services | E16: 05.6 - Storm Water Services
B17: 05.7 | C17: Water Reporting Function | D17: =CONCATENATE(B17, " - ", C17) -> 05.7 - Water Reporting Function | E17: 05.7 - Water Reporting Function
B18: Vote 06 | C18: Roads Services
B19: 06.1 | C19: Community Services Administration | D19: =CONCATENATE(B19, " - ", C19) -> 06.1 - Community Services Administration | E19: 06.1 - Community Services Administration
B20: 06.2 | C20: Traffic Services | D20: =CONCATENATE(B20, " - ", C20) -> 06.2 - Traffic Services | E20: 06.2 - Traffic Services
B21: 06.3 | C21: Traffic Services | D21: =CONCATENATE(B21, " - ", C21) -> 06.3 - Traffic Services | E21: 06.3 - Traffic Services
B22: 06.4 | C22: Libraries | D22: =CONCATENATE(B22, " - ", C22) -> 06.4 - Libraries | E22: 06.4 - Libraries
B23: 06.5 | C23: Sport | D23: =CONCATENATE(B23, " - ", C23) -> 06.5 - Sport | E23: 06.5 - Sport
B24: 06.6 | C24: Cemetery | D24: =CONCATENATE(B24, " - ", C24) -> 06.6 - Cemetery | E24: 06.6 - Cemetery
B25: 06.7 | C25: Refuse | D25: =CONCATENATE(B25, " - ", C25) -> 06.7 - Refuse | E25: 06.7 - Refuse
B26: 06.8 | C26: Pound Services | D26: =CONCATENATE(B26, " - ", C26) -> 06.8 - Pound Services | E26: 06.8 - Pound Services
B27: 06.9 | C27: Pound Services | D27: =CONCATENATE(B27, " - ", C27) -> 06.9 - Pound Services | E27: 06.9 - Pound Services
B28: 06.10 | C28: Satellite Offices | D28: =CONCATENATE(B28, " - ", C28) -> 06.10 - Satellite Offices | E28: 06.10 - Satellite Offices
B29: 06.11 | C29: Alldays Offices | D29: =CONCATENATE(B29, " - ", C29) -> 06.11 - Alldays Offices | E29: 06.11 - Alldays Offices
B30: 06.12 | C30: Eldorado Offices | D30: =CONCATENATE(B30, " - ", C30) -> 06.12 - Eldorado Offices | E30: 06.12 - Eldorado Offices
B31: 06.13 | C31: Tolwe Offices | D31: =CONCATENATE(B31, " - ", C31) -> 06.13 - Tolwe Offices | E31: 06.13 - Tolwe Offices
B32: 06.14 | C32: Senwabarwarna Offices | D32: =CONCATENATE(B32, " - ", C32) -> 06.14 - Senwabarwarna Offices | E32: 06.14 - Senwabarwarna Offices
B33: Vote 07 | C33: Econominc Development And Planning
B34: 07.1 | C34: Project Management Unit | D34: =CONCATENATE(B34, " - ", C34) -> 07.1 - Project Management Unit | E34: 07.1 - Project Management Unit
B35: 07.2 | C35: Economic Development And Planning | D35: =CONCATENATE(B35, " - ", C35) -> 07.2 - Economic Development And Planning | E35: 07.2 - Economic Development And Planning
B36: Vote 08
B37: Vote 09
B38: Vote 10
B39: Vote 11
B40: Vote 12
B41: Vote 13
B42: Vote 14
B43: Vote 15 | C43: Other

Sheet Contacts
A1: =muni&" - "&" Contact Information" -> LIM351 Blouberg - Contact Information
A3: A. GENERAL INFORMATION
A4: Municipality | B4: =muni -> LIM351 Blouberg | C4: Set name on 'Instructions' sheet
A6: Grade | B6: 3 | C6: 1 Grade in terms of the Remuneration of Public Office Bearers Act.
A8: Province | B8: =IF(B4>" ",VLOOKUP(B4,'Lookup and lists'!B28:C311,2, FALSE)," ") -> LIM LIMPOPO
A10: Web Address | B10: www.blouberg.gov.za
A12: e-mail Address | B12: blou@blouberg.gov.za
A14: B. CONTACT INFORMATION
A15: Postal address:
A16: P.O. Box | B16: Box 1593
A17: City / Town | B17: Senwabarwana
A18: Postal Code | B18: 0790
A20: Street address
A21: Building | B21: 2nd Building
A22: Street No. & Name | B22: Senwabarwana/Dendron Road
A23: City / Town | B23: Senwabarwana
A24: Postal Code | B24: 0790
A26: General Contacts
A27: Telephone number | B27: 015 505 7100
A28: Fax number | B28: 015 505 0296
A30: C. POLITICAL LEADERSHIP
A31: Speaker: | C31: Secretary/PA to the Speaker:
A32: ID Number | C32: ID Number
A33: Title | B33: Mrs | C33: Title | D33: Mrs
A34: Name | B34: THAMAGA MN | C34: Name | D34: MALATJI PJ
A35: Telephone number | B35: 015 505 7117 | C35: Telephone number | D35: 015 505 7189
A36: Cell number | B36: 071 234 4190 | C36: Cell number | D36: 076 654 3873
A37: Fax number | B37: 015 505 0296 | C37: Fax number | D37: 105 505 0296
A38: E-mail address | B38: mariankholane@gmail.com | C38: E-mail address | D38: Malatjip@blouberg.gov.za
A40: Mayor/Executive Mayor: | C40: Secretary/PA to the Mayor/Executive Mayor:
A41: ID Number | C41: ID Number
A42: Title | B42: Mr | C42: Title | D42: Ms
A43: Name | B43: PHEEDI S | C43: Name | D43: MATLAPU M
A44: Telephone number | B44: 015 505 7191 | C44: Telephone number | D44: 015 505 7191
A45: Cell number | B45: 082 515 7596 | C45: Cell number | D45: 082 515 7596
A46: Fax number | B46: 015 505 0296 | C46: Fax number | D46: 015 505 0296
A47: E-mail address | B47: Masekapheedi3@gmail.com | C47: E-mail address | D47: matlapum@blouberg.gov.za
A49: Deputy Mayor/Executive Mayor: | C49: Secretary/PA to the Deputy Mayor/Executive Mayor:
A50: ID Number | C50: ID Number
A51: Title | C51: Title
A52: Name | C52: Name
A53: Telephone number | C53: Telephone number
A54: Cell number | C54: Cell number
A55: Fax number | C55: Fax number
A56: E-mail address | C56: E-mail address
A58: D. MANAGEMENT LEADERSHIP
A59: Municipal Manager: | C59: Secretary/PA to the Municipal Manager:
A60: ID Number | C60: ID Number | D60: 8402021376082
A61: Title | B61: Mr | C61: Title | D61: Mrs
A62: Name | B62: RAMOTHOALA R | C62: Name | D62: RAMOLOMO MS
A63: Telephone number | B63: 015 505 7163 | C63: Telephone number | D63: 015 505 7100/21
A64: Cell number | B64: 0825234435 | C64: Cell number | D64: 0786875828
A65: Fax number | B65: 015 505 0296 | C65: Fax number | D65: 015 505 0296
A66: E-mail address | B66: Ramothoalar@blouberg.gov.za | C66: E-mail address | D66: RamolomoM@blouberg.gov.za
A68: Chief Financial Officer | C68: Secretary/PA to the Chief Financial Officer
A69: ID Number | C69: ID Number
A70: Title | B70: Mr | C70: Title
A71: Name | B71: Mabote N.J | C71: Name
A72: Telephone number | B72: 015 505 7147 | C72: Telephone number
A73: Cell number | B73: 082 818 0008 | C73: Cell number
A74: Fax number | B74: 015 505 0296 | C74: Fax number
A75: E-mail address | B75: Mabotej@blouberg.gov.za | C75: E-mail address
A77: Official responsible for submitting financial information | C77: Official responsible for submitting financial information
A78: ID Number | B78: 8107260490086 | C78: ID Number
A79: Title | B79: Ms | C79: Title
A80: Name | B80: Riba M | C80: Name
A81: Telephone number | B81: 015 505 7156 | C81: Telephone number
A82: Cell number | B82: 083 561 9472 | C82: Cell number
A83: Fax number | B83: 015 505 0296 | C83: Fax number
A84: E-mail address | B84: Ribam@blouberg.gov.za | C84: E-mail address
A85: Official responsible for submitting financial information | C85: Official responsible for submitting financial information
A86: ID Number | C86: ID Number
A87: Title | C87: Title
A88: Name | C88: Name
A89: Telephone number | C89: Telephone number
A90: Cell number | C90: Cell number
A91: Fax number | C91: Fax number
A92: E-mail address | C92: E-mail address
A93: Official responsible for submitting financial information | C93: Official responsible for submitting financial information
A94: ID Number | C94: ID Number
A95: Title | C95: Title
A96: Name | C96: Name
A97: Telephone number | C97: Telephone number
A98: Cell number | C98: Cell number
A99: Fax number | C99: Fax number
A100: E-mail address | C100: E-mail address
A101: Official responsible for submitting financial information | C101: Official responsible for submitting financial information
A102: ID Number | C102: ID Number
A103: Title | C103: Title
A104: Name | C104: Name
A105: Telephone number | C105: Telephone number
A106: Cell number | C106: Cell number
A107: Fax number | C107: Fax number
A108: E-mail address | C108: E-mail address
A109: Official responsible for submitting financial information | C109: Official responsible for submitting financial information
A110: ID Number | C110: ID Number
A111: Title | C111: Title
A112: Name | C112: Name
A113: Telephone number | C113: Telephone number
A114: Cell number | C114: Cell number
A115: Fax number | C115: Fax number
A116: E-mail address | C116: E-mail address
A117: Official responsible for submitting financial information | C117: Official responsible for submitting financial information
A118: ID Number | C118: ID Number
A119: Title | C119: Title
A120: Name | C120: Name
A121: Telephone number | C121: Telephone number
A122: Cell number | C122: Cell number
A123: Fax number | C123: Fax number
A124: E-mail address | C124: E-mail address
A125: Official responsible for submitting financial information | C125: Official responsible for submitting financial information
A126: ID Number | C126: ID Number
A127: Title | C127: Title
A128: Name | C128: Name
A129: Telephone number | C129: Telephone number
A130: Cell number | C130: Cell number
A131: Fax number | C131: Fax number
A132: E-mail address | C132: E-mail address
A133: Official responsible for submitting financial information
A134: ID Number
A135: Title
A136: Name
A137: Telephone number
A138: Cell number
A139: Fax number
A140: E-mail address

Sheet C1-Sum
A1: =muni& " - "&s71sum& " - "&date -> LIM351 Blouberg - Table C1 Monthly Budget Statement Summary - M08 February
A2: =desc -> Description | B2: =Head1 -> 2022/23 | C2: =Head2 -> Budget Year 2023/24
B3: =Head5 -> Audited Outcome | C3: =Head6 -> Original Budget | D3: =Head7 -> Adjusted Budget | E3: =Head38 -> Monthly actual | F3: =Head39 -> YearTD actual | G3: =Head40 -> YearTD budget | H3: =Head41 -> YTD variance | I3: =Head41 -> YTD variance | J3: =Head8 -> Full Year Forecast
A4: R thousands | I4: %
A5: Financial Performance
A6: Property rates | B6: =SUM('C4-FinPerf RE'!C22) -> 25228987.14 | C6: =SUM('C4-FinPerf RE'!D22) -> 32970836 | D6: =SUM('C4-FinPerf RE'!E22) -> 32970836 | E6: =SUM('C4-FinPerf RE'!F22) -> 615832.11 | F6: =SUM('C4-FinPerf RE'!G22) -> 66497141.93 | G6: =SUM('C4-FinPerf RE'!H22) -> 21980512 | H6: =F6-G6 -> 44516629.93 | I6: =IF(H6=0,"",H6/G6) -> 2.025277206 | J6: =SUM('C4-FinPerf RE'!K22) -> 32970836
A7: Service charges | B7: =SUM('C4-FinPerf RE'!C7:C10) -> 33477469.52 | C7: =SUM('C4-FinPerf RE'!D7:D10) -> 60971356 | D7: =SUM('C4-FinPerf RE'!E7:E10) -> 52364886 | E7: =SUM('C4-FinPerf RE'!F7:F10) -> 3322266.8 | F7: =SUM('C4-FinPerf RE'!G7:G10) -> 26308834.29 | G7: =SUM('C4-FinPerf RE'!H7:H10) -> 38926258 | H7: =F7-G7 -> -12617423.71 | I7: =IF(H7=0,"",H7/G7) -> -0.3241365689 | J7: =SUM('C4-FinPerf RE'!K7:K10) -> 52364886
A8: Investment revenue | B8: ='C4-FinPerf RE'!C15 -> 4112363.63 | C8: ='C4-FinPerf RE'!D15 -> 3206212 | D8: ='C4-FinPerf RE'!E15 -> 6206212 | E8: ='C4-FinPerf RE'!F15 -> 309381.69 | F8: ='C4-FinPerf RE'!G15 -> 3749852.83 | G8: ='C4-FinPerf RE'!H15 -> 2737464 | H8: ='C4-FinPerf RE'!I15 -> 1012388.83 | I8: =IF(H8=0,"",H8/G8) -> 0.3698272671 | J8: ='C4-FinPerf RE'!K15 -> 6206212
A9: Transfers and subsidies - Operational | B9: ='C4-FinPerf RE'!C26 -> 225391142.6 | C9: ='C4-FinPerf RE'!D26 -> 237377000 | D9: ='C4-FinPerf RE'!E26 -> 241377000 | E9: ='C4-FinPerf RE'!F26 -> 0 | F9: ='C4-FinPerf RE'!G26 -> 181169731.3 | G9: ='C4-FinPerf RE'!H26 -> 160473550.2 | H9: ='C4-FinPerf RE'!I26 -> 20696181.06 | J9: ='C4-FinPerf RE'!K26 -> 241377000
A10: Other own revenue | B10: =+B11-SUM(B6:B9) -> 31523088.93 | C10: =+C11-SUM(C6:C9) -> 18464922 | D10: 22964921 | E10: 682747.54 | F10: 4983098.19 | G10: 13209879.8 | H10: =F10-G10 -> -8226781.61 | I10: =IF(H10=0,"",H10/G10) -> -0.6227749029 | J10: 0
A11: Total Revenue (excluding capital transfers and contributions) | B11: =+'C4-FinPerf RE'!C33 -> 319733051.8 | C11: =+'C4-FinPerf RE'!D33 -> 352990326 | D11: =+'C4-FinPerf RE'!E33 -> 355883855 | E11: =+'C4-FinPerf RE'!F33 -> 4930228.14 | F11: =+'C4-FinPerf RE'!G33 -> 282708658.5 | G11: =+'C4-FinPerf RE'!H33 -> 237327664 | H11: =F11-G11 -> 45380994.5 | I11: =IF(H11=0,"",H11/G11) -> 0.1912166232 | J11: =+'C4-FinPerf RE'!K33 -> 355883855
A12: Employee costs | B12: ='C4-FinPerf RE'!C35 -> 124043649 | C12: ='C4-FinPerf RE'!D35 -> 135978991 | D12: ='C4-FinPerf RE'!E35 -> 135978991 | E12: ='C4-FinPerf RE'!F35 -> 22008580.56 | F12: ='C4-FinPerf RE'!G35 -> 86413991.44 | G12: ='C4-FinPerf RE'!H35 -> 90653256 | H12: -4239264.56 | J12: ='C4-FinPerf RE'!K35 -> 135978991
A13: Remuneration of Councillors | B13: ='C4-FinPerf RE'!C36 -> 17982273.07 | C13: ='C4-FinPerf RE'!D36 -> 20752503 | D13: ='C4-FinPerf RE'!E36 -> 20752503 | E13: ='C4-FinPerf RE'!F36 -> 1536878.01 | F13: ='C4-FinPerf RE'!G36 -> 13079897.78 | G13: ='C4-FinPerf RE'!H36 -> 13835080 | H13: -755182.22 | J13: ='C4-FinPerf RE'!K36 -> 20752503
A14: Depreciation and amortisation | B14: ='C4-FinPerf RE'!C40 -> 31482239.38 | C14: ='C4-FinPerf RE'!D40 -> 37667907 | D14: ='C4-FinPerf RE'!E40 -> 37667907 | E14: ='C4-FinPerf RE'!F40 -> 0 | F14: ='C4-FinPerf RE'!G40 -> 0 | G14: ='C4-FinPerf RE'!H40 -> 25112008 | H14: -25112008 | J14: ='C4-FinPerf RE'!K40 -> 37667907
A15: Interest | B15: ='C4-FinPerf RE'!C41 -> 0 | C15: ='C4-FinPerf RE'!D41 -> 0 | D15: ='C4-FinPerf RE'!E41 -> 0 | E15: ='C4-FinPerf RE'!F41 -> 0 | F15: ='C4-FinPerf RE'!G41 -> 0 | G15: ='C4-FinPerf RE'!H41 -> 0 | H15: 0 | J15: ='C4-FinPerf RE'!K41 -> 0
A16: Inventory consumed and bulk purchases | B16: =SUM('C4-FinPerf RE'!C37+'C4-FinPerf RE'!C38) -> 54659265.73 | C16: =SUM('C4-FinPerf RE'!D37+'C4-FinPerf RE'!D38) -> 65854960 | D16: =SUM('C4-FinPerf RE'!E37+'C4-FinPerf RE'!E38) -> 65065960 | E16: =SUM('C4-FinPerf RE'!F37+'C4-FinPerf RE'!F38) -> 6961714.83 | F16: =SUM('C4-FinPerf RE'!G37+'C4-FinPerf RE'!G38) -> 40414175.14 | G16: =SUM('C4-FinPerf RE'!H37+'C4-FinPerf RE'!H38) -> 43745552 | H16: -3331376.86 | J16: =SUM('C4-FinPerf RE'!K37+'C4-FinPerf RE'!K38) -> 65065960
A17: Transfers and subsidies | B17: ='C4-FinPerf RE'!C43 -> 0 | C17: ='C4-FinPerf RE'!D43 -> 0 | D17: ='C4-FinPerf RE'!E43 -> 0 | E17: ='C4-FinPerf RE'!F43 -> 0 | F17: ='C4-FinPerf RE'!G43 -> 0 | G17: ='C4-FinPerf RE'!H43 -> 0 | H17: 0 | J17: ='C4-FinPerf RE'!K43 -> 0
A18: Other expenditure | B18: ='C4-FinPerf RE'!C48-SUM('C1-Sum'!B12:B17) -> 181543847.7 | C18: ='C4-FinPerf RE'!D48-SUM('C1-Sum'!C12:C17) -> 128817892 | D18: ='C4-FinPerf RE'!E48-SUM('C1-Sum'!D12:D17) -> 131736047 | E18: ='C4-FinPerf RE'!F48-SUM('C1-Sum'!E12:E17) -> 8506538.99 | F18: ='C4-FinPerf RE'!G48-SUM('C1-Sum'!F12:F17) -> 79771710.16 | G18: ='C4-FinPerf RE'!H48-SUM('C1-Sum'!G12:G17) -> 88007130.98 | H18: -8235420.82 | I18: -0.09357674461 | J18: ='C4-FinPerf RE'!K48-SUM('C1-Sum'!J12:J17) -> 131736047
A19: Total Expenditure | B19: =SUM(B12:B18) -> 409711274.9 | C19: 389072253 | D19: 391201408 | E19: 39013712.39 | F19: 219679774.5 | G19: 261353027 | H19: -41673252.46 | I19: -0.1594519602 | J19: =SUM(J12:J18) -> 391201408
A20: Surplus/(Deficit) | B20: =B11-B19 -> -89978223.08 | C20: -36081927 | D20: -35317553 | E20: -34083484.25 | F20: 63028883.98 | G20: -24025362.98 | H20: 87054246.96 | I20: -3.623431081 | J20: =J11-J19 -> -35317553
A21: Transfers and subsidies - capital (monetary allocations) | B21: ='C4-FinPerf RE'!C50 -> 112528034.1 | C21: ='C4-FinPerf RE'!D50 -> 85575000 | D21: ='C4-FinPerf RE'!E50 -> 144966966 | E21: ='C4-FinPerf RE'!F50 -> 0 | F21: ='C4-FinPerf RE'!G50 -> 43202982.73 | G21: ='C4-FinPerf RE'!H50 -> 69546958.27 | H21: -26343975.54 | I21: -0.3787940723 | J21: ='C4-FinPerf RE'!K50 -> 144966966
A22: Transfers and subsidies - capital (in-kind) | B22: =SUM('C4-FinPerf RE'!C51:C51) -> 0 | C22: =SUM('C4-FinPerf RE'!D51:D51) -> 0 | D22: =SUM('C4-FinPerf RE'!E51:E51) -> 0 | E22: =SUM('C4-FinPerf RE'!F51:F51) -> 0 | F22: =SUM('C4-FinPerf RE'!G51:G51) -> 0 | G22: =SUM('C4-FinPerf RE'!H51:H51) -> 0 | H22: 0 | J22: =SUM('C4-FinPerf RE'!K51:K51) -> 0
A23: Surplus/(Deficit) after capital transfers & contributions | B23: =B20+B21+B22 -> 22549811.01 | C23: 49493073 | D23: 109649413 | E23: -34083484.25 | F23: 106231866.7 | G23: 45521595.29 | H23: 60710271.42 | I23: 1.333658696 | J23: =J20+J21+J22 -> 109649413
A24: Share of surplus/ (deficit) of associate | B24: ='C4-FinPerf RE'!C59 -> 0 | C24: ='C4-FinPerf RE'!D59 -> 0 | D24: ='C4-FinPerf RE'!E59 -> 0 | E24: ='C4-FinPerf RE'!F59 -> 0 | F24: ='C4-FinPerf RE'!G59 -> 0 | G24: ='C4-FinPerf RE'!H59 -> 0 | H24: 0 | J24: ='C4-FinPerf RE'!K59 -> 0
A25: Surplus/ (Deficit) for the year | B25: =B23+B24 -> 22549811.01 | C25: 49493073 | D25: 109649413 | E25: -34083484.25 | F25: 106231866.7 | G25: 45521595.29 | H25: 60710271.42 | I25: 1.333658696 | J25: =J23+J24 -> 109649413
A27: Capital expenditure & funds sources
A28: Capital expenditure | B28: ='C5-Capex'!C40 -> 99909545.11 | C28: ='C5-Capex'!D40 -> 86892000 | D28: ='C5-Capex'!E40 -> 147328342 | E28: ='C5-Capex'!F40 -> 2458428.77 | F28: ='C5-Capex'!G40 -> 41840901.42 | G28: ='C5-Capex'!H40 -> 73711550.1 | H28: =F28-G28 -> -31870648.68 | I28: =IF(H28=0,"",H28/G28) -> -0.4323698069 | J28: ='C5-Capex'!K40 -> 147328342
A29: Capital transfers recognised | B29: ='C5-Capex'!C70 -> 98867988.86 | C29: ='C5-Capex'!D70 -> 85575000 | D29: ='C5-Capex'!E70 -> 145531342 | E29: ='C5-Capex'!F70 -> 2360428.77 | F29: ='C5-Capex'!G70 -> 41390656.18 | G29: ='C5-Capex'!H70 -> 72737534.1 | H29: -31346877.92 | I29: -0.4309587658 | J29: ='C5-Capex'!K70 -> 145531342
A31: Borrowing | B31: ='C5-Capex'!C72 -> 0 | C31: ='C5-Capex'!D72 -> 0 | D31: ='C5-Capex'!E72 -> 0 | E31: ='C5-Capex'!F72 -> 0 | F31: ='C5-Capex'!G72 -> 0 | G31: ='C5-Capex'!H72 -> 0 | H31: 0 | J31: ='C5-Capex'!K72 -> 0
A32: Internally generated funds | B32: ='C5-Capex'!C73 -> 1041556.25 | C32: ='C5-Capex'!D73 -> 1317000 | D32: ='C5-Capex'!E73 -> 1797000 | E32: ='C5-Capex'!F73 -> 98000 | F32: ='C5-Capex'!G73 -> 450245.24 | G32: ='C5-Capex'!H73 -> 974016 | H32: -523770.76 | I32: -0.5377434868 | J32: ='C5-Capex'!K73 -> 1797000
A33: Total sources of capital funds | B33: =+B29+B31+B32 -> 99909545.11 | C33: 86892000 | D33: 147328342 | E33: 2458428.77 | F33: 41840901.42 | G33: 73711550.1 | H33: -31870648.68 | I33: -0.4323698069 | J33: =+J29+J31+J32 -> 147328342
A35: Financial position
A36: Total current assets | B36: ='C6-FinPos'!C14 -> 156830740.9 | C36: ='C6-FinPos'!D14 -> 1078076679 | D36: ='C6-FinPos'!E14 -> 207690587 | F36: ='C6-FinPos'!F14 -> 252633415.1 | J36: ='C6-FinPos'!G14 -> 207690587
A37: Total non current assets | B37: ='C6-FinPos'!C26 -> 1079694612 | C37: ='C6-FinPos'!D26 -> 159647749 | D37: ='C6-FinPos'!E26 -> 1145682248 | F37: ='C6-FinPos'!F26 -> 1127638363 | J37: ='C6-FinPos'!G26 -> 1145682248
A38: Total current liabilities | B38: ='C6-FinPos'!C38 -> 113576713.8 | C38: ='C6-FinPos'!D38 -> 52171349 | D38: ='C6-FinPos'!E38 -> 70914844 | F38: ='C6-FinPos'!F38 -> 153437381.9 | J38: ='C6-FinPos'!G38 -> 70914844
A39: Total non current liabilities | B39: ='C6-FinPos'!C44 -> 38433209.98 | C39: ='C6-FinPos'!D44 -> 18811692 | D39: ='C6-FinPos'!E44 -> 39607525 | F39: ='C6-FinPos'!F44 -> 38433209.98 | J39: ='C6-FinPos'!G44 -> 39607525
A40: Community wealth/Equity | B40: ='C6-FinPos'!C51 -> 1112013242 | C40: ='C6-FinPos'!D51 -> 1123713235 | D40: ='C6-FinPos'!E51 -> 1199822314 | F40: ='C6-FinPos'!F51 -> 1182195206 | J40: ='C6-FinPos'!G51 -> 1199822314
A42: Cash flows
A43: Net cash from (used) operating | B43: ='C7-CFlow'!C18 -> -132576007.9 | C43: ='C7-CFlow'!D18 -> 88727777 | D43: ='C7-CFlow'!E18 -> 145585118 | E43: ='C7-CFlow'!F18 -> 15350776.58 | F43: ='C7-CFlow'!G18 -> -70087332.44 | G43: ='C7-CFlow'!H18 -> 97056745.04 | H43: =G43-F43 -> 167144077.5 | I43: =IF(H43=0,"",H43/G43) -> 1.722127374 | J43: ='C7-CFlow'!K18 -> 145585118
A44: Net cash from (used) investing | B44: ='C7-CFlow'!C28 -> -95044941.58 | C44: ='C7-CFlow'!D28 -> -86892000 | D44: ='C7-CFlow'!E28 -> -136274789 | E44: ='C7-CFlow'!F28 -> -2458428.77 | F44: ='C7-CFlow'!G28 -> -30873448.58 | G44: ='C7-CFlow'!H28 -> -95074850.68 | H44: =G44-F44 -> -64201402.1 | I44: =IF(H44=0,"",H44/G44) -> 0.6752721844 | J44: ='C7-CFlow'!K28 -> -136274789
A45: Net cash from (used) financing | B45: ='C7-CFlow'!C37 -> 0 | C45: ='C7-CFlow'!D37 -> 0 | D45: ='C7-CFlow'!E37 -> 0 | E45: ='C7-CFlow'!F37 -> 0 | F45: ='C7-CFlow'!G37 -> 0 | G45: ='C7-CFlow'!H37 -> 0 | H45: =G45-F45 -> 0 | I45: =IF(H45=0,"",H45/G45) ->  | J45: ='C7-CFlow'!K37 -> 0
A46: Cash/cash equivalents at the month/year end | B46: ='C7-CFlow'!C41 -> -142786398.9 | C46: ='C7-CFlow'!D41 -> 92096784 | D46: ='C7-CFlow'!E41 -> 111923564 | E46: ='C7-CFlow'!F41 -> 0 | F46: ='C7-CFlow'!G41 -> 881892.12 | G46: ='C7-CFlow'!H41 -> 104595129.4 | H46: =G46-F46 -> 103713237.2 | I46: =IF(H46=0,"",H46/G46) -> 0.9915685164 | J46: ='C7-CFlow'!K41 -> 111153002.1
A48: Debtors & creditors analysis | B48: ='SC3'!C3 -> 0-30 Days | C48: ='SC3'!D3 -> 31-60 Days | D48: ='SC3'!E3 -> 61-90 Days | E48: ='SC3'!F3 -> 91-120 Days | F48: ='SC3'!G3 -> 121-150 Dys | G48: ='SC3'!H3 -> 151-180 Dys | H48: ='SC3'!I3 -> 181 Dys-1 Yr | I48: ='SC3'!J3 -> Over 1Yr | J48: Total
A49: =LEFT('SC3'!A4,20) -> Debtors Age Analysis
A50: ='SC3'!A14 -> Total By Income Source | B50: ='SC3'!C14 -> 0 | C50: ='SC3'!D14 -> 0 | D50: ='SC3'!E14 -> 0 | E50: ='SC3'!F14 -> 0 | F50: ='SC3'!G14 -> 0 | G50: ='SC3'!H14 -> 0 | H50: ='SC3'!I14 -> 0 | I50: ='SC3'!J14 -> 0 | J50: ='SC3'!K14 -> 0
A51: =LEFT('SC4'!A5,22) -> Creditors Age Analysis
A52: Total Creditors | B52: ='SC4'!C15 -> 0 | C52: ='SC4'!D15 -> 0 | D52: ='SC4'!E15 -> 0 | E52: ='SC4'!F15 -> 0 | F52: ='SC4'!G15 -> 0 | G52: ='SC4'!H15 -> 0 | H52: ='SC4'!I15 -> 0 | I52: ='SC4'!J15 -> 0 | J52: ='SC4'!K15 -> 0

Sheet C2-FinPerf SC
A1: =muni& " - "&S71A& " - "&date -> LIM351 Blouberg - Table C2 Monthly Budget Statement - Financial Performance (functional classification) - M08 February
A2: =desc -> Description | B2: =head27 -> Ref | C2: =Head1 -> 2022/23 | D2: =Head2 -> Budget Year 2023/24
C3: =Head5 -> Audited Outcome | D3: =Head6 -> Original Budget | E3: =Head7 -> Adjusted Budget | F3: =Head38 -> Monthly actual | G3: =Head39 -> YearTD actual | H3: =Head40 -> YearTD budget | I3: =Head41 -> YTD variance | J3: =Head41 -> YTD variance | K3: =Head8 -> Full Year Forecast
A4: R thousands | B4: 1 | J4: %
A5: Revenue - Functional
A6: Governance and administration | C6: =SUM(C7:C9) -> 274907887.2 | D6: 273303155 | E6: 280212957 | F6: 1299306.76 | G6: 248635161.9 | H6: 183583984.4 | I6: =G6-H6 -> 65051177.5 | J6: =IF(I6=0,"",I6/H6) -> 0.3543401551 | K6: =SUM(K7:K9) -> 280212957
A7: Executive and council | C7: ='C2C'!C7 -> 0 | D7: ='C2C'!D7 -> 0 | E7: ='C2C'!E7 -> 0 | F7: ='C2C'!F7 -> 0 | G7: ='C2C'!G7 -> 0 | H7: ='C2C'!H7 -> 0 | I7: 0 | J7: =IF(I7=0,"",I7/H7) ->  | K7: ='C2C'!K7 -> 0
A8: Finance and administration | C8: ='C2C'!C10 -> 274907887.2 | D8: ='C2C'!D10 -> 273303155 | E8: ='C2C'!E10 -> 280212957 | F8: ='C2C'!F10 -> 1299306.76 | G8: ='C2C'!G10 -> 248635161.9 | H8: ='C2C'!H10 -> 183583984.4 | I8: 65051177.5 | J8: 0.3543401551 | K8: ='C2C'!K10 -> 280212957
A9: Internal audit | C9: ='C2C'!C24 -> 0 | D9: ='C2C'!D24 -> 0 | E9: ='C2C'!E24 -> 0 | F9: ='C2C'!F24 -> 0 | G9: ='C2C'!G24 -> 0 | H9: ='C2C'!H24 -> 0 | I9: 0 | K9: ='C2C'!K24 -> 0
A10: Community and public safety | C10: =SUM(C11:C15) -> 2742997.67 | D10: 6500000 | E10: 6500000 | F10: 128939.94 | G10: 1492730.13 | H10: 4333320 | I10: -2840589.87 | J10: -0.6555227562 | K10: =SUM(K11:K15) -> 6500000
A11: Community and social services | C11: ='C2C'!C27 -> 0 | D11: ='C2C'!D27 -> 0 | E11: ='C2C'!E27 -> 0 | F11: ='C2C'!F27 -> 0 | G11: ='C2C'!G27 -> 0 | H11: ='C2C'!H27 -> 0 | I11: 0 | K11: ='C2C'!K27 -> 0
A12: Sport and recreation | C12: ='C2C'!C49 -> 0 | D12: ='C2C'!D49 -> 0 | E12: ='C2C'!E49 -> 0 | F12: ='C2C'!F49 -> 0 | G12: ='C2C'!G49 -> 0 | H12: ='C2C'!H49 -> 0 | I12: 0 | K12: ='C2C'!K49 -> 0
A13: Public safety | C13: ='C2C'!C55 -> 2742997.67 | D13: ='C2C'!D55 -> 6500000 | E13: ='C2C'!E55 -> 6500000 | F13: ='C2C'!F55 -> 128939.94 | G13: ='C2C'!G55 -> 1492730.13 | H13: ='C2C'!H55 -> 4333320 | I13: -2840589.87 | J13: -0.6555227562 | K13: ='C2C'!K55 -> 6500000
A14: Housing | C14: ='C2C'!C64 -> 0 | D14: ='C2C'!D64 -> 0 | E14: ='C2C'!E64 -> 0 | F14: ='C2C'!F64 -> 0 | G14: ='C2C'!G64 -> 0 | H14: ='C2C'!H64 -> 0 | I14: 0 | K14: ='C2C'!K64 -> 0
A15: Health | C15: ='C2C'!C67 -> 0 | D15: ='C2C'!D67 -> 0 | E15: ='C2C'!E67 -> 0 | F15: ='C2C'!F67 -> 0 | G15: ='C2C'!G67 -> 0 | H15: ='C2C'!H67 -> 0 | I15: 0 | K15: ='C2C'!K67 -> 0
A16: Economic and environmental services | C16: =SUM(C17:C19) -> 91173149.63 | D16: 62297374 | E16: 120567251 | F16: 19118.48 | G16: 44648380.75 | H16: 53804100.47 | I16: -9155719.72 | J16: -0.1701676943 | K16: =SUM(K17:K19) -> 120567251
A17: Planning and development | C17: ='C2C'!C76 -> 91173149.63 | D17: ='C2C'!D76 -> 62297374 | E17: ='C2C'!E76 -> 69467251 | F17: ='C2C'!F76 -> 19118.48 | G17: ='C2C'!G76 -> 40649074.79 | H17: ='C2C'!H76 -> 42161878.27 | I17: -1512803.48 | J17: -0.03588083696 | K17: ='C2C'!K76 -> 69467251
A18: Road transport | C18: ='C2C'!C87 -> 0 | D18: ='C2C'!D87 -> 0 | E18: ='C2C'!E87 -> 51100000 | F18: ='C2C'!F87 -> 0 | G18: ='C2C'!G87 -> 3999305.96 | H18: ='C2C'!H87 -> 11642222.2 | I18: -7642916.24 | J18: -0.6564825949 | K18: ='C2C'!K87 -> 51100000
A19: Environmental protection | C19: ='C2C'!C92 -> 0 | D19: ='C2C'!D92 -> 0 | E19: ='C2C'!E92 -> 0 | F19: ='C2C'!F92 -> 0 | G19: ='C2C'!G92 -> 0 | H19: ='C2C'!H92 -> 0 | I19: 0 | K19: ='C2C'!K92 -> 0
A20: Trading services | C20: =SUM(C21:C24) -> 63437051.33 | D20: =SUM(D21:D24) -> 96464797 | E20: 93570613 | F20: 3482862.96 | G20: 31135368.45 | H20: 65153217.4 | I20: -34017848.95 | J20: -0.522120784 | K20: =SUM(K21:K24) -> 93570613
A21: Energy sources | C21: ='C2C'!C100 -> 59301265.84 | D21: ='C2C'!D100 -> 91586673 | E21: ='C2C'!E100 -> 88992489 | F21: ='C2C'!F100 -> 2824204.27 | G21: ='C2C'!G100 -> 24657392.45 | H21: ='C2C'!H100 -> 61961145.4 | I21: =G21-H21 -> -37303752.95 | J21: -0.6020507321 | K21: ='C2C'!K100 -> 88992489
A22: Water management | C22: ='C2C'!C104 -> 8162.17 | D22: ='C2C'!D104 -> 0 | E22: ='C2C'!E104 -> 0 | F22: ='C2C'!F104 -> 315980.54 | G22: ='C2C'!G104 -> 2745626.11 | H22: ='C2C'!H104 -> 0 | I22: =G22-H22 -> 2745626.11 | K22: ='C2C'!K104 -> 0
A23: Waste water management | C23: ='C2C'!C108 -> 10993.02 | D23: ='C2C'!D108 -> 0 | E23: ='C2C'!E108 -> 0 | F23: ='C2C'!F108 -> 149244.58 | G23: ='C2C'!G108 -> 1231583.89 | H23: ='C2C'!H108 -> 0 | I23: =G23-H23 -> 1231583.89 | K23: ='C2C'!K108 -> 0
A24: Waste management | C24: ='C2C'!C113 -> 4116630.3 | D24: ='C2C'!D113 -> 4878124 | E24: ='C2C'!E113 -> 4578124 | F24: ='C2C'!F113 -> 193433.57 | G24: ='C2C'!G113 -> 2500766 | H24: ='C2C'!H113 -> 3192072 | I24: =G24-H24 -> -691306 | J24: -0.2165696764 | K24: ='C2C'!K113 -> 4578124
A25: Other | B25: 4 | C25: ='C2C'!C118 -> 0 | D25: ='C2C'!D118 -> 0 | E25: ='C2C'!E118 -> 0 | F25: ='C2C'!F118 -> 0 | G25: ='C2C'!G118 -> 0 | H25: ='C2C'!H118 -> 0 | I25: =G25-H25 -> 0 | K25: ='C2C'!K118 -> 0
A26: Total Revenue - Functional | B26: 2 | C26: =C6+C10+C16+C20+C25 -> 432261085.9 | D26: =D6+D10+D16+D20+D25 -> 438565326 | E26: 500850821 | F26: 4930228.14 | G26: 325911641.2 | H26: 306874622.3 | I26: 19037018.96 | J26: 0.06203516869 | K26: =K6+K10+K16+K20+K25 -> 500850821
A28: Expenditure - Functional
A29: Governance and administration | C29: =SUM(C30:C32) -> 246625969.1 | D29: 197140700 | E29: 197501700 | F29: 18086047.86 | G29: 117909714.2 | H29: 131622173.8 | I29: =G29-H29 -> -13712459.54 | J29: =IF(I29=0,"",I29/H29) -> -0.1041804671 | K29: =SUM(K30:K32) -> 197501700
A30: Executive and council | C30: ='C2C'!C129 -> 71221015.14 | D30: ='C2C'!D129 -> 75200202 | E30: ='C2C'!E129 -> 74027202 | F30: ='C2C'!F129 -> 7520470.42 | G30: ='C2C'!G129 -> 52703979.88 | H30: ='C2C'!H129 -> 50021357.78 | I30: 2682622.1 | J30: =IF(I30=0,"",I30/H30) -> 0.05362953384 | K30: ='C2C'!K129 -> 74027202
A31: Finance and administration | C31: ='C2C'!C132 -> 175404954 | D31: ='C2C'!D132 -> 121940498 | E31: ='C2C'!E132 -> 123474498 | F31: ='C2C'!F132 -> 10565577.44 | G31: ='C2C'!G132 -> 65205734.36 | H31: ='C2C'!H132 -> 81600816 | I31: -16395081.64 | J31: -0.200918109 | K31: ='C2C'!K132 -> 123474498
A32: Internal audit | C32: ='C2C'!C146 -> 0 | D32: ='C2C'!D146 -> 0 | E32: ='C2C'!E146 -> 0 | F32: ='C2C'!F146 -> 0 | G32: ='C2C'!G146 -> 0 | H32: ='C2C'!H146 -> 0 | I32: 0 | K32: ='C2C'!K146 -> 0
A33: Community and public safety | C33: =SUM(C34:C38) -> 18028859.62 | D33: 17260147 | E33: 17754147 | F33: 3661272.41 | G33: 13859918.87 | H33: 11605632 | I33: 2254286.87 | J33: 0.1942407678 | K33: =SUM(K34:K38) -> 17754147
A34: Community and social services | C34: ='C2C'!C149 -> 0 | D34: ='C2C'!D149 -> 0 | E34: ='C2C'!E149 -> 0 | F34: ='C2C'!F149 -> 0 | G34: ='C2C'!G149 -> 0 | H34: ='C2C'!H149 -> 0 | I34: 0 | K34: ='C2C'!K149 -> 0
A35: Sport and recreation | C35: ='C2C'!C171 -> 0 | D35: ='C2C'!D171 -> 0 | E35: ='C2C'!E171 -> 0 | F35: ='C2C'!F171 -> 0 | G35: ='C2C'!G171 -> 0 | H35: ='C2C'!H171 -> 0 | I35: 0 | K35: ='C2C'!K171 -> 0
A36: Public safety | C36: ='C2C'!C177 -> 18028859.62 | D36: ='C2C'!D177 -> 17260147 | E36: ='C2C'!E177 -> 17754147 | F36: ='C2C'!F177 -> 3661272.41 | G36: ='C2C'!G177 -> 13859918.87 | H36: ='C2C'!H177 -> 11605632 | I36: 2254286.87 | J36: 0.1942407678 | K36: ='C2C'!K177 -> 17754147
A37: Housing | C37: ='C2C'!C186 -> 0 | D37: ='C2C'!D186 -> 0 | E37: ='C2C'!E186 -> 0 | F37: ='C2C'!F186 -> 0 | G37: ='C2C'!G186 -> 0 | H37: ='C2C'!H186 -> 0 | I37: 0 | K37: ='C2C'!K186 -> 0
A38: Health | C38: ='C2C'!C189 -> 0 | D38: ='C2C'!D189 -> 0 | E38: ='C2C'!E189 -> 0 | F38: ='C2C'!F189 -> 0 | G38: ='C2C'!G189 -> 0 | H38: ='C2C'!H189 -> 0 | I38: 0 | K38: ='C2C'!K189 -> 0
A39: Economic and environmental services | C39: =SUM(C40:C42) -> 36413751.07 | D39: 38587921 | E39: 41850921 | F39: 3624328.22 | G39: 20563192.23 | H39: 27800358.2 | I39: -7237165.97 | J39: -0.2603263569 | K39: =SUM(K40:K42) -> 41850921
A40: Planning and development | C40: ='C2C'!C198 -> 14036496.3 | D40: ='C2C'!D198 -> 18236205 | E40: ='C2C'!E198 -> 18256205 | F40: ='C2C'!F198 -> 1975087.05 | G40: ='C2C'!G198 -> 10445608.89 | H40: ='C2C'!H198 -> 12161608 | I40: -1715999.11 | J40: -0.1410996893 | K40: ='C2C'!K198 -> 18256205
A41: Road transport | C41: ='C2C'!C209 -> 22377254.77 | D41: ='C2C'!D209 -> 20351716 | E41: ='C2C'!E209 -> 23594716 | F41: ='C2C'!F209 -> 1649241.17 | G41: ='C2C'!G209 -> 10117583.34 | H41: ='C2C'!H209 -> 15638750.2 | I41: -5521166.86 | J41: -0.3530439958 | K41: ='C2C'!K209 -> 23594716
A42: Environmental protection | C42: ='C2C'!C214 -> 0 | D42: ='C2C'!D214 -> 0 | E42: ='C2C'!E214 -> 0 | F42: ='C2C'!F214 -> 0 | G42: ='C2C'!G214 -> 0 | H42: ='C2C'!H214 -> 0 | I42: 0 | K42: ='C2C'!K214 -> 0
A43: Trading services | C43: =SUM(C44:C47) -> 108642695.1 | D43: =SUM(D44:D47) -> 136083485 | E43: 134094640 | F43: 13642063.9 | G43: 67346949.18 | H43: 90324863 | I43: -22977913.82 | J43: -0.2543919034 | K43: =SUM(K44:K47) -> 134094640
A44: Energy sources | C44: ='C2C'!C222 -> 87092554.96 | D44: ='C2C'!D222 -> 100172469 | E44: ='C2C'!E222 -> 99889624 | F44: ='C2C'!F222 -> 10722328.83 | G44: ='C2C'!G222 -> 53317235.84 | H44: ='C2C'!H222 -> 66725223 | I44: -13407987.16 | J44: -0.2009433098 | K44: ='C2C'!K222 -> 99889624
A45: Water management | C45: ='C2C'!C226 -> 0 | D45: ='C2C'!D226 -> 0 | E45: ='C2C'!E226 -> 0 | F45: ='C2C'!F226 -> 0 | G45: ='C2C'!G226 -> 0 | H45: ='C2C'!H226 -> 0 | I45: 0 | K45: ='C2C'!K226 -> 0
A46: Waste water management | C46: ='C2C'!C230 -> 0 | D46: ='C2C'!D230 -> 0 | E46: ='C2C'!E230 -> 0 | F46: ='C2C'!F230 -> 0 | G46: ='C2C'!G230 -> 0 | H46: ='C2C'!H230 -> 0 | I46: 0 | K46: ='C2C'!K230 -> 0
A47: Waste management | C47: ='C2C'!C235 -> 21550140.11 | D47: ='C2C'!D235 -> 35911016 | E47: ='C2C'!E235 -> 34205016 | F47: ='C2C'!F235 -> 2919735.07 | G47: ='C2C'!G235 -> 14029713.34 | H47: ='C2C'!H235 -> 23599640 | I47: -9569926.66 | J47: -0.4055115527 | K47: ='C2C'!K235 -> 34205016
A48: Other | C48: ='C2C'!C240 -> 0 | D48: ='C2C'!D240 -> 0 | E48: ='C2C'!E240 -> 0 | F48: ='C2C'!F240 -> 0 | G48: ='C2C'!G240 -> 0 | H48: ='C2C'!H240 -> 0 | I48: 0 | K48: ='C2C'!K240 -> 0
A49: Total Expenditure - Functional | B49: 3 | C49: =C29+C33+C39+C43+C48 -> 409711274.9 | D49: =D29+D33+D39+D43+D48 -> 389072253 | E49: 391201408 | F49: 39013712.39 | G49: 219679774.5 | H49: 261353027 | I49: -41673252.46 | J49: -0.1594519602 | K49: =K29+K33+K39+K43+K48 -> 391201408
A50: Surplus/ (Deficit) for the year | C50: =C26-C49 -> 22549811.01 | D50: 49493073 | E50: 109649413 | F50: -34083484.25 | G50: 106231866.7 | H50: 45521595.29 | I50: =I26-I49 -> 60710271.42 | J50: =IF(I50=0,"",I50/H50) -> 1.333658696 | K50: =K26-K49 -> 109649413
A51: =head27a -> References
A52: 1. Government Finance Statistics Functions and Sub-functions are standardised to assist the compilation of national and international accounts for comparison purposes
A53: 2. Total Revenue by functional classification must reconcile to Total Operating Revenue shown in the Financial Performance Statement
A54: 3. Total Expenditure by functional classification must reconcile to total operating expenditure shown in 'Financial Performance Statement'
A55: 4. All amounts must be classified under a functional classification (modified GFS). The GFS function 'Other' is only for Abbatoirs, Air Transport, Licensing and Regulation, Markets and Tourism - and if used must be supported by footnotes. Nothing else may be placed under 'Other'. Assign associate share to relevant classification

Sheet C2C
A1: =muni& " - "&S71A& " - "&date -> LIM351 Blouberg - Table C2 Monthly Budget Statement - Financial Performance (functional classification) - M08 February
A2: =desc -> Description | B2: =head27 -> Ref | C2: =Head1 -> 2022/23 | D2: =Head2 -> Budget Year 2023/24
C3: =Head5 -> Audited Outcome | D3: =Head6 -> Original Budget | E3: =Head7 -> Adjusted Budget | F3: =Head38 -> Monthly actual | G3: =Head39 -> YearTD actual | H3: =Head40 -> YearTD budget | I3: =Head41 -> YTD variance | J3: =Head41 -> YTD variance | K3: =Head8 -> Full Year Forecast
A4: R thousands | B4: 1 | J4: %
A5: Revenue - Functional
A6: Municipal governance and administration | C6: =C7+C10+C24 -> 274907887.2 | D6: 273303155 | E6: 280212957 | F6: 1299306.76 | G6: 248635161.9 | H6: 183583984.4 | I6: =G6-H6 -> 65051177.5 | J6: =IF(I6=0,"",I6/H6) -> 0.3543401551 | K6: =K7+K10+K24 -> 280212957
A7: Executive and council | C7: =SUM(C8:C9) -> 0 | D7: =SUM(D8:D9) -> 0 | E7: 0 | F7: 0 | G7: 0 | H7: 0 | I7: =G7-H7 -> 0 | J7: =IF(I7=0,"",I7/H7) ->  | K7: 0
A8: Mayor and Council | C8: 0 | D8: 0 | E8: 0 | F8: 0 | G8: 0 | H8: 0 | I8: 0 | K8: 0
A9: Municipal Manager, Town Secretary and Chief Executive | C9: 0 | D9: 0 | E9: 0 | F9: 0 | G9: 0 | H9: 0 | I9: 0 | K9: 0
A10: Finance and administration | C10: =SUM(C11:C23) -> 274907887.2 | D10: 273303155 | E10: 280212957 | F10: 1299306.76 | G10: 248635161.9 | H10: 183583984.4 | I10: 65051177.5 | J10: 0.3543401551 | K10: =SUM(K11:K23) -> 280212957
A11: Administrative and Corporate Support | C11: 6219635.72 | D11: 296084 | E11: 816084 | F11: 151028.41 | G11: 203392.11 | H11: 301384 | I11: -97991.89 | J11: -0.3251396557 | K11: 816084
A12: Asset Management | I12: 0
A13: Finance | C13: 268688251.5 | D13: 273007071 | E13: 279396873 | F13: 1148278.35 | G13: 248431769.8 | H13: 183282600.4 | I13: 65149169.39 | J13: 0.3554574698 | K13: 279396873
A14: Fleet Management | I14: 0
A15: Human Resources | I15: 0
A16: Information Technology | I16: 0
A17: Legal Services | I17: 0
A18: Marketing, Customer Relations, Publicity and Media Co-ordination | I18: 0
A19: Property Services | I19: 0
A20: Risk Management | I20: 0
A21: Security Services | I21: 0
A22: Supply Chain Management | I22: 0
A23: Valuation Service | I23: 0
A24: Internal audit | C24: =SUM(C25:C25) -> 0 | D24: 0 | E24: 0 | F24: 0 | G24: 0 | H24: 0 | I24: 0 | K24: =SUM(K25:K25) -> 0
A25: Governance Function | I25: 0
A26: Community and public safety | C26: =C27+C49+C55+C64+C67 -> 2742997.67 | D26: =D27+D49+D55+D64+D67 -> 6500000 | E26: 6500000 | F26: 128939.94 | G26: 1492730.13 | H26: 4333320 | I26: -2840589.87 | J26: -0.6555227562 | K26: 6500000
A27: Community and social services | C27: =SUM(C28:C48) -> 0 | D27: 0 | E27: 0 | F27: 0 | G27: 0 | H27: 0 | I27: 0 | K27: =SUM(K28:K48) -> 0
A28: Aged Care | I28: 0
A29: Agricultural | I29: 0
A30: Animal Care and Diseases | I30: 0
A31: Cemeteries, Funeral Parlours and Crematoriums | C31: 0 | D31: 0 | E31: 0 | F31: 0 | G31: 0 | H31: 0 | I31: 0 | K31: 0
A32: Child Care Facilities | I32: 0
A33: Community Halls and Facilities | I33: 0
A34: Consumer Protection | I34: 0
A35: Cultural Matters | I35: 0
A36: Disaster Management | I36: 0
A37: Education | I37: 0
A38: Indigenous and Customary Law | I38: 0
A39: Industrial Promotion | I39: 0
A40: Language Policy | I40: 0
A41: Libraries and Archives | I41: 0
A42: Literacy Programmes | I42: 0
A43: Media Services | I43: 0
A44: Museums and Art Galleries | I44: 0
A45: Population Development | I45: 0
A46: Provincial Cultural Matters | I46: 0
A47: Theatres | I47: 0
A48: Zoo's | I48: 0
A49: Sport and recreation | C49: =SUM(C50:C54) -> 0 | D49: =SUM(D50:D54) -> 0 | E49: 0 | F49: 0 | G49: 0 | H49: 0 | I49: 0 | K49: 0
A50: Beaches and Jetties | I50: 0
A51: Casinos, Racing, Gambling, Wagering | I51: 0
A52: Community Parks (including Nurseries) | I52: 0
A53: Recreational Facilities | I53: 0
A54: Sports Grounds and Stadiums | I54: 0
A55: Public safety | C55: =SUM(C56:C63) -> 2742997.67 | D55: =SUM(D56:D63) -> 6500000 | E55: 6500000 | F55: 128939.94 | G55: 1492730.13 | H55: 4333320 | I55: -2840589.87 | J55: -0.6555227562 | K55: 6500000
A56: Civil Defence | I56: 0
A57: Cleansing | I57: 0
A58: Control of Public Nuisances | I58: =G58-H58 -> 0 | J58: =IF(I58=0,"",I58/H58) -> 
A59: Fencing and Fences | I59: 0
A60: Fire Fighting and Protection | I60: 0
A61: Licensing and Control of Animals | I61: =G61-H61 -> 0 | J61: =IF(I61=0,"",I61/H61) -> 
A62: Police Forces, Traffic and Street Parking Control | C62: 2742997.67 | D62: 6500000 | E62: 6500000 | F62: 128939.94 | G62: 1492730.13 | H62: 4333320 | I62: =G62-H62 -> -2840589.87 | J62: =IF(I62=0,"",I62/H62) -> -0.6555227562 | K62: 6500000
A63: Pounds | C63: 0 | D63: 0 | E63: 0 | F63: 0 | G63: 0 | H63: 0 | I63: 0 | K63: 0
A64: Housing | C64: =SUM(C65:C66) -> 0 | D64: 0 | E64: 0 | F64: 0 | G64: 0 | H64: 0 | I64: =G64-H64 -> 0 | J64: =IF(I64=0,"",I64/H64) ->  | K64: =SUM(K65:K66) -> 0
A65: Housing | I65: =G65-H65 -> 0 | J65: =IF(I65=0,"",I65/H65) -> 
A66: Informal Settlements | I66: =G66-H66 -> 0 | J66: =IF(I66=0,"",I66/H66) -> 
A67: Health | C67: =SUM(C68:C74) -> 0 | D67: 0 | E67: 0 | F67: 0 | G67: 0 | H67: 0 | I67: 0 | K67: =SUM(K68:K74) -> 0
A68: Ambulance | I68: 0
A69: Health Services | I69: 0
A70: Laboratory Services | I70: =G70-H70 -> 0 | J70: =IF(I70=0,"",I70/H70) -> 
A71: Food Control | I71: =G71-H71 -> 0 | J71: =IF(I71=0,"",I71/H71) -> 
A72: Health Surveillance and Prevention of Communicable Diseases including immunizations | I72: 0
A73: Vector Control | I73: 0
A74: Chemical Safety | I74: 0
A75: Economic and environmental services | C75: =C76+C87+C92 -> 91173149.63 | D75: 62297374 | E75: 120567251 | F75: 19118.48 | G75: 44648380.75 | H75: 53804100.47 | I75: -9155719.72 | J75: -0.1701676943 | K75: =K76+K87+K92 -> 120567251
A76: Planning and development | C76: =SUM(C77:C86) -> 91173149.63 | D76: 62297374 | E76: 69467251 | F76: 19118.48 | G76: 40649074.79 | H76: 42161878.27 | I76: -1512803.48 | J76: -0.03588083696 | K76: =SUM(K77:K86) -> 69467251
A77: Billboards | I77: =G77-H77 -> 0 | J77: =IF(I77=0,"",I77/H77) -> 
A78: Corporate Wide Strategic Planning (IDPs, LEDs) | I78: 0
A79: Central City Improvement District | I79: 0
A80: Development Facilitation | I80: =G80-H80 -> 0 | J80: =IF(I80=0,"",I80/H80) -> 
A81: Economic Development/Planning | C81: 5870829.24 | D81: 9722374 | E81: 10012571 | F81: 19118.48 | G81: 107227.06 | H81: 6539599.4 | I81: =G81-H81 -> -6432372.34 | J81: =IF(I81=0,"",I81/H81) -> -0.9836034207 | K81: 10012571
A82: Regional Planning and Development | I82: =G82-H82 -> 0 | J82: =IF(I82=0,"",I82/H82) -> 
A83: Town Planning, Building Regulations and Enforcement, and City Engineer | I83: =G83-H83 -> 0 | J83: =IF(I83=0,"",I83/H83) -> 
A84: Project Management Unit | C84: 85302320.39 | D84: 52575000 | E84: 59454680 | F84: 0 | G84: 40541847.73 | H84: 35622278.87 | I84: 4919568.86 | J84: 0.1381037097 | K84: 59454680
A85: Provincial Planning | I85: 0
A86: Support to Local Municipalities | I86: 0
A87: Road transport | C87: =SUM(C88:C91) -> 0 | D87: 0 | E87: 51100000 | F87: 0 | G87: 3999305.96 | H87: 11642222.2 | I87: -7642916.24 | J87: -0.6564825949 | K87: =SUM(K88:K91) -> 51100000
A88: Public Transport | I88: 0
A89: Road and Traffic Regulation | I89: 0
A90: Roads | C90: 0 | D90: 0 | E90: 51100000 | F90: 0 | G90: 3999305.96 | H90: 11642222.2 | I90: -7642916.24 | J90: -0.6564825949 | K90: 51100000
A91: Taxi Ranks | I91: 0
A92: Environmental protection | C92: =SUM(C93:C98) -> 0 | D92: =SUM(D93:D98) -> 0 | E92: 0 | F92: 0 | G92: 0 | H92: 0 | I92: 0 | K92: 0
A93: Biodiversity and Landscape | I93: 0
A94: Coastal Protection | I94: 0
A95: Indigenous Forests | I95: =G95-H95 -> 0 | J95: =IF(I95=0,"",I95/H95) -> 
A96: Nature Conservation | I96: =G96-H96 -> 0 | J96: =IF(I96=0,"",I96/H96) -> 
A97: Pollution Control | I97: 0
A98: Soil Conservation | I98: 0
A99: Trading services | C99: =C100+C104+C108+C113 -> 63437051.33 | D99: =D100+D104+D108+D113 -> 96464797 | E99: 93570613 | F99: 3482862.96 | G99: 31135368.45 | H99: 65153217.4 | I99: -34017848.95 | J99: -0.522120784 | K99: =K100+K104+K108+K113 -> 93570613
A100: Energy sources | C100: =SUM(C101:C103) -> 59301265.84 | D100: =SUM(D101:D103) -> 91586673 | E100: 88992489 | F100: 2824204.27 | G100: 24657392.45 | H100: 61961145.4 | I100: -37303752.95 | J100: -0.6020507321 | K100: 88992489
A101: Electricity | C101: 59301265.84 | D101: 91586673 | E101: 88992489 | F101: 2824204.27 | G101: 24657392.45 | H101: 61961145.4 | I101: -37303752.95 | J101: -0.6020507321 | K101: 88992489
A102: Street Lighting and Signal Systems | I102: =G102-H102 -> 0 | J102: =IF(I102=0,"",I102/H102) -> 
A103: Nonelectric Energy | I103: 0
A104: Water management | C104: =SUM(C105:C107) -> 8162.17 | D104: =SUM(D105:D107) -> 0 | E104: 0 | F104: 315980.54 | G104: 2745626.11 | H104: 0 | I104: 2745626.11 | K104: 0
A105: Water Treatment | C105: 8162.17 | D105: 0 | E105: 0 | F105: 315980.54 | G105: 2745626.11 | H105: 0 | I105: 2745626.11 | K105: 0
A106: Water Distribution | I106: =G106-H106 -> 0 | J106: =IF(I106=0,"",I106/H106) -> 
A107: Water Storage | I107: 0
A108: Waste water management | C108: =SUM(C109:C112) -> 10993.02 | D108: =SUM(D109:D112) -> 0 | E108: 0 | F108: 149244.58 | G108: 1231583.89 | H108: 0 | I108: 1231583.89 | K108: 0
A109: Public Toilets | I109: 0
A110: Sewerage | I110: 0
A111: Storm Water Management | C111: 0 | D111: 0 | E111: 0 | F111: 0 | G111: 0 | H111: 0 | I111: =G111-H111 -> 0 | J111: =IF(I111=0,"",I111/H111) ->  | K111: 0
A112: Waste Water Treatment | C112: 10993.02 | D112: 0 | E112: 0 | F112: 149244.58 | G112: 1231583.89 | H112: 0 | I112: 1231583.89 | K112: 0
A113: Waste management | C113: =SUM(C114:C117) -> 4116630.3 | D113: 4878124 | E113: 4578124 | F113: 193433.57 | G113: 2500766 | H113: 3192072 | I113: -691306 | J113: -0.2165696764 | K113: =SUM(K114:K117) -> 4578124
A114: Recycling | I114: =G114-H114 -> 0 | J114: =IF(I114=0,"",I114/H114) -> 
A115: Solid Waste Disposal (Landfill Sites) | C115: 4116630.3 | D115: 4878124 | E115: 4578124 | F115: 193433.57 | G115: 2500766 | H115: 3192072 | I115: =G115-H115 -> -691306 | J115: =IF(I115=0,"",I115/H115) -> -0.2165696764 | K115: 4578124
A116: Solid Waste Removal | I116: 0
A117: Street Cleaning | I117: =G117-H117 -> 0 | J117: =IF(I117=0,"",I117/H117) -> 
A118: Other | C118: =SUM(C119:C124) -> 0 | D118: =SUM(D119:D124) -> 0 | E118: 0 | F118: 0 | G118: 0 | H118: 0 | I118: 0 | K118: 0
A119: Abattoirs | I119: 0
A120: Air Transport | I120: 0
A121: Forestry | I121: =G121-H121 -> 0 | J121: =IF(I121=0,"",I121/H121) -> 
A122: Licensing and Regulation | I122: 0
A123: Markets | I123: 0
A124: Tourism | I124: =G124-H124 -> 0 | J124: =IF(I124=0,"",I124/H124) -> 
A125: ="Total "&A5 -> Total Revenue - Functional | B125: 2 | C125: =C6+C26+C75+C99+C118 -> 432261085.9 | D125: 438565326 | E125: 500850821 | F125: 4930228.14 | G125: 325911641.2 | H125: 306874622.3 | I125: =G125-H125 -> 19037018.96 | J125: =IF(I125=0,"",I125/H125) -> 0.06203516869 | K125: =K6+K26+K75+K99+K118 -> 500850821
A127: Expenditure - Functional
A128: =A6 -> Municipal governance and administration | C128: =C129+C132+C146 -> 246625969.1 | D128: 197140700 | E128: 197501700 | F128: 18086047.86 | G128: 117909714.2 | H128: 131622173.8 | I128: =G128-H128 -> -13712459.54 | J128: =IF(I128=0,"",I128/H128) -> -0.1041804671 | K128: =K129+K132+K146 -> 197501700
A129: Executive and council | C129: =SUM(C130:C131) -> 71221015.14 | D129: 75200202 | E129: 74027202 | F129: 7520470.42 | G129: 52703979.88 | H129: 50021357.78 | I129: 2682622.1 | J129: 0.05362953384 | K129: 74027202
A130: Mayor and Council | C130: 19739846.8 | D130: 23557547 | E130: 23787547 | F130: 1620013.01 | G130: 14966422.78 | H130: 15873389.78 | I130: -906967 | J130: -0.05713757506 | K130: 23787547
A131: Municipal Manager, Town Secretary and Chief Executive | C131: 51481168.34 | D131: 51642655 | E131: 50239655 | F131: 5900457.41 | G131: 37737557.1 | H131: 34147968 | I131: 3589589.1 | J131: 0.1051186735 | K131: 50239655
A132: Finance and administration | C132: =SUM(C133:C145) -> 175404954 | D132: 121940498 | E132: 123474498 | F132: 10565577.44 | G132: 65205734.36 | H132: 81600816 | I132: -16395081.64 | J132: -0.200918109 | K132: =SUM(K133:K145) -> 123474498
A133: Administrative and Corporate Support | C133: 68914818.25 | D133: 78958554 | E133: 80859554 | F133: 7159203.21 | G133: 46029051.64 | H133: 53019456 | I133: -6990404.36 | J133: -0.131846022 | K133: 80859554
A134: Asset Management | I134: 0
A135: Finance | C135: 106490135.7 | D135: 42981944 | E135: 42614944 | F135: 3406374.23 | G135: 19176682.72 | H135: 28581360 | I135: -9404677.28 | J135: -0.3290493273 | K135: 42614944
A136: Fleet Management | I136: 0
A137: Human Resources | I137: 0
A138: Information Technology | I138: 0
A139: Legal Services | I139: 0
A140: Marketing, Customer Relations, Publicity and Media Co-ordination | I140: 0
A141: Property Services | I141: 0
A142: Risk Management | I142: 0
A143: Security Services | I143: 0
A144: Supply Chain Management | I144: 0
A145: Valuation Service | I145: 0
A146: Internal audit | C146: =SUM(C147:C147) -> 0 | D146: 0 | E146: 0 | F146: 0 | G146: 0 | H146: 0 | I146: 0 | K146: =SUM(K147:K147) -> 0
A147: Governance Function | I147: 0
A148: Community and public safety | C148: =C149+C171+C177+C186+C189 -> 18028859.62 | D148: 17260147 | E148: 17754147 | F148: 3661272.41 | G148: 13859918.87 | H148: 11605632 | I148: 2254286.87 | J148: 0.1942407678 | K148: =K149+K171+K177+K186+K189 -> 17754147
A149: Community and social services | C149: =SUM(C150:C170) -> 0 | D149: 0 | E149: 0 | F149: 0 | G149: 0 | H149: 0 | I149: 0 | K149: =SUM(K150:K170) -> 0
A150: Aged Care | I150: 0
A151: Agricultural | I151: 0
A152: Animal Care and Diseases | I152: 0
A153: Cemeteries, Funeral Parlours and Crematoriums | C153: 0 | D153: 0 | E153: 0 | F153: 0 | G153: 0 | H153: 0 | I153: 0 | K153: 0
A154: Child Care Facilities | I154: 0
A155: Community Halls and Facilities | I155: 0
A156: Consumer Protection | I156: 0
A157: Cultural Matters | I157: =G157-H157 -> 0 | J157: =IF(I157=0,"",I157/H157) -> 
A158: Disaster Management | I158: =G158-H158 -> 0 | J158: =IF(I158=0,"",I158/H158) -> 
A159: Education | I159: =G159-H159 -> 0 | J159: =IF(I159=0,"",I159/H159) -> 
A160: Indigenous and Customary Law | I160: 0
A161: Industrial Promotion | I161: 0
A162: Language Policy | I162: 0
A163: Libraries and Archives | C163: 0 | D163: 0 | E163: 0 | F163: 0 | G163: 0 | H163: 0 | I163: 0 | K163: 0
A164: Literacy Programmes | I164: 0
A165: Media Services | I165: 0
A166: Museums and Art Galleries | I166: 0
A167: Population Development | I167: 0
A168: Provincial Cultural Matters | I168: 0
A169: Theatres | I169: 0
A170: Zoo's | I170: 0
A171: Sport and recreation | C171: =SUM(C172:C176) -> 0 | D171: 0 | E171: 0 | F171: 0 | G171: 0 | H171: 0 | I171: 0 | K171: 0
A172: Beaches and Jetties | I172: 0
A173: Casinos, Racing, Gambling, Wagering | I173: 0
A174: Community Parks (including Nurseries) | I174: 0
A175: Recreational Facilities | C175: 0 | D175: 0 | E175: 0 | F175: 0 | G175: 0 | H175: 0 | I175: 0 | K175: 0
A176: Sports Grounds and Stadiums | I176: 0
A177: Public safety | C177: =SUM(C178:C185) -> 18028859.62 | D177: 17260147 | E177: 17754147 | F177: 3661272.41 | G177: 13859918.87 | H177: 11605632 | I177: 2254286.87 | J177: 0.1942407678 | K177: 17754147
A178: Civil Defence | I178: 0
A179: Cleansing | I179: 0
A180: Control of Public Nuisances | I180: =G180-H180 -> 0 | J180: =IF(I180=0,"",I180/H180) -> 
A181: Fencing and Fences | I181: 0
A182: Fire Fighting and Protection | I182: 0
A183: Licensing and Control of Animals | I183: =G183-H183 -> 0 | J183: =IF(I183=0,"",I183/H183) -> 
A184: Police Forces, Traffic and Street Parking Control | C184: 17801790.49 | D184: 17060147 | E184: 17474147 | F184: 3661272.41 | G184: 13691918.87 | H184: 11456296 | I184: =G184-H184 -> 2235622.87 | J184: =IF(I184=0,"",I184/H184) -> 0.1951436023 | K184: 17474147
A185: Pounds | C185: 227069.13 | D185: 200000 | E185: 280000 | F185: 0 | G185: 168000 | H185: 149336 | I185: 18664 | J185: 0.1249799111 | K185: 280000
A186: Housing | C186: =SUM(C187:C188) -> 0 | D186: 0 | E186: 0 | F186: 0 | G186: 0 | H186: 0 | I186: =G186-H186 -> 0 | J186: =IF(I186=0,"",I186/H186) ->  | K186: =SUM(K187:K188) -> 0
A187: Housing | I187: =G187-H187 -> 0 | J187: =IF(I187=0,"",I187/H187) -> 
A188: Informal Settlements | I188: =G188-H188 -> 0 | J188: =IF(I188=0,"",I188/H188) -> 
A189: Health | C189: =SUM(C190:C196) -> 0 | D189: 0 | E189: 0 | F189: 0 | G189: 0 | H189: 0 | I189: 0 | K189: 0
A190: Ambulance | I190: 0
A191: Health Services | I191: 0
A192: =A70 -> Laboratory Services | I192: 0
A193: Food Control | I193: =G193-H193 -> 0 | J193: =IF(I193=0,"",I193/H193) -> 
A194: Health Surveillance and Prevention of Communicable Diseases including immunizations | I194: =G194-H194 -> 0 | J194: =IF(I194=0,"",I194/H194) -> 
A195: Vector Control | I195: 0
A196: Chemical Safety | I196: 0
A197: Economic and environmental services | C197: =C198+C209+C214 -> 36413751.07 | D197: 38587921 | E197: 41850921 | F197: 3624328.22 | G197: 20563192.23 | H197: 27800358.2 | I197: -7237165.97 | J197: -0.2603263569 | K197: =K198+K209+K214 -> 41850921
A198: Planning and development | C198: =SUM(C199:C208) -> 14036496.3 | D198: 18236205 | E198: 18256205 | F198: 1975087.05 | G198: 10445608.89 | H198: 12161608 | I198: -1715999.11 | J198: -0.1410996893 | K198: 18256205
A199: Billboards | I199: 0
A200: Corporate Wide Strategic Planning (IDPs, LEDs) | I200: 0
A201: Central City Improvement District | I201: 0
... 54 more rows

Sheet C3-FinPerf V
A1: =muni& " - "&S71C& " - "&date -> LIM351 Blouberg - Table C3 Monthly Budget Statement - Financial Performance (revenue and expenditure by municipal vote) - M08 February
A2: =Vdesc -> Vote Description | B2: =head27 -> Ref | C2: =Head1 -> 2022/23 | D2: =Head2 -> Budget Year 2023/24
C3: =Head5 -> Audited Outcome | D3: =Head6 -> Original Budget | E3: =Head7 -> Adjusted Budget | F3: =Head38 -> Monthly actual | G3: =Head39 -> YearTD actual | H3: =Head40 -> YearTD budget | I3: =Head41 -> YTD variance | J3: =Head41 -> YTD variance | K3: =Head8 -> Full Year Forecast
A4: R thousands | J4: %
A5: Revenue by Vote | B5: 1
A6: ='Org structure'!A2 -> Vote 01 - Executive & Council | C6: ='C3C'!C6 -> 0 | D6: ='C3C'!D6 -> 0 | E6: ='C3C'!E6 -> 0 | F6: ='C3C'!F6 -> 0 | G6: ='C3C'!G6 -> 0 | H6: ='C3C'!H6 -> 0 | I6: =G6-H6 -> 0 | J6: =IF(I6=0,"",I6/H6) ->  | K6: ='C3C'!K6 -> 0
A7: ='Org structure'!A3 -> Vote 02 - Finance And Administration | C7: ='C3C'!C8 -> 0 | D7: ='C3C'!D8 -> 0 | E7: ='C3C'!E8 -> 0 | F7: ='C3C'!F8 -> 0 | G7: ='C3C'!G8 -> 0 | H7: ='C3C'!H8 -> 0 | I7: =G7-H7 -> 0 | J7: =IF(I7=0,"",I7/H7) ->  | K7: ='C3C'!K8 -> 0
A8: ='Org structure'!A4 -> Vote 03 - Community Service | C8: ='C3C'!C10 -> 268688251.5 | D8: ='C3C'!D10 -> 273007071 | E8: ='C3C'!E10 -> 279396873 | F8: ='C3C'!F10 -> 1148278.35 | G8: ='C3C'!G10 -> 248431769.8 | H8: ='C3C'!H10 -> 183282600.4 | I8: =G8-H8 -> 65149169.39 | J8: =IF(I8=0,"",I8/H8) -> 0.3554574698 | K8: ='C3C'!K10 -> 279396873
A9: ='Org structure'!A5 -> Vote 04 - Public And Safety | C9: ='C3C'!C12 -> 6219635.72 | D9: ='C3C'!D12 -> 296084 | E9: ='C3C'!E12 -> 816084 | F9: ='C3C'!F12 -> 151028.41 | G9: ='C3C'!G12 -> 203392.11 | H9: ='C3C'!H12 -> 301384 | I9: =G9-H9 -> -97991.89 | J9: =IF(I9=0,"",I9/H9) -> -0.3251396557 | K9: ='C3C'!K12 -> 816084
A10: ='Org structure'!A6 -> Vote 05 - Waste Management | C10: ='C3C'!C14 -> 59320421.03 | D10: ='C3C'!D14 -> 91586673 | E10: ='C3C'!E14 -> 140092489 | F10: ='C3C'!F14 -> 3289429.39 | G10: ='C3C'!G14 -> 32633908.41 | H10: ='C3C'!H14 -> 73603367.6 | I10: =G10-H10 -> -40969459.19 | J10: =IF(I10=0,"",I10/H10) -> -0.5566247921 | K10: ='C3C'!K14 -> 140092489
A11: ='Org structure'!A7 -> Vote 06 - Roads Services | C11: ='C3C'!C22 -> 6859627.97 | D11: ='C3C'!D22 -> 11378124 | E11: ='C3C'!E22 -> 11078124 | F11: ='C3C'!F22 -> 322373.51 | G11: ='C3C'!G22 -> 3993496.13 | H11: ='C3C'!H22 -> 7525392 | I11: =G11-H11 -> -3531895.87 | J11: =IF(I11=0,"",I11/H11) -> -0.469330484 | K11: ='C3C'!K22 -> 11078124
A12: ='Org structure'!A8 -> Vote 07 - Econominc Development And Planning | C12: ='C3C'!C37 -> 91173149.63 | D12: ='C3C'!D37 -> 62297374 | E12: ='C3C'!E37 -> 69467251 | F12: ='C3C'!F37 -> 19118.48 | G12: ='C3C'!G37 -> 40649074.79 | H12: ='C3C'!H37 -> 42161878.27 | I12: =G12-H12 -> -1512803.48 | J12: =IF(I12=0,"",I12/H12) -> -0.03588083696 | K12: ='C3C'!K37 -> 69467251
A13: ='Org structure'!A9 -> Vote 08 - | C13: ='C3C'!C40 -> 0 | D13: ='C3C'!D40 -> 0 | E13: ='C3C'!E40 -> 0 | F13: ='C3C'!F40 -> 0 | G13: ='C3C'!G40 -> 0 | H13: ='C3C'!H40 -> 0 | I13: =G13-H13 -> 0 | J13: =IF(I13=0,"",I13/H13) ->  | K13: ='C3C'!K40 -> 0
A14: ='Org structure'!A10 -> Vote 09 - | C14: ='C3C'!C41 -> 0 | D14: ='C3C'!D41 -> 0 | E14: ='C3C'!E41 -> 0 | F14: ='C3C'!F41 -> 0 | G14: ='C3C'!G41 -> 0 | H14: ='C3C'!H41 -> 0 | I14: 0 | K14: ='C3C'!K41 -> 0
A15: ='Org structure'!A11 -> Vote 10 - | C15: ='C3C'!C42 -> 0 | D15: ='C3C'!D42 -> 0 | E15: ='C3C'!E42 -> 0 | F15: ='C3C'!F42 -> 0 | G15: ='C3C'!G42 -> 0 | H15: ='C3C'!H42 -> 0 | I15: 0 | K15: ='C3C'!K42 -> 0
A16: ='Org structure'!A12 -> Vote 11 - | C16: ='C3C'!C43 -> 0 | D16: ='C3C'!D43 -> 0 | E16: ='C3C'!E43 -> 0 | F16: ='C3C'!F43 -> 0 | G16: ='C3C'!G43 -> 0 | H16: ='C3C'!H43 -> 0 | I16: 0 | K16: ='C3C'!K43 -> 0
A17: ='Org structure'!A13 -> Vote 12 - | C17: ='C3C'!C44 -> 0 | D17: ='C3C'!D44 -> 0 | E17: ='C3C'!E44 -> 0 | F17: ='C3C'!F44 -> 0 | G17: ='C3C'!G44 -> 0 | H17: ='C3C'!H44 -> 0 | I17: 0 | K17: ='C3C'!K44 -> 0
A18: ='Org structure'!A14 -> Vote 13 - | C18: ='C3C'!C45 -> 0 | D18: ='C3C'!D45 -> 0 | E18: ='C3C'!E45 -> 0 | F18: ='C3C'!F45 -> 0 | G18: ='C3C'!G45 -> 0 | H18: ='C3C'!H45 -> 0 | I18: 0 | K18: ='C3C'!K45 -> 0
A19: ='Org structure'!A15 -> Vote 14 - | C19: ='C3C'!C46 -> 0 | D19: ='C3C'!D46 -> 0 | E19: ='C3C'!E46 -> 0 | F19: ='C3C'!F46 -> 0 | G19: ='C3C'!G46 -> 0 | H19: ='C3C'!H46 -> 0 | I19: 0 | K19: ='C3C'!K46 -> 0
A20: ='Org structure'!A16 -> Vote 15 - Other | C20: ='C3C'!C47 -> 0 | D20: ='C3C'!D47 -> 0 | E20: ='C3C'!E47 -> 0 | F20: ='C3C'!F47 -> 0 | G20: ='C3C'!G47 -> 0 | H20: ='C3C'!H47 -> 0 | I20: 0 | K20: ='C3C'!K47 -> 0
A21: Total Revenue by Vote | B21: 2 | C21: =SUM(C6:C20) -> 432261085.9 | D21: =SUM(D6:D20) -> 438565326 | E21: 500850821 | F21: 4930228.14 | G21: 325911641.2 | H21: 306874622.3 | I21: 19037018.96 | J21: 0.06203516869 | K21: =SUM(K6:K20) -> 500850821
A23: Expenditure by Vote | B23: 1
A24: ='Org structure'!A2 -> Vote 01 - Executive & Council | C24: ='C3C'!C51 -> 19739846.8 | D24: ='C3C'!D51 -> 23557547 | E24: ='C3C'!E51 -> 23787547 | F24: ='C3C'!F51 -> 1620013.01 | G24: ='C3C'!G51 -> 14966422.78 | H24: ='C3C'!H51 -> 15873389.78 | I24: =G24-H24 -> -906967 | J24: =IF(I24=0,"",I24/H24) -> -0.05713757506 | K24: ='C3C'!K51 -> 23787547
A25: ='Org structure'!A3 -> Vote 02 - Finance And Administration | C25: ='C3C'!C53 -> 51481168.34 | D25: ='C3C'!D53 -> 51642655 | E25: ='C3C'!E53 -> 50239655 | F25: ='C3C'!F53 -> 5900457.41 | G25: ='C3C'!G53 -> 37737557.1 | H25: ='C3C'!H53 -> 34147968 | I25: =G25-H25 -> 3589589.1 | J25: =IF(I25=0,"",I25/H25) -> 0.1051186735 | K25: ='C3C'!K53 -> 50239655
A26: ='Org structure'!A4 -> Vote 03 - Community Service | C26: ='C3C'!C55 -> 106490135.7 | D26: ='C3C'!D55 -> 42981944 | E26: ='C3C'!E55 -> 42614944 | F26: ='C3C'!F55 -> 3406374.23 | G26: ='C3C'!G55 -> 19176682.72 | H26: ='C3C'!H55 -> 28581360 | I26: =G26-H26 -> -9404677.28 | J26: =IF(I26=0,"",I26/H26) -> -0.3290493273 | K26: ='C3C'!K55 -> 42614944
A27: ='Org structure'!A5 -> Vote 04 - Public And Safety | C27: ='C3C'!C57 -> 68914818.25 | D27: ='C3C'!D57 -> 78708554 | E27: ='C3C'!E57 -> 80859554 | F27: ='C3C'!F57 -> 7159203.21 | G27: ='C3C'!G57 -> 46029051.64 | H27: ='C3C'!H57 -> 52902776 | I27: =G27-H27 -> -6873724.36 | J27: =IF(I27=0,"",I27/H27) -> -0.1299312603 | K27: ='C3C'!K57 -> 80859554
A28: ='Org structure'!A6 -> Vote 05 - Waste Management | C28: ='C3C'!C59 -> 109469809.7 | D28: ='C3C'!D59 -> 120524185 | E28: ='C3C'!E59 -> 123484340 | F28: ='C3C'!F59 -> 12371570 | G28: ='C3C'!G59 -> 63434819.18 | H28: ='C3C'!H59 -> 82363973.2 | I28: =G28-H28 -> -18929154.02 | J28: =IF(I28=0,"",I28/H28) -> -0.2298232259 | K28: ='C3C'!K59 -> 123484340
A29: ='Org structure'!A7 -> Vote 06 - Roads Services | C29: ='C3C'!C67 -> 39578999.73 | D29: ='C3C'!D67 -> 53421163 | E29: ='C3C'!E67 -> 51959163 | F29: ='C3C'!F67 -> 6581007.48 | G29: ='C3C'!G67 -> 27889632.21 | H29: ='C3C'!H67 -> 35321952 | I29: =G29-H29 -> -7432319.79 | J29: =IF(I29=0,"",I29/H29) -> -0.2104164512 | K29: ='C3C'!K67 -> 51959163
A30: ='Org structure'!A8 -> Vote 07 - Econominc Development And Planning | C30: ='C3C'!C82 -> 14036496.3 | D30: ='C3C'!D82 -> 18236205 | E30: ='C3C'!E82 -> 18256205 | F30: ='C3C'!F82 -> 1975087.05 | G30: ='C3C'!G82 -> 10445608.89 | H30: ='C3C'!H82 -> 12161608 | I30: =G30-H30 -> -1715999.11 | J30: =IF(I30=0,"",I30/H30) -> -0.1410996893 | K30: ='C3C'!K82 -> 18256205
A31: ='Org structure'!A9 -> Vote 08 - | C31: ='C3C'!C85 -> 0 | D31: ='C3C'!D85 -> 0 | E31: ='C3C'!E85 -> 0 | F31: ='C3C'!F85 -> 0 | G31: ='C3C'!G85 -> 0 | H31: ='C3C'!H85 -> 0 | I31: =G31-H31 -> 0 | J31: =IF(I31=0,"",I31/H31) ->  | K31: ='C3C'!K85 -> 0
A32: ='Org structure'!A10 -> Vote 09 - | C32: ='C3C'!C86 -> 0 | D32: ='C3C'!D86 -> 0 | E32: ='C3C'!E86 -> 0 | F32: ='C3C'!F86 -> 0 | G32: ='C3C'!G86 -> 0 | H32: ='C3C'!H86 -> 0 | I32: 0 | K32: ='C3C'!K86 -> 0
A33: ='Org structure'!A11 -> Vote 10 - | C33: ='C3C'!C87 -> 0 | D33: ='C3C'!D87 -> 0 | E33: ='C3C'!E87 -> 0 | F33: ='C3C'!F87 -> 0 | G33: ='C3C'!G87 -> 0 | H33: ='C3C'!H87 -> 0 | I33: 0 | J33: =IF(I33=0,"",I33/H33) ->  | K33: ='C3C'!K87 -> 0
A34: ='Org structure'!A12 -> Vote 11 - | C34: ='C3C'!C88 -> 0 | D34: ='C3C'!D88 -> 0 | E34: ='C3C'!E88 -> 0 | F34: ='C3C'!F88 -> 0 | G34: ='C3C'!G88 -> 0 | H34: ='C3C'!H88 -> 0 | I34: 0 | J34: =IF(I34=0,"",I34/H34) ->  | K34: ='C3C'!K88 -> 0
A35: ='Org structure'!A13 -> Vote 12 - | C35: ='C3C'!C89 -> 0 | D35: ='C3C'!D89 -> 0 | E35: ='C3C'!E89 -> 0 | F35: ='C3C'!F89 -> 0 | G35: ='C3C'!G89 -> 0 | H35: ='C3C'!H89 -> 0 | I35: 0 | J35: =IF(I35=0,"",I35/H35) ->  | K35: ='C3C'!K89 -> 0
A36: ='Org structure'!A14 -> Vote 13 - | C36: ='C3C'!C90 -> 0 | D36: ='C3C'!D90 -> 0 | E36: ='C3C'!E90 -> 0 | F36: ='C3C'!F90 -> 0 | G36: ='C3C'!G90 -> 0 | H36: ='C3C'!H90 -> 0 | I36: 0 | J36: =IF(I36=0,"",I36/H36) ->  | K36: ='C3C'!K90 -> 0
A37: ='Org structure'!A15 -> Vote 14 - | C37: ='C3C'!C91 -> 0 | D37: ='C3C'!D91 -> 0 | E37: ='C3C'!E91 -> 0 | F37: ='C3C'!F91 -> 0 | G37: ='C3C'!G91 -> 0 | H37: ='C3C'!H91 -> 0 | I37: 0 | J37: =IF(I37=0,"",I37/H37) ->  | K37: ='C3C'!K91 -> 0
A38: ='Org structure'!A16 -> Vote 15 - Other | C38: ='C3C'!C92 -> 0 | D38: ='C3C'!D92 -> 0 | E38: ='C3C'!E92 -> 0 | F38: ='C3C'!F92 -> 0 | G38: ='C3C'!G92 -> 0 | H38: ='C3C'!H92 -> 0 | I38: 0 | K38: ='C3C'!K92 -> 0
A39: Total Expenditure by Vote | B39: 2 | C39: =SUM(C24:C38) -> 409711274.9 | D39: =SUM(D24:D38) -> 389072253 | E39: 391201408 | F39: 39013712.39 | G39: 219679774.5 | H39: 261353027 | I39: -41673252.46 | J39: =IF(I39=0,"",I39/H39) -> -0.1594519602 | K39: =SUM(K24:K38) -> 391201408
A40: =result -> Surplus/ (Deficit) for the year | B40: 2 | C40: =C21-C39 -> 22549811.01 | D40: 49493073 | E40: 109649413 | F40: -34083484.25 | G40: 106231866.7 | H40: 45521595.29 | I40: =I21-I39 -> 60710271.42 | J40: =IF(I40=0,"",I40/H40) -> 1.333658696 | K40: =K21-K39 -> 109649413
A41: =head27a -> References
A42: 1. Insert 'Vote'; e.g. Department, if different to standard classification structure
A43: 2. Must reconcile to Monthly Budget Statement - Financial Performance Statement (standard classification)

Sheet C3C
A1: =muni& " - "&S71C& " - "&"A"& " - "&date -> LIM351 Blouberg - Table C3 Monthly Budget Statement - Financial Performance (revenue and expenditure by municipal vote) - A - M08 February
A2: =Vdesc -> Vote Description | B2: =head27 -> Ref | C2: =Head1 -> 2022/23 | D2: =Head2 -> Budget Year 2023/24 | L2: =Head4 -> 
A3: R thousand | C3: =Head5 -> Audited Outcome | D3: =Head6 -> Original Budget | E3: =Head7 -> Adjusted Budget | F3: =Head38 -> Monthly actual | G3: =Head39 -> YearTD actual | H3: =Head40 -> YearTD budget | I3: =Head41 -> YTD variance | J3: =Head41 -> YTD variance | K3: =Head8 -> Full Year Forecast | L3: =Head12 -> Forecast 2010/11 | M3: =Head13 -> Forecast 2011/12 | N3: =Head14 -> Forecast 2012/13 | O3: =Head15 -> Forecast 2013/14 | P3: =Head16 -> Forecast 2014/15 | Q3: =Head17 -> Forecast 2015/16 | R3: =Head18 -> Forecast 2016/17 | S3: =Head19 -> Forecast 2017/18 | T3: =Head20 -> Forecast 2018/19 | U3: =Head21 -> Forecast 2019/20 | V3: =Head22 -> Forecast 2020/21 | W3: =Head23 -> Forecast 2021/22
J4: %
A5: Revenue by Vote | B5: 1
A6: ='Org structure'!A2 -> Vote 01 - Executive & Council | C6: =SUM(C7:C7) -> 0 | D6: =SUM(D7:D7) -> 0 | E6: =SUM(E7:E7) -> 0 | F6: =SUM(F7:F7) -> 0 | G6: =SUM(G7:G7) -> 0 | H6: =SUM(H7:H7) -> 0 | I6: =G6-H6 -> 0 | J6: =IF(I6=0,"",I6/H6) ->  | K6: =SUM(K7:K7) -> 0
A7: ='Org structure'!E3 -> 01.1 - Council General | C7: 0 | D7: 0 | E7: 0 | F7: 0 | G7: 0 | H7: 0 | I7: =G7-H7 -> 0 | J7: =IF(I7=0,"",I7/H7) ->  | K7: 0
A8: ='Org structure'!A3 -> Vote 02 - Finance And Administration | C8: =SUM(C9:C9) -> 0 | D8: =SUM(D9:D9) -> 0 | E8: =SUM(E9:E9) -> 0 | F8: =SUM(F9:F9) -> 0 | G8: =SUM(G9:G9) -> 0 | H8: =SUM(H9:H9) -> 0 | I8: 0 | K8: =SUM(K9:K9) -> 0
A9: ='Org structure'!E5 -> 02.1 - Municipal Manager | C9: 0 | D9: 0 | E9: 0 | F9: 0 | G9: 0 | H9: 0 | I9: =G9-H9 -> 0 | J9: =IF(I9=0,"",I9/H9) ->  | K9: 0
A10: ='Org structure'!A4 -> Vote 03 - Community Service | C10: =SUM(C11:C11) -> 268688251.5 | D10: =SUM(D11:D11) -> 273007071 | E10: =SUM(E11:E11) -> 279396873 | F10: =SUM(F11:F11) -> 1148278.35 | G10: =SUM(G11:G11) -> 248431769.8 | H10: =SUM(H11:H11) -> 183282600.4 | I10: 65149169.39 | J10: 0.3554574698 | K10: =SUM(K11:K11) -> 279396873
A11: ='Org structure'!E7 -> 03.1 - Finance Services Administration | C11: 268688251.5 | D11: 273007071 | E11: 279396873 | F11: 1148278.35 | G11: 248431769.8 | H11: 183282600.4 | I11: =G11-H11 -> 65149169.39 | J11: =IF(I11=0,"",I11/H11) -> 0.3554574698 | K11: 279396873
A12: ='Org structure'!A5 -> Vote 04 - Public And Safety | C12: =SUM(C13:C13) -> 6219635.72 | D12: =SUM(D13:D13) -> 296084 | E12: =SUM(E13:E13) -> 816084 | F12: =SUM(F13:F13) -> 151028.41 | G12: =SUM(G13:G13) -> 203392.11 | H12: =SUM(H13:H13) -> 301384 | I12: -97991.89 | J12: -0.3251396557 | K12: =SUM(K13:K13) -> 816084
A13: ='Org structure'!E9 -> 04.1 - Corporate Services Administration | C13: 6219635.72 | D13: 296084 | E13: 816084 | F13: 151028.41 | G13: 203392.11 | H13: 301384 | I13: =G13-H13 -> -97991.89 | J13: =IF(I13=0,"",I13/H13) -> -0.3251396557 | K13: 816084
A14: ='Org structure'!A6 -> Vote 05 - Waste Management | C14: =SUM(C15:C21) -> 59320421.03 | D14: =SUM(D15:D21) -> 91586673 | E14: =SUM(E15:E21) -> 140092489 | F14: =SUM(F15:F21) -> 3289429.39 | G14: =SUM(G15:G21) -> 32633908.41 | H14: =SUM(H15:H21) -> 73603367.6 | I14: -40969459.19 | J14: -0.5566247921 | K14: =SUM(K15:K21) -> 140092489
A15: ='Org structure'!E11 -> 05.1 - Technical Services Administration | C15: 0 | D15: 0 | E15: 0 | F15: 0 | G15: 0 | H15: 0 | I15: =G15-H15 -> 0 | J15: =IF(I15=0,"",I15/H15) ->  | K15: 0
A16: ='Org structure'!E12 -> 05.2 - Electrical Services | C16: 59301265.84 | D16: 91586673 | E16: 88992489 | F16: 2824204.27 | G16: 24657392.45 | H16: 61961145.4 | I16: =G16-H16 -> -37303752.95 | J16: =IF(I16=0,"",I16/H16) -> -0.6020507321 | K16: 88992489
A17: ='Org structure'!E13 -> 05.3 - Water Services | C17: 8162.17 | D17: 0 | E17: 0 | F17: 315980.54 | G17: 2745626.11 | H17: 0 | I17: =G17-H17 -> 2745626.11 | J17: =IF(I17=0,"",I17/H17) ->  | K17: 0
A18: ='Org structure'!E14 -> 05.4 - Sanitation Services | C18: 10993.02 | D18: 0 | E18: 0 | F18: 149244.58 | G18: 1231583.89 | H18: 0 | I18: =G18-H18 -> 1231583.89 | J18: =IF(I18=0,"",I18/H18) ->  | K18: 0
A19: ='Org structure'!E15 -> 05.5 - Roads Services | C19: 0 | D19: 0 | E19: 51100000 | F19: 0 | G19: 3999305.96 | H19: 11642222.2 | I19: =G19-H19 -> -7642916.24 | J19: =IF(I19=0,"",I19/H19) -> -0.6564825949 | K19: 51100000
A20: ='Org structure'!E16 -> 05.6 - Storm Water Services | C20: 0 | D20: 0 | E20: 0 | F20: 0 | G20: 0 | H20: 0 | I20: =G20-H20 -> 0 | J20: =IF(I20=0,"",I20/H20) ->  | K20: 0
A21: ='Org structure'!E17 -> 05.7 - Water Reporting Function | C21: 0 | D21: 0 | E21: 0 | F21: 0 | G21: 0 | H21: 0 | I21: =G21-H21 -> 0 | J21: =IF(I21=0,"",I21/H21) ->  | K21: 0
A22: ='Org structure'!A7 -> Vote 06 - Roads Services | C22: =SUM(C23:C36) -> 6859627.97 | D22: =SUM(D23:D36) -> 11378124 | E22: =SUM(E23:E36) -> 11078124 | F22: =SUM(F23:F36) -> 322373.51 | G22: =SUM(G23:G36) -> 3993496.13 | H22: =SUM(H23:H36) -> 7525392 | I22: -3531895.87 | J22: -0.469330484 | K22: =SUM(K23:K36) -> 11078124
A23: ='Org structure'!E19 -> 06.1 - Community Services Administration | C23: 1950000 | D23: 1785000 | E23: 1785000 | F23: 0 | G23: 956617.2 | H23: 1190000 | I23: =G23-H23 -> -233382.8 | J23: =IF(I23=0,"",I23/H23) -> -0.19612 | K23: 1785000
A24: ='Org structure'!E20 -> 06.2 - Traffic Services | C24: 2742997.67 | D24: 6500000 | E24: 6500000 | F24: 128939.94 | G24: 1492730.13 | H24: 4333320 | I24: =G24-H24 -> -2840589.87 | J24: =IF(I24=0,"",I24/H24) -> -0.6555227562 | K24: 6500000
A25: ='Org structure'!E21 -> 06.3 - Traffic Services | C25: 0 | D25: 0 | E25: 0 | F25: 0 | G25: 0 | H25: 0 | I25: =G25-H25 -> 0 | J25: =IF(I25=0,"",I25/H25) ->  | K25: 0
A26: ='Org structure'!E22 -> 06.4 - Libraries | C26: 0 | D26: 0 | E26: 0 | F26: 0 | G26: 0 | H26: 0 | I26: =G26-H26 -> 0 | J26: =IF(I26=0,"",I26/H26) ->  | K26: 0
A27: ='Org structure'!E23 -> 06.5 - Sport | C27: 0 | D27: 0 | E27: 0 | F27: 0 | G27: 0 | H27: 0 | I27: =G27-H27 -> 0 | J27: =IF(I27=0,"",I27/H27) ->  | K27: 0
A28: ='Org structure'!E24 -> 06.6 - Cemetery | C28: 0 | D28: 0 | E28: 0 | F28: 0 | G28: 0 | H28: 0 | I28: =G28-H28 -> 0 | J28: =IF(I28=0,"",I28/H28) ->  | K28: 0
A29: ='Org structure'!E25 -> 06.7 - Refuse | C29: 2166630.3 | D29: 3093124 | E29: 2793124 | F29: 193433.57 | G29: 1544148.8 | H29: 2002072 | I29: =G29-H29 -> -457923.2 | J29: =IF(I29=0,"",I29/H29) -> -0.2287246413 | K29: 2793124
A30: ='Org structure'!E26 -> 06.8 - Pound Services | C30: 0 | D30: 0 | E30: 0 | F30: 0 | G30: 0 | H30: 0 | I30: =G30-H30 -> 0 | J30: =IF(I30=0,"",I30/H30) ->  | K30: 0
A31: ='Org structure'!E27 -> 06.9 - Pound Services | C31: 0 | D31: 0 | E31: 0 | F31: 0 | G31: 0 | H31: 0 | I31: =G31-H31 -> 0 | J31: =IF(I31=0,"",I31/H31) ->  | K31: 0
A32: ='Org structure'!E28 -> 06.10 - Satellite Offices | C32: 0 | D32: 0 | E32: 0 | F32: 0 | G32: 0 | H32: 0 | I32: =G32-H32 -> 0 | J32: =IF(I32=0,"",I32/H32) ->  | K32: 0
A33: ='Org structure'!E29 -> 06.11 - Alldays Offices | C33: 0 | D33: 0 | E33: 0 | F33: 0 | G33: 0 | H33: 0 | I33: =G33-H33 -> 0 | J33: =IF(I33=0,"",I33/H33) ->  | K33: 0
A34: ='Org structure'!E30 -> 06.12 - Eldorado Offices | C34: 0 | D34: 0 | E34: 0 | F34: 0 | G34: 0 | H34: 0 | I34: =G34-H34 -> 0 | J34: =IF(I34=0,"",I34/H34) ->  | K34: 0
A35: ='Org structure'!E31 -> 06.13 - Tolwe Offices | C35: 0 | D35: 0 | E35: 0 | F35: 0 | G35: 0 | H35: 0 | I35: =G35-H35 -> 0 | J35: =IF(I35=0,"",I35/H35) ->  | K35: 0
A36: ='Org structure'!E32 -> 06.14 - Senwabarwarna Offices | C36: 0 | D36: 0 | E36: 0 | F36: 0 | G36: 0 | H36: 0 | I36: =G36-H36 -> 0 | J36: =IF(I36=0,"",I36/H36) ->  | K36: 0
A37: ='Org structure'!A8 -> Vote 07 - Econominc Development And Planning | C37: =SUM(C38:C39) -> 91173149.63 | D37: =SUM(D38:D39) -> 62297374 | E37: =SUM(E38:E39) -> 69467251 | F37: =SUM(F38:F39) -> 19118.48 | G37: =SUM(G38:G39) -> 40649074.79 | H37: =SUM(H38:H39) -> 42161878.27 | I37: =G37-H37 -> -1512803.48 | J37: =IF(I37=0,"",I37/H37) -> -0.03588083696 | K37: =SUM(K38:K39) -> 69467251
A38: ='Org structure'!E34 -> 07.1 - Project Management Unit | C38: 85302320.39 | D38: 52575000 | E38: 59454680 | F38: 0 | G38: 40541847.73 | H38: 35622278.87 | I38: =G38-H38 -> 4919568.86 | J38: =IF(I38=0,"",I38/H38) -> 0.1381037097 | K38: 59454680
A39: ='Org structure'!E35 -> 07.2 - Economic Development And Planning | C39: 5870829.24 | D39: 9722374 | E39: 10012571 | F39: 19118.48 | G39: 107227.06 | H39: 6539599.4 | I39: =G39-H39 -> -6432372.34 | J39: =IF(I39=0,"",I39/H39) -> -0.9836034207 | K39: 10012571
A40: ='Org structure'!A9 -> Vote 08 - | C40: 0 | D40: 0 | E40: 0 | F40: 0 | G40: 0 | H40: 0 | I40: 0 | K40: 0
A41: ='Org structure'!A10 -> Vote 09 - | C41: 0 | D41: 0 | E41: 0 | F41: 0 | G41: 0 | H41: 0 | I41: 0 | K41: 0
A42: ='Org structure'!A11 -> Vote 10 - | C42: 0 | D42: 0 | E42: 0 | F42: 0 | G42: 0 | H42: 0 | I42: 0 | K42: 0
A43: ='Org structure'!A12 -> Vote 11 - | C43: 0 | D43: 0 | E43: 0 | F43: 0 | G43: 0 | H43: 0 | I43: 0 | K43: 0
A44: ='Org structure'!A13 -> Vote 12 - | C44: 0 | D44: 0 | E44: 0 | F44: 0 | G44: 0 | H44: 0 | I44: 0 | K44: 0
A45: ='Org structure'!A14 -> Vote 13 - | C45: 0 | D45: 0 | E45: 0 | F45: 0 | G45: 0 | H45: 0 | I45: =G45-H45 -> 0 | J45: =IF(I45=0,"",I45/H45) ->  | K45: 0
A46: ='Org structure'!A15 -> Vote 14 - | C46: 0 | D46: 0 | E46: 0 | F46: 0 | G46: 0 | H46: 0 | I46: 0 | K46: 0
A47: ='Org structure'!A16 -> Vote 15 - Other | C47: 0 | D47: 0 | E47: 0 | F47: 0 | G47: 0 | H47: 0 | I47: 0 | K47: 0
A48: Total Revenue by Vote | B48: 2 | C48: =C6+C8+C10+C12+C14+C22+C37+C40+C41+C42+C43+C44+C45+C46+C47 -> 432261085.9 | D48: =D6+D8+D10+D12+D14+D22+D37+D40+D41+D42+D43+D44+D45+D46+D47 -> 438565326 | E48: =E6+E8+E10+E12+E14+E22+E37+E40+E41+E42+E43+E44+E45+E46+E47 -> 500850821 | F48: =F6+F8+F10+F12+F14+F22+F37+F40+F41+F42+F43+F44+F45+F46+F47 -> 4930228.14 | G48: =G6+G8+G10+G12+G14+G22+G37+G40+G41+G42+G43+G44+G45+G46+G47 -> 325911641.2 | H48: =H6+H8+H10+H12+H14+H22+H37+H40+H41+H42+H43+H44+H45+H46+H47 -> 306874622.3 | I48: 19037018.96 | J48: 0.06203516869 | K48: =K6+K8+K10+K12+K14+K22+K37+K40+K41+K42+K43+K44+K45+K46+K47 -> 500850821
I49: 0
A50: Expenditure by Vote | B50: 1 | I50: 0
A51: ='Org structure'!A2 -> Vote 01 - Executive & Council | C51: =SUM(C52:C52) -> 19739846.8 | D51: =SUM(D52:D52) -> 23557547 | E51: =SUM(E52:E52) -> 23787547 | F51: =SUM(F52:F52) -> 1620013.01 | G51: =SUM(G52:G52) -> 14966422.78 | H51: =SUM(H52:H52) -> 15873389.78 | I51: -906967 | J51: -0.05713757506 | K51: =SUM(K52:K52) -> 23787547
A52: ='Org structure'!E3 -> 01.1 - Council General | C52: 19739846.8 | D52: 23557547 | E52: 23787547 | F52: 1620013.01 | G52: 14966422.78 | H52: 15873389.78 | I52: =G52-H52 -> -906967 | J52: =IF(I52=0,"",I52/H52) -> -0.05713757506 | K52: 23787547
A53: ='Org structure'!A3 -> Vote 02 - Finance And Administration | C53: =SUM(C54:C54) -> 51481168.34 | D53: =SUM(D54:D54) -> 51642655 | E53: =SUM(E54:E54) -> 50239655 | F53: =SUM(F54:F54) -> 5900457.41 | G53: =SUM(G54:G54) -> 37737557.1 | H53: =SUM(H54:H54) -> 34147968 | I53: 3589589.1 | J53: 0.1051186735 | K53: =SUM(K54:K54) -> 50239655
A54: ='Org structure'!E5 -> 02.1 - Municipal Manager | C54: 51481168.34 | D54: 51642655 | E54: 50239655 | F54: 5900457.41 | G54: 37737557.1 | H54: 34147968 | I54: =G54-H54 -> 3589589.1 | J54: =IF(I54=0,"",I54/H54) -> 0.1051186735 | K54: 50239655
A55: ='Org structure'!A4 -> Vote 03 - Community Service | C55: =SUM(C56:C56) -> 106490135.7 | D55: =SUM(D56:D56) -> 42981944 | E55: =SUM(E56:E56) -> 42614944 | F55: =SUM(F56:F56) -> 3406374.23 | G55: =SUM(G56:G56) -> 19176682.72 | H55: =SUM(H56:H56) -> 28581360 | I55: -9404677.28 | J55: -0.3290493273 | K55: =SUM(K56:K56) -> 42614944
A56: ='Org structure'!E7 -> 03.1 - Finance Services Administration | C56: 106490135.7 | D56: 42981944 | E56: 42614944 | F56: 3406374.23 | G56: 19176682.72 | H56: 28581360 | I56: =G56-H56 -> -9404677.28 | J56: =IF(I56=0,"",I56/H56) -> -0.3290493273 | K56: 42614944
A57: ='Org structure'!A5 -> Vote 04 - Public And Safety | C57: =SUM(C58:C58) -> 68914818.25 | D57: =SUM(D58:D58) -> 78708554 | E57: =SUM(E58:E58) -> 80859554 | F57: =SUM(F58:F58) -> 7159203.21 | G57: =SUM(G58:G58) -> 46029051.64 | H57: =SUM(H58:H58) -> 52902776 | I57: =G57-H57 -> -6873724.36 | J57: =IF(I57=0,"",I57/H57) -> -0.1299312603 | K57: =SUM(K58:K58) -> 80859554
A58: ='Org structure'!E9 -> 04.1 - Corporate Services Administration | C58: 68914818.25 | D58: 78708554 | E58: 80859554 | F58: 7159203.21 | G58: 46029051.64 | H58: 52902776 | I58: =G58-H58 -> -6873724.36 | J58: =IF(I58=0,"",I58/H58) -> -0.1299312603 | K58: 80859554
A59: ='Org structure'!A6 -> Vote 05 - Waste Management | C59: =SUM(C60:C66) -> 109469809.7 | D59: =SUM(D60:D66) -> 120524185 | E59: =SUM(E60:E66) -> 123484340 | F59: =SUM(F60:F66) -> 12371570 | G59: =SUM(G60:G66) -> 63434819.18 | H59: =SUM(H60:H66) -> 82363973.2 | I59: -18929154.02 | J59: -0.2298232259 | K59: =SUM(K60:K66) -> 123484340
A60: ='Org structure'!E11 -> 05.1 - Technical Services Administration | C60: 7888569.82 | D60: 7552779 | E60: 7082779 | F60: 1234148.02 | G60: 4662357.85 | H60: 4941256 | I60: =G60-H60 -> -278898.15 | J60: =IF(I60=0,"",I60/H60) -> -0.05644276475 | K60: 7082779
A61: ='Org structure'!E12 -> 05.2 - Electrical Services | C61: 79203985.14 | D61: 92619690 | E61: 92806845 | F61: 9488180.81 | G61: 48654877.99 | H61: 61783967 | I61: =G61-H61 -> -13129089.01 | J61: =IF(I61=0,"",I61/H61) -> -0.2124999356 | K61: 92806845
A62: ='Org structure'!E13 -> 05.3 - Water Services | C62: 0 | D62: 0 | E62: 0 | F62: 0 | G62: 0 | H62: 0 | I62: =G62-H62 -> 0 | J62: =IF(I62=0,"",I62/H62) ->  | K62: 0
A63: ='Org structure'!E14 -> 05.4 - Sanitation Services | C63: 0 | D63: 0 | E63: 0 | F63: 0 | G63: 0 | H63: 0 | I63: =G63-H63 -> 0 | J63: =IF(I63=0,"",I63/H63) ->  | K63: 0
A64: ='Org structure'!E15 -> 05.5 - Roads Services | C64: 22377254.77 | D64: 20351716 | E64: 23594716 | F64: 1649241.17 | G64: 10117583.34 | H64: 15638750.2 | I64: =G64-H64 -> -5521166.86 | J64: =IF(I64=0,"",I64/H64) -> -0.3530439958 | K64: 23594716
A65: ='Org structure'!E16 -> 05.6 - Storm Water Services | C65: 0 | D65: 0 | E65: 0 | F65: 0 | G65: 0 | H65: 0 | I65: =G65-H65 -> 0 | J65: =IF(I65=0,"",I65/H65) ->  | K65: 0
A66: ='Org structure'!E17 -> 05.7 - Water Reporting Function | C66: 0 | D66: 0 | E66: 0 | F66: 0 | G66: 0 | H66: 0 | I66: =G66-H66 -> 0 | J66: =IF(I66=0,"",I66/H66) ->  | K66: 0
A67: ='Org structure'!A7 -> Vote 06 - Roads Services | C67: =SUM(C68:C81) -> 39578999.73 | D67: =SUM(D68:D81) -> 53421163 | E67: =SUM(E68:E81) -> 51959163 | F67: =SUM(F68:F81) -> 6581007.48 | G67: =SUM(G68:G81) -> 27889632.21 | H67: =SUM(H68:H81) -> 35321952 | I67: -7432319.79 | J67: -0.2104164512 | K67: =SUM(K68:K81) -> 51959163
A68: ='Org structure'!E19 -> 06.1 - Community Services Administration | C68: 18324422.32 | D68: 30751656 | E68: 29245656 | F68: 2546708.25 | G68: 10865351.21 | H68: 20200056 | I68: =G68-H68 -> -9334704.79 | J68: =IF(I68=0,"",I68/H68) -> -0.4621128174 | K68: 29245656
A69: ='Org structure'!E20 -> 06.2 - Traffic Services | C69: 17801790.49 | D69: 17060147 | E69: 17474147 | F69: 3661272.41 | G69: 13691918.87 | H69: 11456296 | I69: =G69-H69 -> 2235622.87 | J69: =IF(I69=0,"",I69/H69) -> 0.1951436023 | K69: 17474147
A70: ='Org structure'!E21 -> 06.3 - Traffic Services | C70: 0 | D70: 0 | E70: 0 | F70: 0 | G70: 0 | H70: 0 | I70: =G70-H70 -> 0 | J70: =IF(I70=0,"",I70/H70) ->  | K70: 0
A71: ='Org structure'!E22 -> 06.4 - Libraries | C71: 0 | D71: 0 | E71: 0 | F71: 0 | G71: 0 | H71: 0 | I71: =G71-H71 -> 0 | J71: =IF(I71=0,"",I71/H71) ->  | K71: 0
A72: ='Org structure'!E23 -> 06.5 - Sport | C72: 0 | D72: 0 | E72: 0 | F72: 0 | G72: 0 | H72: 0 | I72: =G72-H72 -> 0 | J72: =IF(I72=0,"",I72/H72) ->  | K72: 0
A73: ='Org structure'!E24 -> 06.6 - Cemetery | C73: 0 | D73: 0 | E73: 0 | F73: 0 | G73: 0 | H73: 0 | I73: =G73-H73 -> 0 | J73: =IF(I73=0,"",I73/H73) ->  | K73: 0
A74: ='Org structure'!E25 -> 06.7 - Refuse | C74: 3225717.79 | D74: 5159360 | E74: 4959360 | F74: 373026.82 | G74: 3164362.13 | H74: 3399584 | I74: =G74-H74 -> -235221.87 | J74: =IF(I74=0,"",I74/H74) -> -0.06919136871 | K74: 4959360
A75: ='Org structure'!E26 -> 06.8 - Pound Services | C75: 227069.13 | D75: 200000 | E75: 280000 | F75: 0 | G75: 168000 | H75: 149336 | I75: =G75-H75 -> 18664 | J75: =IF(I75=0,"",I75/H75) -> 0.1249799111 | K75: 280000
A76: ='Org structure'!E27 -> 06.9 - Pound Services | C76: 0 | D76: 0 | E76: 0 | F76: 0 | G76: 0 | H76: 0 | I76: =G76-H76 -> 0 | J76: =IF(I76=0,"",I76/H76) ->  | K76: 0
A77: ='Org structure'!E28 -> 06.10 - Satellite Offices | C77: 0 | D77: 100000 | E77: 0 | F77: 0 | G77: 0 | H77: 46672 | I77: =G77-H77 -> -46672 | J77: =IF(I77=0,"",I77/H77) -> -1 | K77: 0
A78: ='Org structure'!E29 -> 06.11 - Alldays Offices | C78: 0 | D78: 50000 | E78: 0 | F78: 0 | G78: 0 | H78: 23336 | I78: =G78-H78 -> -23336 | J78: =IF(I78=0,"",I78/H78) -> -1 | K78: 0
A79: ='Org structure'!E30 -> 06.12 - Eldorado Offices | C79: 0 | D79: 50000 | E79: 0 | F79: 0 | G79: 0 | H79: 23336 | I79: =G79-H79 -> -23336 | J79: =IF(I79=0,"",I79/H79) -> -1 | K79: 0
A80: ='Org structure'!E31 -> 06.13 - Tolwe Offices | C80: 0 | D80: 50000 | E80: 0 | F80: 0 | G80: 0 | H80: 23336 | I80: =G80-H80 -> -23336 | J80: =IF(I80=0,"",I80/H80) -> -1 | K80: 0
A81: ='Org structure'!E32 -> 06.14 - Senwabarwarna Offices | C81: 0 | D81: 0 | E81: 0 | F81: 0 | G81: 0 | H81: 0 | I81: =G81-H81 -> 0 | J81: =IF(I81=0,"",I81/H81) ->  | K81: 0
A82: ='Org structure'!A8 -> Vote 07 - Econominc Development And Planning | C82: =SUM(C83:C84) -> 14036496.3 | D82: =SUM(D83:D84) -> 18236205 | E82: =SUM(E83:E84) -> 18256205 | F82: =SUM(F83:F84) -> 1975087.05 | G82: =SUM(G83:G84) -> 10445608.89 | H82: =SUM(H83:H84) -> 12161608 | I82: -1715999.11 | J82: -0.1410996893 | K82: =SUM(K83:K84) -> 18256205
A83: ='Org structure'!E34 -> 07.1 - Project Management Unit | C83: 767400 | D83: 280000 | E83: 0 | F83: 0 | G83: 0 | H83: 130672 | I83: =G83-H83 -> -130672 | J83: =IF(I83=0,"",I83/H83) -> -1 | K83: 0
A84: ='Org structure'!E35 -> 07.2 - Economic Development And Planning | C84: 13269096.3 | D84: 17956205 | E84: 18256205 | F84: 1975087.05 | G84: 10445608.89 | H84: 12030936 | I84: =G84-H84 -> -1585327.11 | J84: =IF(I84=0,"",I84/H84) -> -0.1317708872 | K84: 18256205
A85: ='Org structure'!A9 -> Vote 08 - | C85: 0 | D85: 0 | E85: 0 | F85: 0 | G85: 0 | H85: 0 | I85: 0 | K85: 0
A86: ='Org structure'!A10 -> Vote 09 - | C86: 0 | D86: 0 | E86: 0 | F86: 0 | G86: 0 | H86: 0 | I86: =G86-H86 -> 0 | J86: =IF(I86=0,"",I86/H86) ->  | K86: 0
A87: ='Org structure'!A11 -> Vote 10 - | C87: 0 | D87: 0 | E87: 0 | F87: 0 | G87: 0 | H87: 0 | I87: 0 | K87: 0
A88: ='Org structure'!A12 -> Vote 11 - | C88: 0 | D88: 0 | E88: 0 | F88: 0 | G88: 0 | H88: 0 | I88: 0 | K88: 0
A89: ='Org structure'!A13 -> Vote 12 - | C89: 0 | D89: 0 | E89: 0 | F89: 0 | G89: 0 | H89: 0 | I89: 0 | K89: 0
A90: ='Org structure'!A14 -> Vote 13 - | C90: 0 | D90: 0 | E90: 0 | F90: 0 | G90: 0 | H90: 0 | I90: 0 | K90: 0
A91: ='Org structure'!A15 -> Vote 14 - | C91: 0 | D91: 0 | E91: 0 | F91: 0 | G91: 0 | H91: 0 | I91: 0 | K91: 0
A92: ='Org structure'!A16 -> Vote 15 - Other | C92: 0 | D92: 0 | E92: 0 | F92: 0 | G92: 0 | H92: 0 | I92: =G92-H92 -> 0 | J92: =IF(I92=0,"",I92/H92) ->  | K92: 0
A93: Total Expenditure by Vote | B93: 2 | C93: =C51+C53+C55+C57+C59+C67+C82+C85+C86+C87+C88+C89+C90+C91+C92 -> 409711274.9 | D93: =D51+D53+D55+D57+D59+D67+D82+D85+D86+D87+D88+D89+D90+D91+D92 -> 389072253 | E93: =E51+E53+E55+E57+E59+E67+E82+E85+E86+E87+E88+E89+E90+E91+E92 -> 391201408 | F93: =F51+F53+F55+F57+F59+F67+F82+F85+F86+F87+F88+F89+F90+F91+F92 -> 39013712.39 | G93: =G51+G53+G55+G57+G59+G67+G82+G85+G86+G87+G88+G89+G90+G91+G92 -> 219679774.5 | H93: =H51+H53+H55+H57+H59+H67+H82+H85+H86+H87+H88+H89+H90+H91+H92 -> 261353027 | I93: -41673252.46 | J93: -0.1594519602 | K93: =K51+K53+K55+K57+K59+K67+K82+K85+K86+K87+K88+K89+K90+K91+K92 -> 391201408
I94: 0 | L94: =#REF!-#REF! ->  | M94: =#REF!-#REF! ->  | N94: =#REF!-#REF! ->  | O94: =#REF!-#REF! ->  | P94: =#REF!-#REF! ->  | Q94: =#REF!-#REF! ->  | R94: =#REF!-#REF! ->  | S94: =#REF!-#REF! ->  | T94: =#REF!-#REF! ->  | U94: =#REF!-#REF! ->  | V94: =#REF!-#REF! ->  | W94: =#REF!-#REF! -> 
A95: =result -> Surplus/ (Deficit) for the year | B95: 2 | C95: =C48-C93 -> 22549811.01 | D95: =D48-D93 -> 49493073 | E95: =E48-E93 -> 109649413 | F95: =F48-F93 -> -34083484.25 | G95: =G48-G93 -> 106231866.7 | H95: =H48-H93 -> 45521595.29 | I95: 60710271.42 | J95: 1.333658696 | K95: =K48-K93 -> 109649413
A96: =head27a -> References
A97: 1. Insert 'Vote'; e.g. Department, if different to standard structure
A98: 2. Must reconcile to Financial Performance ('Revenue and Expenditure by Standard Classification' and 'Revenue and Expenditure')
A99: 3. Assign share in 'associate' to relevant Vote
A101: check revenue
A102: check expenditure

Sheet C4-FinPerf RE
A1: =muni& " - "&S71B& " - "&date -> LIM351 Blouberg - Table C4 Monthly Budget Statement - Financial Performance (revenue and expenditure) - M08 February
A2: =desc -> Description | B2: =head27 -> Ref | C2: =Head1 -> 2022/23 | D2: =Head2 -> Budget Year 2023/24
C3: =Head5 -> Audited Outcome | D3: =Head6 -> Original Budget | E3: =Head7 -> Adjusted Budget | F3: =Head38 -> Monthly actual | G3: =Head39 -> YearTD actual | H3: =Head40 -> YearTD budget | I3: =Head41 -> YTD variance | J3: =Head41 -> YTD variance | K3: =Head8 -> Full Year Forecast
A4: R thousands | J4: %
A5: Revenue
A6: Exchange Revenue
A7: Service charges - Electricity | C7: 31489899.33 | D7: 57971356 | E7: 49864886 | F7: 2760764.84 | G7: 21523995.06 | H7: 37026266 | I7: =G7-H7 -> -15502270.94 | J7: =IF(I7=0,"",I7/H7) -> -0.418683076 | K7: 49864886
A8: Service charges - Water | C8: 0 | D8: 0 | E8: 0 | F8: 258347 | G8: 2306036.94 | H8: 0 | I8: 2306036.94 | K8: 0
A9: Service charges - Waste Water Management | C9: 19155.19 | D9: 0 | E9: 0 | F9: 130718 | G9: 1099306.61 | H9: 0 | I9: 1099306.61 | K9: 0
A10: Service charges - Waste management | C10: 1968415 | D10: 3000000 | E10: 2500000 | F10: 172436.96 | G10: 1379495.68 | H10: 1899992 | I10: -520496.32 | J10: -0.273946585 | K10: 2500000
A11: Sale of Goods and Rendering of Services | C11: 6478906.78 | D11: 496339 | E11: 916339 | F11: 171229.12 | G11: 333502.15 | H11: 414880 | I11: =G11-H11 -> -81377.85 | J11: -0.1961479223 | K11: 916339
A12: Agency services | C12: 0 | D12: 300000 | E12: 300000 | F12: 0 | G12: 0 | H12: 200000 | I12: -200000 | J12: -1 | K12: 300000
A13: Interest | I13: 0
A14: Interest earned from Receivables | C14: 795888.53 | D14: 456901 | E14: 956901 | F14: 169017.92 | G14: 1263314.59 | H14: 404592 | I14: 858722.59 | J14: 2.122440854 | K14: 956901
A15: Interest from Current and Non Current Assets | C15: 4112363.63 | D15: 3206212 | E15: 6206212 | F15: 309381.69 | G15: 3749852.83 | H15: 2737464 | I15: 1012388.83 | J15: 0.3698272671 | K15: 6206212
A16: Dividends | I16: 0
A17: Rent on Land | C17: 461442.68 | D17: 350000 | E17: 739802 | F17: 43745.06 | G17: 367821.01 | H17: 311288.4 | I17: 56532.61 | J17: 0.1816084698 | K17: 739802
A18: Rental from Fixed Assets | C18: 0 | D18: 0 | E18: 0 | F18: 0 | G18: 0 | H18: 0 | I18: 0 | K18: 0
A19: Licence and permits | C19: 1427943.61 | D19: 1109803 | E19: 0 | F19: 60683.9 | G19: 684889.77 | H19: 517903.4 | I19: 166986.37 | J19: 0.322427638 | K19: 0
A20: Operational Revenue | C20: 5922559.03 | D20: 8442316 | E20: 9942316 | F20: 0 | G20: 0 | H20: 5928200 | I20: -5928200 | J20: -1 | K20: 9942316
A21: Non-Exchange Revenue | I21: 0
A22: Property rates | C22: 25228987.14 | D22: 32970836 | E22: 32970836 | F22: 615832.11 | G22: 66497141.93 | H22: 21980512 | I22: 44516629.93 | J22: 2.025277206 | K22: 32970836
A23: Surcharges and Taxes | I23: 0
A24: Fines, penalties and forfeits | C24: 1799193.99 | D24: 2021540 | E24: 1921540 | F24: 24700 | G24: 291950.76 | H24: 1327688 | I24: -1035737.24 | J24: -0.7801058984 | K24: 1921540
A25: Licence and permits | C25: 2738447.67 | D25: 5000000 | E25: 5000000 | F25: 104239.94 | G25: 1200779.37 | H25: 3333320 | I25: -2132540.63 | J25: -0.6397647481 | K25: 5000000
A26: Transfers and subsidies - Operational | C26: 225391142.6 | D26: 237377000 | E26: 241377000 | F26: 0 | G26: 181169731.3 | H26: 160473550.2 | I26: 20696181.06 | J26: 0.1289694223 | K26: 241377000
A27: Interest | C27: 1266423.7 | D27: 288023 | E27: 1188023 | F27: 109131.6 | G27: 840840.54 | H27: 372008 | I27: 468832.54 | J27: 1.260275424 | K27: 1188023
A28: Fuel Levy | I28: 0
A29: Operational Revenue | I29: 0
A30: Gains on disposal of Assets | C30: 0 | D30: 0 | E30: 2000000 | F30: 0 | G30: 0 | H30: 400000 | I30: -400000 | J30: -1 | K30: 2000000
A31: Other Gains | C31: 10632282.94 | D31: 0 | E31: 0 | F31: 0 | G31: 0 | H31: 0 | I31: 0 | K31: 0
A32: Discontinued Operations | I32: 0
A33: Total Revenue (excluding capital transfers and contributions) | C33: =SUM(C7:C20)+SUM(C22:C32) -> 319733051.8 | D33: =SUM(D7:D20)+SUM(D22:D32) -> 352990326 | E33: 355883855 | F33: 4930228.14 | G33: 282708658.5 | H33: 237327664 | I33: 45380994.5 | J33: 0.1912166232 | K33: =SUM(K7:K20)+SUM(K22:K32) -> 355883855
A34: Expenditure By Type
A35: Employee related costs | C35: 124043649 | D35: 135978991 | E35: 135978991 | F35: 22008580.56 | G35: 86413991.44 | H35: 90653256 | I35: -4239264.56 | J35: =IF(I35=0,"",I35/H35) -> -0.04676351129 | K35: 135978991
A36: Remuneration of councillors | C36: 17982273.07 | D36: 20752503 | E36: 20752503 | F36: 1536878.01 | G36: 13079897.78 | H36: 13835080 | I36: -755182.22 | J36: -0.05458459366 | K36: 20752503
A37: Bulk purchases - electricity | C37: 52983493.47 | D37: 60000000 | E37: 60000000 | F37: 5218183.79 | G37: 37812975.33 | H37: 40000000 | I37: -2187024.67 | J37: -0.05467561675 | K37: 60000000
A38: Inventory consumed | C38: 1675772.26 | D38: 5854960 | E38: 5065960 | F38: 1743531.04 | G38: 2601199.81 | H38: 3745552 | I38: -1144352.19 | J38: -0.305522975 | K38: 5065960
A39: Debt impairment | C39: 767400 | D39: 0 | E39: 0 | F39: 0 | G39: 0 | H39: 0 | I39: 0 | K39: 0
A40: Depreciation and amortisation | C40: 31482239.38 | D40: 37667907 | E40: 37667907 | F40: 0 | G40: 0 | H40: 25112008 | I40: -25112008 | J40: -1 | K40: 37667907
A41: Interest | I41: 0
A42: Contracted services | C42: 61218972.2 | D42: 59971051 | E42: 58238051 | F42: 4593661.1 | G42: 37103669.96 | H42: 41178739.98 | I42: -4075070.02 | J42: -0.09896053211 | K42: 58238051
A43: Transfers and subsidies | C43: 0 | D43: 0 | E43: 0 | F43: 0 | G43: 0 | H43: 0 | I43: 0 | K43: 0
A44: Irrecoverable debts written off | C44: 54121083.6 | D44: 5769623 | E44: 5769623 | F44: 0 | G44: 0 | H44: 3846416 | I44: -3846416 | J44: -1 | K44: 5769623
A45: Operational costs | C45: 55028708.82 | D45: 63077218 | E45: 67728373 | F45: 3912877.89 | G45: 42668040.2 | H45: 42981975 | I45: -313934.8 | J45: -0.007303870983 | K45: 67728373
A46: Losses on Disposal of Assets | C46: -224599.84 | D46: 0 | E46: 0 | F46: 0 | G46: 0 | H46: 0 | I46: 0 | K46: 0
A47: Other Losses | C47: 10632282.94 | D47: 0 | E47: 0 | F47: 0 | G47: 0 | H47: 0 | I47: 0 | K47: 0
A48: Total Expenditure | C48: =SUM(C35:C47) -> 409711274.9 | D48: =SUM(D35:D47) -> 389072253 | E48: 391201408 | F48: 39013712.39 | G48: 219679774.5 | H48: 261353027 | I48: =G48-H48 -> -41673252.46 | J48: -0.1594519602 | K48: =SUM(K35:K47) -> 391201408
A49: Surplus/(Deficit) | C49: =C33-C48 -> -89978223.08 | D49: -36081927 | E49: -35317553 | F49: -34083484.25 | G49: 63028883.98 | H49: -24025362.98 | I49: 87054246.96 | J49: -3.623431081 | K49: =K33-K48 -> -35317553
A50: Transfers and subsidies - capital (monetary allocations) | C50: 112528034.1 | D50: 85575000 | E50: 144966966 | F50: 0 | G50: 43202982.73 | H50: 69546958.27 | I50: =G50-H50 -> -26343975.54 | J50: -0.3787940723 | K50: 144966966
A51: Transfers and subsidies - capital (in-kind) | I51: =G51-H51 -> 0
A52: Surplus/(Deficit) after capital transfers & contributions | C52: =C49+SUM(C50:C51) -> 22549811.01 | D52: 49493073 | E52: 109649413 | F52: -34083484.25 | G52: 106231866.7 | H52: 45521595.29 | I52: =G52-H52 -> 60710271.42 | J52: 1.333658696 | K52: =K49+SUM(K50:K51) -> 109649413
A53: Income Tax | J53: =IF(I53=0,"",I53/H53) -> 
A54: Surplus/(Deficit) after income tax | C54: =C52-C53 -> 22549811.01 | D54: 49493073 | E54: 109649413 | F54: -34083484.25 | G54: 106231866.7 | H54: 45521595.29 | K54: =K52-K53 -> 109649413
A55: Share of Surplus/Deficit attributable to Joint Venture
A56: Share of Surplus/Deficit attributable to Minorities
A57: Surplus/(Deficit) attributable to municipality | C57: =SUM(C54:C55) -> 22549811.01 | D57: 49493073 | E57: 109649413 | F57: -34083484.25 | G57: 106231866.7 | H57: 45521595.29 | K57: =SUM(K54:K55) -> 109649413
A58: Share of Surplus/Deficit attributable to Associate
A59: Intercompany/Parent subsidiary transactions
A60: Surplus/ (Deficit) for the year | C60: =C57+C59 -> 22549811.01 | D60: 49493073 | E60: 109649413 | F60: -34083484.25 | G60: 106231866.7 | H60: 45521595.29 | K60: =K57+K59 -> 109649413
A61: =head27a -> References
A62: 1. Material variances to be explained on Table SC1
A65: =A33&" including capital transfers/contributions etc" -> Total Revenue (excluding capital transfers and contributions) including capital transfers/contributions etc | C65: =C33+SUM(C50:C51) -> 432261085.9 | D65: 438565326 | E65: 500850821 | F65: 4930228.14 | G65: 325911641.2 | H65: 306874622.3 | K65: =K33+SUM(K50:K51) -> 500850821

Sheet C5-Capex
A1: =muni& " - "&S71D& " - "&date -> LIM351 Blouberg - Table C5 Monthly Budget Statement - Capital Expenditure (municipal vote, functional classification and funding) - M08 February
A2: =Vdesc -> Vote Description | B2: =head27 -> Ref | C2: =Head1 -> 2022/23 | D2: =Head2 -> Budget Year 2023/24
C3: =Head5 -> Audited Outcome | D3: =Head6 -> Original Budget | E3: =Head7 -> Adjusted Budget | F3: =Head38 -> Monthly actual | G3: =Head39 -> YearTD actual | H3: =Head40 -> YearTD budget | I3: =Head41 -> YTD variance | J3: =Head41 -> YTD variance | K3: =Head8 -> Full Year Forecast
A4: R thousands | B4: 1 | J4: %
A5: Multi-Year expenditure appropriation | B5: 2
A6: ='Org structure'!A2 -> Vote 01 - Executive & Council | C6: ='C5C'!C7 -> 0 | D6: ='C5C'!D7 -> 0 | E6: ='C5C'!E7 -> 0 | F6: ='C5C'!F7 -> 0 | G6: ='C5C'!G7 -> 0 | H6: ='C5C'!H7 -> 0 | I6: =G6-H6 -> 0 | J6: =IF(I6=0,"",I6/H6) ->  | K6: ='C5C'!K7 -> 0
A7: ='Org structure'!A3 -> Vote 02 - Finance And Administration | C7: ='C5C'!C9 -> 0 | D7: ='C5C'!D9 -> 0 | E7: ='C5C'!E9 -> 0 | F7: ='C5C'!F9 -> 0 | G7: ='C5C'!G9 -> 0 | H7: ='C5C'!H9 -> 0 | I7: =G7-H7 -> 0 | J7: =IF(I7=0,"",I7/H7) ->  | K7: ='C5C'!K9 -> 0
A8: ='Org structure'!A4 -> Vote 03 - Community Service | C8: ='C5C'!C11 -> 0 | D8: ='C5C'!D11 -> 0 | E8: ='C5C'!E11 -> 0 | F8: ='C5C'!F11 -> 0 | G8: ='C5C'!G11 -> 0 | H8: ='C5C'!H11 -> 0 | I8: =G8-H8 -> 0 | J8: =IF(I8=0,"",I8/H8) ->  | K8: ='C5C'!K11 -> 0
A9: ='Org structure'!A5 -> Vote 04 - Public And Safety | C9: ='C5C'!C13 -> 0 | D9: ='C5C'!D13 -> 0 | E9: ='C5C'!E13 -> 0 | F9: ='C5C'!F13 -> 0 | G9: ='C5C'!G13 -> 0 | H9: ='C5C'!H13 -> 0 | I9: =G9-H9 -> 0 | J9: =IF(I9=0,"",I9/H9) ->  | K9: ='C5C'!K13 -> 0
A10: ='Org structure'!A6 -> Vote 05 - Waste Management | C10: ='C5C'!C15 -> 0 | D10: ='C5C'!D15 -> 0 | E10: ='C5C'!E15 -> 0 | F10: ='C5C'!F15 -> 0 | G10: ='C5C'!G15 -> 0 | H10: ='C5C'!H15 -> 0 | I10: =G10-H10 -> 0 | J10: =IF(I10=0,"",I10/H10) ->  | K10: ='C5C'!K15 -> 0
A11: ='Org structure'!A7 -> Vote 06 - Roads Services | C11: ='C5C'!C23 -> 0 | D11: ='C5C'!D23 -> 0 | E11: ='C5C'!E23 -> 0 | F11: ='C5C'!F23 -> 0 | G11: ='C5C'!G23 -> 0 | H11: ='C5C'!H23 -> 0 | I11: =G11-H11 -> 0 | J11: =IF(I11=0,"",I11/H11) ->  | K11: ='C5C'!K23 -> 0
A12: ='Org structure'!A8 -> Vote 07 - Econominc Development And Planning | C12: ='C5C'!C38 -> 0 | D12: ='C5C'!D38 -> 0 | E12: ='C5C'!E38 -> 0 | F12: ='C5C'!F38 -> 0 | G12: ='C5C'!G38 -> 0 | H12: ='C5C'!H38 -> 0 | I12: =G12-H12 -> 0 | J12: =IF(I12=0,"",I12/H12) ->  | K12: ='C5C'!K38 -> 0
A13: ='Org structure'!A9 -> Vote 08 - | C13: ='C5C'!C41 -> 0 | D13: ='C5C'!D41 -> 0 | E13: ='C5C'!E41 -> 0 | F13: ='C5C'!F41 -> 0 | G13: ='C5C'!G41 -> 0 | H13: ='C5C'!H41 -> 0 | I13: =G13-H13 -> 0 | J13: =IF(I13=0,"",I13/H13) ->  | K13: ='C5C'!K41 -> 0
A14: ='Org structure'!A10 -> Vote 09 - | C14: ='C5C'!C42 -> 0 | D14: ='C5C'!D42 -> 0 | E14: ='C5C'!E42 -> 0 | F14: ='C5C'!F42 -> 0 | G14: ='C5C'!G42 -> 0 | H14: ='C5C'!H42 -> 0 | I14: 0 | K14: ='C5C'!K42 -> 0
A15: ='Org structure'!A11 -> Vote 10 - | C15: ='C5C'!C43 -> 0 | D15: ='C5C'!D43 -> 0 | E15: ='C5C'!E43 -> 0 | F15: ='C5C'!F43 -> 0 | G15: ='C5C'!G43 -> 0 | H15: ='C5C'!H43 -> 0 | I15: 0 | K15: ='C5C'!K43 -> 0
A16: ='Org structure'!A12 -> Vote 11 - | C16: ='C5C'!C44 -> 0 | D16: ='C5C'!D44 -> 0 | E16: ='C5C'!E44 -> 0 | F16: ='C5C'!F44 -> 0 | G16: ='C5C'!G44 -> 0 | H16: ='C5C'!H44 -> 0 | I16: 0 | K16: ='C5C'!K44 -> 0
A17: ='Org structure'!A13 -> Vote 12 - | C17: ='C5C'!C45 -> 0 | D17: ='C5C'!D45 -> 0 | E17: ='C5C'!E45 -> 0 | F17: ='C5C'!F45 -> 0 | G17: ='C5C'!G45 -> 0 | H17: ='C5C'!H45 -> 0 | I17: 0 | K17: ='C5C'!K45 -> 0
A18: ='Org structure'!A14 -> Vote 13 - | C18: ='C5C'!C46 -> 0 | D18: ='C5C'!D46 -> 0 | E18: ='C5C'!E46 -> 0 | F18: ='C5C'!F46 -> 0 | G18: ='C5C'!G46 -> 0 | H18: ='C5C'!H46 -> 0 | I18: =G18-H18 -> 0 | J18: =IF(I18=0,"",I18/H18) ->  | K18: ='C5C'!K46 -> 0
A19: ='Org structure'!A15 -> Vote 14 - | C19: ='C5C'!C47 -> 0 | D19: ='C5C'!D47 -> 0 | E19: ='C5C'!E47 -> 0 | F19: ='C5C'!F47 -> 0 | G19: ='C5C'!G47 -> 0 | H19: ='C5C'!H47 -> 0 | I19: =G19-H19 -> 0 | J19: =IF(I19=0,"",I19/H19) ->  | K19: ='C5C'!K47 -> 0
A20: ='Org structure'!A16 -> Vote 15 - Other | C20: ='C5C'!C48 -> 0 | D20: ='C5C'!D48 -> 0 | E20: ='C5C'!E48 -> 0 | F20: ='C5C'!F48 -> 0 | G20: ='C5C'!G48 -> 0 | H20: ='C5C'!H48 -> 0 | I20: =G20-H20 -> 0 | J20: =IF(I20=0,"",I20/H20) ->  | K20: ='C5C'!K48 -> 0
A21: Total Capital Multi-year expenditure | B21: 4,7 | C21: =SUM(C6:C20) -> 0 | D21: =SUM(D6:D20) -> 0 | E21: 0 | F21: 0 | G21: 0 | H21: 0 | I21: 0 | J21: =IF(I21=0,"",I21/H21) ->  | K21: =SUM(K6:K20) -> 0
A23: Single Year expenditure appropriation | B23: 2
A24: ='C5C'!A53 -> Vote 01 - Executive & Council | C24: ='C5C'!C53 -> 0 | D24: ='C5C'!D53 -> 0 | E24: ='C5C'!E53 -> 0 | F24: ='C5C'!F53 -> 0 | G24: ='C5C'!G53 -> 0 | H24: ='C5C'!H53 -> 0 | I24: =G24-H24 -> 0 | J24: =IF(I24=0,"",I24/H24) ->  | K24: ='C5C'!K53 -> 0
A25: ='C5C'!A55 -> Vote 02 - Finance And Administration | C25: ='C5C'!C55 -> 0 | D25: ='C5C'!D55 -> 300000 | E25: ='C5C'!E55 -> 0 | F25: ='C5C'!F55 -> 0 | G25: ='C5C'!G55 -> 0 | H25: ='C5C'!H55 -> 140000 | I25: =G25-H25 -> -140000 | J25: =IF(I25=0,"",I25/H25) -> -1 | K25: ='C5C'!K55 -> 0
A26: ='C5C'!A57 -> Vote 03 - Community Service | C26: ='C5C'!C57 -> 0 | D26: ='C5C'!D57 -> 0 | E26: ='C5C'!E57 -> 0 | F26: ='C5C'!F57 -> 0 | G26: ='C5C'!G57 -> 0 | H26: ='C5C'!H57 -> 0 | I26: =G26-H26 -> 0 | J26: =IF(I26=0,"",I26/H26) ->  | K26: ='C5C'!K57 -> 0
A27: ='C5C'!A59 -> Vote 04 - Public And Safety | C27: ='C5C'!C59 -> 108585 | D27: ='C5C'!D59 -> 310000 | E27: ='C5C'!E59 -> 210000 | F27: ='C5C'!F59 -> 0 | G27: ='C5C'!G59 -> 182230.94 | H27: ='C5C'!H59 -> 186672 | I27: =G27-H27 -> -4441.06 | J27: =IF(I27=0,"",I27/H27) -> -0.02379071312 | K27: ='C5C'!K59 -> 210000
A28: ='C5C'!A61 -> Vote 05 - Waste Management | C28: ='C5C'!C61 -> 23891624.65 | D28: ='C5C'!D61 -> 5607000 | E28: ='C5C'!E61 -> 54151376 | F28: ='C5C'!F61 -> 0 | G28: ='C5C'!G61 -> 540462.12 | H28: ='C5C'!H61 -> 13446891.2 | I28: =G28-H28 -> -12906429.08 | J28: =IF(I28=0,"",I28/H28) -> -0.9598076528 | K28: ='C5C'!K61 -> 54151376
A29: ='C5C'!A69 -> Vote 06 - Roads Services | C29: ='C5C'!C69 -> 0 | D29: ='C5C'!D69 -> 200000 | E29: ='C5C'!E69 -> 300000 | F29: ='C5C'!F69 -> 98000 | G29: ='C5C'!G69 -> 98000 | H29: ='C5C'!H69 -> 153336 | I29: =G29-H29 -> -55336 | J29: =IF(I29=0,"",I29/H29) -> -0.3608806803 | K29: ='C5C'!K69 -> 300000
A30: ='C5C'!A84 -> Vote 07 - Econominc Development And Planning | C30: ='C5C'!C84 -> 75909335.46 | D30: ='C5C'!D84 -> 80475000 | E30: ='C5C'!E84 -> 92666966 | F30: ='C5C'!F84 -> 2360428.77 | G30: ='C5C'!G84 -> 41020208.36 | H30: ='C5C'!H84 -> 59784650.9 | I30: =G30-H30 -> -18764442.54 | J30: =IF(I30=0,"",I30/H30) -> -0.3138672261 | K30: ='C5C'!K84 -> 92666966
A31: ='Org structure'!A9 -> Vote 08 - | C31: ='C5C'!C87 -> 0 | D31: ='C5C'!D87 -> 0 | E31: ='C5C'!E87 -> 0 | F31: ='C5C'!F87 -> 0 | G31: ='C5C'!G87 -> 0 | H31: ='C5C'!H87 -> 0 | I31: ='C5C'!I87 -> 0 | J31: =IF(I31=0,"",I31/H31) ->  | K31: ='C5C'!K87 -> 0
A32: ='Org structure'!A10 -> Vote 09 - | C32: ='C5C'!C88 -> 0 | D32: ='C5C'!D88 -> 0 | E32: ='C5C'!E88 -> 0 | F32: ='C5C'!F88 -> 0 | G32: ='C5C'!G88 -> 0 | H32: ='C5C'!H88 -> 0 | I32: ='C5C'!I88 -> 0 | K32: ='C5C'!K88 -> 0
A33: ='Org structure'!A11 -> Vote 10 - | C33: ='C5C'!C89 -> 0 | D33: ='C5C'!D89 -> 0 | E33: ='C5C'!E89 -> 0 | F33: ='C5C'!F89 -> 0 | G33: ='C5C'!G89 -> 0 | H33: ='C5C'!H89 -> 0 | I33: ='C5C'!I89 -> 0 | K33: ='C5C'!K89 -> 0
A34: ='Org structure'!A12 -> Vote 11 - | C34: ='C5C'!C90 -> 0 | D34: ='C5C'!D90 -> 0 | E34: ='C5C'!E90 -> 0 | F34: ='C5C'!F90 -> 0 | G34: ='C5C'!G90 -> 0 | H34: ='C5C'!H90 -> 0 | I34: ='C5C'!I90 -> 0 | K34: ='C5C'!K90 -> 0
A35: ='Org structure'!A13 -> Vote 12 - | C35: ='C5C'!C91 -> 0 | D35: ='C5C'!D91 -> 0 | E35: ='C5C'!E91 -> 0 | F35: ='C5C'!F91 -> 0 | G35: ='C5C'!G91 -> 0 | H35: ='C5C'!H91 -> 0 | I35: ='C5C'!I91 -> 0 | K35: ='C5C'!K91 -> 0
A36: ='Org structure'!A14 -> Vote 13 - | C36: ='C5C'!C92 -> 0 | D36: ='C5C'!D92 -> 0 | E36: ='C5C'!E92 -> 0 | F36: ='C5C'!F92 -> 0 | G36: ='C5C'!G92 -> 0 | H36: ='C5C'!H92 -> 0 | I36: ='C5C'!I92 -> 0 | K36: ='C5C'!K92 -> 0
A37: ='Org structure'!A15 -> Vote 14 - | C37: ='C5C'!C93 -> 0 | D37: ='C5C'!D93 -> 0 | E37: ='C5C'!E93 -> 0 | F37: ='C5C'!F93 -> 0 | G37: ='C5C'!G93 -> 0 | H37: ='C5C'!H93 -> 0 | I37: ='C5C'!I93 -> 0 | K37: ='C5C'!K93 -> 0
A38: ='Org structure'!A16 -> Vote 15 - Other | C38: ='C5C'!C94 -> 0 | D38: ='C5C'!D94 -> 0 | E38: ='C5C'!E94 -> 0 | F38: ='C5C'!F94 -> 0 | G38: ='C5C'!G94 -> 0 | H38: ='C5C'!H94 -> 0 | I38: ='C5C'!I94 -> 0 | K38: ='C5C'!K94 -> 0
A39: Total Capital single-year expenditure | B39: 4 | C39: =SUM(C24:C38) -> 99909545.11 | D39: 86892000 | E39: 147328342 | F39: 2458428.77 | G39: 41840901.42 | H39: 73711550.1 | I39: -31870648.68 | J39: -0.4323698069 | K39: =SUM(K24:K38) -> 147328342
A40: Total Capital Expenditure | C40: =C39+C21 -> 99909545.11 | D40: 86892000 | E40: 147328342 | F40: 2458428.77 | G40: 41840901.42 | H40: 73711550.1 | I40: -31870648.68 | J40: =IF(I40=0,"",I40/H40) -> -0.4323698069 | K40: =K39+K21 -> 147328342
A42: Capital Expenditure - Functional Classification
A43: Governance and administration | C43: =SUM(C44:C46) -> 108585 | D43: 610000 | E43: 210000 | F43: 0 | G43: 182230.94 | H43: 326672 | I43: =G43-H43 -> -144441.06 | J43: =IF(I43=0,"",I43/H43) -> -0.4421592913 | K43: =SUM(K44:K46) -> 210000
A44: Executive and council | C44: 0 | D44: 300000 | E44: 0 | F44: 0 | G44: 0 | H44: 140000 | I44: -140000 | J44: =IF(I44=0,"",I44/H44) -> -1 | K44: 0
A45: Finance and administration | C45: 108585 | D45: 310000 | E45: 210000 | F45: 0 | G45: 182230.94 | H45: 186672 | I45: -4441.06 | J45: -0.02379071312 | K45: 210000
A46: Internal audit | I46: 0
A47: Community and public safety | C47: =SUM(C48:C52) -> 0 | D47: 0 | E47: 0 | F47: 0 | G47: 0 | H47: 0 | I47: 0 | K47: =SUM(K48:K52) -> 0
A48: Community and social services | I48: 0
A49: Sport and recreation | I49: 0
A50: Public safety | C50: 0 | D50: 0 | E50: 0 | F50: 0 | G50: 0 | H50: 0 | I50: 0 | K50: 0
A51: Housing | I51: 0
A52: Health | I52: 0
A53: Economic and environmental services | C53: =SUM(C54:C56) -> 75909335.46 | D53: 80475000 | E53: 139766966 | F53: 2360428.77 | G53: 41020208.36 | H53: 69204650.9 | I53: -28184442.54 | J53: -0.4072622602 | K53: =SUM(K54:K56) -> 139766966
A54: Planning and development | C54: 75909335.46 | D54: 80475000 | E54: 92666966 | F54: 2360428.77 | G54: 41020208.36 | H54: 59784650.9 | I54: -18764442.54 | J54: -0.3138672261 | K54: 92666966
A55: Road transport | C55: 0 | D55: 0 | E55: 47100000 | F55: 0 | G55: 0 | H55: 9420000 | I55: -9420000 | J55: -1 | K55: 47100000
A56: Environmental protection | I56: 0
A57: Trading services | C57: =SUM(C58:C61) -> 23891624.65 | D57: 5807000 | E57: 7351376 | F57: 98000 | G57: 638462.12 | H57: 4180227.2 | I57: -3541765.08 | J57: -0.8472661677 | K57: =SUM(K58:K61) -> 7351376
A58: Energy sources | C58: 23891624.65 | D58: 5607000 | E58: 7051376 | F58: 0 | G58: 540462.12 | H58: 4026891.2 | I58: -3486429.08 | J58: -0.8657867588 | K58: 7051376
A59: Water management | I59: 0
A60: Waste water management | I60: 0
A61: Waste management | C61: 0 | D61: 200000 | E61: 300000 | F61: 98000 | G61: 98000 | H61: 153336 | I61: -55336 | J61: -0.3608806803 | K61: 300000
A62: Other | I62: 0
A63: Total Capital Expenditure - Functional Classification | B63: 3 | C63: =C43+C47+C53+C57+C62 -> 99909545.11 | D63: =D43+D47+D53+D57+D62 -> 86892000 | E63: 147328342 | F63: 2458428.77 | G63: 41840901.42 | H63: 73711550.1 | I63: -31870648.68 | J63: -0.4323698069 | K63: =K43+K47+K53+K57+K62 -> 147328342
A65: Funded by:
A66: National Government | C66: 98867988.86 | D66: 85575000 | E66: 145531342 | F66: 2360428.77 | G66: 41390656.18 | H66: 72737534.1 | I66: =G66-H66 -> -31346877.92 | J66: =IF(I66=0,"",I66/H66) -> -0.4309587658 | K66: 145531342
A67: Provincial Government | I67: 0
A68: District Municipality | I68: 0
A69: Transfers and subsidies - capital (monetary allocations) (Nat / Prov Departm Agencies, Households, Non-profit Institutions, Private Enterprises, Public Corporatons, Higher Educ Institutions) | C69: 0 | D69: 0 | E69: 0 | F69: 0 | G69: 0 | H69: 0 | I69: 0 | K69: 0
A70: Transfers recognised - capital | C70: =SUM(C66:C69) -> 98867988.86 | D70: 85575000 | E70: 145531342 | F70: 2360428.77 | G70: 41390656.18 | H70: 72737534.1 | I70: -31346877.92 | J70: -0.4309587658 | K70: =SUM(K66:K69) -> 145531342
A72: Borrowing | B72: 6 | C72: 0 | D72: 0 | E72: 0 | F72: 0 | G72: 0 | H72: 0 | I72: 0 | K72: 0
A73: Internally generated funds | C73: 1041556.25 | D73: 1317000 | E73: 1797000 | F73: 98000 | G73: 450245.24 | H73: 974016 | I73: -523770.76 | J73: -0.5377434868 | K73: 1797000
A74: Total Capital Funding | C74: =+C70+C72+C73 -> 99909545.11 | D74: 86892000 | E74: 147328342 | F74: 2458428.77 | G74: 41840901.42 | H74: 73711550.1 | I74: -31870648.68 | J74: -0.4323698069 | K74: =+K70+K72+K73 -> 147328342
A75: =head27a -> References
A76: 1. Municipalities may choose to appropriate for capital expenditure for three years or for one year (if one year appropriation projected expenditure required for yr2 and yr3).
A77: 2. Include capital component of PPP unitary payment
A78: 3. Capital expenditure by functional classification must reconcile to the total of multi-year and single year appropriations
A79: 4. Include expenditure on investment property, intangible and biological assets
A81: 6. Include finance leases and PPP capital funding component of unitary payment - total borrowing/repayments to reconcile to changes in Table SA17
A82: 7. Total Capital Funding must balance with Total Capital Expenditure
A86: check balance | C86: =C40-C74 -> 0 | D86: =D40-D74 -> 0 | E86: 0 | F86: 0 | G86: 0 | H86: 0 | K86: 0

Sheet C5C
A1: =muni& " - "&S71D& " - "&"A"& " - "&date -> LIM351 Blouberg - Table C5 Monthly Budget Statement - Capital Expenditure (municipal vote, functional classification and funding) - A - M08 February
A2: =Vdesc -> Vote Description | B2: =head27 -> Ref | C2: =Head1 -> 2022/23 | D2: =Head2 -> Budget Year 2023/24 | L2: =Head4 -> 
A3: R thousand | C3: =Head5 -> Audited Outcome | D3: =Head6 -> Original Budget | E3: =Head7 -> Adjusted Budget | F3: =Head38 -> Monthly actual | G3: =Head39 -> YearTD actual | H3: =Head40 -> YearTD budget | I3: =Head41 -> YTD variance | J3: =Head41 -> YTD variance | K3: =Head8 -> Full Year Forecast | L3: =Head12 -> Forecast 2010/11 | M3: =Head13 -> Forecast 2011/12 | N3: =Head14 -> Forecast 2012/13 | O3: =Head15 -> Forecast 2013/14 | P3: =Head16 -> Forecast 2014/15 | Q3: =Head17 -> Forecast 2015/16 | R3: =Head18 -> Forecast 2016/17 | S3: =Head19 -> Forecast 2017/18 | T3: =Head20 -> Forecast 2018/19 | U3: =Head21 -> Forecast 2019/20 | V3: =Head22 -> Forecast 2020/21 | W3: =Head23 -> Forecast 2021/22
J4: %
A5: Capital expenditure - Municipal Vote
A6: Expenditure of multi-year capital appropriation | B6: 1
A7: ='Org structure'!A2 -> Vote 01 - Executive & Council | C7: =SUM(C8:C8) -> 0 | D7: =SUM(D8:D8) -> 0 | E7: =SUM(E8:E8) -> 0 | F7: =SUM(F8:F8) -> 0 | G7: =SUM(G8:G8) -> 0 | H7: =SUM(H8:H8) -> 0 | I7: =G7-H7 -> 0 | J7: =IF(I7=0,"",I7/H7) ->  | K7: =SUM(K8:K8) -> 0
A8: ='Org structure'!E3 -> 01.1 - Council General | I8: =G8-H8 -> 0 | J8: =IF(I8=0,"",I8/H8) ->  | K8: 0
A9: ='Org structure'!A3 -> Vote 02 - Finance And Administration | C9: =SUM(C10:C10) -> 0 | D9: =SUM(D10:D10) -> 0 | E9: =SUM(E10:E10) -> 0 | F9: =SUM(F10:F10) -> 0 | G9: =SUM(G10:G10) -> 0 | H9: =SUM(H10:H10) -> 0 | I9: 0 | K9: =SUM(K10:K10) -> 0
A10: ='Org structure'!E5 -> 02.1 - Municipal Manager | I10: =G10-H10 -> 0 | J10: =IF(I10=0,"",I10/H10) ->  | K10: 0
A11: ='Org structure'!A4 -> Vote 03 - Community Service | C11: =SUM(C12:C12) -> 0 | D11: =SUM(D12:D12) -> 0 | E11: =SUM(E12:E12) -> 0 | F11: =SUM(F12:F12) -> 0 | G11: =SUM(G12:G12) -> 0 | H11: =SUM(H12:H12) -> 0 | I11: 0 | K11: =SUM(K12:K12) -> 0
A12: ='Org structure'!E7 -> 03.1 - Finance Services Administration | I12: =G12-H12 -> 0 | J12: =IF(I12=0,"",I12/H12) ->  | K12: 0
A13: ='Org structure'!A5 -> Vote 04 - Public And Safety | C13: =SUM(C14:C14) -> 0 | D13: =SUM(D14:D14) -> 0 | E13: =SUM(E14:E14) -> 0 | F13: =SUM(F14:F14) -> 0 | G13: =SUM(G14:G14) -> 0 | H13: =SUM(H14:H14) -> 0 | I13: 0 | K13: =SUM(K14:K14) -> 0
A14: ='Org structure'!E9 -> 04.1 - Corporate Services Administration | I14: =G14-H14 -> 0 | J14: =IF(I14=0,"",I14/H14) ->  | K14: 0
A15: ='Org structure'!A6 -> Vote 05 - Waste Management | C15: =SUM(C16:C22) -> 0 | D15: =SUM(D16:D22) -> 0 | E15: =SUM(E16:E22) -> 0 | F15: =SUM(F16:F22) -> 0 | G15: =SUM(G16:G22) -> 0 | H15: =SUM(H16:H22) -> 0 | I15: 0 | K15: =SUM(K16:K22) -> 0
A16: ='Org structure'!E11 -> 05.1 - Technical Services Administration | I16: =G16-H16 -> 0 | J16: =IF(I16=0,"",I16/H16) ->  | K16: 0
A17: ='Org structure'!E12 -> 05.2 - Electrical Services | I17: =G17-H17 -> 0 | J17: =IF(I17=0,"",I17/H17) ->  | K17: 0
A18: ='Org structure'!E13 -> 05.3 - Water Services | I18: =G18-H18 -> 0 | J18: =IF(I18=0,"",I18/H18) ->  | K18: 0
A19: ='Org structure'!E14 -> 05.4 - Sanitation Services | I19: =G19-H19 -> 0 | J19: =IF(I19=0,"",I19/H19) ->  | K19: 0
A20: ='Org structure'!E15 -> 05.5 - Roads Services | I20: =G20-H20 -> 0 | J20: =IF(I20=0,"",I20/H20) ->  | K20: 0
A21: ='Org structure'!E16 -> 05.6 - Storm Water Services | I21: =G21-H21 -> 0 | J21: =IF(I21=0,"",I21/H21) ->  | K21: 0
A22: ='Org structure'!E17 -> 05.7 - Water Reporting Function | I22: =G22-H22 -> 0 | J22: =IF(I22=0,"",I22/H22) ->  | K22: 0
A23: ='Org structure'!A7 -> Vote 06 - Roads Services | C23: =SUM(C24:C37) -> 0 | D23: =SUM(D24:D37) -> 0 | E23: =SUM(E24:E37) -> 0 | F23: =SUM(F24:F37) -> 0 | G23: =SUM(G24:G37) -> 0 | H23: =SUM(H24:H37) -> 0 | I23: 0 | K23: =SUM(K24:K37) -> 0
A24: ='Org structure'!E19 -> 06.1 - Community Services Administration | I24: =G24-H24 -> 0 | J24: =IF(I24=0,"",I24/H24) ->  | K24: 0
A25: ='Org structure'!E20 -> 06.2 - Traffic Services | I25: =G25-H25 -> 0 | J25: =IF(I25=0,"",I25/H25) ->  | K25: 0
A26: ='Org structure'!E21 -> 06.3 - Traffic Services | I26: =G26-H26 -> 0 | J26: =IF(I26=0,"",I26/H26) ->  | K26: 0
A27: ='Org structure'!E22 -> 06.4 - Libraries | I27: =G27-H27 -> 0 | J27: =IF(I27=0,"",I27/H27) ->  | K27: 0
A28: ='Org structure'!E23 -> 06.5 - Sport | I28: =G28-H28 -> 0 | J28: =IF(I28=0,"",I28/H28) ->  | K28: 0
A29: ='Org structure'!E24 -> 06.6 - Cemetery | I29: =G29-H29 -> 0 | J29: =IF(I29=0,"",I29/H29) ->  | K29: 0
A30: ='Org structure'!E25 -> 06.7 - Refuse | I30: =G30-H30 -> 0 | J30: =IF(I30=0,"",I30/H30) ->  | K30: 0
A31: ='Org structure'!E26 -> 06.8 - Pound Services | I31: =G31-H31 -> 0 | J31: =IF(I31=0,"",I31/H31) ->  | K31: 0
A32: ='Org structure'!E27 -> 06.9 - Pound Services | I32: =G32-H32 -> 0 | J32: =IF(I32=0,"",I32/H32) ->  | K32: 0
A33: ='Org structure'!E28 -> 06.10 - Satellite Offices | I33: =G33-H33 -> 0 | J33: =IF(I33=0,"",I33/H33) ->  | K33: 0
A34: ='Org structure'!E29 -> 06.11 - Alldays Offices | I34: =G34-H34 -> 0 | J34: =IF(I34=0,"",I34/H34) ->  | K34: 0
A35: ='Org structure'!E30 -> 06.12 - Eldorado Offices | I35: =G35-H35 -> 0 | J35: =IF(I35=0,"",I35/H35) ->  | K35: 0
A36: ='Org structure'!E31 -> 06.13 - Tolwe Offices | I36: =G36-H36 -> 0 | J36: =IF(I36=0,"",I36/H36) ->  | K36: 0
A37: ='Org structure'!E32 -> 06.14 - Senwabarwarna Offices | I37: =G37-H37 -> 0 | J37: =IF(I37=0,"",I37/H37) ->  | K37: 0
A38: ='Org structure'!A8 -> Vote 07 - Econominc Development And Planning | C38: =SUM(C39:C40) -> 0 | D38: =SUM(D39:D40) -> 0 | E38: =SUM(E39:E40) -> 0 | F38: =SUM(F39:F40) -> 0 | G38: =SUM(G39:G40) -> 0 | H38: =SUM(H39:H40) -> 0 | I38: =G38-H38 -> 0 | J38: =IF(I38=0,"",I38/H38) ->  | K38: =SUM(K39:K40) -> 0
A39: ='Org structure'!E34 -> 07.1 - Project Management Unit | I39: =G39-H39 -> 0 | J39: =IF(I39=0,"",I39/H39) ->  | K39: 0
A40: ='Org structure'!E35 -> 07.2 - Economic Development And Planning | I40: =G40-H40 -> 0 | J40: =IF(I40=0,"",I40/H40) ->  | K40: 0
A41: ='Org structure'!A9 -> Vote 08 - | C41: 0 | D41: 0 | E41: 0 | F41: 0 | G41: 0 | H41: 0 | I41: 0 | K41: 0
A42: ='Org structure'!A10 -> Vote 09 - | C42: 0 | D42: 0 | E42: 0 | F42: 0 | G42: 0 | H42: 0 | I42: 0 | K42: 0
A43: ='Org structure'!A11 -> Vote 10 - | C43: 0 | D43: 0 | E43: 0 | F43: 0 | G43: 0 | H43: 0 | I43: 0 | K43: 0
A44: ='Org structure'!A12 -> Vote 11 - | C44: 0 | D44: 0 | E44: 0 | F44: 0 | G44: 0 | H44: 0 | I44: 0 | K44: 0
A45: ='Org structure'!A13 -> Vote 12 - | C45: 0 | D45: 0 | E45: 0 | F45: 0 | G45: 0 | H45: 0 | I45: 0 | K45: 0
A46: ='Org structure'!A14 -> Vote 13 - | C46: 0 | D46: 0 | E46: 0 | F46: 0 | G46: 0 | H46: 0 | I46: =G46-H46 -> 0 | J46: =IF(I46=0,"",I46/H46) ->  | K46: 0
A47: ='Org structure'!A15 -> Vote 14 - | C47: 0 | D47: 0 | E47: 0 | F47: 0 | G47: 0 | H47: 0 | I47: 0 | K47: 0
A48: ='Org structure'!A16 -> Vote 15 - Other | C48: 0 | D48: 0 | E48: 0 | F48: 0 | G48: 0 | H48: 0 | I48: 0 | K48: 0
A49: Total multi-year capital expenditure | C49: =C7+C9+C11+C13+C15+C23+C38+C41+C42+C43+C44+C45+C46+C47+C48 -> 0 | D49: =D7+D9+D11+D13+D15+D23+D38+D41+D42+D43+D44+D45+D46+D47+D48 -> 0 | E49: =E7+E9+E11+E13+E15+E23+E38+E41+E42+E43+E44+E45+E46+E47+E48 -> 0 | F49: =F7+F9+F11+F13+F15+F23+F38+F41+F42+F43+F44+F45+F46+F47+F48 -> 0 | G49: =G7+G9+G11+G13+G15+G23+G38+G41+G42+G43+G44+G45+G46+G47+G48 -> 0 | H49: =H7+H9+H11+H13+H15+H23+H38+H41+H42+H43+H44+H45+H46+H47+H48 -> 0 | I49: 0 | K49: =K7+K9+K11+K13+K15+K23+K38+K41+K42+K43+K44+K45+K46+K47+K48 -> 0
I50: 0
A51: Capital expenditure - Municipal Vote
A52: Expenditue of single-year capital appropriation | B52: 1 | I52: 0
A53: ='Org structure'!A2 -> Vote 01 - Executive & Council | C53: =SUM(C54:C54) -> 0 | D53: =SUM(D54:D54) -> 0 | E53: =SUM(E54:E54) -> 0 | F53: =SUM(F54:F54) -> 0 | G53: =SUM(G54:G54) -> 0 | H53: =SUM(H54:H54) -> 0 | I53: 0 | K53: =SUM(K54:K54) -> 0
A54: ='Org structure'!E3 -> 01.1 - Council General | C54: 0 | D54: 0 | E54: 0 | F54: 0 | G54: 0 | H54: 0 | I54: 0 | K54: 0
A55: ='Org structure'!A3 -> Vote 02 - Finance And Administration | C55: =SUM(C56:C56) -> 0 | D55: =SUM(D56:D56) -> 300000 | E55: =SUM(E56:E56) -> 0 | F55: =SUM(F56:F56) -> 0 | G55: =SUM(G56:G56) -> 0 | H55: =SUM(H56:H56) -> 140000 | I55: -140000 | J55: -1 | K55: =SUM(K56:K56) -> 0
A56: ='Org structure'!E5 -> 02.1 - Municipal Manager | C56: 0 | D56: 300000 | E56: 0 | F56: 0 | G56: 0 | H56: 140000 | I56: -140000 | J56: -1 | K56: 0
A57: ='Org structure'!A4 -> Vote 03 - Community Service | C57: =SUM(C58:C58) -> 0 | D57: =SUM(D58:D58) -> 0 | E57: =SUM(E58:E58) -> 0 | F57: =SUM(F58:F58) -> 0 | G57: =SUM(G58:G58) -> 0 | H57: =SUM(H58:H58) -> 0 | I57: 0 | K57: =SUM(K58:K58) -> 0
A58: ='Org structure'!E7 -> 03.1 - Finance Services Administration | C58: 0 | D58: 0 | E58: 0 | F58: 0 | G58: 0 | H58: 0 | I58: 0 | K58: 0
A59: ='Org structure'!A5 -> Vote 04 - Public And Safety | C59: =SUM(C60:C60) -> 108585 | D59: =SUM(D60:D60) -> 310000 | E59: =SUM(E60:E60) -> 210000 | F59: =SUM(F60:F60) -> 0 | G59: =SUM(G60:G60) -> 182230.94 | H59: =SUM(H60:H60) -> 186672 | I59: =G59-H59 -> -4441.06 | J59: =IF(I59=0,"",I59/H59) -> -0.02379071312 | K59: =SUM(K60:K60) -> 210000
A60: ='Org structure'!E9 -> 04.1 - Corporate Services Administration | C60: 108585 | D60: 310000 | E60: 210000 | F60: 0 | G60: 182230.94 | H60: 186672 | I60: -4441.06 | J60: -0.02379071312 | K60: 210000
A61: ='Org structure'!A6 -> Vote 05 - Waste Management | C61: =SUM(C62:C68) -> 23891624.65 | D61: =SUM(D62:D68) -> 5607000 | E61: =SUM(E62:E68) -> 54151376 | F61: =SUM(F62:F68) -> 0 | G61: =SUM(G62:G68) -> 540462.12 | H61: =SUM(H62:H68) -> 13446891.2 | I61: -12906429.08 | J61: -0.9598076528 | K61: =SUM(K62:K68) -> 54151376
A62: ='Org structure'!E11 -> 05.1 - Technical Services Administration | C62: 0 | D62: 0 | E62: 0 | F62: 0 | G62: 0 | H62: 0 | I62: 0 | K62: 0
A63: ='Org structure'!E12 -> 05.2 - Electrical Services | C63: 23891624.65 | D63: 5607000 | E63: 7051376 | F63: 0 | G63: 540462.12 | H63: 4026891.2 | I63: -3486429.08 | J63: -0.8657867588 | K63: 7051376
A64: ='Org structure'!E13 -> 05.3 - Water Services | C64: 0 | D64: 0 | E64: 0 | F64: 0 | G64: 0 | H64: 0 | I64: 0 | K64: 0
A65: ='Org structure'!E14 -> 05.4 - Sanitation Services | C65: 0 | D65: 0 | E65: 0 | F65: 0 | G65: 0 | H65: 0 | I65: 0 | K65: 0
A66: ='Org structure'!E15 -> 05.5 - Roads Services | C66: 0 | D66: 0 | E66: 47100000 | F66: 0 | G66: 0 | H66: 9420000 | I66: -9420000 | J66: -1 | K66: 47100000
A67: ='Org structure'!E16 -> 05.6 - Storm Water Services | C67: 0 | D67: 0 | E67: 0 | F67: 0 | G67: 0 | H67: 0 | I67: 0 | K67: 0
A68: ='Org structure'!E17 -> 05.7 - Water Reporting Function | C68: 0 | D68: 0 | E68: 0 | F68: 0 | G68: 0 | H68: 0 | I68: 0 | K68: 0
A69: ='Org structure'!A7 -> Vote 06 - Roads Services | C69: =SUM(C70:C83) -> 0 | D69: =SUM(D70:D83) -> 200000 | E69: =SUM(E70:E83) -> 300000 | F69: =SUM(F70:F83) -> 98000 | G69: =SUM(G70:G83) -> 98000 | H69: =SUM(H70:H83) -> 153336 | I69: -55336 | J69: -0.3608806803 | K69: =SUM(K70:K83) -> 300000
A70: ='Org structure'!E19 -> 06.1 - Community Services Administration | C70: 0 | D70: 200000 | E70: 300000 | F70: 98000 | G70: 98000 | H70: 153336 | I70: -55336 | J70: -0.3608806803 | K70: 300000
A71: ='Org structure'!E20 -> 06.2 - Traffic Services | C71: 0 | D71: 0 | E71: 0 | F71: 0 | G71: 0 | H71: 0 | I71: 0 | K71: 0
A72: ='Org structure'!E21 -> 06.3 - Traffic Services | C72: 0 | D72: 0 | E72: 0 | F72: 0 | G72: 0 | H72: 0 | I72: 0 | K72: 0
A73: ='Org structure'!E22 -> 06.4 - Libraries | C73: 0 | D73: 0 | E73: 0 | F73: 0 | G73: 0 | H73: 0 | I73: 0 | K73: 0
A74: ='Org structure'!E23 -> 06.5 - Sport | C74: 0 | D74: 0 | E74: 0 | F74: 0 | G74: 0 | H74: 0 | I74: 0 | K74: 0
A75: ='Org structure'!E24 -> 06.6 - Cemetery | C75: 0 | D75: 0 | E75: 0 | F75: 0 | G75: 0 | H75: 0 | I75: 0 | K75: 0
A76: ='Org structure'!E25 -> 06.7 - Refuse | C76: 0 | D76: 0 | E76: 0 | F76: 0 | G76: 0 | H76: 0 | I76: 0 | K76: 0
A77: ='Org structure'!E26 -> 06.8 - Pound Services | C77: 0 | D77: 0 | E77: 0 | F77: 0 | G77: 0 | H77: 0 | I77: 0 | K77: 0
A78: ='Org structure'!E27 -> 06.9 - Pound Services | C78: 0 | D78: 0 | E78: 0 | F78: 0 | G78: 0 | H78: 0 | I78: 0 | K78: 0
A79: ='Org structure'!E28 -> 06.10 - Satellite Offices | C79: 0 | D79: 0 | E79: 0 | F79: 0 | G79: 0 | H79: 0 | K79: 0
A80: ='Org structure'!E29 -> 06.11 - Alldays Offices | C80: 0 | D80: 0 | E80: 0 | F80: 0 | G80: 0 | H80: 0 | K80: 0
A81: ='Org structure'!E30 -> 06.12 - Eldorado Offices | C81: 0 | D81: 0 | E81: 0 | F81: 0 | G81: 0 | H81: 0 | K81: 0
A82: ='Org structure'!E31 -> 06.13 - Tolwe Offices | C82: 0 | D82: 0 | E82: 0 | F82: 0 | G82: 0 | H82: 0 | K82: 0
A83: ='Org structure'!E32 -> 06.14 - Senwabarwarna Offices | C83: 0 | D83: 0 | E83: 0 | F83: 0 | G83: 0 | H83: 0 | K83: 0
A84: ='Org structure'!A8 -> Vote 07 - Econominc Development And Planning | C84: =SUM(C85:C86) -> 75909335.46 | D84: =SUM(D85:D86) -> 80475000 | E84: =SUM(E85:E86) -> 92666966 | F84: =SUM(F85:F86) -> 2360428.77 | G84: =SUM(G85:G86) -> 41020208.36 | H84: =SUM(H85:H86) -> 59784650.9 | I84: -18764442.54 | J84: -0.3138672261 | K84: =SUM(K85:K86) -> 92666966
A85: ='Org structure'!E34 -> 07.1 - Project Management Unit | C85: 75711335.46 | D85: 80375000 | E85: 92666966 | F85: 2360428.77 | G85: 41020208.36 | H85: 59737978.9 | I85: -18717770.54 | J85: -0.3133311653 | K85: 92666966
A86: ='Org structure'!E35 -> 07.2 - Economic Development And Planning | C86: 198000 | D86: 100000 | E86: 0 | F86: 0 | G86: 0 | H86: 46672 | I86: -46672 | J86: -1 | K86: 0
A87: ='Org structure'!A9 -> Vote 08 - | C87: 0 | D87: 0 | E87: 0 | F87: 0 | G87: 0 | H87: 0 | I87: 0 | K87: 0
A88: ='Org structure'!A10 -> Vote 09 - | C88: 0 | D88: 0 | E88: 0 | F88: 0 | G88: 0 | H88: 0 | I88: =G88-H88 -> 0 | J88: =IF(I88=0,"",I88/H88) ->  | K88: 0
A89: ='Org structure'!A11 -> Vote 10 - | C89: 0 | D89: 0 | E89: 0 | F89: 0 | G89: 0 | H89: 0 | I89: 0 | K89: 0
A90: ='Org structure'!A12 -> Vote 11 - | C90: 0 | D90: 0 | E90: 0 | F90: 0 | G90: 0 | H90: 0 | I90: 0 | K90: 0
A91: ='Org structure'!A13 -> Vote 12 - | C91: 0 | D91: 0 | E91: 0 | F91: 0 | G91: 0 | H91: 0 | I91: 0 | K91: 0
A92: ='Org structure'!A14 -> Vote 13 - | C92: 0 | D92: 0 | E92: 0 | F92: 0 | G92: 0 | H92: 0 | I92: 0 | K92: 0
A93: ='Org structure'!A15 -> Vote 14 - | C93: 0 | D93: 0 | E93: 0 | F93: 0 | G93: 0 | H93: 0 | I93: 0 | K93: 0
A94: ='Org structure'!A16 -> Vote 15 - Other | C94: 0 | D94: 0 | E94: 0 | F94: 0 | G94: 0 | H94: 0 | I94: =G94-H94 -> 0 | J94: =IF(I94=0,"",I94/H94) ->  | K94: 0
A95: Total single-year capital expenditure | C95: =C53+C55+C57+C59+C61+C69+C84+C87+C88+C89+C90+C91+C92+C93+C94 -> 99909545.11 | D95: =D53+D55+D57+D59+D61+D69+D84+D87+D88+D89+D90+D91+D92+D93+D94 -> 86892000 | E95: =E53+E55+E57+E59+E61+E69+E84+E87+E88+E89+E90+E91+E92+E93+E94 -> 147328342 | F95: =F53+F55+F57+F59+F61+F69+F84+F87+F88+F89+F90+F91+F92+F93+F94 -> 2458428.77 | G95: =G53+G55+G57+G59+G61+G69+G84+G87+G88+G89+G90+G91+G92+G93+G94 -> 41840901.42 | H95: =H53+H55+H57+H59+H61+H69+H84+H87+H88+H89+H90+H91+H92+H93+H94 -> 73711550.1 | I95: -31870648.68 | J95: -0.4323698069 | K95: =K53+K55+K57+K59+K61+K69+K84+K87+K88+K89+K90+K91+K92+K93+K94 -> 147328342
A96: Total Capital Expenditure | C96: =C49+C95 -> 99909545.11 | D96: =D49+D95 -> 86892000 | E96: =E49+E95 -> 147328342 | F96: =F49+F95 -> 2458428.77 | G96: =G49+G95 -> 41840901.42 | H96: =H49+H95 -> 73711550.1 | I96: -31870648.68 | J96: -0.4323698069 | K96: =K49+K95 -> 147328342
A97: =head27a -> References
A98: 1. Insert 'Vote'; e.g. Department, if different to standard structure

Sheet C6-FinPos
A1: =muni& " - "&S71E& " - "&date -> LIM351 Blouberg - Table C6 Monthly Budget Statement - Financial Position - M08 February
A2: =desc -> Description | B2: =head27 -> Ref | C2: =Head1 -> 2022/23 | D2: =Head2 -> Budget Year 2023/24
C3: =Head5 -> Audited Outcome | D3: =Head6 -> Original Budget | E3: =Head7 -> Adjusted Budget | F3: =Head39 -> YearTD actual | G3: =Head8 -> Full Year Forecast
A4: R thousands | B4: 1
A5: ASSETS
A6: Current assets
A7: Cash and cash equivalents | C7: 101842673.1 | D7: 92096784 | E7: 113579931 | F7: 128277110.2 | G7: 113579931
A8: Trade and other receivables from exchange transactions | C8: 13045535.07 | D8: 21870570 | E8: 22370570 | F8: 23815490.49 | G8: 22370570
A9: Receivables from non-exchange transactions | C9: 18188266.01 | D9: 941847183 | E9: 44387386 | F9: 69956517.91 | G9: 44387386
A10: Current portion of non-current receivables
A11: Inventory | C11: 2897360.44 | D11: 5900710 | E11: 5661499 | F11: 4539213.17 | G11: 5661499
A12: VAT | C12: 21794962.25 | D12: 16361432 | E12: 21691201 | F12: 26983139.39 | G12: 21691201
A13: Other current assets | C13: -938056 | D13: 0 | E13: 0 | F13: -938056 | G13: 0
A14: Total current assets | C14: =SUM(C7:C13) -> 156830740.9 | D14: =SUM(D7:D13) -> 1078076679 | E14: =SUM(E7:E13) -> 207690587 | F14: =SUM(F7:F13) -> 252633415.1 | G14: =SUM(G7:G13) -> 207690587
A15: Non current assets
A16: Investments | C16: 4864603.53 | D16: 0 | E16: 9053553 | F16: 10967452.84 | G16: 9053553
A17: Investment property | C17: 9433600.01 | D17: 8950501 | E17: 9516517 | F17: 9433600.01 | G17: 9516517
A18: Property, plant and equipment | C18: 1065221605 | D18: 150697248 | E18: 1126926887 | F18: 1107062507 | G18: 1126926887
A19: Biological assets
A20: Living and non-living resources
A21: Heritage assets | C21: 0 | D21: 0 | E21: 0 | F21: 0 | G21: 0
A22: Intangible assets | C22: 174803.45 | D22: 0 | E22: 185291 | F22: 174803.45 | G22: 185291
A23: Trade and other receivables from exchange transactions
A24: Non-current receivables from non-exchange transactions
A25: Other non-current assets
A26: Total non current assets | C26: =SUM(C16:C25) -> 1079694612 | D26: =SUM(D16:D25) -> 159647749 | E26: =SUM(E16:E25) -> 1145682248 | F26: =SUM(F16:F25) -> 1127638363 | G26: =SUM(G16:G25) -> 1145682248
A27: TOTAL ASSETS | C27: =C14+C26 -> 1236525353 | D27: =D14+D26 -> 1237724428 | E27: =E14+E26 -> 1353372835 | F27: =F14+F26 -> 1380271778 | G27: =G14+G26 -> 1353372835
A28: LIABILITIES
A29: Current liabilities
A30: Bank overdraft | C30: 0 | D30: 0 | E30: 0 | F30: 0 | G30: 0
A31: Financial liabilities | C31: 0 | D31: 0 | E31: 0 | F31: 0 | G31: 0
A32: Consumer deposits | C32: -7959.44 | D32: 0 | E32: 0 | F32: -7959.44 | G32: 0
A33: Trade and other payables from exchange transactions | C33: 72020176.35 | D33: 37171349 | E33: 43400697 | F33: 56307391.26 | G33: 43400697
A34: Trade and other payables from non-exchange transactions | C34: 20158138.51 | D34: 10000000 | E34: 5335394 | F34: 69007424.52 | G34: 5335394
A35: Provision | C35: 0 | D35: 0 | E35: 0 | F35: 2346109.89 | G35: 0
A36: VAT | C36: 21406358.34 | D36: 5000000 | E36: 22178753 | F36: 25784415.66 | G36: 22178753
A37: Other current liabilities | C37: 0 | D37: 0 | E37: 0 | F37: 0 | G37: 0
A38: Total current liabilities | C38: =SUM(C30:C37) -> 113576713.8 | D38: =SUM(D30:D37) -> 52171349 | E38: =SUM(E30:E37) -> 70914844 | F38: =SUM(F30:F37) -> 153437381.9 | G38: =SUM(G30:G37) -> 70914844
A39: Non current liabilities
A40: Financial liabilities | C40: 14187045.3 | D40: 774315 | E40: 14961361 | F40: 14187045.3 | G40: 14961361
A41: Provision | C41: 24246164.68 | D41: 18037377 | E41: 24646164 | F41: 24246164.68 | G41: 24646164
A42: Long term portion of trade payables | C42: 0 | D42: 0 | E42: 0 | F42: 0 | G42: 0
A43: Other non-current liabilities | C43: 0 | D43: 0 | E43: 0 | F43: 0 | G43: 0
A44: Total non current liabilities | C44: =SUM(C40:C43) -> 38433209.98 | D44: =SUM(D40:D43) -> 18811692 | E44: =SUM(E40:E43) -> 39607525 | F44: =SUM(F40:F43) -> 38433209.98 | G44: =SUM(G40:G43) -> 39607525
A45: TOTAL LIABILITIES | C45: =C38+C44 -> 152009923.7 | D45: =D38+D44 -> 70983041 | E45: =E38+E44 -> 110522369 | F45: =F38+F44 -> 191870591.9 | G45: =G38+G44 -> 110522369
A46: NET ASSETS | B46: 2 | C46: =C27-C45 -> 1084515429 | D46: =D27-D45 -> 1166741387 | E46: =E27-E45 -> 1242850466 | F46: =F27-F45 -> 1188401186 | G46: =G27-G45 -> 1242850466
A47: COMMUNITY WEALTH/EQUITY
A48: Accumulated surplus/(deficit) | C48: 1112013242 | D48: 1123713235 | E48: 1199822314 | F48: 1182195206 | G48: 1199822314
A49: Reserves and funds | C49: 0 | D49: 0 | E49: 0 | F49: 0 | G49: 0
A50: Other | C50: 0 | D50: 0 | E50: 0 | F50: 0 | G50: 0
A51: TOTAL COMMUNITY WEALTH/EQUITY | B51: 2 | C51: =SUM(C48:C50) -> 1112013242 | D51: =SUM(D48:D50) -> 1123713235 | E51: =SUM(E48:E50) -> 1199822314 | F51: =SUM(F48:F50) -> 1182195206 | G51: =SUM(G48:G50) -> 1199822314
A52: =head27a -> References
A53: 1. Material variances to be explained in Table SC1
A54: 2. Net assets must balance with Total Community Wealth/Equity
A57: check balance | C57: =C46-C51 -> -27497812.2 | D57: =D46-D51 -> 43028152 | E57: =E46-E51 -> 43028152 | F57: =F46-F51 -> 6205980.36 | G57: =G46-G51 -> 43028152

Sheet C7-CFlow
A1: =muni& " - "&S71F& " - "&date -> LIM351 Blouberg - Table C7 Monthly Budget Statement - Cash Flow - M08 February
A2: =desc -> Description | B2: =head27 -> Ref | C2: =Head1 -> 2022/23 | D2: =Head2 -> Budget Year 2023/24
C3: =Head5 -> Audited Outcome | D3: =Head6 -> Original Budget | E3: =Head7 -> Adjusted Budget | F3: =Head38 -> Monthly actual | G3: =Head39 -> YearTD actual | H3: =Head40 -> YearTD budget | I3: =Head41 -> YTD variance | J3: =Head41 -> YTD variance | K3: =Head8 -> Full Year Forecast
A4: R thousands | B4: 1 | J4: %
A5: CASH FLOW FROM OPERATING ACTIVITIES
A6: Receipts
A7: Property rates | C7: 34034099.25 | D7: 31323787 | E7: 31323787 | F7: 8437767.48 | G7: 11461904.4 | H7: 20882524.64 | I7: =G7-H7 -> -9420620.24 | J7: =IF(I7=0,"",I7/H7) -> -0.4511245839 | K7: 31323787
A8: Service charges | C8: 27238015.44 | D8: 60046503 | E8: 49446503 | F8: 2622281.66 | G8: 18105958.24 | H8: 32964335.28 | I8: -14858377.04 | J8: =IF(I8=0,"",I8/H8) -> -0.4507409876 | K8: 49446503
A9: Other revenue | C9: 192707209.7 | D9: 16833998 | E9: 20964529 | F9: 1589227.11 | G9: 10727573.16 | H9: 13976352.64 | I9: -3248779.48 | J9: =IF(I9=0,"",I9/H9) -> -0.2324483049 | K9: 20964529
A10: Transfers and Subsidies - Operational | C10: 70482920.63 | D10: 237377000 | E10: 241377000 | F10: 354000 | G10: 178928778.1 | H10: 160918000 | I10: 18010778.1 | J10: =IF(I10=0,"",I10/H10) -> 0.1119251923 | K10: 241377000
A11: Transfers and Subsidies - Capital | C11: 104336000 | D11: 85575000 | E11: 144966965 | F11: 47100000 | G11: 94508000 | H11: 96644643.28 | I11: -2136643.28 | J11: =IF(I11=0,"",I11/H11) -> -0.02210824322 | K11: 144966965
A12: Interest | C12: 276960.99 | D12: 3206212 | E12: 6206212 | F12: 0 | G12: 2457380.82 | H12: 4137474.64 | I12: -1680093.82 | J12: -0.4060674605 | K12: 6206212
A13: Dividends | I13: 0
A14: Payments
A15: Suppliers and employees | C15: -561651213.9 | D15: -345634723 | E15: -348699878 | F15: -44752499.67 | G15: -386276927.2 | H15: -232466585.4 | I15: =H15-G15 -> 153810341.7 | J15: -0.6616449475 | K15: -348699878
A16: Interest | I16: =H16-G16 -> 0
A17: Transfers and Subsidies | I17: =H17-G17 -> 0
A18: NET CASH FROM/(USED) OPERATING ACTIVITIES | C18: =SUM(C7:C13)+SUM(C15:C17) -> -132576007.9 | D18: 88727777 | E18: 145585118 | F18: 15350776.58 | G18: -70087332.44 | H18: 97056745.04 | I18: =H18-G18 -> 167144077.5 | J18: 1.722127374 | K18: =SUM(K7:K13)+SUM(K15:K17) -> 145585118
A20: CASH FLOWS FROM INVESTING ACTIVITIES
A21: Receipts
A22: Proceeds on disposal of PPE | C22: 0 | D22: 0 | E22: 2000000 | F22: 0 | G22: 0 | H22: 1333333.36 | I22: =G22-H22 -> -1333333.36 | J22: =IF(I22=0,"",I22/H22) -> -1 | K22: 2000000
A24: Decrease (increase) in non-current receivables | I24: =G24-H24 -> 0
A25: Decrease (increase) in non-current investments | C25: 4864603.53 | D25: 0 | E25: 9053553 | F25: 0 | G25: 10967452.84 | H25: 1810710.6 | I25: =G25-H25 -> 9156742.24 | J25: 5.056988256 | K25: 9053553
A26: Payments
A27: Capital assets | C27: -99909545.11 | D27: -86892000 | E27: -147328342 | F27: -2458428.77 | G27: -41840901.42 | H27: -98218894.64 | I27: =H27-G27 -> -56377993.22 | J27: 0.57400354 | K27: -147328342
A28: NET CASH FROM/(USED) INVESTING ACTIVITIES | C28: =SUM(C22:C25)+C27 -> -95044941.58 | D28: =SUM(D22:D25)+D27 -> -86892000 | E28: -136274789 | F28: -2458428.77 | G28: -30873448.58 | H28: -95074850.68 | I28: =H28-G28 -> -64201402.1 | J28: 0.6752721844 | K28: =SUM(K22:K25)+K27 -> -136274789
A30: CASH FLOWS FROM FINANCING ACTIVITIES
A31: Receipts
A32: Short term loans | I32: =G32-H32 -> 0 | J32: =IF(I32=0,"",I32/H32) -> 
A33: Borrowing long term/refinancing | I33: =G33-H33 -> 0
A34: Increase (decrease) in consumer deposits | I34: =G34-H34 -> 0
A35: Payments
A36: Repayment of borrowing | I36: =H36-G36 -> 0
A37: NET CASH FROM/(USED) FINANCING ACTIVITIES | C37: =SUM(C32:C34)+C36 -> 0 | D37: 0 | E37: 0 | F37: 0 | G37: 0 | H37: 0 | I37: =H37-G37 -> 0 | K37: =SUM(K32:K34)+K36 -> 0
A39: NET INCREASE/ (DECREASE) IN CASH HELD | C39: =C18+C28+C37 -> -227620949.4 | D39: 1835777 | E39: 9310329 | F39: 12892347.81 | G39: -100960781 | H39: 1981894.36 | K39: =K18+K28+K37 -> 9310329
A40: Cash/cash equivalents at beginning: | C40: 84834550.5 | D40: 90261007 | E40: 102613235 | F40: -16875059.22 | G40: 101842673.1 | H40: =IF(E40=0, D40, E40) -> 102613235 | K40: =G40 -> 101842673.1
A41: Cash/cash equivalents at month/year end: | C41: =C39+C40 -> -142786398.9 | D41: =D39+D40 -> 92096784 | E41: =E39+E40 -> 111923564 | G41: =G39+G40 -> 881892.12 | H41: =H39+H40 -> 104595129.4 | K41: =K39+K40 -> 111153002.1
A42: References
A43: 1. Material variances to be explained in Table SC1

Sheet SC1
A1: =muni& " - "&S71G& " - "&date -> LIM351 Blouberg - Supporting Table SC1 Material variance explanations - M08 February
A2: =head27 -> Ref | B2: =desc -> Description
C3: Variance | D3: Reasons for material deviations | E3: Remedial or corrective steps/remarks
B4: R thousands
A5: 1 | B5: ='C4-FinPerf RE'!A5 -> Revenue
B6: Client elected Not to populate this sheet
A10: 2 | B10: ='C4-FinPerf RE'!A34 -> Expenditure By Type
B11: Client elected Not to populate this sheet
A15: 3 | B15: =RIGHT('C5-Capex'!A40,19) -> Capital Expenditure
B16: Client elected Not to populate this sheet
A20: 4 | B20: Financial Position
B21: Client elected Not to populate this sheet
A25: 5 | B25: Cash Flow
B26: Client elected Not to populate this sheet
A30: 6 | B30: Measureable performance
B31: Client elected Not to populate this sheet
A35: 7 | B35: Municipal Entities
B36: Client elected Not to populate this sheet
A41: =head27a -> References
A42: 1. Revenue for each source, vote and standard classification
A43: 2. Expenditure for each type, vote and standard classification
A44: 3. Capital expenditure for each vote and standard classification
A45: 4. Explain any material variances between the annual budget and the expected financial position based on current trends
A46: 5. Cash receipts by source and cash payments by type where not explained under revenue and expenditure
A47: 6. For Sept, Dec, Mar and Jun statements explain any material variances in achievement of measurable performance objectives

Sheet SC2
A1: =muni& " - "&S71H& " - "&Head57 -> LIM351 Blouberg - Supporting Table SC2 Monthly Budget Statement - performance indicators - M08 February
A2: Description of financial indicator | B2: Basis of calculation | C2: =head27 -> Ref | D2: =Head1 -> 2022/23 | E2: =Head2 -> Budget Year 2023/24
D3: =Head5 -> Audited Outcome | E3: =Head6 -> Original Budget | F3: =Head7 -> Adjusted Budget | G3: =Head39 -> YearTD actual | H3: =Head8 -> Full Year Forecast
A5: Borrowing Management
A7: Capital Charges to Operating Expenditure | B7: Interest & principal paid/Operating Expenditure | D7: =IF(ISERROR((D42-D43)/D45),0,((D42-D43)/D45)) -> 0 | E7: =IF(ISERROR((E42+E44)/E45),0,((E42+E44)/E45)) -> 0.09681468342 | F7: =IF(ISERROR((F42+F44)/F45),0,((F42+F44)/F45)) -> 0.09628775927 | G7: =IF(ISERROR((G42+G44)/G45),0,((G42+G44)/G45)) -> 0 | H7: =IF(ISERROR((H42+H44)/H45),0,((H42+H44)/H45)) -> 0.05304812962
A8: Borrowed funding of 'own' capital expenditure | B8: Borrowings/Capital expenditure excl. transfers and grants | D8: =IF(ISERROR(D47/D46),0,(D47/D46)) -> 0 | E8: =IF(ISERROR(E47/E46),0,(E47/E46)) -> 0 | F8: =IF(ISERROR(F47/F46),0,(F47/F46)) -> 0 | G8: =IF(ISERROR(G47/G46),0,(G47/G46)) -> 0 | H8: =IF(ISERROR(H47/H46),0,(H47/H46)) -> 0
A9: Safety of Capital
A10: Debt to Equity | B10: Loans, Accounts Payable, Overdraft & Tax Provision/ Funds & Reserves | D10: =IF(ISERROR(D48/D49),0,(D48/D49)) -> 0.0956511633 | E10: =IF(ISERROR(E48/E49),0,(E48/E49)) -> 0.04266717033 | F10: =IF(ISERROR(F48/F49),0,(F48/F49)) -> 0.05308907099 | G10: =IF(ISERROR(G48/G49),0,(G48/G49)) -> 0.1180023911 | H10: =IF(ISERROR(H48/H49),0,(H48/H49)) -> 0.05308907099
A11: Gearing | B11: Long Term Borrowing/ Funds & Reserves | D11: =IF(ISERROR(D51/D50),0,(D51/D50)) -> 0 | E11: =IF(ISERROR(E51/E50),0,(E51/E50)) -> 0 | F11: =IF(ISERROR(F51/F50),0,(F51/F50)) -> 0 | G11: =IF(ISERROR(G51/G50),0,(G51/G50)) -> 0 | H11: =IF(ISERROR(H51/H50),0,(H51/H50)) -> 0
A12: Liquidity
A13: Current Ratio | B13: Current assets/current liabilities | C13: 1 | D13: =IF(ISERROR(D52/D53),0,(D52/D53)) -> 1.380835347 | E13: =IF(ISERROR(E52/E53),0,(E52/E53)) -> 20.66415187 | F13: =IF(ISERROR(F52/F53),0,(F52/F53)) -> 2.928732199 | G13: =IF(ISERROR(G52/G53),0,(G52/G53)) -> 1.646491957 | H13: =IF(ISERROR(H52/H53),0,(H52/H53)) -> 2.928732199
A14: Liquidity Ratio | B14: Monetary Assets/Current Liabilities | D14: =IF(ISERROR(D54/D53),0,(D54/D53)) -> 0.8966862112 | E14: =IF(ISERROR(E54/E53),0,(E54/E53)) -> 1.765275113 | F14: =IF(ISERROR(F54/F53),0,(F54/F53)) -> 1.601638311 | G14: =IF(ISERROR(G54/G53),0,(G54/G53)) -> 0.8360225428 | H14: =IF(ISERROR(H54/H53),0,(H54/H53)) -> 1.601638311
A15: Revenue Management
A16: Annual Debtors Collection Rate (Payment Level %) | B16: Last 12 Mths Receipts/ Last 12 Mths Billing
A17: Outstanding Debtors to Revenue | B17: Total Outstanding Debtors to Annual Revenue | D17: =IF(ISERROR(D59/D55),0,(D59/D55)) -> 0.09475324778 | E17: =IF(ISERROR(E59/E55),0,(E59/E55)) -> 0 | F17: =IF(ISERROR(F59/F55),0,(F59/F55)) -> 0 | G17: =IF(ISERROR(G59/G55),0,(G59/G55)) -> 0 | H17: =IF(ISERROR(H59/H55),0,(H59/H55)) -> 0
A18: Longstanding Debtors Recovered | B18: Debtors > 12 Mths Recovered/Total Debtors > 12 Months Old | D18: =IF(ISERROR(D64/D63),0,(D64/D63)) -> 0 | E18: =IF(ISERROR(E64/E63),0,(E64/E63)) -> 0 | F18: =IF(ISERROR(F64/F63),0,(F64/F63)) -> 0 | G18: =IF(ISERROR(G64/G63),0,(G64/G63)) -> 0 | H18: =IF(ISERROR(H64/H63),0,(H64/H63)) -> 0
A19: Creditors Management
A20: Creditors System Efficiency | B20: % of Creditors Paid Within Terms (within MFMA s 65(e)) | D20: 0 | E20: 1 | F20: 1 | G20: 0 | H20: 1
A21: Funding of Provisions
A22: Percentage Of Provisions Not Funded | B22: Unfunded Provisions/Total Provisions
A23: Other Indicators
A24: Electricity Distribution Losses | B24: % Volume (units purchased and generated less units sold)/units purchased and generated | C24: 2 | D24: 0 | E24: 0.101 | F24: 0.101 | G24: 0 | H24: 0.101
A25: Water Distribution Losses | B25: % Volume (units purchased and own source less units sold)/Total units purchased and own source | C25: 2
A26: Employee costs | B26: Employee costs/Total Revenue - capital revenue | D26: =IF(ISERROR(D40/D55),0,(D40/D55)) -> 0.3879600444 | E26: =IF(ISERROR(E40/E55),0,(E40/E55)) -> 0.3852201632 | F26: =IF(ISERROR(F40/F55),0,(F40/F55)) -> 0.3820881141 | G26: =IF(ISERROR(G40/G55),0,(G40/G55)) -> 0.3056644671 | H26: =IF(ISERROR(H40/H55),0,(H40/H55)) -> 0.3820881141
A27: Repairs & Maintenance | B27: R&M/Total Revenue - capital revenue | D27: =IF(ISERROR(D41/D55),0,(D41/D55)) -> 0.03647703906 | E27: =IF(ISERROR(E41/E55),0,(E41/E55)) -> 0.04997408909 | F27: =IF(ISERROR(F41/F55),0,(F41/F55)) -> 0.06123686055 | G27: =IF(ISERROR(G41/G55),0,(G41/G55)) -> 0.04387827237 | H27: =IF(ISERROR(H41/H55),0,(H41/H55)) -> 0.06123686055
A28: Interest & Depreciation | B28: I&D/Total Revenue - capital revenue | D28: =IF(ISERROR((D42+D44)/D55),0,((D42+D44)/D55)) -> 0.09846413814 | E28: =IF(ISERROR((E42+E44)/E55),0,((E42+E44)/E55)) -> 0.1067108763 | F28: =IF(ISERROR((F42+F44)/F55),0,((F42+F44)/F55)) -> 0.1058432589 | G28: =IF(ISERROR((G42+G44)/G55),0,((G42+G44)/G55)) -> 0 | H28: =IF(ISERROR((H42+H44)/H55),0,((H42+H44)/H55)) -> 0.05831257223
A29: IDP regulation financial viability indicators
A30: i. Debt coverage | B30: (Total Operating Revenue - Operating Grants)/Debt service payments due within financial year)
A31: ii. O/S Service Debtors to Revenue | B31: Total outstanding service debtors/annual revenue received for services
A32: iii. Cost coverage | B32: (Available cash + Investments)/monthly fixed operational expenditure
A33: References
A34: 1. Consumer debtors > 12 months old are excluded from current assets.
A35: 2. Material variances to be explained.
A37: Calculations
A38: ='C6-FinPos'!A40 -> Financial liabilities | D38: ='C6-FinPos'!C40 -> 14187045.3 | E38: ='C6-FinPos'!D40 -> 774315 | F38: ='C6-FinPos'!E40 -> 14961361 | G38: ='C6-FinPos'!F40 -> 14187045.3 | H38: 0
A39: Total Assets | D39: ='C6-FinPos'!C27 -> 1236525353 | E39: ='C6-FinPos'!D27 -> 1237724428 | F39: ='C6-FinPos'!E27 -> 1353372835 | G39: ='C6-FinPos'!F27 -> 1380271778 | H39: ='C6-FinPos'!G27 -> 1353372835
A40: ='C4-FinPerf RE'!A35 -> Employee related costs | D40: ='C4-FinPerf RE'!C35 -> 124043649 | E40: ='C4-FinPerf RE'!D35 -> 135978991 | F40: ='C4-FinPerf RE'!E35 -> 135978991 | G40: ='C4-FinPerf RE'!G35 -> 86413991.44 | H40: ='C4-FinPerf RE'!K35 -> 135978991
A41: =A27 -> Repairs & Maintenance | D41: 11662915.02 | E41: 17640370 | F41: 21793210 | G41: 12404767.52 | H41: 21793210
A42: Interest (finance charges) | D42: ='C4-FinPerf RE'!C41 -> 0 | E42: ='C4-FinPerf RE'!D41 -> 0 | F42: ='C4-FinPerf RE'!E41 -> 0 | G42: ='C4-FinPerf RE'!G41 -> 0 | H42: ='C4-FinPerf RE'!K41 -> 0
A43: Principal paid | D43: =-'C7-CFlow'!C36 -> 0 | E43: =-'C7-CFlow'!D36 -> 0 | F43: =-'C7-CFlow'!E36 -> 0 | G43: =-'C7-CFlow'!G36 -> 0 | H43: =-'C7-CFlow'!K36 -> 0
A44: Depreciation | D44: ='C4-FinPerf RE'!C40 -> 31482239.38 | E44: ='C4-FinPerf RE'!D40 -> 37667907 | F44: ='C4-FinPerf RE'!E40 -> 37667907 | H44: ='C4-FinPerf RE'!K36 -> 20752503
A45: Operating expenditure | D45: ='C4-FinPerf RE'!C48 -> 409711274.9 | E45: ='C4-FinPerf RE'!D48 -> 389072253 | F45: ='C4-FinPerf RE'!E48 -> 391201408 | G45: ='C4-FinPerf RE'!G48 -> 219679774.5 | H45: ='C4-FinPerf RE'!K48 -> 391201408
A46: ='C5-Capex'!A40 -> Total Capital Expenditure | D46: ='C5-Capex'!C63 -> 99909545.11 | E46: ='C5-Capex'!D63 -> 86892000 | F46: ='C5-Capex'!E63 -> 147328342 | G46: ='C5-Capex'!F63 -> 2458428.77 | H46: ='C5-Capex'!G63 -> 41840901.42
A47: Borrowed funding for capital | D47: ='C5-Capex'!C72 -> 0 | E47: ='C5-Capex'!D72 -> 0 | F47: ='C5-Capex'!E72 -> 0 | G47: ='C5-Capex'!G72 -> 0 | H47: ='C5-Capex'!K72 -> 0
A48: Debt | D48: ='C6-FinPos'!C30+'C6-FinPos'!C31+'C6-FinPos'!C33+'C6-FinPos'!C34+'C6-FinPos'!C40+'C6-FinPos'!C43 -> 106365360.2 | E48: ='C6-FinPos'!D30+'C6-FinPos'!D31+'C6-FinPos'!D33+'C6-FinPos'!D34+'C6-FinPos'!D40+'C6-FinPos'!D43 -> 47945664 | F48: ='C6-FinPos'!E30+'C6-FinPos'!E31+'C6-FinPos'!E33+'C6-FinPos'!E34+'C6-FinPos'!E40+'C6-FinPos'!E43 -> 63697452 | G48: ='C6-FinPos'!F30+'C6-FinPos'!F31+'C6-FinPos'!F33+'C6-FinPos'!F34+'C6-FinPos'!F40+'C6-FinPos'!F43 -> 139501861.1 | H48: ='C6-FinPos'!G30+'C6-FinPos'!G31+'C6-FinPos'!G33+'C6-FinPos'!G34+'C6-FinPos'!G40+'C6-FinPos'!G43 -> 63697452
A49: Equity | D49: ='C6-FinPos'!C51 -> 1112013242 | E49: ='C6-FinPos'!D51 -> 1123713235 | F49: ='C6-FinPos'!E51 -> 1199822314 | G49: ='C6-FinPos'!F51 -> 1182195206 | H49: ='C6-FinPos'!G51 -> 1199822314
A50: ='C6-FinPos'!A49 -> Reserves and funds | D50: ='C6-FinPos'!C50 -> 0 | E50: ='C6-FinPos'!D50 -> 0 | F50: ='C6-FinPos'!E50 -> 0 | G50: ='C6-FinPos'!F50 -> 0 | H50: ='C6-FinPos'!G50 -> 0
A51: Borrowing | D51: ='C6-FinPos'!C40 -> 14187045.3 | E51: ='C6-FinPos'!D40 -> 774315 | F51: ='C6-FinPos'!E40 -> 14961361 | G51: ='C6-FinPos'!F40 -> 14187045.3 | H51: ='C6-FinPos'!G40 -> 14961361
A52: ='C6-FinPos'!A6 -> Current assets | D52: ='C6-FinPos'!C14 -> 156830740.9 | E52: ='C6-FinPos'!D14 -> 1078076679 | F52: ='C6-FinPos'!E14 -> 207690587 | G52: ='C6-FinPos'!F14 -> 252633415.1 | H52: ='C6-FinPos'!G14 -> 207690587
A53: ='C6-FinPos'!A29 -> Current liabilities | D53: ='C6-FinPos'!C38 -> 113576713.8 | E53: ='C6-FinPos'!D38 -> 52171349 | F53: ='C6-FinPos'!E38 -> 70914844 | G53: ='C6-FinPos'!F38 -> 153437381.9 | H53: ='C6-FinPos'!G38 -> 70914844
A54: Monetary assets | D54: ='C6-FinPos'!C7 -> 101842673.1 | E54: ='C6-FinPos'!D7 -> 92096784 | F54: ='C6-FinPos'!E7 -> 113579931 | G54: ='C6-FinPos'!F7 -> 128277110.2 | H54: ='C6-FinPos'!G7 -> 113579931
A55: ='C4-FinPerf RE'!A33 -> Total Revenue (excluding capital transfers and contributions) | D55: ='C4-FinPerf RE'!C33 -> 319733051.8 | E55: ='C4-FinPerf RE'!D33 -> 352990326 | F55: ='C4-FinPerf RE'!E33 -> 355883855 | G55: ='C4-FinPerf RE'!G33 -> 282708658.5 | H55: ='C4-FinPerf RE'!K33 -> 355883855
A56: ='C4-FinPerf RE'!A26 -> Transfers and subsidies - Operational | D56: ='C4-FinPerf RE'!C26 -> 225391142.6 | E56: ='C4-FinPerf RE'!D28 -> 0 | F56: ='C4-FinPerf RE'!E28 -> 0 | G56: ='C4-FinPerf RE'!G28 -> 0 | H56: ='C4-FinPerf RE'!K28 -> 0
A57: ='C4-FinPerf RE'!A50 -> Transfers and subsidies - capital (monetary allocations) | D57: ='C4-FinPerf RE'!C50 -> 112528034.1 | E57: ='C4-FinPerf RE'!D50 -> 85575000 | F57: ='C4-FinPerf RE'!E50 -> 144966966 | G57: ='C4-FinPerf RE'!G50 -> 43202982.73 | H57: ='C4-FinPerf RE'!K50 -> 144966966
A58: Debt service payments | D58: ='C7-CFlow'!C12+'C7-CFlow'!C36 -> 276960.99 | E58: ='C7-CFlow'!D12+'C7-CFlow'!D36 -> 3206212 | F58: ='C7-CFlow'!E12+'C7-CFlow'!E36 -> 6206212 | G58: ='C7-CFlow'!G16+'C7-CFlow'!G36 -> 0 | H58: ='C7-CFlow'!K16+'C7-CFlow'!K36 -> 0
A59: Outstanding debtors (receivables) | D59: ='C6-FinPos'!C8+'C6-FinPos'!C9+'C6-FinPos'!C10+'C6-FinPos'!C13+'C6-FinPos'!C23+'C6-FinPos'!C24 -> 30295745.08 | E59: 0 | F59: 0 | G59: 0 | H59: 0
A60: Annual services revenue | D60: ='C4-FinPerf RE'!C7+'C4-FinPerf RE'!C8+'C4-FinPerf RE'!C9+'C4-FinPerf RE'!C10+'C4-FinPerf RE'!C22 -> 58706456.66 | E60: ='C4-FinPerf RE'!D7+'C4-FinPerf RE'!D8+'C4-FinPerf RE'!D9+'C4-FinPerf RE'!D10+'C4-FinPerf RE'!D22 -> 93942192 | F60: ='C4-FinPerf RE'!E7+'C4-FinPerf RE'!E8+'C4-FinPerf RE'!E9+'C4-FinPerf RE'!E10+'C4-FinPerf RE'!E22 -> 85335722 | G60: ='C4-FinPerf RE'!F7+'C4-FinPerf RE'!F8+'C4-FinPerf RE'!F9+'C4-FinPerf RE'!F10+'C4-FinPerf RE'!F22 -> 3938098.91 | H60: ='C4-FinPerf RE'!G7+'C4-FinPerf RE'!G8+'C4-FinPerf RE'!G9+'C4-FinPerf RE'!G10+'C4-FinPerf RE'!G22 -> 92805976.22
A61: Cash + investments | B61: Including LT investments | D61: ='C6-FinPos'!C7+'C6-FinPos'!C16-'C6-FinPos'!C30 -> 106707276.7 | E61: ='C6-FinPos'!D7+'C6-FinPos'!D16-'C6-FinPos'!D30 -> 92096784 | F61: ='C6-FinPos'!E7+'C6-FinPos'!E16-'C6-FinPos'!E30 -> 122633484 | G61: ='C6-FinPos'!F7+'C6-FinPos'!F16-'C6-FinPos'!F30 -> 139244563 | H61: ='C6-FinPos'!G7+'C6-FinPos'!G16-'C6-FinPos'!G30 -> 122633484
A62: Fixed operational expend. (monthly)
A63: Longstanding debtors outstanding | D63: ='C6-FinPos'!C23+'C6-FinPos'!C24 -> 0 | E63: ='C6-FinPos'!D23+'C6-FinPos'!D24 -> 0 | F63: ='C6-FinPos'!E23+'C6-FinPos'!E24 -> 0 | G63: ='C6-FinPos'!F23+'C6-FinPos'!F24 -> 0 | H63: ='C6-FinPos'!G23+'C6-FinPos'!G24 -> 0
A64: Longstanding debtors recovered
A65: Attorney collections

Sheet SC3
A1: =muni& " - "&S71I& " - "&Head57 -> LIM351 Blouberg - Supporting Table SC3 Monthly Budget Statement - aged debtors - M08 February
A2: =desc -> Description | C2: =Head2 -> Budget Year 2023/24
A3: R thousands | B3: NT Code | C3: 0-30 Days | D3: 31-60 Days | E3: 61-90 Days | F3: 91-120 Days | G3: 121-150 Dys | H3: 151-180 Dys | I3: 181 Dys-1 Yr | J3: Over 1Yr | K3: Total | L3: Total over 90 days | M3: Actual Bad Debts Written Off against Debtors | N3: Impairment - Bad Debts i.t.o Council Policy
A4: Debtors Age Analysis By Income Source
A5: Trade and Other Receivables from Exchange Transactions - Water | B5: 1200 | K5: =SUM(C5:J5) -> 0 | L5: =SUM(F5:J5) -> 0
A6: Trade and Other Receivables from Exchange Transactions - Electricity | B6: 1300 | K6: =SUM(C6:J6) -> 0 | L6: =SUM(F6:J6) -> 0
A7: Receivables from Non-exchange Transactions - Property Rates | B7: 1400 | K7: =SUM(C7:J7) -> 0 | L7: 0
A8: Receivables from Exchange Transactions - Waste Water Management | B8: 1500 | K8: 0 | L8: 0
A9: Receivables from Exchange Transactions - Waste Management | B9: 1600 | K9: 0 | L9: =SUM(F9:J9) -> 0
A10: Receivables from Exchange Transactions - Property Rental Debtors | B10: 1700 | K10: 0 | L10: =SUM(F10:J10) -> 0
A11: Interest on Arrear Debtor Accounts | B11: 1810 | K11: 0 | L11: 0
A12: Recoverable unauthorised, irregular, fruitless and wasteful expenditure | B12: 1820 | K12: 0 | L12: 0
A13: Other | B13: 1900 | K13: 0 | L13: =SUM(F13:J13) -> 0
A14: Total By Income Source | B14: 2000 | C14: =SUM(C5:C13) -> 0 | D14: 0 | E14: 0 | F14: 0 | G14: 0 | H14: 0 | I14: 0 | J14: 0 | K14: 0 | L14: =SUM(L5:L13) -> 0 | M14: 0 | N14: 0
A15: =Head1&" - totals only" -> 2022/23 - totals only | K15: =SUM(C15:J15) -> 0 | L15: =SUM(F15:J15) -> 0
A16: Debtors Age Analysis By Customer Group
A17: Organs of State | B17: 2200 | K17: =SUM(C17:J17) -> 0 | L17: =SUM(F17:J17) -> 0
A18: Commercial | B18: 2300 | K18: =SUM(C18:J18) -> 0 | L18: =SUM(F18:J18) -> 0
A19: Households | B19: 2400 | K19: =SUM(C19:J19) -> 0 | L19: =SUM(F19:J19) -> 0
A20: Other | B20: 2500 | K20: =SUM(C20:J20) -> 0 | L20: =SUM(F20:J20) -> 0
A21: Total By Customer Group | B21: 2600 | C21: =SUM(C17:C20) -> 0 | D21: 0 | E21: 0 | F21: 0 | G21: 0 | H21: 0 | I21: 0 | J21: =SUM(J17:J20) -> 0 | K21: =SUM(K17:K20) -> 0 | L21: =SUM(L17:L20) -> 0 | M21: =SUM(M17:M20) -> 0 | N21: =SUM(N17:N20) -> 0
A22: Notes
A23: Material increases in value of debtors' categories compared to previous month to be explained
A24: Bad debts = amounts actually written off in the month
A25: Total by Income Source must reconcile with Total by Customer Group
C26: =C14-C21 -> 0 | D26: =D14-D21 -> 0 | E26: =E14-E21 -> 0 | F26: 0 | G26: 0 | H26: 0 | I26: 0 | J26: =J14-J21 -> 0 | K26: 0
C27: =IF(C26=0,"","MUST AGREE") ->  | D27: =IF(D26=0,"","MUST AGREE") -> 

Sheet SC4
A1: =muni& " - "&S71J& " - "&Head57 -> LIM351 Blouberg - Supporting Table SC4 Monthly Budget Statement - aged creditors - M08 February
A2: =desc -> Description | B2: NT Code | C2: =Head2 -> Budget Year 2023/24 | L2: Prior year totals for chart (same period)
C3: 0 - 30 Days | D3: 31 - 60 Days | E3: 61 - 90 Days | F3: 91 - 120 Days | G3: 121 - 150 Days | H3: 151 - 180 Days | I3: 181 Days - 1 Year | J3: Over 1 Year | K3: Total
A4: R thousands
A5: Creditors Age Analysis By Customer Type
A6: Bulk Electricity | B6: 0100 | K6: =SUM(C6:J6) -> 0
A7: Bulk Water | B7: 0200 | K7: =SUM(C7:J7) -> 0
A8: PAYE deductions | B8: 0300 | K8: 0
A9: VAT (output less input) | B9: 0400 | K9: 0
A10: Pensions / Retirement deductions | B10: 0500 | K10: 0
A11: Loan repayments | B11: 0600 | K11: 0
A12: Trade Creditors | B12: 0700 | K12: 0
A13: Auditor General | B13: 0800 | K13: 0
A14: Other | B14: 0900 | K14: =SUM(C14:J14) -> 0
A15: Total By Customer Type | B15: 1000 | C15: =SUM(C6:C14) -> 0 | D15: =SUM(D6:D14) -> 0 | E15: 0 | F15: 0 | G15: 0 | H15: 0 | I15: 0 | J15: 0 | K15: =SUM(K6:K14) -> 0 | L15: =SUM(L6:L14) -> 0
A16: Notes
A17: Material increases in value of creditors' categories compared to previous month to be explained

Sheet SC5
A1: =muni& " - "&S71K& " - "&Head57 -> LIM351 Blouberg - Supporting Table SC5 Monthly Budget Statement - investment portfolio - M08 February
A2: Investments by maturity Name of institution & investment ID | B2: Ref | C2: Period of Investment | D2: Type of Investment | E2: Capital Guarantee (Yes/ No) | F2: Variable or Fixed interest rate | G2: Interest Rate ᶟ | H2: Commission Paid (Rands) | I2: Commission Recipient | J2: Expiry date of investment | K2: Opening balance | L2: Interest to be realised | M2: Partial / Premature Withdrawal (4) | N2: Investment Top Up | O2: Closing Balance
A3: R thousands | C3: Yrs/Months
A4: Municipality
A5: Absa | C5: Months | D5: Fixed | E5: Yes | F5: Variable | G5: 7.22 | H5: 0 | I5: 0 | J5: 0000/00/00 | K5: 57 | L5: 0 | M5: 0 | N5: 0 | O5: =SUM(K5:N5) -> 57
A6: Municipality sub-total | K6: =SUM(K5:K5) -> 57 | M6: =SUM(M5:M5) -> 0 | N6: =SUM(N5:N5) -> 0 | O6: =SUM(O5:O5) -> 57
A8: Entities
O9: =SUM(K9:N9) -> 0
O10: 0
O11: 0
O12: 0
O13: 0
O14: 0
O15: 0
A16: Entities sub-total | K16: =SUM(K9:K15) -> 0 | M16: =SUM(M9:M15) -> 0 | N16: =SUM(N9:N15) -> 0 | O16: =SUM(O9:O15) -> 0
A18: TOTAL INVESTMENTS AND INTEREST | B18: 2 | K18: =K6+K16 -> 57 | M18: =M6+M16 -> 0 | N18: =N6+N16 -> 0 | O18: =O6+O16 -> 57
A19: =head27a -> References
A20: 2. List investments in expiry date order
A21: 3. If 'variable' is selected in column F, input interest rate range
A22: 4. Withdrawals to be entered as negative

Sheet SC6
A1: =muni& " - "&S71L& " - "&Head57 -> LIM351 Blouberg - Supporting Table SC6 Monthly Budget Statement - transfers and grant receipts - M08 February
A2: =desc -> Description | B2: =head27 -> Ref | C2: =Head1 -> 2022/23 | D2: =Head2 -> Budget Year 2023/24
C3: =Head5 -> Audited Outcome | D3: =Head6 -> Original Budget | E3: =Head7 -> Adjusted Budget | F3: =Head38 -> Monthly actual | G3: =Head39 -> YearTD actual | H3: =Head40 -> YearTD budget | I3: =Head41 -> YTD variance | J3: =Head41 -> YTD variance | K3: =Head8 -> Full Year Forecast
A4: R thousands | J4: %
A5: RECEIPTS: | B5: 1,2
A7: Operating Transfers and Grants
A8: National Government: | C8: =SUM(C9:C14) -> 225391142.6 | D8: =SUM(D9:D14) -> 237377000 | E8: =SUM(E9:E14) -> 241377000 | F8: =SUM(F9:F14) -> 0 | G8: =SUM(G9:G14) -> 181169731.3 | H8: =SUM(H9:H14) -> 160473550.2 | I8: =G8-H8 -> 20696181.06 | J8: =IF(H8=0,"",I8/H8) -> 0.1289694223 | K8: =SUM(K9:K14) -> 241377000
A9: Energy Efficiency and Demand Side Management Grant | C9: 0 | D9: 0 | E9: 0 | F9: 0 | G9: 0 | H9: 0 | I9: =G9-H9 -> 0 | J9: =IF(H9=0,"",I9/H9) ->  | K9: 0
A10: Equitable Share | C10: 221255920.6 | D10: 233792000 | E10: 233792000 | F10: 0 | G10: 175343778.1 | H10: 155861328 | I10: =G10-H10 -> 19482450.1 | J10: =IF(H10=0,"",I10/H10) -> 0.1249986148 | K10: 233792000
A11: Expanded Public Works Programme Integrated Grant | C11: 1950000 | D11: 1185000 | E11: 1185000 | F11: 0 | G11: 956617.2 | H11: 790000 | I11: =G11-H11 -> 166617.2 | J11: =IF(H11=0,"",I11/H11) -> 0.2109078481 | K11: 1185000
A12: Local Government Financial Management Grant | C12: 2185221.94 | D12: 2400000 | E12: 2400000 | F12: 0 | G12: 870030 | H12: 1600000 | I12: =G12-H12 -> -729970 | J12: =IF(H12=0,"",I12/H12) -> -0.45623125 | K12: 2400000
A13: Municipal Demarcation Transition Grant | C13: 0 | D13: 0 | E13: 0 | F13: 0 | G13: 0 | H13: 0 | I13: =G13-H13 -> 0 | J13: =IF(H13=0,"",I13/H13) ->  | K13: 0
A14: Municipal Disaster Relief Grant | B14: 3 | C14: 0 | D14: 0 | E14: 4000000 | F14: 0 | G14: 3999305.96 | H14: 2222222.2 | I14: =G14-H14 -> 1777083.76 | J14: =IF(H14=0,"",I14/H14) -> 0.7996877 | K14: 4000000
A15: Other transfers and grants [insert description] | I15: =G15-H15 -> 0 | J15: =IF(I15=0,"",I15/H15) -> 
A16: Provincial Government: | C16: =SUM(C17:C18) -> 0 | D16: =SUM(D17:D18) -> 0 | E16: =SUM(E17:E18) -> 0 | F16: =SUM(F17:F18) -> 0 | G16: =SUM(G17:G18) -> 0 | H16: =SUM(H17:H18) -> 0 | I16: 0 | K16: =SUM(K17:K18) -> 0
I17: =G17-H17 -> 0
A18: Other transfers and grants [insert description] | I18: 0
A19: District Municipality: | C19: =SUM(C20:C20) -> 0 | D19: =SUM(D20:D20) -> 0 | E19: =SUM(E20:E20) -> 0 | F19: =SUM(F20:F20) -> 0 | G19: =SUM(G20:G20) -> 0 | H19: =SUM(H20:H20) -> 0 | I19: =G19-H19 -> 0 | J19: =IF(H19=0,"",I19/H19) ->  | K19: =SUM(K20:K20) -> 0
A20: Specify (Add grant description) | C20: 0 | D20: 0 | E20: 0 | F20: 0 | G20: 0 | H20: 0 | I20: =G20-H20 -> 0 | J20: =IF(H20=0,"",I20/H20) ->  | K20: 0
A21: Other grant providers: | C21: =SUM(C22:C23) -> 0 | D21: =SUM(D22:D23) -> 0 | E21: =SUM(E22:E23) -> 0 | F21: =SUM(F22:F23) -> 0 | G21: =SUM(G22:G23) -> 0 | H21: =SUM(H22:H23) -> 0 | I21: =G21-H21 -> 0 | J21: =IF(H21=0,"",I21/H21) ->  | K21: =SUM(K22:K23) -> 0
A22: Mayors' Charity Fund | C22: 0 | D22: 0 | E22: 0 | F22: 0 | G22: 0 | H22: 0 | I22: =G22-H22 -> 0 | J22: =IF(H22=0,"",I22/H22) ->  | K22: 0
A23: National Skills Fund | C23: 0 | D23: 0 | E23: 0 | F23: 0 | G23: 0 | H23: 0 | I23: =G23-H23 -> 0 | J23: =IF(H23=0,"",I23/H23) ->  | K23: 0
A24: Total Operating Transfers and Grants | B24: 5 | C24: =C8+C16+C19+C21 -> 225391142.6 | D24: =D8+D16+D19+D21 -> 237377000 | E24: =E8+E16+E19+E21 -> 241377000 | F24: =F8+F16+F19+F21 -> 0 | G24: =G8+G16+G19+G21 -> 181169731.3 | H24: =H8+H16+H19+H21 -> 160473550.2 | I24: =I8+I16+I19+I21 -> 20696181.06 | J24: 0.1289694223 | K24: =K8+K16+K19+K21 -> 241377000
A26: Capital Transfers and Grants
A27: =A8 -> National Government: | C27: =SUM(C28:C31) -> 112528034.1 | D27: =SUM(D28:D31) -> 85575000 | E27: =SUM(E28:E31) -> 144966966 | F27: =SUM(F28:F31) -> 0 | G27: =SUM(G28:G31) -> 43202982.73 | H27: =SUM(H28:H31) -> 69546958.27 | I27: =G27-H27 -> -26343975.54 | J27: =IF(H27=0,"",I27/H27) -> -0.3787940723 | K27: =SUM(K28:K31) -> 144966966
A28: Energy Efficiency and Demand Side Management Grant | C28: 0 | D28: 0 | E28: 0 | F28: 0 | G28: 0 | H28: 0 | I28: =G28-H28 -> 0 | J28: =IF(H28=0,"",I28/H28) ->  | K28: 0
A29: Integrated National Electrification Programme Grant | C29: 27225713.7 | D29: 33000000 | E29: 38412286 | F29: 0 | G29: 2661135 | H29: 24504679.4 | I29: =G29-H29 -> -21843544.4 | J29: =IF(H29=0,"",I29/H29) -> -0.8914029865 | K29: 38412286
A30: Municipal Disaster Relief Grant | C30: 0 | D30: 0 | E30: 47100000 | F30: 0 | G30: 0 | H30: 9420000 | I30: =G30-H30 -> -9420000 | J30: =IF(H30=0,"",I30/H30) -> -1 | K30: 47100000
A31: Municipal Infrastructure Grant | C31: 85302320.39 | D31: 52575000 | E31: 59454680 | F31: 0 | G31: 40541847.73 | H31: 35622278.87 | I31: =G31-H31 -> 4919568.86 | J31: =IF(H31=0,"",I31/H31) -> 0.1381037097 | K31: 59454680
A32: =A16 -> Provincial Government: | C32: =SUM(C33:C33) -> 0 | D32: =SUM(D33:D33) -> 0 | E32: =SUM(E33:E33) -> 0 | F32: =SUM(F33:F33) -> 0 | G32: =SUM(G33:G33) -> 0 | H32: =SUM(H33:H33) -> 0 | I32: =G32-H32 -> 0 | J32: =IF(I32=0,"",I32/H32) ->  | K32: =SUM(K33:K33) -> 0
A33: [insert description] | I33: 0 | J33: =IF(I33=0,"",I33/H33) -> 
A34: =A19 -> District Municipality: | C34: =SUM(C35:C35) -> 0 | D34: =SUM(D35:D35) -> 0 | E34: =SUM(E35:E35) -> 0 | F34: =SUM(F35:F35) -> 0 | G34: =SUM(G35:G35) -> 0 | H34: =SUM(H35:H35) -> 0 | I34: 0 | J34: =IF(I34=0,"",I34/H34) ->  | K34: =SUM(K35:K35) -> 0
A35: [insert description] | I35: 0
A36: =A21 -> Other grant providers: | C36: =SUM(C37:C37) -> 0 | D36: =SUM(D37:D37) -> 0 | E36: =SUM(E37:E37) -> 0 | F36: =SUM(F37:F37) -> 0 | G36: =SUM(G37:G37) -> 0 | H36: =SUM(H37:H37) -> 0 | I36: 0 | K36: =SUM(K37:K37) -> 0
A37: [insert description] | I37: 0 | J37: =IF(I37=0,"",I37/H37) -> 
A38: Total Capital Transfers and Grants | B38: 5 | C38: =C27+C32+C34+C36 -> 112528034.1 | D38: =D27+D32+D34+D36 -> 85575000 | E38: =E27+E32+E34+E36 -> 144966966 | F38: =F27+F32+F34+F36 -> 0 | G38: =G27+G32+G34+G36 -> 43202982.73 | H38: =H27+H32+H34+H36 -> 69546958.27 | I38: =I27+I32+I34+I36 -> -26343975.54 | J38: -0.3787940723 | K38: =K27+K32+K34+K36 -> 144966966
A40: TOTAL RECEIPTS OF TRANSFERS & GRANTS | B40: 5 | C40: =C24+C38 -> 337919176.7 | D40: =D24+D38 -> 322952000 | E40: =E24+E38 -> 386343966 | F40: =F24+F38 -> 0 | G40: =G24+G38 -> 224372714 | H40: =H24+H38 -> 230020508.5 | I40: =I24+I38 -> -5647794.48 | J40: -0.02455343881 | K40: =K24+K38 -> 386343966
A41: =head27a -> References
A42: 1. Each grant is listed by name as gazetted together with the name of the transferring department or municipality, donor or other organisation
A43: 2. Grant expenditure must be separately listed for each grant received
A44: 3. Replacement of RSC levies
A45: 4. Housing subsidies for housing where ownership transferred
A46: 5. Total recurrent/capital grants and subsidies must reconcile to the 'Financial Performance' Statement

Sheet SC7(1)
A1: =muni& " - "&S71M& " - "&Head57 -> LIM351 Blouberg - Supporting Table SC7(1) Monthly Budget Statement - transfers and grant expenditure - M08 February
A2: =desc -> Description | B2: =head27 -> Ref | C2: =Head1 -> 2022/23 | D2: =Head2 -> Budget Year 2023/24
C3: =Head5 -> Audited Outcome | D3: =Head6 -> Original Budget | E3: =Head7 -> Adjusted Budget | F3: =Head38 -> Monthly actual | G3: =Head39 -> YearTD actual | H3: =Head40 -> YearTD budget | I3: =Head41 -> YTD variance | J3: =Head41 -> YTD variance | K3: =Head8 -> Full Year Forecast
A4: R thousands | J4: %
A5: EXPENDITURE
A7: Operating expenditure of Transfers and Grants
A8: ='SC6'!A8 -> National Government: | C8: =SUM(C9:C15) -> 208765711.5 | D8: =SUM(D9:D15) -> 240515081 | E8: =SUM(E9:E15) -> 244152081 | F8: =SUM(F9:F15) -> 28943991.7 | G8: =SUM(G9:G15) -> 148486932.8 | H8: =SUM(H9:H15) -> 162494110.2 | I8: =SUM(I9:I15) -> -14007177.39 | J8: =IF(I8=0,"",I8/H8) -> -0.08620113906 | K8: =SUM(K9:K15) -> 244152081
I9: =G9-H9 -> 0
A10: Equitable Share | C10: 205066574.2 | D10: 236930081 | E10: 236567081 | F10: 28823834.9 | G10: 142766223.1 | H10: 157881880 | I10: =G10-H10 -> -15115656.91 | J10: =IF(H10=0,"",I10/H10) -> -0.09574028958 | K10: 236567081
A11: Expanded Public Works Programme Integrated Grant | C11: 1642981.05 | D11: 1185000 | E11: 1185000 | F11: 0 | G11: 1185000 | H11: 790000 | I11: =G11-H11 -> 395000 | J11: =IF(H11=0,"",I11/H11) -> 0.5 | K11: 1185000
A12: Local Government Financial Management Grant | C12: 2024646.19 | D12: 2400000 | E12: 2400000 | F12: 108446.8 | G12: 1046342.36 | H12: 1600008 | I12: =G12-H12 -> -553665.64 | J12: =IF(H12=0,"",I12/H12) -> -0.3460392948 | K12: 2400000
A13: Municipal Demarcation Transition Grant | C13: 0 | D13: 0 | E13: 0 | F13: 0 | G13: 0 | H13: 0 | I13: =G13-H13 -> 0 | J13: =IF(H13=0,"",I13/H13) ->  | K13: 0
A14: Municipal Disaster Relief Grant | C14: 0 | D14: 0 | E14: 4000000 | F14: 0 | G14: 3477657.36 | H14: 2222222.2 | I14: =G14-H14 -> 1255435.16 | J14: =IF(H14=0,"",I14/H14) -> 0.5649458276 | K14: 4000000
A15: Municipal Infrastructure Grant | C15: 31510 | D15: 0 | E15: 0 | F15: 11710 | G15: 11710 | H15: 0 | I15: =G15-H15 -> 11710 | J15: =IF(H15=0,"",I15/H15) ->  | K15: 0
A16: ='SC6'!A16 -> Provincial Government: | C16: =SUM(C17:C17) -> 0 | D16: =SUM(D17:D17) -> 0 | E16: =SUM(E17:E17) -> 0 | F16: =SUM(F17:F17) -> 0 | G16: =SUM(G17:G17) -> 0 | H16: =SUM(H17:H17) -> 0 | I16: =SUM(I17:I17) -> 0 | K16: =SUM(K17:K17) -> 0
I17: =G17-H17 -> 0
A18: ='SC6'!A19 -> District Municipality: | C18: =SUM(C19:C19) -> 0 | D18: =SUM(D19:D19) -> 0 | E18: =SUM(E19:E19) -> 0 | F18: =SUM(F19:F19) -> 0 | G18: =SUM(G19:G19) -> 0 | H18: =SUM(H19:H19) -> 0 | I18: 0 | K18: =SUM(K19:K19) -> 0
A19: Specify (Add grant description) | C19: 0 | D19: 0 | E19: 0 | F19: 0 | G19: 0 | H19: 0 | I19: =G19-H19 -> 0 | J19: =IF(H19=0,"",I19/H19) ->  | K19: 0
A20: ='SC6'!A21 -> Other grant providers: | C20: =SUM(C21:C22) -> 299938 | D20: =SUM(D21:D22) -> 200000 | E20: =SUM(E21:E22) -> 200000 | F20: =SUM(F21:F22) -> 0 | G20: =SUM(G21:G22) -> 199283 | H20: =SUM(H21:H22) -> 133336 | I20: 65947 | J20: 0.4945926081 | K20: =SUM(K21:K22) -> 200000
A21: National Skills Fund | C21: 0 | D21: 0 | E21: 0 | F21: 0 | G21: 0 | H21: 0 | I21: =G21-H21 -> 0 | J21: =IF(H21=0,"",I21/H21) ->  | K21: 0
A22: Skill Development and Training | C22: 299938 | D22: 200000 | E22: 200000 | F22: 0 | G22: 199283 | H22: 133336 | I22: =G22-H22 -> 65947 | J22: =IF(H22=0,"",I22/H22) -> 0.4945926081 | K22: 200000
A23: Total operating expenditure of Transfers and Grants: | C23: =C8+C16+C18+C20 -> 209065649.5 | D23: =D8+D16+D18+D20 -> 240715081 | E23: =E8+E16+E18+E20 -> 244352081 | F23: =F8+F16+F18+F20 -> 28943991.7 | G23: =G8+G16+G18+G20 -> 148686215.8 | H23: =H8+H16+H18+H20 -> 162627446.2 | I23: =I8+I16+I18+I20 -> -13941230.39 | J23: -0.08572495428 | K23: =K8+K16+K18+K20 -> 244352081
A25: Capital expenditure of Transfers and Grants
A26: ='SC6'!A27 -> National Government: | C26: =SUM(C27:C30) -> 98867988.86 | D26: =SUM(D27:D30) -> 85575000 | E26: =SUM(E27:E30) -> 145531342 | F26: =SUM(F27:F30) -> 2360428.77 | G26: =SUM(G27:G30) -> 41390656.18 | H26: =SUM(H27:H30) -> 72737534.1 | I26: =SUM(I27:I30) -> -31346877.92 | J26: =IF(I26=0,"",I26/H26) -> -0.4309587658 | K26: =SUM(K27:K30) -> 145531342
A27: Energy Efficiency and Demand Side Management Grant | C27: 0 | D27: 0 | E27: 0 | F27: 0 | G27: 0 | H27: 0 | I27: =G27-H27 -> 0 | J27: =IF(H27=0,"",I27/H27) ->  | K27: 0
A28: Integrated National Electrification Programme Grant | C28: 23674533.65 | D28: 33000000 | E28: 38976662 | F28: 0 | G28: 2314030.43 | H28: 23195348.4 | I28: =G28-H28 -> -20881317.97 | J28: =IF(H28=0,"",I28/H28) -> -0.9002373066 | K28: 38976662
A29: Municipal Disaster Relief Grant | C29: 0 | D29: 0 | E29: 47100000 | F29: 0 | G29: 0 | H29: 9420000 | I29: =G29-H29 -> -9420000 | J29: =IF(H29=0,"",I29/H29) -> -1 | K29: 47100000
A30: Municipal Infrastructure Grant | C30: 75193455.21 | D30: 52575000 | E30: 59454680 | F30: 2360428.77 | G30: 39076625.75 | H30: 40122185.7 | I30: =G30-H30 -> -1045559.95 | J30: =IF(H30=0,"",I30/H30) -> -0.02605939661 | K30: 59454680
A31: ='SC6'!A32 -> Provincial Government: | C31: =SUM(C32:C32) -> 0 | D31: =SUM(D32:D32) -> 0 | E31: =SUM(E32:E32) -> 0 | F31: =SUM(F32:F32) -> 0 | G31: =SUM(G32:G32) -> 0 | H31: =SUM(H32:H32) -> 0 | I31: =G31-H31 -> 0 | K31: =SUM(K32:K32) -> 0
I32: 0
A33: ='SC6'!A34 -> District Municipality: | C33: =SUM(C34:C34) -> 0 | D33: =SUM(D34:D34) -> 0 | E33: =SUM(E34:E34) -> 0 | F33: =SUM(F34:F34) -> 0 | G33: =SUM(G34:G34) -> 0 | H33: =SUM(H34:H34) -> 0 | I33: 0 | K33: =SUM(K34:K34) -> 0
I34: 0
A35: ='SC6'!A36 -> Other grant providers: | C35: =SUM(C36:C36) -> 0 | D35: =SUM(D36:D36) -> 0 | E35: =SUM(E36:E36) -> 0 | F35: =SUM(F36:F36) -> 0 | G35: =SUM(G36:G36) -> 0 | H35: =SUM(H36:H36) -> 0 | I35: 0 | K35: =SUM(K36:K36) -> 0
A36: Discount Benefit Scheme (Housing | C36: 0 | D36: 0 | E36: 0 | F36: 0 | G36: 0 | H36: 0 | I36: =G36-H36 -> 0 | J36: =IF(H36=0,"",I36/H36) ->  | K36: 0
A37: Total capital expenditure of Transfers and Grants | C37: =C26+C31+C33+C35 -> 98867988.86 | D37: =D26+D31+D33+D35 -> 85575000 | E37: =E26+E31+E33+E35 -> 145531342 | F37: =F26+F31+F33+F35 -> 2360428.77 | G37: =G26+G31+G33+G35 -> 41390656.18 | H37: =H26+H31+H33+H35 -> 72737534.1 | I37: =I26+I31+I33+I35 -> -31346877.92 | J37: =IF(I37=0,"",I37/H37) -> -0.4309587658 | K37: =K26+K31+K33+K35 -> 145531342
A39: TOTAL EXPENDITURE OF TRANSFERS AND GRANTS | C39: =C23+C37 -> 307933638.3 | D39: =D23+D37 -> 326290081 | E39: =E23+E37 -> 389883423 | F39: =F23+F37 -> 31304420.47 | G39: =G23+G37 -> 190076872 | H39: =H23+H37 -> 235364980.3 | I39: =I23+I37 -> -45288108.31 | J39: =IF(I39=0,"",I39/H39) -> -0.192416511 | K39: =K23+K37 -> 389883423
A40: =head27a -> References

Sheet SC7(2)
A1: =muni& " - "&S71T& " - "&Head57 -> LIM351 Blouberg - Supporting Table SC7(2) Monthly Budget Statement - Expenditure against approved rollovers - M08 February
A2: =desc -> Description | B2: =head27 -> Ref | C2: =Head2 -> Budget Year 2023/24
C3: ="Approved Rollover " &Head1 -> Approved Rollover 2022/23 | D3: =Head38 -> Monthly actual | E3: =Head39 -> YearTD actual | F3: =Head41 -> YTD variance | G3: =Head41 -> YTD variance
A4: R thousands | G4: %
A5: EXPENDITURE
A7: Operating expenditure of Approved Roll-overs
A8: ='SC6'!A8 -> National Government: | C8: =SUM(C9:C9) -> 0 | D8: =SUM(D9:D9) -> 0 | E8: =SUM(E9:E9) -> 0 | F8: =C8-E8 -> 0 | G8: =IF(F8=0,"",F8/C8) -> 
F9: =C9-E9 -> 0 | G9: =IF(F9=0,"",F9/C9) -> 
A10: ='SC6'!A16 -> Provincial Government: | C10: =SUM(C11:C11) -> 0 | D10: =SUM(D11:D11) -> 0 | E10: =SUM(E11:E11) -> 0 | F10: =C10-E10 -> 0
F11: 0
A12: ='SC6'!A19 -> District Municipality: | C12: =SUM(C13:C13) -> 0 | D12: =SUM(D13:D13) -> 0 | E12: =SUM(E13:E13) -> 0 | F12: 0
F13: 0
A14: ='SC6'!A21 -> Other grant providers: | C14: =SUM(C15:C15) -> 0 | D14: =SUM(D15:D15) -> 0 | E14: =SUM(E15:E15) -> 0 | F14: 0
F15: 0
A16: Total operating expenditure of Approved Roll-overs | C16: =C8+C10+C12+C14 -> 0 | D16: =D8+D10+D12+D14 -> 0 | E16: =E8+E10+E12+E14 -> 0 | F16: =F8+F10+F12+F14 -> 0
A18: Capital expenditure of Approved Roll-overs
A19: ='SC6'!A27 -> National Government: | C19: =SUM(C20:C20) -> 0 | D19: =SUM(D20:D20) -> 0 | E19: =SUM(E20:E20) -> 0 | F19: =SUM(F20:F20) -> 0
F20: =C20-E20 -> 0
A21: ='SC6'!A32 -> Provincial Government: | C21: =SUM(C22:C22) -> 0 | D21: =SUM(D22:D22) -> 0 | E21: =SUM(E22:E22) -> 0 | F21: 0
F22: =C22-E22 -> 0
A23: ='SC6'!A34 -> District Municipality: | C23: =SUM(C24:C24) -> 0 | D23: =SUM(D24:D24) -> 0 | E23: =SUM(E24:E24) -> 0 | F23: 0
F24: 0
A25: ='SC6'!A36 -> Other grant providers: | C25: =SUM(C26:C26) -> 0 | D25: =SUM(D26:D26) -> 0 | E25: =SUM(E26:E26) -> 0 | F25: 0
F26: 0
A27: Total capital expenditure of Approved Roll-overs | C27: =C19+C21+C23+C25 -> 0 | D27: =D19+D21+D23+D25 -> 0 | E27: =E19+E21+E23+E25 -> 0 | F27: =F19+F21+F23+F25 -> 0
A29: TOTAL EXPENDITURE OF APPROVED ROLL-OVERS | C29: =C16+C27 -> 0 | D29: =D16+D27 -> 0 | E29: =E16+E27 -> 0 | F29: =F16+F27 -> 0
A30: =head27a -> References

Sheet SC8
A1: =muni& " - "&S71N& " - "&Head57 -> LIM351 Blouberg - Supporting Table SC8 Monthly Budget Statement - councillor and staff benefits - M08 February
A2: Summary of Employee and Councillor remuneration | B2: =head27 -> Ref | C2: =Head1 -> 2022/23 | D2: =Head2 -> Budget Year 2023/24
C3: =Head5 -> Audited Outcome | D3: =Head6 -> Original Budget | E3: =Head7 -> Adjusted Budget | F3: =Head38 -> Monthly actual | G3: =Head39 -> YearTD actual | H3: =Head40 -> YearTD budget | I3: =Head41 -> YTD variance | J3: =Head41 -> YTD variance | K3: =Head8 -> Full Year Forecast
A4: R thousands | J4: %
B5: 1 | C5: A | D5: B | E5: C | K5: D
A6: Councillors (Political Office Bearers plus Other)
A7: Basic Salaries and Wages | C7: 8141788.4 | D7: 12334599 | E7: 12334599 | F7: 918880.12 | G7: 8220230.24 | H7: 8223080 | I7: =G7-H7 -> -2849.76 | J7: =IF(I7=0,"",I7/H7) -> -0.0003465562782 | K7: 12334599
A8: Pension and UIF Contributions | C8: 2974593.2 | D8: 1405469 | E8: 1405469 | F8: 0 | G8: 0 | H8: 937000 | I8: -937000 | J8: -1 | K8: 1405469
A9: Medical Aid Contributions | C9: 0 | D9: 0 | E9: 0 | F9: 0 | G9: 0 | H9: 0 | I9: 0 | K9: 0
A10: Motor Vehicle Allowance | C10: 0 | D10: 232622 | E10: 232622 | F10: 18601.47 | G10: 93007.35 | H10: 155088 | I10: =G10-H10 -> -62080.65 | J10: =IF(I10=0,"",I10/H10) -> -0.4002930594 | K10: 232622
A11: Cellphone Allowance | C11: 1847600 | D11: 2658000 | E11: 2658000 | F11: 172148 | G11: 1347171 | H11: 1772032 | I11: =G11-H11 -> -424861 | J11: =IF(I11=0,"",I11/H11) -> -0.2397592143 | K11: 2658000
A12: Housing Allowances | C12: 0 | D12: 0 | E12: 0 | F12: 0 | G12: 0 | H12: 0 | I12: =G12-H12 -> 0 | J12: =IF(I12=0,"",I12/H12) ->  | K12: 0
A13: Other benefits and allowances | C13: 5018291.47 | D13: 4121813 | E13: 4121813 | F13: 427248.42 | G13: 3419489.19 | H13: 2747880 | I13: 671609.19 | J13: 0.2444099415 | K13: 4121813
A14: Sub Total - Councillors | C14: =SUM(C7:C13) -> 17982273.07 | D14: 20752503 | E14: 20752503 | F14: 1536878.01 | G14: 13079897.78 | H14: 13835080 | I14: -755182.22 | J14: -0.05458459366 | K14: 20752503
A15: % increase | B15: 4 | D15: =IF(D14=0,"",(D14/C14)-1) -> 0.1540533791 | E15: =IF(E14=0,"",(E14/C14)-1) -> 0.1540533791 | K15: =IF(K14=0,"",(K14/C14)-1) -> 0.1540533791
A17: Senior Managers of the Municipality | B17: 3
A18: Basic Salaries and Wages | C18: 1846535.49 | D18: 5343190 | E18: 4293190 | F18: 125958.12 | G18: 1129523.25 | H18: 3352144 | I18: =G18-H18 -> -2222620.75 | J18: =IF(I18=0,"",I18/H18) -> -0.6630445321 | K18: 4293190
A19: Pension and UIF Contributions | C19: 334241.85 | D19: 1399571 | E19: 1399571 | F19: 26325.74 | G19: 152284.29 | H19: 933112 | I19: -780827.71 | J19: -0.8367995589 | K19: 1399571
A20: Medical Aid Contributions | C20: 0 | D20: 0 | E20: 0 | F20: 0 | G20: 0 | H20: 0 | I20: 0 | K20: 0
A21: Overtime | C21: 0 | D21: 0 | E21: 0 | F21: 0 | G21: 0 | H21: 0 | I21: 0 | K21: 0
A22: Performance Bonus | C22: 196033.2 | D22: 317906 | E22: 317906 | F22: 0 | G22: 47552.78 | H22: 211960 | I22: =G22-H22 -> -164407.22 | J22: =IF(I22=0,"",I22/H22) -> -0.7756521042 | K22: 317906
A23: Motor Vehicle Allowance | C23: 551830.91 | D23: 1608012 | E23: 1608012 | F23: 45364.47 | G23: 258831.29 | H23: 1072040 | I23: =G23-H23 -> -813208.71 | J23: =IF(I23=0,"",I23/H23) -> -0.75856191 | K23: 1608012
A24: Cellphone Allowance | C24: 115816.72 | D24: 207893 | E24: 207893 | F24: 12032.42 | G24: 52020.6 | H24: 138632 | I24: =G24-H24 -> -86611.4 | J24: =IF(I24=0,"",I24/H24) -> -0.6247576317 | K24: 207893
A25: Housing Allowances | C25: 0 | D25: 0 | E25: 0 | F25: 0 | G25: 0 | H25: 0 | I25: =G25-H25 -> 0 | J25: =IF(I25=0,"",I25/H25) ->  | K25: 0
A26: Other benefits and allowances | C26: 143140.16 | D26: 825 | E26: 825 | F26: 15352.8 | G26: 103802.27 | H26: 576 | I26: 103226.27 | J26: 179.2122743 | K26: 825
A27: Payments in lieu of leave | C27: 157007.36 | D27: 0 | E27: 0 | F27: 0 | G27: 0 | H27: 0 | I27: 0 | K27: 0
A28: Long service awards | C28: 0 | D28: 0 | E28: 0 | F28: 0 | G28: 0 | H28: 0 | I28: 0 | K28: 0
A29: Post-retirement benefit obligations | B29: 2 | C29: -1200433 | D29: 0 | E29: 0 | F29: 0 | G29: 0 | H29: 0 | I29: 0 | K29: 0
A30: Entertainment | C30: 0 | D30: 0 | E30: 0 | F30: 0 | G30: 0 | H30: 0 | K30: 0
A31: Scarcity
A32: Acting and post related allowance | C32: 70144 | D32: 0 | E32: 0 | F32: 0 | G32: 0 | H32: 0 | K32: 0
A33: In kind benefits
A34: Sub Total - Senior Managers of Municipality | C34: =SUM(C18:C33) -> 2214316.69 | D34: =SUM(D18:D33) -> 8877397 | E34: 7827397 | F34: 225033.55 | G34: 1744014.48 | H34: 5708464 | I34: -3964449.52 | J34: =IF(I34=0,"",I34/H34) -> -0.6944862085 | K34: =SUM(K18:K33) -> 7827397
A35: % increase | B35: 4 | D35: =IF(D34=0,"",(D34/C34)-1) -> 3.009090949 | E35: =IF(E34=0,"",(E34/C34)-1) -> 2.534904034 | K35: =IF(K34=0,"",(K34/C34)-1) -> 2.534904034
A37: Other Municipal Staff
A38: Basic Salaries and Wages | C38: 67210870.95 | D38: 69055293 | E38: 68775293 | F38: 12002884.51 | G38: 47028157.79 | H38: 45980896 | I38: =G38-H38 -> 1047261.79 | J38: =IF(I38=0,"",I38/H38) -> 0.02277601963 | K38: 68775293
A39: Pension and UIF Contributions | C39: 16204045.24 | D39: 17541033 | E39: 17541033 | F39: 2955221.25 | G39: 11125942.55 | H39: 11694096 | I39: -568153.45 | J39: -0.04858464049 | K39: 17541033
A40: Medical Aid Contributions | C40: 5038151.56 | D40: 4657387 | E40: 4657387 | F40: 919758.64 | G40: 3460119.76 | H40: 3104952 | I40: 355167.76 | J40: 0.1143875203 | K40: 4657387
A41: Overtime | C41: 5410245.88 | D41: 1531000 | E41: 2581000 | F41: 925287.16 | G41: 3701660.51 | H41: 1230680 | I41: 2470980.51 | J41: 2.007817231 | K41: 2581000
A42: Performance Bonus | C42: 5084057.48 | D42: 7729188 | E42: 7729188 | F42: 988924.99 | G42: 3382299.38 | H42: 5152832 | I42: -1770532.62 | J42: -0.343603793 | K42: 7729188
A43: Motor Vehicle Allowance | C43: 16067062.73 | D43: 20042699 | E43: 20042699 | F43: 2896980.07 | G43: 11412080.53 | H43: 13361832 | I43: =G43-H43 -> -1949751.47 | J43: =IF(I43=0,"",I43/H43) -> -0.145919472 | K43: 20042699
A44: Cellphone Allowance | C44: 3016034.34 | D44: 2610711 | E44: 2890711 | F44: 522089.12 | G44: 2089234.36 | H44: 1796496 | I44: =G44-H44 -> 292738.36 | J44: =IF(I44=0,"",I44/H44) -> 0.1629496308 | K44: 2890711
A45: Housing Allowances | C45: 269130.82 | D45: 396165 | E45: 396165 | F45: 46922.04 | G45: 187688.16 | H45: 264144 | I45: =G45-H45 -> -76455.84 | J45: =IF(I45=0,"",I45/H45) -> -0.2894475741 | K45: 396165
A46: Other benefits and allowances | C46: 741912.39 | D46: 584254 | E46: 584254 | F46: 182763.49 | G46: 557874.31 | H46: 389544 | I46: 168330.31 | J46: 0.4321214292 | K46: 584254
A47: Payments in lieu of leave | C47: 1077786.98 | D47: 2422644 | E47: 2422644 | F47: 282067.42 | G47: 908840.38 | H47: 1615136 | I47: -706295.62 | J47: -0.4372979241 | K47: 2422644
A48: Long service awards | C48: 0 | D48: 102224 | E48: 102224 | F48: 0 | G48: 422441 | H48: 68152 | I48: 354289 | J48: 5.198512149 | K48: 102224
A49: Post-retirement benefit obligations | B49: 2 | C49: 1264000 | D49: 0 | E49: 0 | F49: 0 | G49: 0 | H49: 0 | I49: 0 | K49: 0
A50: Entertainment | I50: 0
A51: Scarcity | I51: 0
A52: Acting and post related allowance | C52: 446033.91 | D52: 428996 | E52: 428996 | F52: 60648.32 | G52: 393638.23 | H52: 286032 | I52: 107606.23 | J52: 0.3762034667 | K52: 428996
A53: In kind benefits | I53: 0
A54: Sub Total - Other Municipal Staff | C54: =SUM(C38:C53) -> 121829332.3 | D54: 127101594 | E54: 128151594 | F54: 21783547.01 | G54: 84669976.96 | H54: 84944792 | I54: -274815.04 | J54: =IF(I54=0,"",I54/H54) -> -0.003235219412 | K54: =SUM(K38:K53) -> 128151594
A55: % increase | B55: 4 | D55: =IF(D54=0,"",(D54/C54)-1) -> 0.0432757992 | E55: =IF(E54=0,"",(E54/C54)-1) -> 0.05189441329 | K55: =IF(K54=0,"",(K54/C54)-1) -> 0.05189441329
A56: Total Parent Municipality | C56: =C14+C34+C54 -> 142025922 | D56: 156731494 | E56: 156731494 | F56: 23545458.57 | G56: 99493889.22 | H56: 104488336 | I56: =G56-H56 -> -4994446.78 | J56: =IF(I56=0,"",I56/H56) -> -0.04779908429 | K56: =K14+K34+K54 -> 156731494
D57: =IF(D56=0,"",(D56/C56)-1) -> 0.1035414645 | E57: =IF(E56=0,"",(E56/C56)-1) -> 0.1035414645 | K57: =IF(K56=0,"",(K56/C56)-1) -> 0.1035414645
A58: Unpaid salary, allowances & benefits in arrears:
A60: Board Members of Entities
A61: Basic Salaries and Wages | I61: =G61-H61 -> 0 | J61: =IF(I61=0,"",I61/H61) -> 
A62: Pension and UIF Contributions | I62: 0
A63: Medical Aid Contributions | I63: 0
A64: Overtime | I64: 0 | J64: =IF(I64=0,"",I64/H64) -> 
A65: Performance Bonus | I65: 0 | J65: =IF(I65=0,"",I65/H65) -> 
A66: Motor Vehicle Allowance | I66: 0 | J66: =IF(I66=0,"",I66/H66) -> 
A67: Cellphone Allowance | I67: 0 | J67: =IF(I67=0,"",I67/H67) -> 
A68: Housing Allowances | I68: 0 | J68: =IF(I68=0,"",I68/H68) -> 
A69: Other benefits and allowances | I69: 0
A70: Board Fees | B70: 5 | I70: 0 | J70: =IF(I70=0,"",I70/H70) -> 
A71: Payments in lieu of leave | I71: 0
A72: Long service awards | I72: 0
A73: Post-retirement benefit obligations | I73: 0
A74: Entertainment
A75: Scarcity
A76: Acting and post related allowance
A77: In kind benefits
A78: Sub Total - Executive members Board | B78: 2 | C78: =SUM(C61:C77) -> 0 | D78: 0 | E78: 0 | F78: 0 | G78: 0 | H78: 0 | I78: =G78-H78 -> 0 | J78: =IF(I78=0,"",I78/H78) ->  | K78: =SUM(K61:K77) -> 0
A79: % increase | B79: 4 | D79: =IF(D78=0,"",(D78/C78)-1) ->  | E79: =IF(E78=0,"",(E78/C78)-1) ->  | K79: =IF(K78=0,"",(K78/C78)-1) -> 
A81: Senior Managers of Entities
A82: Basic Salaries and Wages | I82: =G82-H82 -> 0 | J82: =IF(I82=0,"",I82/H82) -> 
A83: Pension and UIF Contributions | I83: 0
A84: Medical Aid Contributions | I84: 0
A85: Overtime | I85: 0
A86: Performance Bonus | I86: =G86-H86 -> 0 | J86: =IF(I86=0,"",I86/H86) -> 
A87: Motor Vehicle Allowance | I87: =G87-H87 -> 0 | J87: =IF(I87=0,"",I87/H87) -> 
A88: Cellphone Allowance | I88: =G88-H88 -> 0 | J88: =IF(I88=0,"",I88/H88) -> 
A89: Housing Allowances | I89: =G89-H89 -> 0 | J89: =IF(I89=0,"",I89/H89) -> 
A90: Other benefits and allowances | I90: 0
A91: Payments in lieu of leave | I91: 0
A92: Long service awards | I92: 0
A93: Post-retirement benefit obligations | B93: 2 | I93: 0
A94: Entertainment
A95: Scarcity
A96: Acting and post related allowance
A97: In kind benefits
A98: Sub Total - Senior Managers of Entities | C98: =SUM(C82:C97) -> 0 | D98: 0 | E98: 0 | F98: 0 | G98: 0 | H98: 0 | I98: 0 | J98: =IF(I98=0,"",I98/H98) ->  | K98: =SUM(K82:K97) -> 0
A99: % increase | B99: 4 | D99: =IF(D98=0,"",(D98/C98)-1) ->  | E99: =IF(E98=0,"",(E98/C98)-1) ->  | K99: =IF(K98=0,"",(K98/C98)-1) -> 
A101: Other Staff of Entities
A102: Basic Salaries and Wages | I102: =G102-H102 -> 0 | J102: =IF(I102=0,"",I102/H102) -> 
A103: Pension and UIF Contributions | I103: 0
A104: Medical Aid Contributions | I104: =G104-H104 -> 0 | J104: =IF(I104=0,"",I104/H104) -> 
A105: Overtime | I105: =G105-H105 -> 0 | J105: =IF(I105=0,"",I105/H105) -> 
A106: Performance Bonus | I106: =G106-H106 -> 0 | J106: =IF(I106=0,"",I106/H106) -> 
A107: Motor Vehicle Allowance | I107: =G107-H107 -> 0 | J107: =IF(I107=0,"",I107/H107) -> 
A108: Cellphone Allowance | I108: 0
A109: Housing Allowances | I109: 0
A110: Other benefits and allowances | I110: 0
A111: Payments in lieu of leave | I111: 0
A112: Long service awards | I112: 0
A113: Post-retirement benefit obligations | I113: 0
A114: Entertainment
A115: Scarcity
A116: Acting and post related allowance
A117: In kind benefits
A118: Sub Total - Other Staff of Entities | C118: =SUM(C102:C117) -> 0 | D118: 0 | E118: 0 | F118: 0 | G118: 0 | H118: 0 | I118: 0 | J118: =IF(I118=0,"",I118/H118) ->  | K118: =SUM(K102:K117) -> 0
A119: % increase | B119: 4 | D119: =IF(D118=0,"",(D118/C118)-1) ->  | E119: =IF(E118=0,"",(E118/C118)-1) ->  | K119: =IF(K118=0,"",(K118/C118)-1) -> 
A120: Total Municipal Entities | C120: =C78+C98+C118 -> 0 | D120: 0 | E120: 0 | F120: 0 | G120: 0 | H120: 0 | I120: =G120-H120 -> 0 | J120: =IF(I120=0,"",I120/H120) ->  | K120: =K78+K98+K118 -> 0
A121: TOTAL SALARY, ALLOWANCES & BENEFITS | C121: =C56+C120 -> 142025922 | D121: 156731494 | E121: 156731494 | F121: 23545458.57 | G121: 99493889.22 | H121: 104488336 | I121: =G121-H121 -> -4994446.78 | J121: =IF(I121=0,"",I121/H121) -> -0.04779908429 | K121: =K56+K120 -> 156731494
A122: % increase | B122: 4 | D122: =IF(D121=0,"",(D121/C121)-1) -> 0.1035414645 | E122: =IF(E121=0,"",(E121/C121)-1) -> 0.1035414645 | K122: =IF(K121=0,"",(K121/C121)-1) -> 0.1035414645
A123: TOTAL MANAGERS AND STAFF | C123: =C34+C54+C98+C118 -> 124043649 | D123: 135978991 | E123: 135978991 | F123: 22008580.56 | G123: 86413991.44 | H123: 90653256 | I123: -4239264.56 | J123: =IF(I123=0,"",I123/H123) -> -0.04676351129 | K123: =K34+K54+K98+K118 -> 135978991
A124: =head27a -> References
A125: 1. Include 'Loans and advances' where applicable if any reportable amounts until phased compliance with s164 of MFMA achieved
A126: 2. If benefits in kind are provided (e.g. provision of living quarters) the full market value must be shown as the cost to the municipality
A127: 3. s57 of the Systems Act
A128: 4. B/A, C/A, D/A
A129: 5. Included in Contracted services
A130: Column Definitions:
A131: A. Audited actual 2022/23 (audited financial statements). If audited amounts unavailable, unaudited amounts must be provided with a note stating these are unaudited
A132: B. The original budget approved by council for the 2023/24 budget year.
A133: C. The budget for 2023/24 budget year as adjusted by council resolution in terms of section 28 of the MFMA.
A134: D. An estimate of final actual amounts (pre audit - 2006/07 budget year) at the time of preparing the budget for the 2007/08 budget year. This may differ from C.

Sheet SC9
A1: =muni& " - "&S71O& " - "&Head57 -> LIM351 Blouberg - Supporting Table SC9 Monthly Budget Statement - actuals and revised targets for cash receipts - M08 February
A2: =desc -> Description | B2: =head27 -> Ref | C2: =Head2 -> Budget Year 2023/24 | O2: ='Template names'!B5 -> 2023/24 Medium Term Revenue & Expenditure Framework
C3: July | D3: August | E3: Sept | F3: October | G3: Nov | H3: Dec | I3: January | J3: Feb | K3: March | L3: April | M3: May | N3: June | O3: =Head9 -> Budget Year 2023/24 | P3: =Head10 -> Budget Year +1 2024/25 | Q3: =Head11 -> Budget Year +2 2025/26
A4: R thousands | B4: 1 | C4: Outcome | D4: Outcome | E4: Outcome | F4: Outcome | G4: Outcome | H4: Outcome | I4: Outcome | J4: Outcome | K4: Budget | L4: Budget | M4: Budget | N4: Budget
A5: Cash Receipts By Source
A6: Property rates | C6: 149255.64 | D6: 274351.5 | E6: 237841.73 | F6: 1821820.32 | G6: 192622.72 | H6: 312693.31 | I6: 35551.7 | J6: 8437767.48 | K6: 2610315.58 | L6: 2610315.58 | M6: 2610315.58 | N6: =O6-SUM(C6:M6) -> 12030935.86 | O6: 31323787 | P6: 32857087 | Q6: 34368516
A7: Service charges - Electricity revenue | C7: 1914171.76 | D7: 2176341.8 | E7: 2043228.02 | F7: 1805778.79 | G7: 1914914.08 | H7: 2502476.25 | I7: 2545306.1 | J7: 2510782.78 | K7: 3937208.58 | L7: 3937208.58 | M7: 3937208.58 | N7: 18021877.68 | O7: 47246503 | P7: 53579150 | Q7: 56043792
A8: Service charges - Water revenue | C8: 44860.53 | D8: 59225.78 | E8: 53242.31 | F8: 26673.15 | G8: 39730.13 | H8: 35283.11 | I8: 21589.96 | J8: 50589.83 | K8: 0 | L8: 0 | M8: 0 | N8: -331194.8 | O8: 0 | P8: 0 | Q8: 0
A9: Service charges - Waste Water Management | C9: 22563.05 | D9: 34044.27 | E9: 24969.24 | F9: 12965.03 | G9: 22733.91 | H9: 15992.3 | I9: 10418.81 | J9: 27651.29 | K9: 0 | L9: 0 | M9: 0 | N9: -171337.9 | O9: 0 | P9: 0 | Q9: 0
A10: Service charges - Waste Mangement | C10: 43835.99 | D10: 23687.45 | E10: 16868.99 | F10: 15232 | G10: 13448 | H10: 36996.97 | I10: 7098.8 | J10: 33257.76 | K10: 183333.33 | L10: 183333.33 | M10: 183333.33 | N10: 1459574.05 | O10: 2200000 | P10: 2098000 | Q10: 2194508
N11: 0
A12: Rental of facilities and equipment | N12: 0
A13: Interest earned - external investments | C13: 0 | D13: 0 | E13: 0 | F13: 1532624.65 | G13: 0 | H13: 924756.17 | I13: 0 | J13: 0 | K13: 517184.33 | L13: 517184.33 | M13: 517184.33 | N13: 2197278.19 | O13: 6206212 | P13: 6510317 | Q13: 6809792
A14: Interest earned - outstanding debtors | N14: 0
A15: Dividends received | N15: 0
A16: Fines, penalties and forfeits | C16: 0 | D16: 0 | E16: 0 | F16: 0 | G16: 0 | H16: 0 | I16: 0 | J16: 0 | K16: 111969.83 | L16: 111969.83 | M16: 111969.83 | N16: 1007728.51 | O16: 1343638 | P16: 250801 | Q16: 262338
A17: Licences and permits | C17: 293377.9 | D17: 78.26 | E17: 447470.74 | F17: 123296.78 | G17: 0 | H17: 428192.31 | I17: 428329.31 | J17: 164923.84 | K17: 416666.67 | L17: 416666.67 | M17: 416666.67 | N17: 1864330.85 | O17: 5000000 | P17: 5245000 | Q17: 5486270
A18: Agency services | C18: 0 | D18: 0 | E18: 0 | F18: 0 | G18: 0 | H18: 0 | I18: 0 | J18: 0 | K18: 25000 | L18: 25000 | M18: 25000 | N18: 225000 | O18: 300000 | P18: 314700 | Q18: 329177
A19: Transfers and Subsidies - Operational | C19: 97413000 | D19: 0 | E19: 2698000 | F19: 0 | G19: 533000 | H19: 77930778.1 | I19: 0 | J19: 354000 | K19: 20114750 | L19: 20114750 | M19: 20114750 | N19: 2103971.9 | O19: 241377000 | P19: 250671000 | Q19: 248761630
A20: Other revenue | C20: 1569421.62 | D20: 2099357.76 | E20: 1840973.49 | F20: -75920993.66 | G20: -65527.14 | H20: 76152520.59 | I20: 1741848.09 | J20: 1424303.27 | K20: 1193407.58 | L20: 1193407.58 | M20: 1193407.58 | N20: 1898764.24 | O20: 14320891 | P20: 9312429 | Q20: 23181032
A21: Cash Receipts by Source | C21: =SUM(C6:C20) -> 101450486.5 | D21: =SUM(D6:D20) -> 4667086.82 | E21: 7362594.52 | F21: -70582602.94 | G21: 2650921.7 | H21: 158339689.1 | I21: 4790142.77 | J21: 13003276.25 | K21: 29109835.9 | L21: 29109835.9 | M21: 29109835.9 | N21: 40306928.58 | O21: 349318031 | P21: 360838484 | Q21: 377437055
A22: Other Cash Flows by Source | N22: =O22-SUM(C22:M22) -> 0
A23: Transfers and subsidies - capital (monetary allocations) (National / Provincial and District) | C23: 25025000 | D23: 0 | E23: 0 | F23: 0 | G23: 12750000 | H23: 9633000 | I23: 0 | J23: 47100000 | K23: 12080580.41 | L23: 12080580.41 | M23: 12080580.41 | N23: 14217223.77 | O23: 144966965 | P23: 67485000 | Q23: 70589310
A24: Transfers and subsidies - capital (monetary allocations) (Nat / Prov Departm Agencies, Households, Non-profit Institutions, Private Enterprises, Public Corporatons, Higher Educ Institutions) | C24: 0 | D24: 0 | E24: 0 | F24: 0 | G24: 0 | H24: 0 | I24: 0 | J24: 0 | K24: 0 | L24: 0 | M24: 0 | N24: 0 | O24: 0 | P24: 0 | Q24: 0
A25: Proceeds on Disposal of Fixed and Intangible Assets | C25: 0 | D25: 0 | E25: 0 | F25: 0 | G25: 0 | H25: 0 | I25: 0 | J25: 0 | K25: 166666.67 | L25: 166666.67 | M25: 166666.67 | N25: 1499999.99 | O25: 2000000 | P25: 0 | Q25: 0
A26: Short term loans | N26: 0
A27: Borrowing long term/refinancing | N27: 0
A28: Increase (decrease) in consumer deposits | N28: 0
A30: Decrease (increase) in non-current receivables | N30: 0
A31: Decrease (increase) in non-current investments | C31: 0 | D31: 0 | E31: 0 | F31: 0 | G31: 0 | H31: 6102849.31 | I31: 0 | J31: 0 | K31: 1810710.6 | L31: 1810710.6 | M31: 1810710.6 | N31: -2481428.11 | O31: 9053553 | P31: -1655056 | Q31: -12856001
A32: Total Cash Receipts by Source | C32: =SUM(C21:C31) -> 126475486.5 | D32: =SUM(D21:D31) -> 4667086.82 | E32: 7362594.52 | F32: -70582602.94 | G32: 15400921.7 | H32: 174075538.4 | I32: 4790142.77 | J32: 60103276.25 | K32: 43167793.58 | L32: 43167793.58 | M32: 43167793.58 | N32: 53542724.23 | O32: 505338549 | P32: 426668428 | Q32: 435170364
A33: Cash Payments by Type | N33: =O33-SUM(C33:M33) -> 0
A34: Employee related costs | C34: 10943615.71 | D34: 10484512.6 | E34: 11797653.05 | F34: 10800278.81 | G34: 11402267.13 | H34: 11287453.94 | I34: 11416130.97 | J34: 11251298.49 | K34: 11331582.59 | L34: 11331582.59 | M34: 11331582.59 | N34: 12601032.53 | O34: 135978991 | P34: 142324522 | Q34: 148871451
A35: Remuneration of councillors | C35: 0 | D35: 0 | E35: 0 | F35: 0 | G35: 0 | H35: 0 | I35: 0 | J35: 0 | K35: 1729375.25 | L35: 1729375.25 | M35: 1729375.25 | N35: 15564377.25 | O35: 20752503 | P35: 21997665 | Q35: 23009558
A36: Interest | N36: 0
A37: Bulk purchases - Electricity | C37: 5238401.18 | D37: 6411913.55 | E37: 3341026.17 | F37: 12011008.94 | G37: 5372960.76 | H37: 715733.36 | I37: 9958258.72 | J37: 6074418.41 | K37: 5000000 | L37: 5000000 | M37: 5000000 | N37: -4123721.09 | O37: 60000000 | P37: 62940000 | Q37: 65835240
A38: Acquisitions - water & other inventory | C38: 0 | D38: 0 | E38: 0 | F38: 0 | G38: 0 | H38: 0 | I38: 0 | J38: 0 | K38: 487913.33 | L38: 487913.33 | M38: 487913.33 | N38: 4391220.01 | O38: 5854960 | P38: 2666857 | Q38: 2789533
A40: Contracted services | C40: 0 | D40: 0 | E40: 0 | F40: 0 | G40: 0 | H40: 0 | I40: 0 | J40: 0 | K40: 4867087.58 | L40: 4867087.58 | M40: 4867087.58 | N40: 43803788.26 | O40: 58405051 | P40: 53618419 | Q40: 43112110
A41: Transfers and subsidies - other municipalities | N41: 0
A42: Transfers and subsidies - other | N42: 0
A43: Other expenditure | C43: 27103674.9 | D43: 30529948.36 | E43: 29930022.99 | F43: -41711303.93 | G43: 30744437.47 | H43: 117316687.8 | I43: 23970341.88 | J43: 27426782.77 | K43: 5642364.43 | L43: 5642364.43 | M43: 5642364.43 | N43: -194529312.6 | O43: 67708373 | P43: 69260414 | Q43: 72446394
A44: Cash Payments by Type | B44: =SUM(B34:B43) -> 0 | C44: =SUM(C34:C43) -> 43285691.79 | D44: =SUM(D34:D43) -> 47426374.51 | E44: 45068702.21 | F44: -18900016.18 | G44: 47519665.36 | H44: 129319875.1 | I44: 45344731.57 | J44: 44752499.67 | K44: 29058323.18 | L44: 29058323.18 | M44: 29058323.18 | N44: -122292615.6 | O44: 348699878 | P44: 352807877 | Q44: 356064286
A45: Other Cash Flows/Payments by Type
A46: Capital assets | C46: 0 | D46: 3178394.27 | E46: 4634613.29 | F46: 8736457.68 | G46: 11401864.09 | H46: 9968726.98 | I46: 1462416.34 | J46: 2458428.77 | K46: 12277361.83 | L46: 12277361.83 | M46: 12277361.83 | N46: =O46-SUM(C46:M46) -> 68655355.09 | O46: 147328342 | P46: 69005290 | Q46: 85152290
A47: Repayment of borrowing | N47: =O47-SUM(C47:M47) -> 0
A48: Other Cash Flows/Payments | C48: 0 | D48: 1139422.8 | E48: 61796.63 | F48: 0 | G48: 168487.2 | H48: 1089696.47 | I48: 0 | J48: 0 | K48: 0 | L48: 0 | M48: 0 | N48: =O48-SUM(C48:M48) -> -2459403.1 | O48: 0 | P48: 0 | Q48: 0
A49: Total Cash Payments by Type | B49: =SUM(B44:B48) -> 0 | C49: 43285691.79 | D49: 51744191.58 | E49: 49765112.13 | F49: -10163558.5 | G49: 59090016.65 | H49: 140378298.6 | I49: 46807147.91 | J49: 47210928.44 | K49: 41335685.01 | L49: 41335685.01 | M49: 41335685.01 | N49: -56096663.61 | O49: 496028220 | P49: 421813167 | Q49: 441216576
A50: NET INCREASE/(DECREASE) IN CASH HELD | B50: =B32-B49 -> 0 | C50: 83189794.7 | D50: -47077104.76 | E50: -42402517.61 | F50: -60419044.44 | G50: -43689094.95 | H50: 33697239.84 | I50: -42017005.14 | J50: 12892347.81 | K50: 1832108.57 | L50: 1832108.57 | M50: 1832108.57 | N50: 109639387.8 | O50: 9310329 | P50: 4855261 | Q50: -6046212
A51: Cash/cash equivalents at the month/year beginning: | C51: 101842673.1 | D51: =C52 -> 185032467.8 | E51: =D52 -> 137955363.1 | F51: 95552845.47 | G51: 35133801.03 | H51: -8555293.92 | I51: 25141945.92 | J51: -16875059.22 | K51: -3982711.41 | L51: -2150602.84 | M51: -318494.27 | N51: 1513614.3 | O51: =C51 -> 101842673.1 | P51: =O52 -> 111153002.1 | Q51: =P52 -> 116008263.1
A52: Cash/cash equivalents at the month/year end: | C52: =C50+C51 -> 185032467.8 | D52: =D50+D51 -> 137955363.1 | E52: =E50+E51 -> 95552845.47 | F52: 35133801.03 | G52: -8555293.92 | H52: 25141945.92 | I52: -16875059.22 | J52: -3982711.41 | K52: -2150602.84 | L52: -318494.27 | M52: 1513614.3 | N52: 111153002.1 | O52: =O50+O51 -> 111153002.1 | P52: =P50+P51 -> 116008263.1 | Q52: =Q50+Q51 -> 109962051.1
A53: =head27a -> References
A54: 1. Replace 'budget' heading with adjusted budget, or 'outcome' only for month/s complete
A55: 2. Total of monthly amounts must always agree to the approved or adjusted budget
A56: 3. Amend 'cash-at-beginning' when prior year actual known (as part of the adjustments budget)
E61: =E44+E60 -> 45068702.21 | F61: -18900016.18 | G61: 47519665.36 | H61: 129319875.1 | I61: 45344731.57 | J61: 44752499.67 | K61: 29058323.18 | L61: 29058323.18 | N61: =N44+N60 -> -122292615.6 | O61: =O44+O60 -> 348699878 | P61: =P44+P60 -> 352807877
E62: =E50-E60 -> -42402517.61 | F62: -60419044.44 | G62: -43689094.95 | H62: 33697239.84 | I62: -42017005.14 | J62: 12892347.81 | K62: 1832108.57 | L62: 1832108.57 | M62: =M50-M60 -> 1832108.57 | N62: =N50-N60 -> 109639387.8 | O62: 9310329 | P62: 4855261

Sheet SC10
A1: =muni& " - "&S71P& " - "&Head57 -> LIM351 Blouberg - NOT REQUIRED - municipality does not have entities or this is the parent municipality's budget - M08 February
A2: =desc -> Description | B2: =head27 -> Ref | C2: =Head1 -> 2022/23 | D2: =Head2 -> Budget Year 2023/24
C3: =Head5 -> Audited Outcome | D3: =Head6 -> Original Budget | E3: =Head7 -> Adjusted Budget | F3: =Head38 -> Monthly actual | G3: =Head39 -> YearTD actual | H3: =Head40 -> YearTD budget | I3: =Head41 -> YTD variance | J3: =Head41 -> YTD variance | K3: =Head8 -> Full Year Forecast
A4: R thousands | B4: 1 | J4: %
A5: ='C4-FinPerf RE'!A5 -> Revenue
A6: Exchange Revenue
A7: Service charges - Electricity | I7: =G7-H7 -> 0 | J7: =IF(I7=0,"",I7/H7) -> 
A8: Service charges - Water | I8: 0
A9: Service charges - Waste Water Management | I9: 0
A10: Service charges - Waste management | I10: 0
A11: Sale of Goods and Rendering of Services | I11: =G11-H11 -> 0 | J11: =IF(I11=0,"",I11/H11) -> 
A12: Agency services | I12: 0
A13: Interest | I13: 0
A14: Interest earned from Receivables | I14: 0
A15: Interest earned from Current and Non Current Assets
A16: Dividends | I16: 0
A17: Rent on Land | I17: 0
A18: Rental from Fixed Assets | I18: 0
A19: Licence and permits | I19: 0
A20: Operational Revenue | I20: 0
A21: Non-Exchange Revenue | I21: 0
A22: Property rates
A23: Surcharges and Taxes
A24: Fines, penalties and forfeits | I24: 0
A25: Licences or permits
A26: Transfer and subsidies - Operational
A27: Interest
A28: Fuel Levy
A29: Operational Revenue
A30: Gains on disposal of Assets
A31: Other Gains
A32: Discontinued Operations
A33: Total Revenue (excluding capital transfers and contributions) | C33: =SUM(C7:C20)+SUM(C22:C32) -> 0 | D33: =SUM(D7:D20)+SUM(D22:D32) -> 0 | E33: 0 | F33: =SUM(F7:F20)+SUM(F22:F32) -> 0 | G33: =SUM(G7:G20)+SUM(G22:G32) -> 0 | H33: =SUM(H7:H20)+SUM(H22:H32) -> 0 | I33: =G33-H33 -> 0 | K33: =SUM(K7:K20)+SUM(K22:K32) -> 0
A34: Expenditure By Type
A35: Employee related costs | I35: =G35-H35 -> 0 | J35: =IF(I35=0,"",I35/H35) -> 
A36: Remuneration of councillors | I36: 0
A37: Bulk purchases - electricity | I37: 0
A38: Inventory consumed | I38: 0
A39: Debt impairment | I39: 0
A40: Depreciation and amortisation | I40: 0
A41: Interest | I41: 0
A42: Contracted services | I42: 0
A43: Transfers and subsidies | I43: 0
A44: Irrecoverable debts written off | I44: 0
A45: Operational costs | I45: 0
A46: Losses on disposal of Assets
A47: Other Losses
A48: Total Expenditure | C48: =SUM(C35:C47) -> 0 | D48: =SUM(D35:D47) -> 0 | E48: 0 | F48: 0 | G48: 0 | H48: 0 | I48: 0 | K48: =SUM(K35:K47) -> 0
A49: ='C4-FinPerf RE'!A49 -> Surplus/(Deficit) | C49: =C33-C48 -> 0 | D49: 0 | E49: 0 | F49: 0 | G49: 0 | H49: 0 | I49: 0 | K49: =K33-K48 -> 0
A50: ='C4-FinPerf RE'!A50 -> Transfers and subsidies - capital (monetary allocations) | I50: 0
A51: ='C4-FinPerf RE'!A51 -> Transfers and subsidies - capital (in-kind) | I51: 0
A52: ='C4-FinPerf RE'!A52 -> Surplus/(Deficit) after capital transfers & contributions | C52: =C49+SUM(C50:C51) -> 0 | D52: 0 | E52: 0 | F52: 0 | G52: 0 | H52: 0 | I52: 0 | K52: =K49+SUM(K50:K51) -> 0
A53: ='C4-FinPerf RE'!A53 -> Income Tax | I53: 0
A54: ='C4-FinPerf RE'!A54 -> Surplus/(Deficit) after income tax | C54: =C52-C53 -> 0 | D54: 0 | E54: 0 | F54: 0 | G54: 0 | H54: 0 | I54: 0 | K54: =K52-K53 -> 0
A55: =head27a -> References
A56: 1. Votes (consolidated) are revenue sources and expenditure type

Sheet SC11
A1: =muni& " - "&S71Q& " - "&Head57 -> LIM351 Blouberg - NOT REQUIRED - municipality does not have entities or this is the parent municipality's budget - M08 February
A2: =desc -> Description | B2: =head27 -> Ref | C2: =Head1 -> 2022/23 | D2: =Head2 -> Budget Year 2023/24
C3: =Head5 -> Audited Outcome | D3: =Head6 -> Original Budget | E3: =Head7 -> Adjusted Budget | F3: =Head38 -> Monthly actual | G3: =Head39 -> YearTD actual | H3: =Head40 -> YearTD budget | I3: =Head41 -> YTD variance | J3: =Head41 -> YTD variance | K3: =Head8 -> Full Year Forecast
A4: R thousands | J4: %
A5: Revenue By Municipal Entity
A6: Insert name of municipal entity | I6: =G6-H6 -> 0 | J6: =IF(I6=0,"",I6/H6) -> 
I7: 0 | J7: =IF(I7=0,"",I7/H7) -> 
I8: 0
I9: 0
I10: 0
I11: 0
I12: 0
I13: 0
I14: 0
I15: 0
A16: Total Operating Revenue | B16: 1 | C16: =SUM(C6:C15) -> 0 | D16: 0 | E16: 0 | F16: 0 | G16: 0 | H16: 0 | I16: 0 | K16: =SUM(K6:K15) -> 0
A18: Expenditure By Municipal Entity
A19: =A6 -> Insert name of municipal entity | I19: 0 | J19: =IF(I19=0,"",I19/H19) -> 
A20: =IF(A7="","",A7) ->  | I20: 0
A21: =IF(A8="","",A8) ->  | I21: 0
I22: 0
I23: 0
I24: 0
I25: 0
I26: 0
I27: 0
I28: 0
A29: Total Operating Expenditure | B29: 2 | C29: =SUM(C19:C28) -> 0 | D29: 0 | E29: 0 | F29: 0 | G29: 0 | H29: 0 | I29: 0 | K29: =SUM(K19:K28) -> 0
A31: =Head42 -> Surplus/ (Deficit) for the yr/period | C31: =C16-C29 -> 0 | D31: =D16-D29 -> 0 | E31: 0 | F31: 0 | G31: 0 | H31: 0 | I31: =I16+I29 -> 0 | K31: 0
A32: Capital Expenditure By Municipal Entity
A33: =$A$6 -> Insert name of municipal entity | I33: 0
A34: =IF(A7="","",A7) ->  | I34: 0
A35: =IF(A8="","",A8) ->  | I35: 0
I36: 0
I37: 0
I38: 0
I39: 0
I40: 0
I41: 0
A43: Total Capital Expenditure | B43: 3 | C43: =SUM(C32:C42) -> 0 | D43: =SUM(D32:D42) -> 0 | E43: 0 | F43: 0 | G43: 0 | H43: =SUM(H32:H42) -> 0 | I43: =G43-H43 -> 0 | K43: 0
A44: =head27a -> References
A45: 1. Must reconcile to the sum of all municipal entity monthly revenue reports
A46: 2. Must reconcile to the sum of all municipal entity monthly expenditure reports
A47: 3. YTD = Year to date; FAV - favourable variance or unfavourable variance
A48: 4. Material variances to be explained
A49: 5. Insert additional 'Adjustment' Budget column for each Adjustment made by an entity

Sheet SC12
A1: =muni& " - "&S71R& " - "&Head57 -> LIM351 Blouberg - Supporting Table SC12 Monthly Budget Statement - capital expenditure trend - M08 February
A2: Month | B2: =Head1 -> 2022/23 | C2: =Head2 -> Budget Year 2023/24
B3: =Head5 -> Audited Outcome | C3: =Head6 -> Original Budget | D3: =Head7 -> Adjusted Budget | E3: =Head38 -> Monthly actual | F3: =Head39 -> YearTD actual | G3: =Head40 -> YearTD budget | H3: =Head41 -> YTD variance | I3: =Head41 -> YTD variance | J3: % spend of Original Budget
A4: R thousands | I4: %
A5: Monthly expenditure performance trend
A6: July | B6: 1261058.69 | C6: 7241005 | D6: 7241005 | E6: 0 | F6: =IF(E6>0,E6,0) -> 0 | G6: =IF(D6>0,D6,C6) -> 7241005 | H6: =IF(F6="",0,G6-F6) -> 7241005 | I6: =IF(F6="","",IF(H6=0,"",H6/G6)) -> 1 | J6: =IF(F6="","",F6/$C$18) -> 0
A7: August | B7: 4189445.07 | C7: 7241005 | D7: 7241005 | E7: 3178394.27 | F7: =IF(E7>0,E7,0) -> 3178394.27 | G7: =IF(D7>0,D7+D6,C7+C6) -> 14482010 | H7: 11303615.73 | I7: 0.7805280987 | J7: 0.02157354265
A8: September | B8: 3456479.88 | C8: 7241005 | D8: 7241005 | E8: 4634613.29 | F8: =IF(E8>0,E8,0) -> 4634613.29 | G8: =IF(D8>0,D8+G7,C8+G7) -> 21723015 | H8: 17088401.71 | I8: 0.7866496299 | J8: 0.03145771701
A9: October | B9: 9591120.1 | C9: 8396080.54 | D9: 8396080.54 | E9: 8736457.68 | F9: =IF(E9>0,E9,0) -> 8736457.68 | G9: =IF(D9>0,D9+G8,C9+G8) -> 30119095.54 | H9: 21382637.86 | I9: 0.7099362539 | J9: 0.059299233
A10: November | B10: 2792246.87 | C10: 8396080.54 | D10: 8396080.54 | E10: 11401864.09 | F10: =IF(E10>0,E10,0) -> 11401864.09 | G10: 38515176.08 | H10: 27113311.99 | I10: 0.7039643784 | J10: 0.07739083964
A11: December | B11: 23823373.08 | C11: 8396080.54 | D11: 8396080.54 | E11: 9968726.98 | F11: =IF(E11>0,E11,0) -> 9968726.98 | G11: 46911256.62 | H11: 36942529.64 | I11: 0.7874981892 | J11: 0.06766333514
A12: January | B12: 5703208.74 | C12: 8396080.54 | D12: 8396080.54 | E12: 1462416.34 | F12: =IF(E12>0,E12,0) -> 1462416.34 | G12: 55307337.16 | H12: 53844920.82 | I12: 0.9735583665 | J12: 0.00992623904
A13: February | B13: 5732773 | C13: 18404212.94 | D13: 18404212.94 | E13: 2458428.77 | F13: =IF(E13>0,E13,0) -> 2458428.77 | G13: 73711550.1 | H13: 71253121.33 | I13: 0.9666479844 | J13: 0.01668673343
A14: March | B14: 7001332.54 | C14: 18404212.94 | D14: 18404212.94 | E14: 0 | F14: =IF(E14>0,E14,0) -> 0 | G14: 92115763.04 | H14: 92115763.04 | I14: 1 | J14: 0
A15: April | B15: 10339377.53 | C15: 18404212.94 | D15: 18404212.94 | E15: 0 | F15: =IF(E15>0,E15,0) -> 0 | G15: 110519976 | H15: 110519976 | I15: 1 | J15: 0
A16: May | B16: 7280498.52 | C16: 18404212.94 | D16: 18404212.94 | E16: 0 | F16: =IF(E15>0,E15,0) -> 0 | G16: 128924188.9 | H16: 128924188.9 | I16: 1 | J16: 0
A17: June | B17: 17922321.35 | C17: 18404153.08 | D17: 18404153.08 | E17: 0 | F17: =IF(E17>0,E17,0) -> 0 | G17: 147328342 | H17: =IF(F17="",0,G17-F17) -> 147328342 | I17: =IF(F17="","",IF(H17=0,"",H17/G17)) -> 1 | J17: =IF(F17="","",F17/$C$18) -> 0
A18: Total Capital expenditure | B18: =SUM(B6:B17) -> 99093235.37 | C18: =SUM(C6:C17) -> 147328342 | D18: =SUM(D6:D17) -> 147328342 | E18: =SUM(E6:E17) -> 41840901.42

Sheet SC13a
A1: =muni& " - "&S71Sa& " - "&Head57 -> LIM351 Blouberg - Supporting Table SC13a Monthly Budget Statement - capital expenditure on new assets by asset class - M08 February
A2: =desc -> Description | B2: =head27 -> Ref | C2: =Head1 -> 2022/23 | D2: =Head2 -> Budget Year 2023/24
C3: =Head5 -> Audited Outcome | D3: =Head6 -> Original Budget | E3: =Head7 -> Adjusted Budget | F3: =Head38 -> Monthly actual | G3: =Head39 -> YearTD actual | H3: =Head40 -> YearTD budget | I3: =Head41 -> YTD variance | J3: =Head41 -> YTD variance | K3: =Head8 -> Full Year Forecast
A4: R thousands | B4: 1 | J4: %
A5: Capital expenditure on new assets by Asset Class/Sub-class
A7: Infrastructure | C7: =C8+C13+C17+C27+C38+C45+C53+C63+C69 -> 87139908.02 | D7: 83531379 | E7: 95412819 | F7: 2360428.77 | G7: 39227703.11 | H7: 61413505.9 | I7: =H7-G7 -> 22185802.79 | J7: =IF(I7=0,"",I7/H7) -> 0.3612528297 | K7: =K8+K13+K17+K27+K38+K45+K53+K63+K69 -> 95412819
A8: Roads Infrastructure | C8: =SUM(C9:C12) -> 63248283.37 | D8: 50531379 | E8: 56436157 | F8: 2360428.77 | G8: 36913672.68 | H8: 38218157.5 | I8: 1304484.82 | J8: 0.03413259313 | K8: =SUM(K9:K12) -> 56436157
A9: Roads | C9: 63248283.37 | D9: 50531379 | E9: 56436157 | F9: 2360428.77 | G9: 36913672.68 | H9: 38218157.5 | I9: 1304484.82 | J9: 0.03413259313 | K9: 56436157
A10: Road Structures | C10: 0 | D10: 0 | E10: 0 | F10: 0 | G10: 0 | H10: 0 | I10: 0 | K10: 0
A11: Road Furniture | I11: 0
A12: Capital Spares | C12: 0 | D12: 0 | E12: 0 | F12: 0 | G12: 0 | H12: 0 | I12: 0 | K12: 0
A13: Storm water Infrastructure | C13: =SUM(C14:C16) -> 0 | D13: 0 | E13: 0 | F13: 0 | G13: 0 | H13: 0 | I13: 0 | K13: =SUM(K14:K16) -> 0
A14: Drainage Collection | I14: 0
A15: Storm water Conveyance | C15: 0 | D15: 0 | E15: 0 | F15: 0 | G15: 0 | H15: 0 | I15: 0 | K15: 0
A16: Attenuation | I16: 0
A17: Electrical Infrastructure | C17: =SUM(C18:C26) -> 23891624.65 | D17: 33000000 | E17: 38976662 | F17: 0 | G17: 2314030.43 | H17: 23195348.4 | I17: 20881317.97 | J17: 0.9002373066 | K17: =SUM(K18:K26) -> 38976662
A18: Power Plants | I18: 0
A19: HV Substations | C19: 0 | D19: 27800000 | E19: 33212286 | F19: 0 | G19: 1943582.61 | H19: 19615793.2 | I19: 17672210.59 | J19: 0.9009174602 | K19: 33212286
A20: HV Switching Station | I20: 0
A21: HV Transmission Conductors | I21: 0
A22: MV Substations | C22: 11579031.25 | D22: 0 | E22: 0 | F22: 0 | G22: 0 | H22: 0 | I22: 0 | K22: 0
A23: MV Switching Stations | I23: 0
A24: MV Networks | I24: 0
A25: LV Networks | C25: 12312593.4 | D25: 5200000 | E25: 5764376 | F25: 0 | G25: 370447.82 | H25: 3579555.2 | I25: 3209107.38 | J25: 0.8965100971 | K25: 5764376
A26: Capital Spares | C26: 0 | D26: 0 | E26: 0 | F26: 0 | G26: 0 | H26: 0 | I26: 0 | K26: 0
A27: Water Supply Infrastructure | C27: =SUM(C28:C37) -> 0 | D27: 0 | E27: 0 | F27: 0 | G27: 0 | H27: 0 | I27: 0 | K27: =SUM(K28:K37) -> 0
A28: Dams and Weirs | I28: 0
A29: Boreholes | I29: 0
A30: Reservoirs | I30: 0
A31: Pump Stations | I31: 0
A32: Water Treatment Works | I32: 0
A33: Bulk Mains | I33: 0
A34: Distribution | I34: 0
A35: Distribution Points | I35: 0
A36: PRV Stations | I36: 0
A37: Capital Spares | I37: 0
A38: Sanitation Infrastructure | C38: =SUM(C39:C44) -> 0 | D38: 0 | E38: 0 | F38: 0 | G38: 0 | H38: 0 | I38: 0 | K38: =SUM(K39:K44) -> 0
A39: Pump Station | I39: 0
A40: Reticulation | I40: =H40-G40 -> 0 | J40: =IF(I40=0,"",I40/H40) -> 
A41: Waste Water Treatment Works | I41: =H41-G41 -> 0 | J41: =IF(I41=0,"",I41/H41) -> 
A42: Outfall Sewers | I42: =H42-G42 -> 0 | J42: =IF(I42=0,"",I42/H42) -> 
A43: Toilet Facilities | I43: 0
A44: Capital Spares | I44: 0
A45: Solid Waste Infrastructure | C45: =SUM(C46:C52) -> 0 | D45: 0 | E45: 0 | F45: 0 | G45: 0 | H45: 0 | I45: 0 | K45: =SUM(K46:K52) -> 0
A46: Landfill Sites | I46: 0
A47: Waste Transfer Stations | I47: 0
A48: Waste Processing Facilities | I48: =H48-G48 -> 0 | J48: =IF(I48=0,"",I48/H48) -> 
A49: Waste Drop-off Points | I49: 0
A50: Waste Separation Facilities | I50: 0
A51: Electricity Generation Facilities | I51: 0
A52: Capital Spares | I52: 0
A53: Rail Infrastructure | C53: =SUM(C54:C62) -> 0 | D53: 0 | E53: 0 | F53: 0 | G53: 0 | H53: 0 | I53: 0 | K53: =SUM(K54:K62) -> 0
A54: Rail Lines | I54: 0
A55: Rail Structures | I55: 0
A56: Rail Furniture | I56: 0
A57: Drainage Collection | I57: 0
A58: Storm water Conveyance | I58: 0
A59: Attenuation | I59: 0
A60: MV Substations | I60: 0
A61: LV Networks | I61: 0
A62: Capital Spares | I62: 0
A63: Coastal Infrastructure | C63: =SUM(C64:C68) -> 0 | D63: 0 | E63: 0 | F63: 0 | G63: 0 | H63: 0 | I63: 0 | K63: =SUM(K64:K68) -> 0
A64: Sand Pumps | I64: 0
A65: Piers | I65: 0
A66: Revetments | I66: 0
A67: Promenades | I67: 0
A68: Capital Spares | I68: 0
A69: Information and Communication Infrastructure | C69: =SUM(C70:C73) -> 0 | D69: 0 | E69: 0 | F69: 0 | G69: 0 | H69: 0 | I69: =H69-G69 -> 0 | K69: =SUM(K70:K73) -> 0
A70: Data Centres | I70: =H70-G70 -> 0
A71: Core Layers | I71: =H71-G71 -> 0 | J71: =IF(I71=0,"",I71/H71) -> 
A72: Distribution Layers | I72: =H72-G72 -> 0
A73: Capital Spares | I73: =H73-G73 -> 0
A75: Community Assets | C75: =+C76+C99 -> 12463052.09 | D75: 2043621 | E75: 3118523 | F75: 98000 | G75: 2260953.07 | H75: 1946885.33 | I75: =H75-G75 -> -314067.74 | J75: -0.1613180474 | K75: =+K76+K99 -> 3118523
A76: Community Facilities | C76: =SUM(C77:C98) -> 9191881.51 | D76: 2043621 | E76: 3118523 | F76: 98000 | G76: 2260953.07 | H76: 1946885.33 | I76: =H76-G76 -> -314067.74 | J76: -0.1613180474 | K76: =SUM(K77:K98) -> 3118523
A77: Halls | C77: 0 | D77: 0 | E77: 0 | F77: 0 | G77: 0 | H77: 0 | I77: 0 | K77: 0
A78: Centres | C78: 5105980.01 | D78: 0 | E78: 974902 | F78: 0 | G78: 423125 | H78: 541612.2 | I78: 118487.2 | J78: 0.2187675979 | K78: 974902
A79: Crèches | C79: 4085901.5 | D79: 2043621 | E79: 2043621 | F79: 0 | G79: 1739828.07 | H79: 1362416 | I79: -377412.07 | J79: -0.2770167629 | K79: 2043621
A80: Clinics/Care Centres | I80: 0
A81: Fire/Ambulance Stations | I81: 0
A82: Testing Stations | I82: 0
A83: Museums | I83: 0
A84: Galleries | I84: 0
A85: Theatres | I85: 0
A86: Libraries | I86: 0
A87: Cemeteries/Crematoria | C87: 0 | D87: 0 | E87: 0 | F87: 0 | G87: 0 | H87: 0 | I87: 0 | K87: 0
A88: Police | I88: 0
A89: Purls | C89: 0 | D89: 0 | E89: 100000 | F89: 98000 | G89: 98000 | H89: 42857.13 | I89: -55142.87 | J89: -1.286667353 | K89: 100000
A90: Public Open Space | I90: 0
A91: Nature Reserves | I91: 0
A92: Public Ablution Facilities | I92: 0
A93: Markets | I93: 0
A94: Stalls | I94: 0
A95: Abattoirs | I95: 0
A96: Airports | I96: 0
A97: Taxi Ranks/Bus Terminals | I97: 0
A98: Capital Spares | C98: 0 | D98: 0 | E98: 0 | F98: 0 | G98: 0 | H98: 0 | I98: 0 | K98: 0
A99: Sport and Recreation Facilities | C99: =SUM(C100:C102) -> 3271170.58 | D99: 0 | E99: 0 | F99: 0 | G99: 0 | H99: 0 | I99: 0 | K99: =SUM(K100:K102) -> 0
A100: Indoor Facilities | I100: 0
A101: Outdoor Facilities | C101: 3271170.58 | D101: 0 | E101: 0 | F101: 0 | G101: 0 | H101: 0 | I101: 0 | K101: 0
A102: Capital Spares | I102: 0
A103: Heritage assets | C103: =SUM(C104:C108) -> 0 | D103: 0 | E103: 0 | F103: 0 | G103: 0 | H103: 0 | I103: 0 | K103: =SUM(K104:K108) -> 0
A104: Monuments | I104: 0
A105: Historic Buildings | I105: 0
A106: Works of Art | I106: 0
A107: Conservation Areas | C107: 0 | D107: 0 | E107: 0 | F107: 0 | G107: 0 | H107: 0 | I107: 0 | K107: 0
A108: Other Heritage | I108: 0
I109: 0
A110: Investment properties | C110: =+C111+C114 -> 0 | D110: 0 | E110: 0 | F110: 0 | G110: 0 | H110: 0 | I110: 0 | K110: =+K111+K114 -> 0
A111: Revenue Generating | C111: =SUM(C112:C113) -> 0 | D111: 0 | E111: 0 | F111: 0 | G111: 0 | H111: 0 | I111: 0 | K111: =SUM(K112:K113) -> 0
A112: Improved Property | I112: 0
A113: Unimproved Property | I113: 0
A114: Non-revenue Generating | C114: =SUM(C115:C116) -> 0 | D114: 0 | E114: 0 | F114: 0 | G114: 0 | H114: 0 | I114: 0 | K114: =SUM(K115:K116) -> 0
A115: Improved Property | I115: 0
A116: Unimproved Property | I116: 0
A117: Other assets | C117: =+C118+C130 -> 0 | D117: 200000 | E117: 200000 | F117: 0 | G117: 0 | H117: 110478.87 | I117: 110478.87 | J117: 1 | K117: =+K118+K130 -> 200000
A118: Operational Buildings | C118: =SUM(C119:C129) -> 0 | D118: 200000 | E118: 200000 | F118: 0 | G118: 0 | H118: 110478.87 | I118: 110478.87 | J118: 1 | K118: =SUM(K119:K129) -> 200000
A119: Municipal Offices | C119: 0 | D119: 200000 | E119: 200000 | F119: 0 | G119: 0 | H119: 110478.87 | I119: 110478.87 | J119: 1 | K119: 200000
A120: Pay/Enquiry Points | I120: 0
A121: Building Plan Offices | I121: 0
A122: Workshops | I122: 0
A123: Yards | C123: 0 | D123: 0 | E123: 0 | F123: 0 | G123: 0 | H123: 0 | I123: 0 | K123: 0
A124: Stores | I124: 0
A125: Laboratories | I125: 0
A126: Training Centres | I126: 0
A127: Manufacturing Plant | I127: 0
A128: Depots | I128: 0
A129: Capital Spares | I129: 0
A130: Housing | C130: =SUM(C131:C133) -> 0 | D130: 0 | E130: 0 | F130: 0 | G130: 0 | H130: 0 | I130: 0 | K130: =SUM(K131:K133) -> 0
A131: Staff Housing | I131: 0
A132: Social Housing | I132: 0
A133: Capital Spares | I133: 0
A135: Biological or Cultivated Assets | C135: =SUM(C136:C136) -> 0 | D135: 0 | E135: 0 | F135: 0 | G135: 0 | H135: 0 | I135: =H135-G135 -> 0 | J135: =IF(I135=0,"",I135/H135) ->  | K135: =SUM(K136) -> 0
A136: Biological or Cultivated Assets | I136: =H136-G136 -> 0
A138: Intangible Assets | C138: =SUM(C139:C140) -> 0 | D138: 0 | E138: 0 | F138: 0 | G138: 0 | H138: 0 | I138: =H138-G138 -> 0 | K138: =SUM(K139:K140) -> 0
A139: Servitudes | I139: 0
A140: Licences and Rights | C140: =SUM(C141:C146) -> 0 | D140: 0 | E140: 0 | F140: 0 | G140: 0 | H140: 0 | I140: 0 | K140: =SUM(K141:K146) -> 0
A141: Water Rights | I141: 0
A142: Effluent Licenses | I142: 0
A143: Solid Waste Licenses | I143: 0
A144: Computer Software and Applications | C144: 0 | D144: 0 | E144: 0 | F144: 0 | G144: 0 | H144: 0 | I144: 0 | K144: 0
A145: Load Settlement Software Applications | I145: 0
A146: Unspecified | I146: 0
A148: Computer Equipment | C148: =SUM(C149:C149) -> 108585 | D148: 210000 | E148: 210000 | F148: 0 | G148: 182230.94 | H148: 140000 | I148: =H148-G148 -> -42230.94 | J148: =IF(I148=0,"",I148/H148) -> -0.3016495714 | K148: =SUM(K149) -> 210000
A149: Computer Equipment | C149: 108585 | D149: 210000 | E149: 210000 | F149: 0 | G149: 182230.94 | H149: 140000 | I149: =H149-G149 -> -42230.94 | J149: =IF(I149=0,"",I149/H149) -> -0.3016495714 | K149: 210000
A151: Furniture and Office Equipment | C151: =SUM(C152:C152) -> 0 | D151: 100000 | E151: 0 | F151: 0 | G151: 0 | H151: 46672 | I151: =H151-G151 -> 46672 | J151: =IF(I151=0,"",I151/H151) -> 1 | K151: =SUM(K152) -> 0
A152: Furniture and Office Equipment | C152: 0 | D152: 100000 | E152: 0 | F152: 0 | G152: 0 | H152: 46672 | I152: =H152-G152 -> 46672 | J152: =IF(I152=0,"",I152/H152) -> 1 | K152: 0
J153: =IF(I153=0,"",I153/H153) -> 
A154: Machinery and Equipment | C154: =SUM(C155:C155) -> 198000 | D154: 400000 | E154: 100000 | F154: 0 | G154: 0 | H154: 206672 | I154: =H154-G154 -> 206672 | J154: =IF(I154=0,"",I154/H154) -> 1 | K154: =SUM(K155) -> 100000
A155: Machinery and Equipment | C155: 198000 | D155: 400000 | E155: 100000 | F155: 0 | G155: 0 | H155: 206672 | I155: =H155-G155 -> 206672 | J155: =IF(I155=0,"",I155/H155) -> 1 | K155: 100000
A157: Transport Assets | C157: =SUM(C158:C158) -> 0 | D157: 0 | E157: 0 | F157: 0 | G157: 0 | H157: 0 | I157: =H157-G157 -> 0 | J157: =IF(I157=0,"",I157/H157) ->  | K157: =SUM(K158) -> 0
A158: Transport Assets | C158: 0 | D158: 0 | E158: 0 | F158: 0 | G158: 0 | H158: 0 | I158: =H158-G158 -> 0 | J158: =IF(I158=0,"",I158/H158) ->  | K158: 0
A160: Land | C160: =SUM(C161:C161) -> 0 | D160: 0 | E160: 0 | F160: 0 | G160: 0 | H160: 0 | I160: =H160-G160 -> 0 | J160: =IF(I160=0,"",I160/H160) ->  | K160: =SUM(K161) -> 0
A161: Land | C161: 0 | D161: 0 | E161: 0 | F161: 0 | G161: 0 | H161: 0 | I161: =H161-G161 -> 0 | J161: =IF(I161=0,"",I161/H161) ->  | K161: 0
A163: Zoo's, Marine and Non-biological Animals | C163: =SUM(C164:C164) -> 0 | D163: 0 | E163: 0 | F163: 0 | G163: 0 | H163: 0 | I163: =H163-G163 -> 0 | J163: =IF(I163=0,"",I163/H163) ->  | K163: =SUM(K164) -> 0
A164: Zoo's, Marine and Non-biological Animals | I164: =H164-G164 -> 0 | J164: =IF(I164=0,"",I164/H164) -> 
A166: Living resources | C166: =+C167+C170 -> 0 | D166: 0 | E166: 0 | F166: 0 | G166: 0 | H166: 0 | I166: =H166-G166 -> 0 | J166: =IF(I166=0,"",I166/H166) ->  | K166: 0
A167: Mature | C167: =+C168+C169 -> 0 | D167: 0 | E167: 0 | F167: 0 | G167: 0 | H167: 0 | I167: 0 | K167: 0
A168: Policing and Protection | I168: 0
A169: Zoological plants and animals | I169: 0
A170: Immature | C170: =+C171+C172 -> 0 | D170: =+D171+D172 -> 0 | E170: 0 | F170: 0 | G170: 0 | H170: 0 | I170: 0 | K170: =+K171+K172 -> 0
A171: Policing and Protection | I171: 0
A172: Zoological plants and animals | I172: 0
A173: Total Capital Expenditure on new assets | B173: 1 | C173: =C7+C75+C103+C110+C117+C135+C138+C148+C151+C154+C157+C160+C163+C166 -> 99909545.11 | D173: 86485000 | E173: 99041342 | F173: 2458428.77 | G173: 41670887.12 | H173: 63864214.1 | I173: =H173-G173 -> 22193326.98 | J173: =IF(I173=0,"",I173/H173) -> 0.3475080261 | K173: =K7+K75+K103+K110+K117+K135+K138+K148+K151+K154+K157+K160+K163+K166 -> 99041342
A175: =head27a -> References
A176: 1. Total Capital Expenditure on new assets (SC13a) plus Total Capital Expenditure on renewal of existing assets (SC13b) plus Total Capital Expenditure on upgrading of existing assets (SC13e) must reconcile to total capital expenditure in Table C5
A178: check balance | C178: =C173+SC13b!C173+SC13e!C173-'C5-Capex'!C40 -> 0 | D178: =D173+SC13b!D173+SC13e!D173-'C5-Capex'!D40 -> 0 | E178: =E173+SC13b!E173+SC13e!E173-'C5-Capex'!E40 -> 0 | F178: =F173+SC13b!F173+SC13e!F173-'C5-Capex'!F40 -> 0 | G178: =G173+SC13b!G173+SC13e!G173-'C5-Capex'!G40 -> 0 | H178: =H173+SC13b!H173+SC13e!H173-'C5-Capex'!H40 -> 0 | K178: =K173+SC13b!K173+SC13e!K173-'C5-Capex'!K40 -> 0

Sheet SC13b
A1: =muni& " - "&S71Sb& " - "&Head57 -> LIM351 Blouberg - Supporting Table SC13b Monthly Budget Statement - capital expenditure on renewal of existing assets by asset class - M08 February
A2: =desc -> Description | B2: =head27 -> Ref | C2: =Head1 -> 2022/23 | D2: =Head2 -> Budget Year 2023/24
C3: =Head5 -> Audited Outcome | D3: =Head6 -> Original Budget | E3: =Head7 -> Adjusted Budget | F3: =Head38 -> Monthly actual | G3: =Head39 -> YearTD actual | H3: =Head40 -> YearTD budget | I3: =Head41 -> YTD variance | J3: =Head41 -> YTD variance | K3: =Head8 -> Full Year Forecast
A4: R thousands | B4: 1 | J4: %
A5: Capital expenditure on renewal of existing assets by Asset Class/Sub-class
A7: Infrastructure | C7: =C8+C13+C17+C27+C38+C45+C53+C63+C69 -> 0 | D7: 407000 | E7: 48287000 | F7: 0 | G7: 170014.3 | H7: 9847336 | I7: =H7-G7 -> 9677321.7 | J7: =IF(I7=0,"",I7/H7) -> 0.9827349955 | K7: =K8+K13+K17+K27+K38+K45+K53+K63+K69 -> 48287000
A8: Roads Infrastructure | C8: =SUM(C9:C12) -> 0 | D8: 0 | E8: 47100000 | F8: 0 | G8: 0 | H8: 9420000 | I8: 9420000 | J8: 1 | K8: =SUM(K9:K12) -> 47100000
A9: Roads | C9: 0 | D9: 0 | E9: 47100000 | F9: 0 | G9: 0 | H9: 9420000 | I9: 9420000 | J9: 1 | K9: 47100000
A10: Road Structures | I10: 0
A11: Road Furniture | I11: 0
A12: Capital Spares | I12: 0
A13: Storm water Infrastructure | C13: =SUM(C14:C16) -> 0 | D13: 0 | E13: 0 | F13: 0 | G13: 0 | H13: 0 | I13: 0 | K13: =SUM(K14:K16) -> 0
A14: Drainage Collection | I14: 0
A15: Storm water Conveyance | I15: 0
A16: Attenuation | I16: 0
A17: Electrical Infrastructure | C17: =SUM(C18:C26) -> 0 | D17: 407000 | E17: 1187000 | F17: 0 | G17: 170014.3 | H17: 427336 | I17: 257321.7 | J17: 0.6021531067 | K17: =SUM(K18:K26) -> 1187000
A18: Power Plants | I18: 0
A19: HV Substations | I19: 0
A20: HV Switching Station | I20: 0
A21: HV Transmission Conductors | C21: 0 | D21: 0 | E21: 0 | F21: 0 | G21: 0 | H21: 0 | I21: 0 | K21: 0
A22: MV Substations | I22: 0
A23: MV Switching Stations | I23: 0
A24: MV Networks | I24: 0
A25: LV Networks | C25: 0 | D25: 0 | E25: 0 | F25: 0 | G25: 0 | H25: 0 | I25: 0 | K25: 0
A26: Capital Spares | C26: 0 | D26: 407000 | E26: 1187000 | F26: 0 | G26: 170014.3 | H26: 427336 | I26: 257321.7 | J26: 0.6021531067 | K26: 1187000
A27: Water Supply Infrastructure | C27: =SUM(C28:C37) -> 0 | D27: 0 | E27: 0 | F27: 0 | G27: 0 | H27: 0 | I27: 0 | K27: =SUM(K28:K37) -> 0
A28: Dams and Weirs | I28: 0
A29: Boreholes | C29: 0 | D29: 0 | E29: 0 | F29: 0 | G29: 0 | H29: 0 | I29: 0 | K29: 0
A30: Reservoirs | I30: 0
A31: Pump Stations | I31: 0
A32: Water Treatment Works | I32: 0
A33: Bulk Mains | I33: 0
A34: Distribution | I34: 0
A35: Distribution Points | I35: 0
A36: PRV Stations | I36: 0
A37: Capital Spares | I37: 0
A38: Sanitation Infrastructure | C38: =SUM(C39:C44) -> 0 | D38: 0 | E38: 0 | F38: 0 | G38: 0 | H38: 0 | I38: 0 | K38: =SUM(K39:K44) -> 0
A39: Pump Station | I39: 0
A40: Reticulation | I40: 0
A41: Waste Water Treatment Works | I41: 0
A42: Outfall Sewers | I42: 0
A43: Toilet Facilities | I43: 0
A44: Capital Spares | I44: 0
A45: Solid Waste Infrastructure | C45: =SUM(C46:C52) -> 0 | D45: 0 | E45: 0 | F45: 0 | G45: 0 | H45: 0 | I45: 0 | K45: =SUM(K46:K52) -> 0
A46: Landfill Sites | C46: 0 | D46: 0 | E46: 0 | F46: 0 | G46: 0 | H46: 0 | I46: 0 | K46: 0
A47: Waste Transfer Stations | I47: 0
A48: Waste Processing Facilities | I48: 0
A49: Waste Drop-off Points | I49: 0
A50: Waste Separation Facilities | I50: 0
A51: Electricity Generation Facilities | I51: 0
A52: Capital Spares | I52: 0
A53: Rail Infrastructure | C53: =SUM(C54:C62) -> 0 | D53: 0 | E53: 0 | F53: 0 | G53: 0 | H53: 0 | I53: 0 | K53: =SUM(K54:K62) -> 0
A54: Rail Lines | I54: 0
A55: Rail Structures | I55: 0
A56: Rail Furniture | I56: 0
A57: Drainage Collection | I57: 0
A58: Storm water Conveyance | I58: 0
A59: Attenuation | I59: 0
A60: MV Substations | I60: 0
A61: LV Networks | I61: 0
A62: Capital Spares | I62: 0
A63: Coastal Infrastructure | C63: =SUM(C64:C68) -> 0 | D63: 0 | E63: 0 | F63: 0 | G63: 0 | H63: 0 | I63: 0 | K63: =SUM(K64:K68) -> 0
A64: Sand Pumps | I64: 0
A65: Piers | I65: 0
A66: Revetments | I66: 0
A67: Promenades | I67: 0
A68: Capital Spares | I68: 0
A69: Information and Communication Infrastructure | C69: =SUM(C70:C73) -> 0 | D69: 0 | E69: 0 | F69: 0 | G69: 0 | H69: 0 | I69: 0 | K69: =SUM(K70:K73) -> 0
A70: Data Centres | I70: 0
A71: Core Layers | I71: 0
A72: Distribution Layers | I72: 0
A73: Capital Spares | I73: 0
A75: Community Assets | C75: =+C76+C99 -> 0 | D75: 0 | E75: 0 | F75: 0 | G75: 0 | H75: 0 | I75: 0 | K75: =+K76+K99 -> 0
A76: Community Facilities | C76: =SUM(C77:C98) -> 0 | D76: 0 | E76: 0 | F76: 0 | G76: 0 | H76: 0 | I76: 0 | K76: =SUM(K77:K98) -> 0
A77: Halls | I77: 0
A78: Centres | I78: 0
A79: Crèches | I79: 0
A80: Clinics/Care Centres | I80: 0
A81: Fire/Ambulance Stations | I81: 0
A82: Testing Stations | I82: 0
A83: Museums | I83: 0
A84: Galleries | I84: 0
A85: Theatres | I85: 0
A86: Libraries | I86: 0
A87: Cemeteries/Crematoria | C87: 0 | D87: 0 | E87: 0 | F87: 0 | G87: 0 | H87: 0 | I87: 0 | K87: 0
A88: Police | I88: 0
A89: Purls | I89: 0
A90: Public Open Space | I90: 0
A91: Nature Reserves | I91: 0
A92: Public Ablution Facilities | I92: 0
A93: Markets | I93: 0
A94: Stalls | I94: 0
A95: Abattoirs | I95: 0
A96: Airports | I96: 0
A97: Taxi Ranks/Bus Terminals | I97: 0
A98: Capital Spares | I98: 0
A99: Sport and Recreation Facilities | C99: =SUM(C100:C102) -> 0 | D99: 0 | E99: 0 | F99: 0 | G99: 0 | H99: 0 | I99: 0 | K99: =SUM(K100:K102) -> 0
A100: Indoor Facilities | I100: 0
A101: Outdoor Facilities | C101: 0 | D101: 0 | E101: 0 | F101: 0 | G101: 0 | H101: 0 | I101: =H101-G101 -> 0 | J101: =IF(I101=0,"",I101/H101) ->  | K101: 0
A102: Capital Spares | I102: 0
A103: Heritage assets | C103: =SUM(C104:C108) -> 0 | D103: 0 | E103: 0 | F103: 0 | G103: 0 | H103: 0 | I103: 0 | K103: =SUM(K104:K108) -> 0
A104: Monuments | I104: 0
A105: Historic Buildings | I105: 0
A106: Works of Art | I106: 0
A107: Conservation Areas | I107: 0
A108: Other Heritage | I108: 0
I109: 0
A110: Investment properties | C110: =+C111+C114 -> 0 | D110: 0 | E110: 0 | F110: 0 | G110: 0 | H110: 0 | I110: 0 | K110: =+K111+K114 -> 0
A111: Revenue Generating | C111: =SUM(C112:C113) -> 0 | D111: 0 | E111: 0 | F111: 0 | G111: 0 | H111: 0 | I111: 0 | K111: =SUM(K112:K113) -> 0
A112: Improved Property | I112: 0
A113: Unimproved Property | I113: 0
A114: Non-revenue Generating | C114: =SUM(C115:C116) -> 0 | D114: 0 | E114: 0 | F114: 0 | G114: 0 | H114: 0 | I114: 0 | K114: =SUM(K115:K116) -> 0
A115: Improved Property | I115: 0
A116: Unimproved Property | I116: =H116-G116 -> 0 | J116: =IF(I116=0,"",I116/H116) -> 
A117: Other assets | C117: =+C118+C130 -> 0 | D117: 0 | E117: 0 | F117: 0 | G117: 0 | H117: 0 | I117: 0 | K117: =+K118+K130 -> 0
A118: Operational Buildings | C118: =SUM(C119:C129) -> 0 | D118: 0 | E118: 0 | F118: 0 | G118: 0 | H118: 0 | I118: 0 | K118: =SUM(K119:K129) -> 0
A119: Municipal Offices | C119: 0 | D119: 0 | E119: 0 | F119: 0 | G119: 0 | H119: 0 | I119: 0 | K119: 0
A120: Pay/Enquiry Points | I120: 0
A121: Building Plan Offices | I121: 0
A122: Workshops | I122: 0
A123: Yards | I123: 0
A124: Stores | I124: 0
A125: Laboratories | I125: 0
A126: Training Centres | I126: 0
A127: Manufacturing Plant | I127: 0
A128: Depots | I128: 0
A129: Capital Spares | I129: 0
A130: Housing | C130: =SUM(C131:C133) -> 0 | D130: 0 | E130: 0 | F130: 0 | G130: 0 | H130: 0 | I130: 0 | K130: =SUM(K131:K133) -> 0
A131: Staff Housing | I131: 0
A132: Social Housing | I132: 0
A133: Capital Spares | I133: 0
A135: Biological or Cultivated Assets | C135: =SUM(C136:C136) -> 0 | D135: 0 | E135: 0 | F135: 0 | G135: 0 | H135: 0 | I135: =H135-G135 -> 0 | K135: =SUM(K136) -> 0
A136: Biological or Cultivated Assets | I136: =H136-G136 -> 0
J137: =IF(I137=0,"",I137/H137) -> 
A138: Intangible Assets | C138: =SUM(C139:C140) -> 0 | D138: 0 | E138: 0 | F138: 0 | G138: 0 | H138: 0 | I138: =H138-G138 -> 0 | K138: =SUM(K139:K140) -> 0
A139: Servitudes | I139: 0
A140: Licences and Rights | C140: =SUM(C141:C146) -> 0 | D140: 0 | E140: 0 | F140: 0 | G140: 0 | H140: 0 | I140: 0 | K140: =SUM(K141:K146) -> 0
A141: Water Rights | I141: 0
A142: Effluent Licenses | I142: 0
A143: Solid Waste Licenses | I143: 0
A144: Computer Software and Applications | I144: 0
A145: Load Settlement Software Applications | I145: 0
A146: Unspecified | I146: 0
A148: Computer Equipment | C148: =SUM(C149:C149) -> 0 | D148: 0 | E148: 0 | F148: 0 | G148: 0 | H148: 0 | I148: =H148-G148 -> 0 | J148: =IF(I148=0,"",I148/H148) ->  | K148: =SUM(K149) -> 0
A149: Computer Equipment | I149: =H149-G149 -> 0 | J149: =IF(I149=0,"",I149/H149) -> 
A151: Furniture and Office Equipment | C151: =SUM(C152:C152) -> 0 | D151: 0 | E151: 0 | F151: 0 | G151: 0 | H151: 0 | I151: =H151-G151 -> 0 | J151: =IF(I151=0,"",I151/H151) ->  | K151: =SUM(K152) -> 0
A152: Furniture and Office Equipment | C152: 0 | D152: 0 | E152: 0 | F152: 0 | G152: 0 | H152: 0 | I152: =H152-G152 -> 0 | J152: =IF(I152=0,"",I152/H152) ->  | K152: 0
J153: =IF(I153=0,"",I153/H153) -> 
A154: Machinery and Equipment | C154: =SUM(C155:C155) -> 0 | D154: 0 | E154: 0 | F154: 0 | G154: 0 | H154: 0 | I154: =H154-G154 -> 0 | J154: =IF(I154=0,"",I154/H154) ->  | K154: =SUM(K155) -> 0
A155: Machinery and Equipment | I155: =H155-G155 -> 0 | J155: =IF(I155=0,"",I155/H155) -> 
A157: Transport Assets | C157: =SUM(C158:C158) -> 0 | D157: 0 | E157: 0 | F157: 0 | G157: 0 | H157: 0 | I157: =H157-G157 -> 0 | J157: =IF(I157=0,"",I157/H157) ->  | K157: =SUM(K158) -> 0
A158: Transport Assets | I158: =H158-G158 -> 0 | J158: =IF(I158=0,"",I158/H158) -> 
A160: Land | C160: =SUM(C161:C161) -> 0 | D160: 0 | E160: 0 | F160: 0 | G160: 0 | H160: 0 | I160: =H160-G160 -> 0 | J160: =IF(I160=0,"",I160/H160) ->  | K160: =SUM(K161) -> 0
A161: Land | I161: =H161-G161 -> 0 | J161: =IF(I161=0,"",I161/H161) -> 
J162: .
A163: Zoo's, Marine and Non-biological Animals | C163: =SUM(C164:C164) -> 0 | D163: 0 | E163: 0 | F163: 0 | G163: 0 | H163: 0 | I163: =H163-G163 -> 0 | J163: =IF(I163=0,"",I163/H163) ->  | K163: =SUM(K164) -> 0
A164: Zoo's, Marine and Non-biological Animals | I164: =H164-G164 -> 0 | J164: =IF(I164=0,"",I164/H164) -> 
A166: Living resources | C166: =+C167+C170 -> 0 | D166: 0 | E166: 0 | F166: 0 | G166: 0 | H166: 0 | I166: =H166-G166 -> 0 | J166: =IF(I166=0,"",I166/H166) ->  | K166: =+K167+K170 -> 0
A167: Mature | C167: =+C168+C169 -> 0 | D167: 0 | E167: 0 | F167: 0 | G167: 0 | H167: 0 | I167: 0 | K167: =+K168+K169 -> 0
A168: Policing and Protection | I168: 0
A169: Zoological plants and animals | I169: 0
A170: Immature | C170: =+C171+C172 -> 0 | D170: 0 | E170: 0 | F170: 0 | G170: 0 | H170: 0 | I170: 0 | K170: =+K171+K172 -> 0
A171: Policing and Protection | I171: 0
A172: Zoological plants and animals | I172: 0
A173: Total Capital Expenditure on renewal of existing assets | B173: 1 | C173: =C7+C75+C103+C110+C117+C135+C138+C148+C151+C154+C157+C160+C163+C166 -> 0 | D173: 407000 | E173: 48287000 | F173: 0 | G173: 170014.3 | H173: 9847336 | I173: =H173-G173 -> 9677321.7 | J173: =IF(I173=0,"",I173/H173) -> 0.9827349955 | K173: =K7+K75+K103+K110+K117+K135+K138+K148+K151+K154+K157+K160+K163+K166 -> 48287000
A175: =head27a -> References
A176: 1. Total Capital Expenditure on new assets (SC13a) plus Total Capital Expenditure on renewal of existing assets (SC13b) plus Total Capital Expenditure on upgrading of existing assets (SC13e) must reconcile to total capital expenditure in Table C5
A178: check balance | C178: =C173+SC13a!C173+SC13e!C173-'C5-Capex'!C40 -> 0 | D178: =D173+SC13a!D173+SC13e!D173-'C5-Capex'!D40 -> 0 | E178: =E173+SC13a!E173+SC13e!E173-'C5-Capex'!E40 -> 0 | F178: =F173+SC13a!F173+SC13e!F173-'C5-Capex'!F40 -> 0 | G178: =G173+SC13a!G173+SC13e!G173-'C5-Capex'!G40 -> 0 | H178: =H173+SC13a!H173+SC13e!H173-'C5-Capex'!H40 -> 0 | K178: =K173+SC13a!K173+SC13e!K173-'C5-Capex'!K40 -> 0

Sheet SC13c
A1: =muni& " - "&S71Sc& " - "&Head57 -> LIM351 Blouberg - Supporting Table SC13c Monthly Budget Statement - expenditure on repairs and maintenance by asset class - M08 February
A2: =desc -> Description | B2: =head27 -> Ref | C2: =Head1 -> 2022/23 | D2: =Head2 -> Budget Year 2023/24
C3: =Head5 -> Audited Outcome | D3: =Head6 -> Original Budget | E3: =Head7 -> Adjusted Budget | F3: =Head38 -> Monthly actual | G3: =Head39 -> YearTD actual | H3: =Head40 -> YearTD budget | I3: =Head41 -> YTD variance | J3: =Head41 -> YTD variance | K3: =Head8 -> Full Year Forecast
A4: R thousands | B4: 1 | J4: %
A5: Repairs and maintenance expenditure by Asset Class/Sub-class
A7: Infrastructure | C7: =C8+C13+C17+C27+C38+C45+C53+C63+C69 -> 2969365.95 | D7: 6342000 | E7: 8415000 | F7: 880469.96 | G7: 5178477.19 | H7: 6064862.2 | I7: =H7-G7 -> 886385.01 | J7: =IF(I7=0,"",I7/H7) -> 0.1461508903 | K7: =K8+K13+K17+K27+K38+K45+K53+K63+K69 -> 8415000
A8: Roads Infrastructure | C8: =SUM(C9:C12) -> 1593427.18 | D8: 1934000 | E8: 807000 | F8: 59363 | G8: 284863 | H8: 1063968 | I8: 779105 | J8: 0.7322635643 | K8: =SUM(K9:K12) -> 807000
A9: Roads | C9: 1593427.18 | D9: 1934000 | E9: 807000 | F9: 59363 | G9: 284863 | H9: 1063968 | I9: 779105 | J9: 0.7322635643 | K9: 807000
A10: Road Structures | I10: 0
A11: Road Furniture | C11: 0 | D11: 0 | E11: 0 | F11: 0 | G11: 0 | H11: 0 | I11: 0 | K11: 0
A12: Capital Spares | I12: 0
A13: Storm water Infrastructure | C13: =SUM(C14:C16) -> 0 | D13: 0 | E13: 4000000 | F13: 0 | G13: 3477657.36 | H13: 2222222.2 | I13: -1255435.16 | J13: -0.5649458276 | K13: =SUM(K14:K16) -> 4000000
A14: Drainage Collection | C14: 0 | D14: 0 | E14: 0 | F14: 0 | G14: 0 | H14: 0 | I14: 0 | K14: 0
A15: Storm water Conveyance | C15: 0 | D15: 0 | E15: 4000000 | F15: 0 | G15: 3477657.36 | H15: 2222222.2 | I15: -1255435.16 | J15: -0.5649458276 | K15: 4000000
A16: Attenuation | I16: 0
A17: Electrical Infrastructure | C17: =SUM(C18:C26) -> 1375938.77 | D17: 2508000 | E17: 2108000 | F17: 821106.96 | G17: 1415956.83 | H17: 1592000 | I17: 176043.17 | J17: 0.1105798807 | K17: =SUM(K18:K26) -> 2108000
A18: Power Plants | C18: 0 | D18: 0 | E18: 0 | F18: 0 | G18: 0 | H18: 0 | I18: 0 | K18: 0
A19: HV Substations | I19: 0
A20: HV Switching Station | I20: 0
A21: HV Transmission Conductors | I21: 0
A22: MV Substations | I22: 0
A23: MV Switching Stations | I23: 0
A24: MV Networks | C24: 0 | D24: 0 | E24: 0 | F24: 0 | G24: 0 | H24: 0 | I24: 0 | K24: 0
A25: LV Networks | C25: 1375938.77 | D25: 2508000 | E25: 2108000 | F25: 821106.96 | G25: 1415956.83 | H25: 1592000 | I25: 176043.17 | J25: 0.1105798807 | K25: 2108000
A26: Capital Spares | I26: 0
A27: Water Supply Infrastructure | C27: =SUM(C28:C37) -> 0 | D27: 0 | E27: 0 | F27: 0 | G27: 0 | H27: 0 | I27: 0 | K27: =SUM(K28:K37) -> 0
A28: Dams and Weirs | I28: 0
A29: Boreholes | I29: 0
A30: Reservoirs | I30: 0
A31: Pump Stations | I31: 0
A32: Water Treatment Works | I32: 0
A33: Bulk Mains | I33: 0
A34: Distribution | I34: 0
A35: Distribution Points | I35: 0
A36: PRV Stations | I36: 0
A37: Capital Spares | I37: 0
A38: Sanitation Infrastructure | C38: =SUM(C39:C44) -> 0 | D38: 0 | E38: 0 | F38: 0 | G38: 0 | H38: 0 | I38: 0 | K38: =SUM(K39:K44) -> 0
A39: Pump Station | I39: 0
A40: Reticulation | I40: 0
A41: Waste Water Treatment Works | I41: 0
A42: Outfall Sewers | I42: 0
A43: Toilet Facilities | I43: 0
A44: Capital Spares | I44: 0
A45: Solid Waste Infrastructure | C45: =SUM(C46:C52) -> 0 | D45: 0 | E45: 0 | F45: 0 | G45: 0 | H45: 0 | I45: 0 | K45: =SUM(K46:K52) -> 0
A46: Landfill Sites | I46: 0
A47: Waste Transfer Stations | I47: 0
A48: Waste Processing Facilities | I48: 0
A49: Waste Drop-off Points | I49: 0
A50: Waste Separation Facilities | I50: 0
A51: Electricity Generation Facilities | I51: 0
A52: Capital Spares | I52: 0
A53: Rail Infrastructure | C53: =SUM(C54:C62) -> 0 | D53: 0 | E53: 0 | F53: 0 | G53: 0 | H53: 0 | I53: 0 | K53: =SUM(K54:K62) -> 0
A54: Rail Lines | I54: 0
A55: Rail Structures | I55: 0
A56: Rail Furniture | I56: 0
A57: Drainage Collection | I57: 0
A58: Storm water Conveyance | I58: 0
A59: Attenuation | I59: 0
A60: MV Substations | I60: 0
A61: LV Networks | I61: 0
A62: Capital Spares | I62: 0
A63: Coastal Infrastructure | C63: =SUM(C64:C68) -> 0 | D63: 0 | E63: 0 | F63: 0 | G63: 0 | H63: 0 | I63: 0 | K63: =SUM(K64:K68) -> 0
A64: Sand Pumps | I64: 0
A65: Piers | I65: 0
A66: Revetments | I66: 0
A67: Promenades | I67: 0
A68: Capital Spares | I68: 0
A69: Information and Communication Infrastructure | C69: =SUM(C70:C73) -> 0 | D69: 1900000 | E69: 1500000 | F69: 0 | G69: 0 | H69: 1186672 | I69: 1186672 | J69: 1 | K69: =SUM(K70:K73) -> 1500000
A70: Data Centres | C70: 0 | D70: 1800000 | E70: 1500000 | F70: 0 | G70: 0 | H70: 1140000 | I70: 1140000 | J70: 1 | K70: 1500000
A71: Core Layers | C71: 0 | D71: 100000 | E71: 0 | F71: 0 | G71: 0 | H71: 46672 | I71: 46672 | J71: 1 | K71: 0
A72: Distribution Layers | I72: 0
A73: Capital Spares | I73: 0
A75: Community Assets | C75: =+C76+C99 -> 84505.9 | D75: 300000 | E75: 310000 | F75: 29840 | G75: 130260 | H75: 202008 | I75: 71748 | J75: 0.3551740525 | K75: =+K76+K99 -> 310000
A76: Community Facilities | C76: =SUM(C77:C98) -> 84505.9 | D76: 100000 | E76: 130000 | F76: 0 | G76: 0 | H76: 72672 | I76: 72672 | J76: 1 | K76: =SUM(K77:K98) -> 130000
A77: Halls | C77: 84505.9 | D77: 100000 | E77: 130000 | F77: 0 | G77: 0 | H77: 72672 | I77: 72672 | J77: 1 | K77: 130000
A78: Centres | I78: 0
A79: Crèches | I79: 0
A80: Clinics/Care Centres | C80: 0 | D80: 0 | E80: 0 | F80: 0 | G80: 0 | H80: 0 | I80: 0 | K80: 0
A81: Fire/Ambulance Stations | I81: 0
A82: Testing Stations | I82: 0
A83: Museums | I83: 0
A84: Galleries | I84: 0
A85: Theatres | I85: 0
A86: Libraries | I86: 0
A87: Cemeteries/Crematoria | I87: 0
A88: Police | I88: 0
A89: Purls | I89: 0
A90: Public Open Space | I90: 0
A91: Nature Reserves | I91: 0
A92: Public Ablution Facilities | C92: 0 | D92: 0 | E92: 0 | F92: 0 | G92: 0 | H92: 0 | I92: 0 | K92: 0
A93: Markets | I93: 0
A94: Stalls | I94: 0
A95: Abattoirs | I95: 0
A96: Airports | I96: 0
A97: Taxi Ranks/Bus Terminals | I97: 0
A98: Capital Spares | I98: 0
A99: Sport and Recreation Facilities | C99: =SUM(C100:C102) -> 0 | D99: 200000 | E99: 180000 | F99: 29840 | G99: 130260 | H99: 129336 | I99: -924 | J99: -0.007144182594 | K99: =SUM(K100:K102) -> 180000
A100: Indoor Facilities | I100: 0
A101: Outdoor Facilities | C101: 0 | D101: 200000 | E101: 180000 | F101: 29840 | G101: 130260 | H101: 129336 | I101: =H101-G101 -> -924 | J101: =IF(I101=0,"",I101/H101) -> -0.007144182594 | K101: 180000
A102: Capital Spares | I102: 0
A103: Heritage assets | C103: =SUM(C104:C108) -> 0 | D103: 0 | E103: 0 | F103: 0 | G103: 0 | H103: 0 | I103: 0 | K103: =SUM(K104:K108) -> 0
A104: Monuments | I104: 0
A105: Historic Buildings | I105: 0
A106: Works of Art | I106: 0
A107: Conservation Areas | I107: 0
A108: Other Heritage | I108: 0
I109: 0
A110: Investment properties | C110: =+C111+C114 -> 0 | D110: 0 | E110: 0 | F110: 0 | G110: 0 | H110: 0 | I110: 0 | K110: =+K111+K114 -> 0
A111: Revenue Generating | C111: =SUM(C112:C113) -> 0 | D111: 0 | E111: 0 | F111: 0 | G111: 0 | H111: 0 | I111: 0 | K111: =SUM(K112:K113) -> 0
A112: Improved Property | I112: 0
A113: Unimproved Property | I113: 0
A114: Non-revenue Generating | C114: =SUM(C115:C116) -> 0 | D114: 0 | E114: 0 | F114: 0 | G114: 0 | H114: 0 | I114: 0 | K114: =SUM(K115:K116) -> 0
A115: Improved Property | I115: 0
A116: Unimproved Property | I116: =H116-G116 -> 0 | J116: =IF(I116=0,"",I116/H116) -> 
A117: Other assets | C117: =+C118+C130 -> 151226.98 | D117: 455000 | E117: 548420 | F117: 9342.95 | G117: 378482.25 | H117: 322020 | I117: -56462.25 | J117: -0.1753377119 | K117: =+K118+K130 -> 548420
A118: Operational Buildings | C118: =SUM(C119:C129) -> 151226.98 | D118: 455000 | E118: 548420 | F118: 9342.95 | G118: 378482.25 | H118: 322020 | I118: -56462.25 | J118: -0.1753377119 | K118: =SUM(K119:K129) -> 548420
A119: Municipal Offices | C119: 151226.98 | D119: 455000 | E119: 548420 | F119: 9342.95 | G119: 378482.25 | H119: 322020 | I119: -56462.25 | J119: -0.1753377119 | K119: 548420
A120: Pay/Enquiry Points | I120: 0
A121: Building Plan Offices | I121: 0
A122: Workshops | I122: 0
A123: Yards | C123: 0 | D123: 0 | E123: 0 | F123: 0 | G123: 0 | H123: 0 | I123: 0 | K123: 0
A124: Stores | I124: 0
A125: Laboratories | I125: 0
A126: Training Centres | I126: 0
A127: Manufacturing Plant | I127: 0
A128: Depots | I128: 0
A129: Capital Spares | I129: 0
A130: Housing | C130: =SUM(C131:C133) -> 0 | D130: 0 | E130: 0 | F130: 0 | G130: 0 | H130: 0 | I130: 0 | K130: =SUM(K131:K133) -> 0
A131: Staff Housing | I131: 0
A132: Social Housing | I132: 0
A133: Capital Spares | I133: 0
A135: Biological or Cultivated Assets | C135: =SUM(C136:C136) -> 0 | D135: 0 | E135: 0 | F135: 0 | G135: 0 | H135: 0 | I135: =H135-G135 -> 0 | K135: =SUM(K136) -> 0
A136: Biological or Cultivated Assets | I136: =H136-G136 -> 0
A138: Intangible Assets | C138: =SUM(C139:C140) -> 0 | D138: 0 | E138: 0 | F138: 0 | G138: 0 | H138: 0 | I138: =H138-G138 -> 0 | K138: =SUM(K139:K140) -> 0
A139: Servitudes | I139: 0
A140: Licences and Rights | C140: =SUM(C141:C146) -> 0 | D140: 0 | E140: 0 | F140: 0 | G140: 0 | H140: 0 | I140: 0 | K140: =SUM(K141:K146) -> 0
A141: Water Rights | I141: 0
A142: Effluent Licenses | I142: 0
A143: Solid Waste Licenses | I143: 0
A144: Computer Software and Applications | I144: 0
A145: Load Settlement Software Applications | I145: 0
A146: Unspecified | I146: 0
A148: Computer Equipment | C148: =SUM(C149:C149) -> 322955 | D148: 350192 | E148: 350192 | F148: 0 | G148: 216000 | H148: 233464 | I148: =H148-G148 -> 17464 | J148: =IF(I148=0,"",I148/H148) -> 0.07480382414 | K148: =SUM(K149) -> 350192
A149: Computer Equipment | C149: 322955 | D149: 350192 | E149: 350192 | F149: 0 | G149: 216000 | H149: 233464 | I149: =H149-G149 -> 17464 | J149: =IF(I149=0,"",I149/H149) -> 0.07480382414 | K149: 350192
A151: Furniture and Office Equipment | C151: =SUM(C152:C152) -> 0 | D151: 121232 | E151: 71232 | F151: 0 | G151: 24360 | H151: 70824 | I151: =H151-G151 -> 46464 | J151: =IF(I151=0,"",I151/H151) -> 0.656048797 | K151: =SUM(K152) -> 71232
A152: Furniture and Office Equipment | C152: 0 | D152: 121232 | E152: 71232 | F152: 0 | G152: 24360 | H152: 70824 | I152: =H152-G152 -> 46464 | J152: =IF(I152=0,"",I152/H152) -> 0.656048797 | K152: 71232
J153: =IF(I153=0,"",I153/H153) -> 
A154: Machinery and Equipment | C154: =SUM(C155:C155) -> 85594.63 | D154: 50000 | E154: 0 | F154: 0 | G154: 0 | H154: 23336 | I154: =H154-G154 -> 23336 | J154: =IF(I154=0,"",I154/H154) -> 1 | K154: =SUM(K155) -> 0
A155: Machinery and Equipment | C155: 85594.63 | D155: 50000 | E155: 0 | F155: 0 | G155: 0 | H155: 23336 | I155: =H155-G155 -> 23336 | J155: =IF(I155=0,"",I155/H155) -> 1 | K155: 0
A157: Transport Assets | C157: =SUM(C158:C158) -> 2217809.05 | D157: 1201761 | E157: 1201761 | F157: 1679.76 | G157: 274804.32 | H157: 801184 | I157: =H157-G157 -> 526379.68 | J157: =IF(I157=0,"",I157/H157) -> 0.6570022367 | K157: =SUM(K158) -> 1201761
A158: Transport Assets | C158: 2217809.05 | D158: 1201761 | E158: 1201761 | F158: 1679.76 | G158: 274804.32 | H158: 801184 | I158: =H158-G158 -> 526379.68 | J158: =IF(I158=0,"",I158/H158) -> 0.6570022367 | K158: 1201761
A160: Land | C160: =SUM(C161:C161) -> 0 | D160: 0 | E160: 0 | F160: 0 | G160: 0 | H160: 0 | I160: =H160-G160 -> 0 | J160: =IF(I160=0,"",I160/H160) ->  | K160: =SUM(K161) -> 0
A161: Land | I161: =H161-G161 -> 0 | J161: =IF(I161=0,"",I161/H161) -> 
A163: Zoo's, Marine and Non-biological Animals | C163: =SUM(C164:C164) -> 0 | D163: 0 | E163: 0 | F163: 0 | G163: 0 | H163: 0 | I163: =H163-G163 -> 0 | J163: =IF(I163=0,"",I163/H163) ->  | K163: =SUM(K164) -> 0
A164: Zoo's, Marine and Non-biological Animals | I164: =H164-G164 -> 0 | J164: =IF(I164=0,"",I164/H164) -> 
A166: Living resources | C166: =+C167+C170 -> 0 | D166: 0 | E166: 0 | F166: 0 | G166: 0 | H166: 0 | I166: =H166-G166 -> 0 | J166: =IF(I166=0,"",I166/H166) ->  | K166: =+K167+K170 -> 0
A167: Mature | C167: =+C168+C169 -> 0 | D167: 0 | E167: 0 | F167: 0 | G167: 0 | H167: 0 | I167: 0 | K167: =+K168+K169 -> 0
A168: Policing and Protection | I168: 0
A169: Zoological plants and animals | I169: 0
A170: Immature | C170: =+C171+C172 -> 0 | D170: 0 | E170: 0 | F170: 0 | G170: 0 | H170: 0 | I170: 0 | K170: =+K171+K172 -> 0
A171: Policing and Protection | I171: 0
A172: Zoological plants and animals | I172: 0
A173: Total Repairs and Maintenance Expenditure | B173: 1 | C173: =C7+C75+C103+C110+C117+C135+C138+C148+C151+C154+C157+C160+C163+C166 -> 5831457.51 | D173: 8820185 | E173: 10896605 | F173: 921332.67 | G173: 6202383.76 | H173: 7717698.2 | I173: =H173-G173 -> 1515314.44 | J173: =IF(I173=0,"",I173/H173) -> 0.1963427956 | K173: =K7+K75+K103+K110+K117+K135+K138+K148+K151+K154+K157+K160+K163+K166 -> 10896605

Sheet SC13d
A1: =muni& " - "&S71Sd& " - "&Head57 -> LIM351 Blouberg - Supporting Table SC13d Monthly Budget Statement - depreciation by asset class - M08 February
A2: =desc -> Description | B2: =head27 -> Ref | C2: =Head1 -> 2022/23 | D2: =Head2 -> Budget Year 2023/24
C3: =Head5 -> Audited Outcome | D3: =Head6 -> Original Budget | E3: =Head7 -> Adjusted Budget | F3: =Head38 -> Monthly actual | G3: =Head39 -> YearTD actual | H3: =Head40 -> YearTD budget | I3: =Head41 -> YTD variance | J3: =Head41 -> YTD variance | K3: =Head8 -> Full Year Forecast
A4: R thousands | B4: 1 | J4: %
A5: Depreciation by Asset Class/Sub-class
A7: Infrastructure | C7: =C8+C13+C17+C27+C38+C45+C53+C63+C69 -> 19505753 | D7: 26280086 | E7: 26280086 | F7: 0 | G7: 0 | H7: 17520088 | I7: =H7-G7 -> 17520088 | J7: =IF(I7=0,"",I7/H7) -> 1 | K7: =K8+K13+K17+K27+K38+K45+K53+K63+K69 -> 26280086
A8: Roads Infrastructure | C8: =SUM(C9:C12) -> 5179401 | D8: 8353121 | E8: 8353121 | F8: 0 | G8: 0 | H8: 5568760 | I8: 5568760 | J8: 1 | K8: =SUM(K9:K12) -> 8353121
A9: Roads | C9: 5179401 | D9: 3979827 | E9: 3979827 | F9: 0 | G9: 0 | H9: 2653224 | I9: 2653224 | J9: 1 | K9: 3979827
A10: Road Structures | C10: 0 | D10: 1034294 | E10: 1034294 | F10: 0 | G10: 0 | H10: 689536 | I10: 689536 | J10: 1 | K10: 1034294
A11: Road Furniture | C11: 0 | D11: 3339000 | E11: 3339000 | F11: 0 | G11: 0 | H11: 2226000 | I11: 2226000 | J11: 1 | K11: 3339000
A12: Capital Spares | C12: 0 | D12: 0 | E12: 0 | F12: 0 | G12: 0 | H12: 0 | I12: 0 | K12: 0
A13: Storm water Infrastructure | C13: =SUM(C14:C16) -> 0 | D13: 0 | E13: 0 | F13: 0 | G13: 0 | H13: 0 | I13: 0 | K13: =SUM(K14:K16) -> 0
A14: Drainage Collection | C14: 0 | D14: 0 | E14: 0 | F14: 0 | G14: 0 | H14: 0 | I14: 0 | K14: 0
A15: Storm water Conveyance | C15: 0 | D15: 0 | E15: 0 | F15: 0 | G15: 0 | H15: 0 | I15: 0 | K15: 0
A16: Attenuation | C16: 0 | D16: 0 | E16: 0 | F16: 0 | G16: 0 | H16: 0 | I16: 0 | K16: 0
A17: Electrical Infrastructure | C17: =SUM(C18:C26) -> 14326352 | D17: 16257465 | E17: 16257465 | F17: 0 | G17: 0 | H17: 10838328 | I17: 10838328 | J17: 1 | K17: =SUM(K18:K26) -> 16257465
A18: Power Plants | C18: 0 | D18: 0 | E18: 0 | F18: 0 | G18: 0 | H18: 0 | I18: 0 | K18: 0
A19: HV Substations | C19: 0 | D19: 200000 | E19: 200000 | F19: 0 | G19: 0 | H19: 133336 | I19: 133336 | J19: 1 | K19: 200000
A20: HV Switching Station | C20: 0 | D20: 69006 | E20: 69006 | F20: 0 | G20: 0 | H20: 46008 | I20: 46008 | J20: 1 | K20: 69006
A21: HV Transmission Conductors | C21: 0 | D21: 1118460 | E21: 1118460 | F21: 0 | G21: 0 | H21: 745640 | I21: 745640 | J21: 1 | K21: 1118460
A22: MV Substations | C22: 0 | D22: 0 | E22: 0 | F22: 0 | G22: 0 | H22: 0 | I22: 0 | K22: 0
A23: MV Switching Stations | C23: 0 | D23: 674478 | E23: 674478 | F23: 0 | G23: 0 | H23: 449656 | I23: 449656 | J23: 1 | K23: 674478
A24: MV Networks | C24: 0 | D24: 0 | E24: 0 | F24: 0 | G24: 0 | H24: 0 | I24: 0 | K24: 0
A25: LV Networks | C25: 14326352 | D25: 10856521 | E25: 10856521 | F25: 0 | G25: 0 | H25: 7237688 | I25: 7237688 | J25: 1 | K25: 10856521
A26: Capital Spares | C26: 0 | D26: 3339000 | E26: 3339000 | F26: 0 | G26: 0 | H26: 2226000 | I26: 2226000 | J26: 1 | K26: 3339000
A27: Water Supply Infrastructure | C27: =SUM(C28:C37) -> 0 | D27: 0 | E27: 0 | F27: 0 | G27: 0 | H27: 0 | I27: 0 | K27: =SUM(K28:K37) -> 0
A28: Dams and Weirs | C28: 0 | D28: 0 | E28: 0 | F28: 0 | G28: 0 | H28: 0 | I28: 0 | K28: 0
A29: Boreholes | C29: 0 | D29: 0 | E29: 0 | F29: 0 | G29: 0 | H29: 0 | I29: 0 | K29: 0
A30: Reservoirs | I30: 0
A31: Pump Stations | I31: 0
A32: Water Treatment Works | I32: 0
A33: Bulk Mains | I33: 0
A34: Distribution | I34: 0
A35: Distribution Points | I35: 0
A36: PRV Stations | I36: 0
A37: Capital Spares | I37: 0
A38: Sanitation Infrastructure | C38: =SUM(C39:C44) -> 0 | D38: 0 | E38: 0 | F38: 0 | G38: 0 | H38: 0 | I38: 0 | K38: =SUM(K39:K44) -> 0
A39: Pump Station | I39: 0
A40: Reticulation | I40: 0
A41: Waste Water Treatment Works | I41: 0
A42: Outfall Sewers | I42: 0
A43: Toilet Facilities | I43: 0
A44: Capital Spares | I44: 0
A45: Solid Waste Infrastructure | C45: =SUM(C46:C52) -> 0 | D45: 1669500 | E45: 1669500 | F45: 0 | G45: 0 | H45: 1113000 | I45: 1113000 | J45: 1 | K45: =SUM(K46:K52) -> 1669500
A46: Landfill Sites | C46: 0 | D46: 1669500 | E46: 1669500 | F46: 0 | G46: 0 | H46: 1113000 | I46: 1113000 | J46: 1 | K46: 1669500
A47: Waste Transfer Stations | C47: 0 | D47: 0 | E47: 0 | F47: 0 | G47: 0 | H47: 0 | I47: 0 | K47: 0
A48: Waste Processing Facilities | C48: 0 | D48: 0 | E48: 0 | F48: 0 | G48: 0 | H48: 0 | I48: 0 | K48: 0
A49: Waste Drop-off Points | C49: 0 | D49: 0 | E49: 0 | F49: 0 | G49: 0 | H49: 0 | I49: 0 | K49: 0
A50: Waste Separation Facilities | C50: 0 | D50: 0 | E50: 0 | F50: 0 | G50: 0 | H50: 0 | I50: 0 | K50: 0
A51: Electricity Generation Facilities | C51: 0 | D51: 0 | E51: 0 | F51: 0 | G51: 0 | H51: 0 | I51: 0 | K51: 0
A52: Capital Spares | C52: 0 | D52: 0 | E52: 0 | F52: 0 | G52: 0 | H52: 0 | I52: 0 | K52: 0
A53: Rail Infrastructure | C53: =SUM(C54:C62) -> 0 | D53: 0 | E53: 0 | F53: 0 | G53: 0 | H53: 0 | I53: 0 | K53: =SUM(K54:K62) -> 0
A54: Rail Lines | I54: 0
A55: Rail Structures | I55: 0
A56: Rail Furniture | I56: 0
A57: Drainage Collection | I57: 0
A58: Storm water Conveyance | I58: 0
A59: Attenuation | I59: 0
A60: MV Substations | I60: 0
A61: LV Networks | I61: 0
A62: Capital Spares | I62: 0
A63: Coastal Infrastructure | C63: =SUM(C64:C68) -> 0 | D63: 0 | E63: 0 | F63: 0 | G63: 0 | H63: 0 | I63: 0 | K63: =SUM(K64:K68) -> 0
A64: Sand Pumps | I64: 0
A65: Piers | I65: 0
A66: Revetments | I66: 0
A67: Promenades | I67: 0
A68: Capital Spares | I68: 0
A69: Information and Communication Infrastructure | C69: =SUM(C70:C73) -> 0 | D69: 0 | E69: 0 | F69: 0 | G69: 0 | H69: 0 | I69: 0 | K69: =SUM(K70:K73) -> 0
A70: Data Centres | I70: 0
A71: Core Layers | I71: 0
A72: Distribution Layers | I72: 0
A73: Capital Spares | I73: 0
A75: Community Assets | C75: =+C76+C99 -> 8035493.86 | D75: 4622350 | E75: 4622350 | F75: 0 | G75: 0 | H75: 3081576 | I75: 3081576 | J75: 1 | K75: =+K76+K99 -> 4622350
A76: Community Facilities | C76: =SUM(C77:C98) -> 8035493.86 | D76: 4622350 | E76: 4622350 | F76: 0 | G76: 0 | H76: 3081576 | I76: 3081576 | J76: 1 | K76: =SUM(K77:K98) -> 4622350
A77: Halls | C77: 0 | D77: 723450 | E77: 723450 | F77: 0 | G77: 0 | H77: 482304 | I77: 482304 | J77: 1 | K77: 723450
A78: Centres | C78: 2844528.04 | D78: 2003400 | E78: 2003400 | F78: 0 | G78: 0 | H78: 1335600 | I78: 1335600 | J78: 1 | K78: 2003400
A79: Crèches | C79: 4813231 | D79: 226000 | E79: 226000 | F79: 0 | G79: 0 | H79: 150672 | I79: 150672 | J79: 1 | K79: 226000
A80: Clinics/Care Centres | C80: 0 | D80: 0 | E80: 0 | F80: 0 | G80: 0 | H80: 0 | I80: 0 | K80: 0
A81: Fire/Ambulance Stations | C81: 0 | D81: 222600 | E81: 222600 | F81: 0 | G81: 0 | H81: 148400 | I81: 148400 | J81: 1 | K81: 222600
A82: Testing Stations | C82: 0 | D82: 667800 | E82: 667800 | F82: 0 | G82: 0 | H82: 445200 | I82: 445200 | J82: 1 | K82: 667800
A83: Museums | C83: 0 | D83: 0 | E83: 0 | F83: 0 | G83: 0 | H83: 0 | I83: 0 | K83: 0
A84: Galleries | C84: 0 | D84: 0 | E84: 0 | F84: 0 | G84: 0 | H84: 0 | I84: 0 | K84: 0
A85: Theatres | C85: 0 | D85: 0 | E85: 0 | F85: 0 | G85: 0 | H85: 0 | I85: 0 | K85: 0
A86: Libraries | C86: 0 | D86: 0 | E86: 0 | F86: 0 | G86: 0 | H86: 0 | I86: 0 | K86: 0
A87: Cemeteries/Crematoria | C87: 0 | D87: 222600 | E87: 222600 | F87: 0 | G87: 0 | H87: 148400 | I87: 148400 | J87: 1 | K87: 222600
A88: Police | C88: 0 | D88: 0 | E88: 0 | F88: 0 | G88: 0 | H88: 0 | I88: 0 | K88: 0
A89: Purls | C89: 0 | D89: 0 | E89: 0 | F89: 0 | G89: 0 | H89: 0 | I89: 0 | K89: 0
A90: Public Open Space | C90: 0 | D90: 0 | E90: 0 | F90: 0 | G90: 0 | H90: 0 | I90: 0 | K90: 0
A91: Nature Reserves | C91: 0 | D91: 0 | E91: 0 | F91: 0 | G91: 0 | H91: 0 | I91: 0 | K91: 0
A92: Public Ablution Facilities | C92: 0 | D92: 0 | E92: 0 | F92: 0 | G92: 0 | H92: 0 | I92: 0 | K92: 0
A93: Markets | C93: 0 | D93: 0 | E93: 0 | F93: 0 | G93: 0 | H93: 0 | I93: 0 | K93: 0
A94: Stalls | C94: 0 | D94: 0 | E94: 0 | F94: 0 | G94: 0 | H94: 0 | I94: 0 | K94: 0
A95: Abattoirs | C95: 0 | D95: 0 | E95: 0 | F95: 0 | G95: 0 | H95: 0 | I95: 0 | K95: 0
A96: Airports | C96: 0 | D96: 0 | E96: 0 | F96: 0 | G96: 0 | H96: 0 | I96: 0 | K96: 0
A97: Taxi Ranks/Bus Terminals | C97: 377734.82 | D97: 556500 | E97: 556500 | F97: 0 | G97: 0 | H97: 371000 | I97: 371000 | J97: 1 | K97: 556500
A98: Capital Spares | I98: 0
A99: Sport and Recreation Facilities | C99: =SUM(C100:C102) -> 0 | D99: 0 | E99: 0 | F99: 0 | G99: 0 | H99: 0 | I99: 0 | K99: =SUM(K100:K102) -> 0
A100: Indoor Facilities | I100: 0
A101: Outdoor Facilities | I101: =H101-G101 -> 0 | J101: =IF(I101=0,"",I101/H101) -> 
A102: Capital Spares | I102: 0
A103: Heritage assets | C103: =SUM(C104:C108) -> 0 | D103: 0 | E103: 0 | F103: 0 | G103: 0 | H103: 0 | I103: 0 | K103: =SUM(K104:K108) -> 0
A104: Monuments | I104: 0
A105: Historic Buildings | I105: 0
A106: Works of Art | I106: 0
A107: Conservation Areas | I107: 0
A108: Other Heritage | C108: 0 | D108: 0 | E108: 0 | F108: 0 | G108: 0 | H108: 0 | I108: 0 | K108: 0
I109: 0
A110: Investment properties | C110: =+C111+C114 -> 0 | D110: 0 | E110: 0 | F110: 0 | G110: 0 | H110: 0 | I110: 0 | K110: =+K111+K114 -> 0
A111: Revenue Generating | C111: =SUM(C112:C113) -> 0 | D111: 0 | E111: 0 | F111: 0 | G111: 0 | H111: 0 | I111: 0 | K111: =SUM(K112:K113) -> 0
A112: Improved Property | C112: 0 | D112: 0 | E112: 0 | F112: 0 | G112: 0 | H112: 0 | I112: 0 | K112: 0
A113: Unimproved Property | C113: 0 | D113: 0 | E113: 0 | F113: 0 | G113: 0 | H113: 0 | I113: 0 | K113: 0
A114: Non-revenue Generating | C114: =SUM(C115:C116) -> 0 | D114: 0 | E114: 0 | F114: 0 | G114: 0 | H114: 0 | I114: 0 | K114: =SUM(K115:K116) -> 0
A115: Improved Property | I115: 0
A116: Unimproved Property | I116: =H116-G116 -> 0 | J116: =IF(I116=0,"",I116/H116) -> 
A117: Other assets | C117: =+C118+C130 -> 0 | D117: 1836450 | E117: 1836450 | F117: 0 | G117: 0 | H117: 1224304 | I117: 1224304 | J117: 1 | K117: =+K118+K130 -> 1836450
A118: Operational Buildings | C118: =SUM(C119:C129) -> 0 | D118: 1836450 | E118: 1836450 | F118: 0 | G118: 0 | H118: 1224304 | I118: 1224304 | J118: 1 | K118: =SUM(K119:K129) -> 1836450
A119: Municipal Offices | C119: 0 | D119: 1446900 | E119: 1446900 | F119: 0 | G119: 0 | H119: 964600 | I119: 964600 | J119: 1 | K119: 1446900
A120: Pay/Enquiry Points | C120: 0 | D120: 222600 | E120: 222600 | F120: 0 | G120: 0 | H120: 148400 | I120: 148400 | J120: 1 | K120: 222600
A121: Building Plan Offices | C121: 0 | D121: 0 | E121: 0 | F121: 0 | G121: 0 | H121: 0 | I121: 0 | K121: 0
A122: Workshops | C122: 0 | D122: 0 | E122: 0 | F122: 0 | G122: 0 | H122: 0 | I122: 0 | K122: 0
A123: Yards | C123: 0 | D123: 0 | E123: 0 | F123: 0 | G123: 0 | H123: 0 | I123: 0 | K123: 0
A124: Stores | C124: 0 | D124: 166950 | E124: 166950 | F124: 0 | G124: 0 | H124: 111304 | I124: 111304 | J124: 1 | K124: 166950
A125: Laboratories | C125: 0 | D125: 0 | E125: 0 | F125: 0 | G125: 0 | H125: 0 | I125: 0 | K125: 0
A126: Training Centres | C126: 0 | D126: 0 | E126: 0 | F126: 0 | G126: 0 | H126: 0 | I126: 0 | K126: 0
A127: Manufacturing Plant | C127: 0 | D127: 0 | E127: 0 | F127: 0 | G127: 0 | H127: 0 | I127: 0 | K127: 0
A128: Depots | C128: 0 | D128: 0 | E128: 0 | F128: 0 | G128: 0 | H128: 0 | I128: 0 | K128: 0
A129: Capital Spares | C129: 0 | D129: 0 | E129: 0 | F129: 0 | G129: 0 | H129: 0 | I129: 0 | K129: 0
A130: Housing | C130: =SUM(C131:C133) -> 0 | D130: 0 | E130: 0 | F130: 0 | G130: 0 | H130: 0 | I130: 0 | K130: =SUM(K131:K133) -> 0
A131: Staff Housing | C131: 0 | D131: 0 | E131: 0 | F131: 0 | G131: 0 | H131: 0 | I131: 0 | K131: 0
A132: Social Housing | C132: 0 | D132: 0 | E132: 0 | F132: 0 | G132: 0 | H132: 0 | I132: 0 | K132: 0
A133: Capital Spares | C133: 0 | D133: 0 | E133: 0 | F133: 0 | G133: 0 | H133: 0 | I133: 0 | K133: 0
A135: Biological or Cultivated Assets | C135: =SUM(C136:C136) -> 0 | D135: 0 | E135: 0 | F135: 0 | G135: 0 | H135: 0 | I135: =H135-G135 -> 0 | K135: =SUM(K136) -> 0
A136: Biological or Cultivated Assets | I136: =H136-G136 -> 0
A138: Intangible Assets | C138: =SUM(C139:C140) -> 65894.76 | D138: 250000 | E138: 250000 | F138: 0 | G138: 0 | H138: 166672 | I138: =H138-G138 -> 166672 | J138: 1 | K138: =SUM(K139:K140) -> 250000
A139: Servitudes | I139: 0
A140: Licences and Rights | C140: =SUM(C141:C146) -> 65894.76 | D140: 250000 | E140: 250000 | F140: 0 | G140: 0 | H140: 166672 | I140: 166672 | J140: 1 | K140: =SUM(K141:K146) -> 250000
A141: Water Rights | I141: 0
A142: Effluent Licenses | I142: 0
A143: Solid Waste Licenses | I143: 0
A144: Computer Software and Applications | C144: 65894.76 | D144: 250000 | E144: 250000 | F144: 0 | G144: 0 | H144: 166672 | I144: 166672 | J144: 1 | K144: 250000
A145: Load Settlement Software Applications | I145: 0
A146: Unspecified | C146: 0 | D146: 0 | E146: 0 | F146: 0 | G146: 0 | H146: 0 | I146: 0 | K146: 0
A148: Computer Equipment | C148: =SUM(C149:C149) -> 484119.58 | D148: 1225980 | E148: 1225980 | F148: 0 | G148: 0 | H148: 817328 | I148: =H148-G148 -> 817328 | J148: =IF(I148=0,"",I148/H148) -> 1 | K148: =SUM(K149) -> 1225980
A149: Computer Equipment | C149: 484119.58 | D149: 1225980 | E149: 1225980 | F149: 0 | G149: 0 | H149: 817328 | I149: =H149-G149 -> 817328 | J149: =IF(I149=0,"",I149/H149) -> 1 | K149: 1225980
A151: Furniture and Office Equipment | C151: =SUM(C152:C152) -> 724253.81 | D151: 2706041 | E151: 2706041 | F151: 0 | G151: 0 | H151: 1804040 | I151: =H151-G151 -> 1804040 | J151: =IF(I151=0,"",I151/H151) -> 1 | K151: =SUM(K152) -> 2706041
A152: Furniture and Office Equipment | C152: 724253.81 | D152: 2706041 | E152: 2706041 | F152: 0 | G152: 0 | H152: 1804040 | I152: =H152-G152 -> 1804040 | J152: =IF(I152=0,"",I152/H152) -> 1 | K152: 2706041
J153: =IF(I153=0,"",I153/H153) -> 
A154: Machinery and Equipment | C154: =SUM(C155:C155) -> 1187596.59 | D154: 747000 | E154: 747000 | F154: 0 | G154: 0 | H154: 498000 | I154: =H154-G154 -> 498000 | J154: =IF(I154=0,"",I154/H154) -> 1 | K154: =SUM(K155) -> 747000
A155: Machinery and Equipment | C155: 1187596.59 | D155: 747000 | E155: 747000 | F155: 0 | G155: 0 | H155: 498000 | I155: =H155-G155 -> 498000 | J155: =IF(I155=0,"",I155/H155) -> 1 | K155: 747000
A157: Transport Assets | C157: =SUM(C158:C158) -> 1479127.78 | D157: 0 | E157: 0 | F157: 0 | G157: 0 | H157: 0 | I157: =H157-G157 -> 0 | J157: =IF(I157=0,"",I157/H157) ->  | K157: =SUM(K158) -> 0
A158: Transport Assets | C158: 1479127.78 | D158: 0 | E158: 0 | F158: 0 | G158: 0 | H158: 0 | I158: =H158-G158 -> 0 | J158: =IF(I158=0,"",I158/H158) ->  | K158: 0
A160: Land | C160: =SUM(C161:C161) -> 0 | D160: 0 | E160: 0 | F160: 0 | G160: 0 | H160: 0 | I160: =H160-G160 -> 0 | J160: =IF(I160=0,"",I160/H160) ->  | K160: =SUM(K161) -> 0
A161: Land | I161: =H161-G161 -> 0 | J161: =IF(I161=0,"",I161/H161) -> 
A163: Zoo's, Marine and Non-biological Animals | C163: =SUM(C164:C164) -> 0 | D163: 0 | E163: 0 | F163: 0 | G163: 0 | H163: 0 | I163: =H163-G163 -> 0 | J163: =IF(I163=0,"",I163/H163) ->  | K163: =SUM(K164) -> 0
A164: Zoo's, Marine and Non-biological Animals | I164: =H164-G164 -> 0 | J164: =IF(I164=0,"",I164/H164) -> 
J165: =IF(I165=0,"",I165/H165) -> 
A166: Living resources | C166: =+C167+C170 -> 0 | D166: 0 | E166: 0 | F166: 0 | G166: 0 | H166: 0 | I166: =H166-G166 -> 0 | K166: =+K167+K170 -> 0
A167: Mature | C167: =+C168+C169 -> 0 | D167: 0 | E167: 0 | F167: 0 | G167: 0 | H167: 0 | I167: 0 | K167: =+K168+K169 -> 0
A168: Policing and Protection | I168: 0
A169: Zoological plants and animals | I169: 0
A170: Immature | C170: =+C171+C172 -> 0 | D170: 0 | E170: 0 | F170: 0 | G170: 0 | H170: 0 | I170: 0 | K170: =+K171+K172 -> 0
A171: Policing and Protection | I171: 0
A172: Zoological plants and animals | I172: 0
A173: Total Depreciation | B173: 1 | C173: =C7+C75+C103+C110+C117+C135+C138+C148+C151+C154+C157+C160+C163+C166 -> 31482239.38 | D173: 37667907 | E173: 37667907 | F173: 0 | G173: 0 | H173: 25112008 | I173: =H173-G173 -> 25112008 | J173: =IF(I173=0,"",I173/H173) -> 1 | K173: =K7+K75+K103+K110+K117+K135+K138+K148+K151+K154+K157+K160+K163+K166 -> 37667907

Sheet SC13e
A1: =muni& " - "&S71Se& " - "&Head57 -> LIM351 Blouberg - Supporting Table SC13e Monthly Budget Statement - capital expenditure on upgrading of existing assets by asset class - M08 February
A2: =desc -> Description | B2: =head27 -> Ref | C2: =Head1 -> 2022/23 | D2: =Head2 -> Budget Year 2023/24
C3: =Head5 -> Audited Outcome | D3: =Head6 -> Original Budget | E3: =Head7 -> Adjusted Budget | F3: =Head38 -> Monthly actual | G3: =Head39 -> YearTD actual | H3: =Head40 -> YearTD budget | I3: =Head41 -> YTD variance | J3: =Head41 -> YTD variance | K3: =Head8 -> Full Year Forecast
A4: R thousands | B4: 1 | J4: %
A5: Capital expenditure on upgrading of existing assets by Asset Class/Sub-class
A7: Infrastructure | C7: =C8+C13+C17+C27+C38+C45+C53+C63+C69 -> 0 | D7: 0 | E7: 0 | F7: 0 | G7: 0 | H7: 0 | I7: =H7-G7 -> 0 | J7: =IF(I7=0,"",I7/H7) ->  | K7: =K8+K13+K17+K27+K38+K45+K53+K63+K69 -> 0
A8: Roads Infrastructure | C8: =SUM(C9:C12) -> 0 | D8: 0 | E8: 0 | F8: 0 | G8: 0 | H8: 0 | I8: 0 | K8: =SUM(K9:K12) -> 0
A9: Roads | I9: 0
A10: Road Structures | I10: 0
A11: Road Furniture | I11: 0
A12: Capital Spares | I12: 0
A13: Storm water Infrastructure | C13: =SUM(C14:C16) -> 0 | D13: 0 | E13: 0 | F13: 0 | G13: 0 | H13: 0 | I13: 0 | K13: =SUM(K14:K16) -> 0
A14: Drainage Collection | I14: 0
A15: Storm water Conveyance | I15: 0
A16: Attenuation | I16: 0
A17: Electrical Infrastructure | C17: =SUM(C18:C26) -> 0 | D17: 0 | E17: 0 | F17: 0 | G17: 0 | H17: 0 | I17: 0 | K17: =SUM(K18:K26) -> 0
A18: Power Plants | I18: 0
A19: HV Substations | I19: 0
A20: HV Switching Station | I20: 0
A21: HV Transmission Conductors | I21: 0
A22: MV Substations | I22: 0
A23: MV Switching Stations | I23: 0
A24: MV Networks | I24: 0
A25: LV Networks | I25: 0
A26: Capital Spares | I26: 0
A27: Water Supply Infrastructure | C27: =SUM(C28:C37) -> 0 | D27: 0 | E27: 0 | F27: 0 | G27: 0 | H27: 0 | I27: 0 | K27: =SUM(K28:K37) -> 0
A28: Dams and Weirs | I28: 0
A29: Boreholes | I29: 0
A30: Reservoirs | I30: 0
A31: Pump Stations | I31: 0
A32: Water Treatment Works | I32: 0
A33: Bulk Mains | I33: 0
A34: Distribution | I34: 0
A35: Distribution Points | I35: 0
A36: PRV Stations | I36: 0
A37: Capital Spares | I37: 0
A38: Sanitation Infrastructure | C38: =SUM(C39:C44) -> 0 | D38: 0 | E38: 0 | F38: 0 | G38: 0 | H38: 0 | I38: 0 | K38: =SUM(K39:K44) -> 0
A39: Pump Station | I39: 0
A40: Reticulation | I40: 0
A41: Waste Water Treatment Works | I41: 0
A42: Outfall Sewers | I42: 0
A43: Toilet Facilities | I43: 0
A44: Capital Spares | I44: 0
A45: Solid Waste Infrastructure | C45: =SUM(C46:C52) -> 0 | D45: 0 | E45: 0 | F45: 0 | G45: 0 | H45: 0 | I45: 0 | K45: =SUM(K46:K52) -> 0
A46: Landfill Sites | C46: 0 | D46: 0 | E46: 0 | F46: 0 | G46: 0 | H46: 0 | I46: 0 | K46: 0
A47: Waste Transfer Stations | I47: 0
A48: Waste Processing Facilities | I48: 0
A49: Waste Drop-off Points | I49: 0
A50: Waste Separation Facilities | I50: 0
A51: Electricity Generation Facilities | I51: 0
A52: Capital Spares | I52: 0
A53: Rail Infrastructure | C53: =SUM(C54:C62) -> 0 | D53: 0 | E53: 0 | F53: 0 | G53: 0 | H53: 0 | I53: 0 | K53: =SUM(K54:K62) -> 0
A54: Rail Lines | I54: 0
A55: Rail Structures | I55: 0
A56: Rail Furniture | I56: 0
A57: Drainage Collection | I57: 0
A58: Storm water Conveyance | I58: 0
A59: Attenuation | I59: 0
A60: MV Substations | I60: 0
A61: LV Networks | I61: 0
A62: Capital Spares | I62: 0
A63: Coastal Infrastructure | C63: =SUM(C64:C68) -> 0 | D63: 0 | E63: 0 | F63: 0 | G63: 0 | H63: 0 | I63: 0 | K63: =SUM(K64:K68) -> 0
A64: Sand Pumps | I64: 0
A65: Piers | I65: 0
A66: Revetments | I66: 0
A67: Promenades | I67: 0
A68: Capital Spares | I68: 0
A69: Information and Communication Infrastructure | C69: =SUM(C70:C73) -> 0 | D69: 0 | E69: 0 | F69: 0 | G69: 0 | H69: 0 | I69: 0 | K69: =SUM(K70:K73) -> 0
A70: Data Centres | I70: 0
A71: Core Layers | I71: 0
A72: Distribution Layers | I72: 0
A73: Capital Spares | I73: 0
A75: Community Assets | C75: =+C76+C99 -> 0 | D75: 0 | E75: 0 | F75: 0 | G75: 0 | H75: 0 | I75: 0 | K75: =+K76+K99 -> 0
A76: Community Facilities | C76: =SUM(C77:C98) -> 0 | D76: 0 | E76: 0 | F76: 0 | G76: 0 | H76: 0 | I76: 0 | K76: =SUM(K77:K98) -> 0
A77: Halls | I77: 0
A78: Centres | I78: 0
A79: Crèches | I79: 0
A80: Clinics/Care Centres | I80: 0
A81: Fire/Ambulance Stations | I81: 0
A82: Testing Stations | I82: 0
A83: Museums | I83: 0
A84: Galleries | I84: 0
A85: Theatres | I85: 0
A86: Libraries | I86: 0
A87: Cemeteries/Crematoria | I87: 0
A88: Police | I88: 0
A89: Purls | I89: 0
A90: Public Open Space | I90: 0
A91: Nature Reserves | I91: 0
A92: Public Ablution Facilities | I92: 0
A93: Markets | I93: 0
A94: Stalls | I94: 0
A95: Abattoirs | I95: 0
A96: Airports | I96: 0
A97: Taxi Ranks/Bus Terminals | I97: 0
A98: Capital Spares | I98: 0
A99: Sport and Recreation Facilities | C99: =SUM(C100:C102) -> 0 | D99: 0 | E99: 0 | F99: 0 | G99: 0 | H99: 0 | I99: 0 | K99: =SUM(K100:K102) -> 0
A100: Indoor Facilities | I100: 0
A101: Outdoor Facilities | C101: 0 | D101: 0 | E101: 0 | F101: 0 | G101: 0 | H101: 0 | I101: =H101-G101 -> 0 | J101: =IF(I101=0,"",I101/H101) ->  | K101: 0
A102: Capital Spares | I102: 0
A103: Heritage assets | C103: =SUM(C104:C108) -> 0 | D103: 0 | E103: 0 | F103: 0 | G103: 0 | H103: 0 | I103: 0 | K103: =SUM(K104:K108) -> 0
A104: Monuments | I104: 0
A105: Historic Buildings | I105: 0
A106: Works of Art | I106: 0
A107: Conservation Areas | I107: 0
A108: Other Heritage | I108: 0
I109: 0
A110: Investment properties | C110: =+C111+C114 -> 0 | D110: 0 | E110: 0 | F110: 0 | G110: 0 | H110: 0 | I110: 0 | K110: =+K111+K114 -> 0
A111: Revenue Generating | C111: =SUM(C112:C113) -> 0 | D111: 0 | E111: 0 | F111: 0 | G111: 0 | H111: 0 | I111: 0 | K111: =SUM(K112:K113) -> 0
A112: Improved Property | I112: 0
A113: Unimproved Property | I113: 0
A114: Non-revenue Generating | C114: =SUM(C115:C116) -> 0 | D114: 0 | E114: 0 | F114: 0 | G114: 0 | H114: 0 | I114: 0 | K114: =SUM(K115:K116) -> 0
A115: Improved Property | I115: 0
A116: Unimproved Property | I116: =H116-G116 -> 0 | J116: =IF(I116=0,"",I116/H116) -> 
A117: Other assets | C117: =+C118+C130 -> 0 | D117: 0 | E117: 0 | F117: 0 | G117: 0 | H117: 0 | I117: 0 | K117: =+K118+K130 -> 0
A118: Operational Buildings | C118: =SUM(C119:C129) -> 0 | D118: 0 | E118: 0 | F118: 0 | G118: 0 | H118: 0 | I118: 0 | K118: =SUM(K119:K129) -> 0
A119: Municipal Offices | I119: 0
A120: Pay/Enquiry Points | I120: 0
A121: Building Plan Offices | I121: 0
A122: Workshops | I122: 0
A123: Yards | I123: 0
A124: Stores | I124: 0
A125: Laboratories | I125: 0
A126: Training Centres | I126: 0
A127: Manufacturing Plant | I127: 0
A128: Depots | I128: 0
A129: Capital Spares | I129: 0
A130: Housing | C130: =SUM(C131:C133) -> 0 | D130: 0 | E130: 0 | F130: 0 | G130: 0 | H130: 0 | I130: 0 | K130: =SUM(K131:K133) -> 0
A131: Staff Housing | I131: 0
A132: Social Housing | I132: 0
A133: Capital Spares | I133: 0
A135: Biological or Cultivated Assets | C135: =SUM(C136:C136) -> 0 | D135: 0 | E135: 0 | F135: 0 | G135: 0 | H135: 0 | I135: =H135-G135 -> 0 | K135: =SUM(K136) -> 0
A136: Biological or Cultivated Assets | I136: =H136-G136 -> 0
J137: =IF(I137=0,"",I137/H137) -> 
A138: Intangible Assets | C138: =SUM(C139:C140) -> 0 | D138: 0 | E138: 0 | F138: 0 | G138: 0 | H138: 0 | I138: =H138-G138 -> 0 | K138: =SUM(K139:K140) -> 0
A139: Servitudes | I139: 0
A140: Licences and Rights | C140: =SUM(C141:C146) -> 0 | D140: 0 | E140: 0 | F140: 0 | G140: 0 | H140: 0 | I140: 0 | K140: =SUM(K141:K146) -> 0
A141: Water Rights | I141: 0
A142: Effluent Licenses | I142: 0
A143: Solid Waste Licenses | I143: 0
A144: Computer Software and Applications | I144: 0
A145: Load Settlement Software Applications | I145: 0
A146: Unspecified | I146: 0
A148: Computer Equipment | C148: =SUM(C149:C149) -> 0 | D148: 0 | E148: 0 | F148: 0 | G148: 0 | H148: 0 | I148: =H148-G148 -> 0 | J148: =IF(I148=0,"",I148/H148) ->  | K148: =SUM(K149) -> 0
A149: Computer Equipment | I149: =H149-G149 -> 0 | J149: =IF(I149=0,"",I149/H149) -> 
A151: Furniture and Office Equipment | C151: =SUM(C152:C152) -> 0 | D151: 0 | E151: 0 | F151: 0 | G151: 0 | H151: 0 | I151: =H151-G151 -> 0 | J151: =IF(I151=0,"",I151/H151) ->  | K151: =SUM(K152) -> 0
A152: Furniture and Office Equipment | C152: 0 | D152: 0 | E152: 0 | F152: 0 | G152: 0 | H152: 0 | I152: =H152-G152 -> 0 | J152: =IF(I152=0,"",I152/H152) ->  | K152: 0
J153: =IF(I153=0,"",I153/H153) -> 
A154: Machinery and Equipment | C154: =SUM(C155:C155) -> 0 | D154: 0 | E154: 0 | F154: 0 | G154: 0 | H154: 0 | I154: =H154-G154 -> 0 | J154: =IF(I154=0,"",I154/H154) ->  | K154: =SUM(K155) -> 0
A155: Machinery and Equipment | C155: 0 | D155: 0 | E155: 0 | F155: 0 | G155: 0 | H155: 0 | I155: =H155-G155 -> 0 | J155: =IF(I155=0,"",I155/H155) ->  | K155: 0
A157: Transport Assets | C157: =SUM(C158:C158) -> 0 | D157: 0 | E157: 0 | F157: 0 | G157: 0 | H157: 0 | I157: =H157-G157 -> 0 | J157: =IF(I157=0,"",I157/H157) ->  | K157: =SUM(K158) -> 0
A158: Transport Assets | I158: =H158-G158 -> 0 | J158: =IF(I158=0,"",I158/H158) -> 
A160: Land | C160: =SUM(C161:C161) -> 0 | D160: 0 | E160: 0 | F160: 0 | G160: 0 | H160: 0 | I160: =H160-G160 -> 0 | J160: =IF(I160=0,"",I160/H160) ->  | K160: =SUM(K161) -> 0
A161: Land | I161: =H161-G161 -> 0 | J161: =IF(I161=0,"",I161/H161) -> 
J162: .
A163: Zoo's, Marine and Non-biological Animals | C163: =SUM(C164:C164) -> 0 | D163: 0 | E163: 0 | F163: 0 | G163: 0 | H163: 0 | I163: =H163-G163 -> 0 | J163: =IF(I163=0,"",I163/H163) ->  | K163: =SUM(K164) -> 0
A164: Zoo's, Marine and Non-biological Animals | I164: =H164-G164 -> 0
A166: Living resources | C166: =+C167+C170 -> 0 | D166: 0 | E166: 0 | F166: 0 | G166: 0 | H166: 0 | I166: =H166-G166 -> 0 | K166: =+K167+K170 -> 0
A167: Mature | C167: =+C168+C169 -> 0 | D167: 0 | E167: 0 | F167: 0 | G167: 0 | H167: 0 | I167: 0 | K167: =+K168+K169 -> 0
A168: Policing and Protection | I168: 0
A169: Zoological plants and animals | I169: 0
A170: Immature | C170: =+C171+C172 -> 0 | D170: =+D171+D172 -> 0 | E170: 0 | F170: 0 | G170: 0 | H170: 0 | I170: 0 | K170: =+K171+K172 -> 0
A171: Policing and Protection | I171: 0
A172: Zoological plants and animals | I172: 0
A173: Total Capital Expenditure on upgrading of existing assets | B173: 1 | C173: =C7+C75+C103+C110+C117+C135+C138+C148+C151+C154+C157+C160+C163+C166 -> 0 | D173: 0 | E173: 0 | F173: 0 | G173: 0 | H173: 0 | I173: =H173-G173 -> 0 | J173: =IF(I173=0,"",I173/H173) ->  | K173: =K7+K75+K103+K110+K117+K135+K138+K148+K151+K154+K157+K160+K163+K166 -> 0
A175: =head27a -> References
A176: 1. Total Capital Expenditure on new assets (SC13a) plus Total Capital Expenditure on renewal of existing assets (SC13b) plus Total Capital Expenditure on upgrading of existing assets (SC13e) must reconcile to total capital expenditure in Table C5

Sheet SC71charts
A1: ='Template names'!B102 -> Chart C1 2023/24 Capital Expenditure Monthly Trend: actual v target
A2: Month | B2: ='SC12'!B2 -> 2022/23 | C2: ='SC12'!C3 -> Original Budget | D2: ='SC12'!D3 -> Adjusted Budget | E2: ='SC12'!E3 -> Monthly actual
A3: =LEFT('SC12'!A6,3) -> Jul | B3: ='SC12'!B6 -> 1261058.69 | C3: ='SC12'!C6 -> 7241005 | D3: ='SC12'!D6 -> 7241005 | E3: ='SC12'!E6 -> 0
A4: =LEFT('SC12'!A7,3) -> Aug | B4: ='SC12'!B7 -> 4189445.07 | C4: ='SC12'!C7 -> 7241005 | D4: ='SC12'!D7 -> 7241005 | E4: ='SC12'!E7 -> 3178394.27
A5: =LEFT('SC12'!A8,3) -> Sep | B5: ='SC12'!B8 -> 3456479.88 | C5: ='SC12'!C8 -> 7241005 | D5: ='SC12'!D8 -> 7241005 | E5: ='SC12'!E8 -> 4634613.29
A6: =LEFT('SC12'!A9,3) -> Oct | B6: ='SC12'!B9 -> 9591120.1 | C6: ='SC12'!C9 -> 8396080.54 | D6: ='SC12'!D9 -> 8396080.54 | E6: ='SC12'!E9 -> 8736457.68
A7: =LEFT('SC12'!A10,3) -> Nov | B7: ='SC12'!B10 -> 2792246.87 | C7: ='SC12'!C10 -> 8396080.54 | D7: ='SC12'!D10 -> 8396080.54 | E7: ='SC12'!E10 -> 11401864.09
A8: =LEFT('SC12'!A11,3) -> Dec | B8: ='SC12'!B11 -> 23823373.08 | C8: ='SC12'!C11 -> 8396080.54 | D8: ='SC12'!D11 -> 8396080.54 | E8: ='SC12'!E11 -> 9968726.98
A9: =LEFT('SC12'!A12,3) -> Jan | B9: ='SC12'!B12 -> 5703208.74 | C9: ='SC12'!C12 -> 8396080.54 | D9: ='SC12'!D12 -> 8396080.54 | E9: ='SC12'!E12 -> 1462416.34
A10: =LEFT('SC12'!A13,3) -> Feb | B10: ='SC12'!B13 -> 5732773 | C10: ='SC12'!C13 -> 18404212.94 | D10: ='SC12'!D13 -> 18404212.94 | E10: ='SC12'!E13 -> 2458428.77
A11: =LEFT('SC12'!A14,3) -> Mar | B11: ='SC12'!B14 -> 7001332.54 | C11: ='SC12'!C14 -> 18404212.94 | D11: ='SC12'!D14 -> 18404212.94 | E11: ='SC12'!E14 -> 0
A12: =LEFT('SC12'!A15,3) -> Apr | B12: ='SC12'!B15 -> 10339377.53 | C12: ='SC12'!C15 -> 18404212.94 | D12: ='SC12'!D15 -> 18404212.94 | E12: ='SC12'!E15 -> 0
A13: =LEFT('SC12'!A16,3) -> May | B13: ='SC12'!B16 -> 7280498.52 | C13: ='SC12'!C16 -> 18404212.94 | D13: ='SC12'!D16 -> 18404212.94 | E13: ='SC12'!E16 -> 0
A14: =LEFT('SC12'!A17,3) -> Jun | B14: ='SC12'!B17 -> 17922321.35 | C14: ='SC12'!C17 -> 18404153.08 | D14: ='SC12'!D17 -> 18404153.08 | E14: ='SC12'!E17 -> 0
A26: ='Template names'!B103 -> Chart C2 2023/24 Capital Expenditure: YTD actual v YTD target
A27: Month | B27: ='SC12'!F3 -> YearTD actual | C27: ='SC12'!G3 -> YearTD budget
A28: =LEFT('SC12'!A6,3) -> Jul | B28: ='SC12'!F6 -> 0 | C28: ='SC12'!G6 -> 7241005
A29: =LEFT('SC12'!A7,3) -> Aug | B29: ='SC12'!F7 -> 3178394.27 | C29: ='SC12'!G7 -> 14482010
A30: =LEFT('SC12'!A8,3) -> Sep | B30: ='SC12'!F8 -> 4634613.29 | C30: ='SC12'!G8 -> 21723015
A31: =LEFT('SC12'!A9,3) -> Oct | B31: ='SC12'!F9 -> 8736457.68 | C31: ='SC12'!G9 -> 30119095.54
A32: =LEFT('SC12'!A10,3) -> Nov | B32: ='SC12'!F10 -> 11401864.09 | C32: ='SC12'!G10 -> 38515176.08
A33: =LEFT('SC12'!A11,3) -> Dec | B33: ='SC12'!F11 -> 9968726.98 | C33: ='SC12'!G11 -> 46911256.62
A34: =LEFT('SC12'!A12,3) -> Jan | B34: ='SC12'!F12 -> 1462416.34 | C34: ='SC12'!G12 -> 55307337.16
A35: =LEFT('SC12'!A13,3) -> Feb | B35: ='SC12'!F13 -> 2458428.77 | C35: ='SC12'!G13 -> 73711550.1
A36: =LEFT('SC12'!A14,3) -> Mar | B36: ='SC12'!F14 -> 0 | C36: ='SC12'!G14 -> 92115763.04
A37: =LEFT('SC12'!A15,3) -> Apr | B37: ='SC12'!F15 -> 0 | C37: ='SC12'!G15 -> 110519976
A38: =LEFT('SC12'!A16,3) -> May | B38: ='SC12'!F16 -> 0 | C38: ='SC12'!G16 -> 128924188.9
A39: =LEFT('SC12'!A17,3) -> Jun | B39: ='SC12'!F17 -> 0 | C39: ='SC12'!G17 -> 147328342
A51: ='Template names'!B104 -> Chart C3 Aged Consumer Debtors Analysis
B52: ='SC3'!C3 -> 0-30 Days | C52: ='SC3'!D3 -> 31-60 Days | D52: ='SC3'!E3 -> 61-90 Days | E52: ='SC3'!F3 -> 91-120 Days | F52: ='SC3'!G3 -> 121-150 Dys | G52: ='SC3'!H3 -> 151-180 Dys | H52: ='SC3'!I3 -> 181 Dys-1 Yr | I52: ='SC3'!J3 -> Over 1Yr
A53: =Head2 -> Budget Year 2023/24 | B53: ='SC3'!C14 -> 0 | C53: ='SC3'!D14 -> 0 | D53: ='SC3'!E14 -> 0 | E53: ='SC3'!F14 -> 0 | F53: ='SC3'!G14 -> 0 | G53: ='SC3'!H14 -> 0 | H53: ='SC3'!I14 -> 0 | I53: ='SC3'!J14 -> 0
A54: =Head1 -> 2022/23 | B54: ='SC3'!C15 -> 0 | C54: ='SC3'!D15 -> 0 | D54: ='SC3'!E15 -> 0 | E54: ='SC3'!F15 -> 0 | F54: ='SC3'!G15 -> 0 | G54: ='SC3'!H15 -> 0 | H54: ='SC3'!I15 -> 0 | I54: ='SC3'!J15 -> 0
A76: ='Template names'!B105 -> Chart C4 Consumer Debtors (total by Debtor Customer Category)
B77: =Head1 -> 2022/23 | C77: =Head2 -> Budget Year 2023/24
A78: ='SC3'!A17 -> Organs of State | B78: =C78*0.97 -> 0 | C78: ='SC3'!K17 -> 0
A79: ='SC3'!A18 -> Commercial | B79: =C79*0.97 -> 0 | C79: ='SC3'!K18 -> 0
A80: ='SC3'!A19 -> Households | B80: =C80*0.97 -> 0 | C80: ='SC3'!K19 -> 0
A81: ='SC3'!A20 -> Other | B81: =C81*0.97 -> 0 | C81: ='SC3'!K20 -> 0
A101: ='Template names'!B106 -> Chart C5 Aged Creditors Analysis
B102: ='SC4'!A6 -> Bulk Electricity | C102: ='SC4'!A7 -> Bulk Water | D102: ='SC4'!A8 -> PAYE deductions | E102: ='SC4'!A9 -> VAT (output less input) | F102: ='SC4'!A10 -> Pensions / Retirement deductions | G102: ='SC4'!A11 -> Loan repayments | H102: ='SC4'!A12 -> Trade Creditors | I102: ='SC4'!A13 -> Auditor General | J102: ='SC4'!A14 -> Other
A103: =A54 -> 2022/23 | B103: ='SC4'!L6 -> 0 | C103: ='SC4'!L7 -> 0 | D103: ='SC4'!L8 -> 0 | E103: ='SC4'!L9 -> 0 | F103: ='SC4'!L10 -> 0 | G103: ='SC4'!L11 -> 0 | H103: ='SC4'!L12 -> 0 | I103: ='SC4'!L13 -> 0 | J103: ='SC4'!L14 -> 0
